Workbook

Sheet Readme First
A3: 1 | B3: All lines in the Portfolio view are coded with a reference, such as "aa" or "f". This makes conference discussions and data requests much easier.
C4: Some reference letters were purposely omitted.
A5: 2 | B5: Some programs in the Portfolio and Sector Views, (Single Family Existing and Electronic Media Tools & Marketing, for instance) are comprised
B6: of sub-groupings.
C7: Those sub-groups are color-coded and indented. Their totals add up to the grouping above.
A8: 3 | B8: In all program detail pages, program names, order number, and fuel type are noted in both the horizontal and vertical margins, providing a quick reference
B9: for readers, no matter where they are in the worksheet.
A10: 4 | B10: Measure tables are calculated for 2024/25-specific values.
B11: Original 2023 (the 2023 values originally stated in the 2023 ACP) are hard-coded in the detail pages for reference.
A12: 5 | B12: PSE added new navigation buttons to the detail pages. Now, readers can navigate directly to a corresponding gas or electric detail page.
B13: (The exception, of course, are those programs that are gas-or electric-only, or retired [red tab] programs.)
A14: 6 | B14: Tabs colored red indicate a retired program or a program that is on hiatus
C15: Over the years, as programs are retired and new programs implemented, old sheets within this workbook are re-purposed. As a result, all tabs may not be
C16: program sequential order, according to Exhibit 1's Portfolio View.

Sheet Budget Category Descriptions
B1: Exhibit 1 Budget Category Definitions
B3: Cost Element | C3: Also referred to as a General Ledger account number, the cost element is the finest level of detail within PSE accounting systems. There are often many cost element numbers that "roll up" into a cost element segment. For instance, the overhead segment includes material OH, transportation OH, labor OH, etc. Employee/Office Expenses include travel, meals, lodging, parking, etc. Cost elements have a very specific connotation and are typically designed to meet a variety of accounting standards, such as FERC requirements. Therefore, in Exhibit 1, the term "cost element" is rarely used. The groupings that represent the budget allocations are most accurately listed in the below table.
B4: Order number(s) | C4: This is the main level of tracking expenditures and expenses in Energy Effiency. Per FERC rules, all conservation order numbers start with a "1823nnnn", where "n" is some number. Cost elements apply to all order numbers (for instance, all conservation programs that offer incentives will have at least a labor, incentive and overhead cost element within the order number.
B5: Labor | C5: Energy Efficiency program staff labor. Average FTE cost including management assessments. This Budget Category group includes assessments from Major Accounts management, Resource Planning, Corporate Communications management, IT specialists and some building maintenance allocations.
B6: Marketing Labor | C6: Also Energy Efficiency staff labor, associated specifically with Marketing functions. Marketing allocates staffing according to program needs.
B7: Overhead | C7: Overhead--costs associated with primarily employee labor; benefits, for instance.
B8: Micro-Overhead | C8: New for 2017, these expenditures are not incremental from 2016 budget amounts. Rather, this budget category reflects assessments (both labor and non-labor, such as office supplies, departmental meetings, group trainings, etc.) that were formerly calculated, aggregated, and then represented in the Labor category. A result of PSE accounting revisions implemented in 2017, this enhancement will provide a more direct view of expenditures that assess over a cost center, rather than directly to an order number. Annual Schedule 120 audits of assessed costs will become clearer.
B9: Marketing | C9: Service and materials associated with the cost of printing program brochures, marketing pieces, advertising, banners, etc. Also includes marketing conducted by vendors and contractors.
B10: Employee/Office Expense | C10: Costs associated with EE staff attending events, employee training, conferences, business meals, business parking, ferry & bridge tolls, mileage incurred on employee automobiles, office supplies, phones, subscriptions, software/hardware, etc.
B11: Outside Services | C11: Contractors and vendors, such as PECI, Ecos, CostCo, EFI, etc. Legal expenses, technical services (CMS design, PSE.com web portals, etc.). These costs do NOT include brochure development, marketing pieces, (which are classified under MARKETING). These costs do NOT include incentives paid to customers by contractors.
B12: Materials | C12: Primarily tools, trade show equipment, etc.
B13: Miscellaneous | C13: This category should seldomly be used, and only expenses that cannot be classified under one of the above categories.
B14: Direct Benefit to Customer | C14: All costs associated with rebates, grants, remuneration, value-added services. PSE cost element # 62510000; Consumer Incentive Payments, is classified by the Accounting department as Miscellaneous. However, it is one of the primarily elements of Energy Efficiency's Direct Benefit to Customer (DBtC).
B15: Revenue (Enter as a negative) | C15: Any amount that PSE is paid by a customer, partner, municipality or outside entity.

Sheet Global Figures Reference
A1: Global References
B8: Biennial Years
C9: First Year | D9: 2024
C10: Second Year | D10: 2025
B12: Messages
C13: Horizontal Table Reference | D13: This table summarizes the subtotals in the detail table below and is used to populate 2024-2025 Sector view tables (located at the front of this workbook).
C14: Horizontal Table Labels | D14: 2023 ACP (For comparison)
D15: 2024
D16: 2025
D17: 2024-2025 Total

Sheet Savings Terminology
A1: PSE's formerly used terms | B1: Updated Terms (2018) | C1: Definition
A2: Total Biennial Potential | B2: CPA Pro-Rata Share | C2: Pro-rata share of the utilities IRP's Conservation Potential Assessment's 10-year potential or 2 year total (whichever is greater). Includes NEEA.
A3: Total Base Savings | B3: EIA Target | C3: [(CPA Pro-Rata Share) + (other programs/measures with confident savings that were omitted from CPA)]
A4: Decoupling Penalty Target | B4: Decoupling Threshold | C4: [EIA Target * 0.05]
A5: Total Portfolio Target | B5: Total Utility Conservation Goal/Achievement | C5: All savings programs funded by Conservation Riders [EIA Target + Decoupling Threshold]
A6: (Loosely) "Excluded" | B6: Excluded Programs | C6: Programs approved by the Commission to be excluded from a Penalty Threshold. For last three biennia, these included NEEA and Pilots with Uncertain Savings.
A7: Utility-Specific Savings | B7: Utility-Specific Conservation Goal/Achievement | C7: [Total Utility Conservation Goal/Achievement – (Excluded programs (for instance, NEEA, Pilots with uncertain savings, retail wheeling accounts, etc.) + adjustments)]
A8: EIA Penalty Target | B8: EIA Penalty Threshold | C8: [Utility-Specific Conservation - Decoupling Threshold]
A9: Excess Savings (1) | B9: Excess Savings (Dept of Commerce driven) | C9: (Referencing results) The difference of [Total Utility Conservation Achievement – Total Utility Conservation Goal]
A10: Excess Savings (2P) | B10: PSE Excess Savings for Penalty Thresholds (UTC Driven) | C10: (Referencing results) The difference of Total Utility-Specific Conservation Achievement - Goal.

Sheet Building the 2-yr elec target
F5: Puget Sound Energy 2024-2025 Electric Portfolio Savings
G8: Index | H8: Description | I8: MWh | J8: aMW | K8: Comment | N8: Calculation
H10: Colored cells correspond to indicated lines in Exhibit 1: Portfolio--2024-2025 Tab.
H11: Calculate the EIA Target
G12: a | H12: CPA Pro-Rata Share IRP & CPA Guidance | I12: 304400 | J12: =I12/8760 -> 34.74885845 | K12: IRP guidance (no behavior savings) | L12: Represents all available conservation that is cost-effective, reliable, and feasible, as a 20% pro-rata share of PSE's 10-year conservation potential, per RCW 19.285.040(1). | N12: Exhibit i
G13: b | H13: EIA Target | I13: =SUM(I12) -> 304400 | J13: =I13/8760 -> 34.74885845 | L13: Meets RCW 18.285.040(1)(a) and (b) requirements.
H14: Calculate the Penalty Thresholds
G15: c | H15: Subtract NEEA Savings | I15: =-'Portfolio--2024-2025'!G41 -> -35698.422 | J15: =I15/8760 -> -4.075162329 | L15: Exhibit 5 NEEA savings forecast for PSE
G16: d | H16: EIA Penalty Threshold | I16: =I13+I15 -> 268701.578 | J16: =I16/8760 -> 30.67369612 | K16: EIA Target + Decoupling Commitment. $50/MWh of shortfall. | L16: ~$70/MWh shortfall penalty, based on 2022 inflation, per RCW 19.285.060. | N16: = b - c
G17: e | H17: Decoupling Threshold | I17: =I13*0.05 -> 15220 | J17: =I17/8760 -> 1.737442922 | L17: 5 percent of EIA Target | N17: = b * .05
H18: Build the Total Utility Conservation Goal
G19: f | H19: Add Firm Savings Excluded from CPA | I19: ='Portfolio--2024-2025'!G30 -> 8000 | J19: =I19/8760 -> 0.9132420091 | K19: 15,000 residential HER customers | L19: Schedule 449s and special contracts.
G20: g | H20: Add Pilots with Uncertain Savings | I20: ='Portfolio--2024-2025'!G38 -> 0 | J20: =I20/8760 -> 0 | K20: New Residential + Small Business | L20: Single Family AMI Engagement Pilot.
G21: h | H21: Add Program Savings Build-Out | I21: 70000 | J21: =I21/8760 -> 7.99086758 | L21: Based on bottom-up build of program savings with contractor and program staff input.
G22: i | H22: Total 2024-2025 Utility Conservation Goal | I22: =I13+SUM(I17:I21) -> 397620 | J22: =I22/8760 -> 45.39041096 | L22: This is the total Conservation Goal to which PSE is managing. | N22: = b + e + (f + g + h)
L29: D.C. = Decoupling Commitment
L30: EIA = Energy Independence Act; referencing RCW 19.285, or "I-937".
L31: HER = Residential Home Energy Reports
L32: IRP = Integrated Resource Plan

Sheet Building the 2-yr gas target
D7: Puget Sound Energy 2024-2025 Natural Gas Portfolio Savings
E10: Index | F10: Description | G10: Therms | H10: Comment | I10: Calculation
F11: Colored cells correspond to indicated lines in Exhibit 1: Portfolio--2024-2025 Tab.
F12: Calculate the CPA Based Target
E13: a | F13: CPA First Two Years & select ramp rate adjustments | G13: 6541000 | H13: First 2 year savings potential with select discretionary measure ramp rate adjustments.
E14: b | F14: Subtract Gas Furnace Savings | G14: -451000 | H14: Switching from 80% gas furnace baseline to Current Practice Baseline in RTF deemed savings.
E15: c | F15: CPA Based Target | G15: =G13+G14 -> 6090000
F16: Calculate the Penalty Thresholds
E17: d | F17: Subtract NEEA Savings | G17: 0 | H17: No savings forecasted in PSE service territory.
E18: e | F18: Natural Gas Penalty Threshold | G18: =G13+G14 -> 6090000 | H18: Penalty outlined in Stipulation Agreement, UG-011571 Section M43. | I18: = c + d
E19: f | F19: Decoupling Threshold | G19: =G18*0.05 -> 304500 | H19: Penalty = Up to $75,000, depending on range. | I19: = e * 0.05
F20: Build the Total Utility Conservation Goal
E21: g | F21: Add Program Savings Build-Out | G21: 640000 | H21: Based on bottom-up build of program savings with contractor and program staff input.
E22: h | F22: 2024-2025 Utility Conservation Goal | G22: =SUM(G18:G21) -> 7034500 | H22: This is the total Conservation Goal to which Energy Efficiency is managing. | I22: = e + f + g
G27: It is important to note that many specific natural gas program total values include decimals. Their aggregation may
G28: result in slight rounding differences between this table and the Portfolio View of Exhibit 1.
G31: [1] In Docket UG-170034, Public Version Testimony, (UE-170033) 2017 GRC Piliaris direct, page 145 of 159:
G32: 11 “What would happen if PSE does not meet these decoupling-related gas
G33: 12 conservation commitments?
G34: 13 A. PSE proposes to pay $20,000 for meeting between 4.5 percent and 5.0 percent of
G35: 14 its incremental gas conservation commitment, $50,000 for meeting between 3.75
G36: 15 percent and 4.5 percent of its incremental commitment, and $75,000 for less than
G37: 16 3.75 percent of its incremental commitment.”

Sheet Overview Summary Tables (hidden)
B3: Chapter 1: Exec Summary
B5: 2022-2023 Energy Efficiency
B6: Portfolio Amounts
C7: Total Savings | D7: Budgets | E7: EIA & Natural Gas Penalty Target | F7: TRC B/C Ratio
B8: Electric | C8: ='Portfolio--2024-2025'!G82 -> 408064.9563 | D8: ='Portfolio--2024-2025'!H82 -> 246287464.2 | E8: ='Portfolio--2024-2025'!G88 -> 268701.578
C9: =C8/8760 -> 46.58275757 | E9: =E8/8760 -> 30.67369612
B10: Natural Gas | C10: ='Portfolio--2024-2025'!I82 -> 7039189.109 | D10: ='Portfolio--2024-2025'!J82 -> 58230217.33 | E10: ='Portfolio--2024-2025'!I88 -> 6090000
B11: Total Budget | D11: =SUM(D8:D10) -> 304517681.5
H14: Chapter 4: Developing Portfolio
H16: 2022-2023 Energy Efficiency
H17: Sector Savings Goals
I18: REM | J18: BEM | K18: Pilots | L18: Regional (NEEA + Generation)
H19: Electric | I19: ='Portfolio--2024-2025'!G23 -> 158100.3666 | J19: ='Portfolio--2024-2025'!G33 -> 196510.1677 | K19: ='Portfolio--2024-2025'!G38 -> 0 | L19: ='Portfolio--2024-2025'!G45 -> 53454.422
I20: =I19/8760 -> 18.04798706 | J20: =J19/8760 -> 22.43266755 | K20: =K19/8760 -> 0 | L20: =L19/8760 -> 6.102102968
H21: Natural Gas | I21: ='Portfolio--2024-2025'!I23 -> 4495558.009 | J21: ='Portfolio--2024-2025'!I33 -> 2543631.1 | K21: ='Portfolio--2024-2025'!I38 -> 0 | L21: ='Portfolio--2024-2025'!I45 -> 0
H23: Source - Exhibit 1: Savings and Budgets
N24: Chapter 4: Developing Portfolio
N26: 2022-2023 Energy Efficiency
N27: Sector Anticipated Expenditures
O28: REM | P28: BEM | Q28: Pilots | R28: Regional (NEEA + Generation) | S28: Portfolio Support | T28: Research & Compliance | U28: Other Electric Programs
N29: Electric | O29: ='Portfolio--2024-2025'!H23 -> 87471327.74 | P29: ='Portfolio--2024-2025'!H33 -> 93671718.13 | Q29: ='Portfolio--2024-2025'!H38 -> 10920.4 | R29: ='Portfolio--2024-2025'!H45 -> 10882372 | S29: ='Portfolio--2024-2025'!H61 -> 27452952.02 | T29: ='Portfolio--2024-2025'!H70 -> 7386248.9 | U29: ='Portfolio--2024-2025'!H78 -> 19411925
N30: Natural Gas | O30: ='Portfolio--2024-2025'!J23 -> 32069681.34 | P30: ='Portfolio--2024-2025'!J33 -> 15153613.95 | Q30: ='Portfolio--2024-2025'!J38 -> 0 | R30: ='Portfolio--2024-2025'!J45 -> 3744374 | S30: ='Portfolio--2024-2025'!J61 -> 5816538.24 | T30: ='Portfolio--2024-2025'!J70 -> 1086009.8 | U30: ='Portfolio--2024-2025'!P23 -> 0
N31: Sector Total | O31: =SUM(O29:O30) -> 119541009.1 | P31: =SUM(P29:P30) -> 108825332.1 | Q31: 10920.4 | R31: 14626746 | S31: 33269490.26 | T31: 8472258.7 | U31: 19411925
N33: Source - Exhibit 1: Savings and Budgets
X36: Chapter 5: REM Overview
X38: 2022-2023 Residential Energy Management
Y39: Total Savings Electric: MWh Natural Gas: Therms | Z39: Budgets | AA39: Total Resource Cost
X40: Electric | Y40: ='Portfolio--2024-2025'!G23 -> 158100.3666 | Z40: ='Portfolio--2024-2025'!H23 -> 87471327.74
X41: aMW | Y41: =Y40/8760 -> 18.04798706
X42: Natural Gas | Y42: ='Portfolio--2024-2025'!I23 -> 4495558.009 | Z42: ='Portfolio--2024-2025'!J23 -> 32069681.34
X43: Total Budget | Z43: =Z40+Z42 -> 119541009.1
X46: Note: consistent with WAC 480-109-100(10)(b), Low Income Weatherization (LIW) electric figures are excluded from REM and Portfolio TRC ratios. LIW natural gas figures are also excluded from REM and Portfolio cost-effectiveness totals.
X48: Chapter 7: BEM Overview
X50: 2022-2023 Business Energy Management
Y51: Total Savings Electric: MWh Natural Gas: Therms | Z51: Budgets | AA51: Total Resource Cost
X52: Electric | Y52: ='Portfolio--2024-2025'!G33 -> 196510.1677 | Z52: ='Portfolio--2024-2025'!H33 -> 93671718.13
X53: aMW | Y53: =Y52/8760 -> 22.43266755
X54: Natural Gas | Y54: ='Portfolio--2024-2025'!I33 -> 2543631.1 | Z54: ='Portfolio--2024-2025'!J33 -> 15153613.95
X55: Total Budget | Z55: =Z52+Z54 -> 108825332.1

Sheet Compare 22-23 to 24-25
A1: Schedule | B1: Program Name | E1: MWh Savings | I1: Electric Rider Budget | M1: Therm Savings | Q1: Gas Rider Budget | U1: Total Rider Budget
E2: 2022-2023 BCP | F2: 2024-2025 BCP | G2: Difference (24/25 - 22/23) | H2: % Change | I2: 2022-2023 BCP | J2: 2024-2025 BCP | K2: Difference (24/25 - 22/23) | L2: % Change | M2: 2022-2023 BCP | N2: 2024-2025 BCP | O2: Difference (24/25 - 22/23) | P2: % Change | Q2: 2022-2023 BCP | R2: 2024-2025 BCP | S2: Difference (24/25 - 22/23) | T2: % Change | U2: 2022-2023 BCP | V2: 2024-2025 BCP | W2: Difference (24/25 - 22/23) | X2: % Change
B3: Residential Energy Management
A4: 201 | B4: Low Income Weatherization | E4: 3954.882 | F4: ='Portfolio--2024-2025'!G7 -> 4307.5114 | G4: =F4-E4 -> 352.6294 | H4: =(F4-E4)/E4 -> 0.08916306479 | I4: 12216391.93 | J4: ='Portfolio--2024-2025'!H7 -> 21532137.6 | K4: =J4-I4 -> 9315745.669 | L4: =(J4-I4)/I4 -> 0.7625611327 | M4: 41487.06 | N4: ='Portfolio--2024-2025'!I7 -> 43836 | O4: =N4-M4 -> 2348.94 | P4: =(N4-M4)/M4 -> 0.05661861795 | Q4: 2033571.863 | R4: ='Portfolio--2024-2025'!J7 -> 3170372.7 | S4: =R4-Q4 -> 1136800.837 | T4: =(R4-Q4)/Q4 -> 0.5590168008 | U4: 14249963.79 | V4: =J4+R4 -> 24702510.3 | W4: =V4-U4 -> 10452546.51 | X4: =(V4-U4)/U4 -> 0.7335138992
A5: 214 | B5: Single Family Existing Subtotal | E5: 114141.2001 | F5: ='Portfolio--2024-2025'!G8 -> 133749.4848 | G5: =F5-E5 -> 19608.28468 | H5: =(F5-E5)/E5 -> 0.1717897188 | I5: 44067060.41 | J5: ='Portfolio--2024-2025'!H8 -> 45131576.98 | K5: 1064516.57 | L5: 0.02415674111 | M5: 5636060.548 | N5: ='Portfolio--2024-2025'!I8 -> 4413376.889 | O5: -1222683.659 | P5: -0.2169394117 | Q5: 21486673.73 | R5: ='Portfolio--2024-2025'!J8 -> 28074535.18 | S5: 6587861.445 | T5: 0.3066022003 | U5: 65553734.14 | V5: =J5+R5 -> 73206112.16 | W5: 7652378.015 | X5: 0.1167344334
C6: Residential lighting | E6: 2038.6064 | F6: ='Portfolio--2024-2025'!G9 -> 140.173 | G6: -1898.4334 | H6: -0.9312407731 | I6: 2186289.5 | J6: ='Portfolio--2024-2025'!H9 -> 166272.3 | K6: -2020017.2 | L6: -0.9239477206 | M6: 0 | N6: ='Portfolio--2024-2025'!I9 -> 0 | O6: 0 | Q6: 0 | R6: ='Portfolio--2024-2025'!J9 -> 0 | S6: 0 | U6: 2186289.5 | V6: 166272.3 | W6: -2020017.2 | X6: -0.9239477206
C7: Space heat | E7: 16517.34 | F7: ='Portfolio--2024-2025'!G10 -> 17215.26805 | G7: 697.928046 | H7: 0.04225426406 | I7: 8750082.7 | J7: ='Portfolio--2024-2025'!H10 -> 13182525.9 | K7: 4432443.2 | L7: 0.5065601494 | M7: 1373944 | N7: ='Portfolio--2024-2025'!I10 -> 420207.4 | O7: -953736.6 | P7: -0.6941597329 | Q7: 9728949 | R7: ='Portfolio--2024-2025'!J10 -> 3210655.2 | S7: -6518293.8 | T7: -0.6699895127 | U7: 18479031.7 | V7: 16393181.1 | W7: -2085850.6 | X7: -0.1128766179
C8: Water heat | E8: 3009.6959 | F8: ='Portfolio--2024-2025'!G11 -> 1434.501086 | G8: -1575.194814 | H8: -0.5233734126 | I8: 2289697.5 | J8: ='Portfolio--2024-2025'!H11 -> 1686057 | K8: -603640.5 | L8: -0.2636332965 | M8: 130426.8 | N8: ='Portfolio--2024-2025'!I11 -> 122462.2 | O8: -7964.6 | P8: -0.06106567055 | Q8: 953268.8 | R8: ='Portfolio--2024-2025'!J11 -> 1329189.6 | S8: 375920.8 | T8: 0.3943492119 | U8: 3242966.3 | V8: 3015246.6 | W8: -227719.7 | X8: -0.07021957027
C9: Home Energy Assessment | E9: 0 | F9: ='Portfolio--2024-2025'!G12 -> 0 | G9: 0 | I9: 0 | J9: ='Portfolio--2024-2025'!H12 -> 0 | K9: 0 | M9: 0 | N9: ='Portfolio--2024-2025'!I12 -> 0 | O9: 0 | Q9: 0 | R9: ='Portfolio--2024-2025'!J12 -> 0 | S9: 0 | U9: 0 | V9: 0 | W9: 0
C10: Home Appliances | E10: 1197.328 | F10: ='Portfolio--2024-2025'!G13 -> 1377.1534 | G10: 179.8254 | H10: 0.1501889207 | I10: 1377979.7 | J10: ='Portfolio--2024-2025'!H13 -> 1761911 | K10: 383931.3 | L10: 0.2786189811 | M10: 12353.4 | N10: ='Portfolio--2024-2025'!I13 -> 9672 | O10: -2681.4 | P10: -0.2170576521 | Q10: 0 | R10: ='Portfolio--2024-2025'!J13 -> 0 | S10: 0 | U10: 1377979.7 | V10: 1761911 | W10: 383931.3 | X10: 0.2786189811
C11: Smart Thermostats | E11: 2470.904 | F11: ='Portfolio--2024-2025'!G14 -> 1828.000435 | G11: -642.903565 | H11: -0.2601896168 | I11: 1798394 | J11: ='Portfolio--2024-2025'!H14 -> 1817199.53 | K11: 18805.53 | L11: 0.0104568465 | M11: 660000 | N11: ='Portfolio--2024-2025'!I14 -> 553597.8 | O11: -106402.2 | P11: -0.1612154545 | Q11: 3556156.3 | R11: ='Portfolio--2024-2025'!J14 -> 4356049.8 | S11: 799893.5 | T11: 0.2249320425 | U11: 5354550.3 | V11: 6173249.33 | W11: 818699.03 | X11: 0.1528978129
C12: Weatherization | E12: 2434.26105 | F12: ='Portfolio--2024-2025'!G15 -> 3342.753865 | G12: 908.4928146 | H12: 0.3732109235 | I12: 2199889 | J12: ='Portfolio--2024-2025'!H15 -> 7137287.2 | K12: 4937398.2 | L12: 2.244385149 | M12: 489831.148 | N12: ='Portfolio--2024-2025'!I15 -> 669746.2686 | O12: 179915.1206 | P12: 0.3673002857 | Q12: 4785587.6 | R12: ='Portfolio--2024-2025'!J15 -> 14256488.4 | S12: 9470900.8 | T12: 1.979046586 | U12: 6985476.6 | V12: 21393775.6 | W12: 14408299 | X12: 2.062607868
C13: Home Energy Reports | E13: 52064 | F13: ='Portfolio--2024-2025'!G16 -> 79608 | G13: 27544 | H13: 0.5290411801 | I13: 3149674.36 | J13: ='Portfolio--2024-2025'!H16 -> 4686953.4 | K13: 1537279.04 | L13: 0.4880755482 | M13: 2969500 | N13: ='Portfolio--2024-2025'!I16 -> 2489560.22 | O13: -479939.78 | P13: -0.1616230948 | Q13: 2458642.76 | R13: ='Portfolio--2024-2025'!J16 -> 3871661.18 | S13: 1413018.42 | T13: 0.5747148154 | U13: 5608317.12 | V13: 8558614.58 | W13: 2950297.46 | X13: 0.5260575315
C14: Midstream HVAC and Water Heat | E14: 34408.97 | F14: ='Portfolio--2024-2025'!G17 -> 28513.235 | G14: -5895.735 | H14: -0.1713429667 | I14: 22309945.3 | J14: ='Portfolio--2024-2025'!H17 -> 14652102.65 | K14: =J14-I14 -> -7657842.65 | L14: =(J14-I14)/I14 -> -0.3432479348 | M14: 0 | N14: ='Portfolio--2024-2025'!I17 -> 148131 | O14: =N14-M14 -> 148131 | P14: =(N14-M14)/M14 ->  | Q14: 0 | R14: ='Portfolio--2024-2025'!J17 -> 1050491 | S14: =R14-Q14 -> 1050491 | T14: =(R14-Q14)/Q14 ->  | U14: 22309945.3 | V14: =J14+R14 -> 15702593.65 | W14: =V14-U14 -> -6607351.65 | X14: =(V14-U14)/U14 -> -0.2961617145
A15: 215 | B15: Single Family New Construction | E15: 510.276 | F15: ='Portfolio--2024-2025'!G19 -> 1002.256 | G15: 491.98 | H15: 0.9641448941 | I15: 787680.4 | J15: ='Portfolio--2024-2025'!H19 -> 2225041.4 | K15: 1437361 | L15: 1.824802293 | M15: 4191.8 | N15: ='Portfolio--2024-2025'!I19 -> 1094.8 | O15: -3097 | P15: -0.7388234171 | Q15: 92723.8 | R15: ='Portfolio--2024-2025'!J19 -> 29600 | S15: -63123.8 | T15: -0.6807723583 | U15: 880404.2 | V15: 2254641.4 | W15: 1374237.2 | X15: 1.560916225
A16: 214 & 217 | B16: Moderate Income Residences | E16: 0 | F16: ='Portfolio--2024-2025'!G20 -> 0 | G16: 0 | I16: 177394.3 | J16: ='Portfolio--2024-2025'!H20 -> 175991.2 | K16: -1403.1 | L16: -0.007909498783 | M16: 0 | N16: ='Portfolio--2024-2025'!I20 -> 0 | O16: 0 | Q16: 99191.85 | R16: ='Portfolio--2024-2025'!J20 -> 153100 | S16: 53908.15 | T16: 0.5434735818 | U16: 276586.15 | V16: 329091.2 | W16: 52505.05 | X16: 0.189832535
A17: 217 | B17: Multifamily Retrofit | E17: 18139.9544 | F17: ='Portfolio--2024-2025'!G21 -> 11026.1144 | G17: -7113.84 | H17: -0.3921641611 | I17: 15407119.81 | J17: ='Portfolio--2024-2025'!H21 -> 13256298.96 | K17: -2150820.85 | L17: -0.1395991513 | M17: 74704.76 | N17: ='Portfolio--2024-2025'!I21 -> 30050.32 | O17: -44654.44 | P17: -0.5977455787 | Q17: 744953.564 | R17: ='Portfolio--2024-2025'!J21 -> 569784.46 | S17: -175169.104 | T17: -0.2351409705 | U17: 16152073.37 | V17: 13826083.42 | W17: -2325989.954 | X17: -0.144005658
A18: 218 | B18: Multifamily New Construction | E18: 9000 | F18: ='Portfolio--2024-2025'!G22 -> 8015 | G18: -985 | H18: -0.1094444444 | I18: 4134910.85 | J18: ='Portfolio--2024-2025'!H22 -> 5150281.6 | K18: 1015370.75 | L18: 0.2455604938 | M18: 100000 | N18: ='Portfolio--2024-2025'!I22 -> 7200 | O18: -92800 | P18: -0.928 | Q18: 708732.1 | R18: ='Portfolio--2024-2025'!J22 -> 72289 | S18: -636443.1 | T18: -0.8980023622 | U18: 4843642.95 | V18: 5222570.6 | W18: 378927.65 | X18: 0.07823195349
B19: Subtotal, Residential Programs | E19: 145746.3126 | F19: ='Portfolio--2024-2025'!G23 -> 158100.3666 | G19: 12354.05408 | H19: 0.08476409362 | I19: 76790557.7 | J19: ='Portfolio--2024-2025'!H23 -> 87471327.74 | K19: 10680770.04 | L19: 0.1390896271 | M19: 5856444.168 | N19: ='Portfolio--2024-2025'!I23 -> 4495558.009 | O19: -1360886.159 | P19: -0.232374137 | Q19: 25165846.91 | R19: ='Portfolio--2024-2025'!J23 -> 32069681.34 | S19: 6903834.428 | T19: 0.2743334827 | U19: 101956404.6 | V19: =J19+R19 -> 119541009.1 | W19: 17584604.47 | X19: 0.1724717984
B21: Business Energy Management
A22: 250 | B22: Commercial / Industrial Retrofit | E22: 153511.035 | F22: ='Portfolio--2024-2025'!G26 -> 86600 | G22: =F22-E22 -> -66911.035 | H22: =(F22-E22)/E22 -> -0.4358711737 | I22: 52426324.77 | J22: ='Portfolio--2024-2025'!H26 -> 43331980.1 | K22: =J22-I22 -> -9094344.672 | L22: =(J22-I22)/I22 -> -0.1734690485 | M22: 1161722 | N22: ='Portfolio--2024-2025'!I26 -> 782000 | O22: =N22-M22 -> -379722 | P22: =(N22-M22)/M22 -> -0.3268613317 | Q22: 4938319.476 | R22: ='Portfolio--2024-2025'!J26 -> 5629956 | S22: =R22-Q22 -> 691636.524 | T22: =(R22-Q22)/Q22 -> 0.1400550384 | U22: 57364644.25 | V22: =J22+R22 -> 48961936.1 | W22: =V22-U22 -> -8402708.148 | X22: =(V22-U22)/U22 -> -0.1464788679
A23: 251 | B23: Commercial/Industrial New Construction | E23: 47000 | F23: ='Portfolio--2024-2025'!G27 -> 6000 | G23: =F23-E23 -> -41000 | H23: =(F23-E23)/E23 -> -0.8723404255 | I23: 15834532 | J23: ='Portfolio--2024-2025'!H27 -> 3926419.8 | K23: -11908112.2 | L23: -0.7520343639 | M23: 180000 | N23: ='Portfolio--2024-2025'!I27 -> 40000 | O23: -140000 | P23: -0.7777777778 | Q23: 1446228 | R23: ='Portfolio--2024-2025'!J27 -> 520989.1 | S23: -925238.9 | T23: -0.6397600517 | U23: 17280760 | V23: =J23+R23 -> 4447408.9 | W23: -12833351.1 | X23: -0.7426381189
A24: 253 | B24: Commercial Strategic Energy Management | E24: 32000 | F24: ='Portfolio--2024-2025'!G28 -> 29489 | G24: -2511 | H24: -0.07846875 | I24: 4907478.5 | J24: ='Portfolio--2024-2025'!H28 -> 5662250.6 | K24: 754772.1 | L24: 0.1538003885 | M24: 1143000 | N24: ='Portfolio--2024-2025'!I28 -> 766004 | O24: -376996 | P24: -0.3298302712 | Q24: 1506733.5 | R24: ='Portfolio--2024-2025'!J28 -> 1950342.4 | S24: 443608.9 | T24: 0.2944176259 | U24: 6414212 | V24: 7612593 | W24: 1198381 | X24: 0.1868321471
A25: E258 | B25: Large Power User - Self Directed Program - Subtotal | E25: 20042.48 | F25: ='Portfolio--2024-2025'!G29 -> 11964.901 | G25: =F25-E25 -> -8077.579 | H25: -0.4030229293 | I25: 9931576.967 | J25: ='Portfolio--2024-2025'!H29 -> 8726972.1 | K25: -1204604.867 | L25: -0.1212903923 | M25: 0 | N25: ='Portfolio--2024-2025'!I29 -> 0 | O25: 0 | Q25: 0 | R25: ='Portfolio--2024-2025'!J29 -> 0 | S25: 0 | U25: 9931576.967 | V25: 8726972.1 | W25: -1204604.867 | X25: -0.1212903923
A26: E258 | C26: 449 Customers | E26: 9549.935 | F26: ='Portfolio--2024-2025'!G30 -> 8000 | G26: -1549.935 | H26: -0.1622979633 | I26: 5241600.397 | J26: ='Portfolio--2024-2025'!H30 -> 5733360.5 | K26: 491760.1033 | L26: 0.09381869393 | M26: 0 | N26: ='Portfolio--2024-2025'!I30 -> 0 | O26: 0 | Q26: 0 | R26: ='Portfolio--2024-2025'!J30 -> 0 | S26: 0 | U26: 5241600.397 | V26: 5733360.5 | W26: 491760.1033 | X26: 0.09381869393
A27: E258 | C27: Non-449 Customers | E27: 10492.545 | F27: ='Portfolio--2024-2025'!G31 -> 3964.901 | G27: -6527.644 | H27: -0.6221220876 | I27: 4689976.57 | J27: ='Portfolio--2024-2025'!H31 -> 2993611.6 | K27: -1696364.97 | L27: -0.3617000948 | M27: 0 | N27: ='Portfolio--2024-2025'!I31 -> 0 | O27: 0 | Q27: 0 | R27: ='Portfolio--2024-2025'!J31 -> 0 | S27: 0 | U27: 4689976.57 | V27: 2993611.6 | W27: -1696364.97 | X27: -0.3617000948
A28: 262 | B28: Commercial Rebates | E28: 94291.0125 | F28: ='Portfolio--2024-2025'!G32 -> 62456.2667 | G28: -31834.7458 | H28: =(F28-E28)/E28 -> -0.3376222713 | I28: 33129279.25 | J28: ='Portfolio--2024-2025'!H32 -> 32024095.53 | K28: -1105183.72 | L28: =(J28-I28)/I28 -> -0.03335972726 | M28: 1484104 | N28: ='Portfolio--2024-2025'!I32 -> 955627.1 | O28: -528476.9 | P28: -0.3560915542 | Q28: 6033890.68 | R28: ='Portfolio--2024-2025'!J32 -> 7052326.45 | S28: 1018435.77 | T28: 0.1687859168 | U28: 39163169.93 | V28: 39076421.98 | W28: -86747.95 | X28: -0.002215039032
B29: Subtotal, Business Programs | E29: 346844.5275 | F29: ='Portfolio--2024-2025'!G33 -> 196510.1677 | G29: =F29-E29 -> -150334.3598 | H29: =(F29-E29)/E29 -> -0.4334344292 | I29: 116229191.5 | J29: ='Portfolio--2024-2025'!H33 -> 93671718.13 | K29: -22557473.36 | L29: -0.1940775211 | M29: 3968826 | N29: ='Portfolio--2024-2025'!I33 -> 2543631.1 | O29: -1425194.9 | P29: -0.3590973502 | Q29: 13925171.66 | R29: ='Portfolio--2024-2025'!J33 -> 15153613.95 | S29: 1228442.294 | T29: =(R29-Q29)/Q29 -> 0.08821738966 | U29: 130154363.1 | V29: 108825332.1 | W29: -21329031.06 | X29: -0.1638748832
Q30: 0 | R30: ='Portfolio--2024-2025'!J34 -> 0 | U30: 0 | V30: 0
B31: Pilots With Uncertain Savings | Q31: 0 | R31: ='Portfolio--2024-2025'!J35 -> 0
A32: 249 | B32: Residential | E32: 1725 | F32: ='Portfolio--2024-2025'!G36 -> 0 | G32: =F32-E32 -> -1725 | H32: =(F32-E32)/E32 -> -1 | I32: 1044333.877 | J32: ='Portfolio--2024-2025'!H36 -> 10920.4 | K32: =J32-I32 -> -1033413.477 | L32: =(J32-I32)/I32 -> -0.9895431909 | M32: 50250 | N32: ='Portfolio--2024-2025'!I36 -> 0 | O32: =N32-M32 -> -50250 | P32: =(N32-M32)/M32 -> -1 | Q32: 0 | R32: ='Portfolio--2024-2025'!J36 -> 0 | S32: =R32-Q32 -> 0 | T32: =(R32-Q32)/Q32 ->  | U32: 1044333.877 | V32: =J32+R32 -> 10920.4 | W32: =V32-U32 -> -1033413.477 | X32: =(V32-U32)/U32 -> -0.9895431909
A33: 249 | B33: Commercial Pay for Performance Pilot | E33: 3000 | F33: ='Portfolio--2024-2025'!G37 -> 0 | G33: =F33-E33 -> -3000 | H33: =(F33-E33)/E33 -> -1 | I33: 648700.5 | J33: ='Portfolio--2024-2025'!H37 -> 0 | K33: =J33-I33 -> -648700.5 | L33: =(J33-I33)/I33 -> -1 | M33: 15000 | N33: ='Portfolio--2024-2025'!I37 -> 0 | O33: =N33-M33 -> -15000 | P33: =(N33-M33)/M33 -> -1 | Q33: 3740.1 | R33: ='Portfolio--2024-2025'!J37 -> 0 | S33: =R33-Q33 -> -3740.1 | T33: =(R33-Q33)/Q33 -> -1 | U33: 652440.6 | V33: 0 | W33: =V33-U33 -> -652440.6 | X33: =(V33-U33)/U33 -> -1
B34: Subtotal, Pilots | E34: 4725 | F34: ='Portfolio--2024-2025'!G38 -> 0 | G34: =F34-E34 -> -4725 | H34: =(F34-E34)/E34 -> -1 | I34: 1693034.377 | J34: ='Portfolio--2024-2025'!H38 -> 10920.4 | K34: =J34-I34 -> -1682113.977 | L34: =(J34-I34)/I34 -> -0.9935498061 | M34: 65250 | N34: ='Portfolio--2024-2025'!I38 -> 0 | O34: =N34-M34 -> -65250 | P34: =(N34-M34)/M34 -> -1 | Q34: 3740.1 | R34: ='Portfolio--2024-2025'!J38 -> 0 | S34: =R34-Q34 -> -3740.1 | T34: =(R34-Q34)/Q34 -> -1 | U34: 1696774.477 | V34: 10920.4 | W34: =V34-U34 -> -1685854.077 | X34: =(V34-U34)/U34 -> -0.9935640239
B36: Regional Efficiency Programs
A37: E254 | B37: NW Energy Efficiency Alliance (NEEA) | E37: 28382.4 | F37: ='Portfolio--2024-2025'!G41 -> 35698.422 | G37: =F37-E37 -> 7316.022 | H37: =(F37-E37)/E37 -> 0.2577661509 | I37: 9683388 | J37: ='Portfolio--2024-2025'!H41 -> 9715288 | K37: =J37-I37 -> 31900 | L37: =(J37-I37)/I37 -> 0.00329430154 | M37: 0 | N37: ='Portfolio--2024-2025'!I41 -> 0 | O37: =N37-M37 -> 0 | P37: =(N37-M37)/M37 ->  | Q37: 0 | R37: ='Portfolio--2024-2025'!J41 -> 0 | S37: =R37-Q37 -> 0 | T37: =(R37-Q37)/Q37 ->  | U37: 9683388 | V37: =J37+R37 -> 9715288 | W37: =V37-U37 -> 31900 | X37: =(V37-U37)/U37 -> 0.00329430154
B38: NEEA Natural Gas Market Transformation | E38: 0 | F38: ='Portfolio--2024-2025'!G42 -> 0 | G38: =F38-E38 -> 0 | H38: =(F38-E38)/E38 ->  | I38: 0 | J38: ='Portfolio--2024-2025'!H42 -> 0 | K38: =J38-I38 -> 0 | L38: =(J38-I38)/I38 ->  | M38: 0 | N38: ='Portfolio--2024-2025'!I42 -> 0 | O38: =N38-M38 -> 0 | P38: =(N38-M38)/M38 ->  | Q38: 3180472 | R38: ='Portfolio--2024-2025'!J42 -> 3180472 | S38: =R38-Q38 -> 0 | T38: =(R38-Q38)/Q38 -> 0 | U38: 3180472 | V38: =J38+R38 -> 3180472 | W38: =V38-U38 -> 0 | X38: =(V38-U38)/U38 -> 0
B39: Targeted DSM | E39: 0 | F39: ='Portfolio--2024-2025'!G43 -> 0 | G39: =F39-E39 -> 0 | H39: =(F39-E39)/E39 ->  | I39: 1232307.25 | J39: ='Portfolio--2024-2025'!H43 -> 1167084 | K39: =J39-I39 -> -65223.25 | L39: =(J39-I39)/I39 -> -0.05292774996 | M39: 0 | N39: ='Portfolio--2024-2025'!I43 -> 0 | O39: =N39-M39 -> 0 | P39: =(N39-M39)/M39 ->  | Q39: 564560.25 | R39: ='Portfolio--2024-2025'!J43 -> 563902 | S39: =R39-Q39 -> -658.25 | T39: =(R39-Q39)/Q39 -> -0.00116595173 | U39: 1796867.5 | V39: =J39+R39 -> 1730986 | W39: =V39-U39 -> -65881.5 | X39: =(V39-U39)/U39 -> -0.03666463999
A40: E292 | B40: Generation, Transmission and Distribution | E40: 12000 | F40: ='Portfolio--2024-2025'!G44 -> 17756 | G40: =F40-E40 -> 5756 | H40: =(F40-E40)/E40 -> 0.4796666667 | I40: 0 | J40: ='Portfolio--2024-2025'!H44 -> 0 | K40: =J40-I40 -> 0 | L40: =(J40-I40)/I40 ->  | M40: 0 | N40: ='Portfolio--2024-2025'!I44 -> 0 | O40: =N40-M40 -> 0 | P40: =(N40-M40)/M40 ->  | Q40: 0 | R40: ='Portfolio--2024-2025'!J44 -> 0 | S40: =R40-Q40 -> 0 | T40: =(R40-Q40)/Q40 ->  | U40: 0 | V40: =J40+R40 -> 0 | W40: =V40-U40 -> 0 | X40: =(V40-U40)/U40 -> 
B41: Subtotal, Regional Programs | E41: 40382.4 | F41: ='Portfolio--2024-2025'!G45 -> 53454.422 | G41: =F41-E41 -> 13072.022 | H41: =(F41-E41)/E41 -> 0.3237059214 | I41: 10915695.25 | J41: ='Portfolio--2024-2025'!H45 -> 10882372 | K41: =J41-I41 -> -33323.25 | L41: =(J41-I41)/I41 -> -0.003052783101 | M41: 0 | N41: ='Portfolio--2024-2025'!I45 -> 0 | O41: =N41-M41 -> 0 | P41: =(N41-M41)/M41 ->  | Q41: 3745032.25 | R41: ='Portfolio--2024-2025'!J45 -> 3744374 | S41: =R41-Q41 -> -658.25 | T41: =(R41-Q41)/Q41 -> -0.0001757661766 | U41: 14660727.5 | V41: =J41+R41 -> 14626746 | W41: =V41-U41 -> -33981.5 | X41: =(V41-U41)/U41 -> -0.002317859056
B43: Energy Efficiency Portfolio Support
B44: Data and Systems Services | E44: 0 | F44: ='Portfolio--2024-2025'!G48 -> 0 | G44: =F44-E44 -> 0 | H44: =(F44-E44)/E44 ->  | I44: 1964912.4 | J44: ='Portfolio--2024-2025'!H48 -> 2195253.6 | K44: =J44-I44 -> 230341.2 | L44: =(J44-I44)/I44 -> 0.1172272107 | M44: 0 | N44: ='Portfolio--2024-2025'!I48 -> 0 | O44: =N44-M44 -> 0 | P44: =(N44-M44)/M44 ->  | Q44: 293607.6 | R44: ='Portfolio--2024-2025'!J48 -> 349144.9 | S44: =R44-Q44 -> 55537.3 | T44: =(R44-Q44)/Q44 -> 0.1891548448 | U44: 2258520 | V44: =J44+R44 -> 2544398.5 | W44: =V44-U44 -> 285878.5 | X44: =(V44-U44)/U44 -> 0.1265778032
B45: Rebates Processing | E45: 0 | F45: ='Portfolio--2024-2025'!G49 -> 0 | G45: 0 | I45: 1835930.78 | J45: ='Portfolio--2024-2025'!H49 -> 2300747 | K45: 464816.22 | L45: 0.253177421 | M45: 0 | N45: ='Portfolio--2024-2025'!I49 -> 0 | O45: 0 | Q45: 277244.22 | R45: ='Portfolio--2024-2025'!J49 -> 316433 | S45: 39188.78 | T45: 0.1413511164 | U45: 2113175 | V45: =J45+R45 -> 2617180 | W45: 504005 | X45: 0.2385060395
B46: Verification Team | E46: 0 | F46: ='Portfolio--2024-2025'!G50 -> 0 | G46: 0 | I46: 1222300.38 | J46: ='Portfolio--2024-2025'!H50 -> 2285133.3 | K46: 1062832.92 | L46: 0.8695349665 | M46: 0 | N46: ='Portfolio--2024-2025'!I50 -> 0 | O46: 0 | Q46: 182354.62 | R46: ='Portfolio--2024-2025'!J50 -> 319536.7 | S46: 137182.08 | T46: 0.7522819 | U46: 1404655 | V46: 2604670 | W46: 1200015 | X46: 0.8543129808
B47: Programs Support | E47: 0 | F47: ='Portfolio--2024-2025'!G51 -> 0 | G47: 0 | I47: 1485040.845 | J47: ='Portfolio--2024-2025'!H51 -> 2582821.2 | K47: 1097780.355 | L47: 0.7392256979 | M47: 0 | N47: ='Portfolio--2024-2025'!I51 -> 0 | O47: 0 | Q47: 42003.845 | R47: ='Portfolio--2024-2025'!J51 -> 385938.8 | S47: 343934.955 | T47: 8.188177892 | U47: 1527044.69 | V47: 2968760 | W47: 1441715.31 | X47: 0.9441212294
B48: Trade Ally Memberships | E48: 0 | F48: ='Portfolio--2024-2025'!G52 -> 0 | G48: 0 | I48: 243600 | J48: ='Portfolio--2024-2025'!H52 -> 348000 | K48: 104400 | L48: 0.4285714286 | M48: 0 | N48: ='Portfolio--2024-2025'!I52 -> 0 | O48: 0 | Q48: 36400 | R48: ='Portfolio--2024-2025'!J52 -> 52000 | S48: 15600 | T48: 0.4285714286 | U48: 280000 | V48: 400000 | W48: 120000 | X48: 0.4285714286
B49: Trade Ally Network | E49: 0 | F49: ='Portfolio--2024-2025'!G53 -> 0 | G49: 0 | I49: 31413.087 | J49: ='Portfolio--2024-2025'!H53 -> -21220 | K49: -52633.087 | L49: -1.675514635 | M49: 0 | N49: ='Portfolio--2024-2025'!I53 -> 0 | O49: 0 | Q49: -32622.913 | R49: ='Portfolio--2024-2025'!J53 -> -1760 | S49: 30862.913 | T49: -0.9460501887 | U49: -1209.826 | V49: -22980 | W49: -21770.174 | X49: 17.99446697
B50: Automated Benchmarking System | E50: 0 | F50: ='Portfolio--2024-2025'!G54 -> 0 | G50: 0 | I50: 4177728 | J50: ='Portfolio--2024-2025'!H54 -> 3044692 | K50: -1133036 | L50: -0.271208657 | M50: 0 | N50: ='Portfolio--2024-2025'!I54 -> 0 | O50: 0 | Q50: 1044432 | R50: ='Portfolio--2024-2025'!J54 -> 1268092 | S50: 223660 | T50: 0.2141451047 | U50: 5222160 | V50: 4312784 | W50: -909376 | X50: -0.1741379046
B51: Energy Advisors | E51: 0 | F51: ='Portfolio--2024-2025'!G55 -> 0 | G51: 0 | I51: 2624961.42 | J51: ='Portfolio--2024-2025'!H55 -> 3192601.6 | K51: 567640.18 | L51: 0.2162470563 | M51: 0 | N51: ='Portfolio--2024-2025'!I55 -> 0 | O51: 0 | Q51: 384550.58 | R51: ='Portfolio--2024-2025'!J55 -> 508781.2 | S51: 124230.62 | T51: 0.323054044 | U51: 3009512 | V51: 3701382.8 | W51: 691870.8 | X51: 0.2298946806
B52: Equity Support | I52: 0 | J52: ='Portfolio--2024-2025'!H56 -> 87270 | K52: =J52-I52 -> 87270 | L52: 0 | Q52: 0 | R52: ='Portfolio--2024-2025'!J56 -> 87270 | S52: =R52-Q52 -> 87270 | T52: 0 | U52: 0 | V52: 174540 | W52: 174540 | X52: 0
B53: Energy Efficient Communities | E53: 0 | F53: ='Portfolio--2024-2025'!G57 -> 0 | G53: 0 | I53: 2438589.274 | J53: ='Portfolio--2024-2025'!H57 -> 2626817 | K53: 188227.7264 | L53: 0.07718713786 | M53: 0 | N53: ='Portfolio--2024-2025'!I57 -> 0 | O53: 0 | Q53: 373873.2633 | R53: ='Portfolio--2024-2025'!J57 -> 395049.5 | S53: 21176.23666 | T53: 0.05664014718 | U53: 2812462.537 | V53: 3021866.5 | W53: 209403.9631 | X53: 0.0744557342
B54: Customer Digital Services | E54: 0 | F54: ='Portfolio--2024-2025'!G58 -> 0 | G54: 0 | I54: 3453894.57 | J54: ='Portfolio--2024-2025'!H58 -> 3380658.02 | K54: =J54-I54 -> -73236.55 | L54: =(J54-I54)/I54 -> -0.02120404909 | M54: 0 | N54: ='Portfolio--2024-2025'!I58 -> 0 | O54: 0 | Q54: 1128829.55 | R54: ='Portfolio--2024-2025'!J58 -> 1252898.54 | S54: 124068.99 | T54: 0.1099094101 | U54: 4582724.12 | V54: =J54+R54 -> 4633556.56 | W54: 50832.44 | X54: 0.01109218855
B55: Market Integration | E55: 0 | F55: ='Portfolio--2024-2025'!G59 -> 0 | G55: 0 | I55: 2850093.61 | J55: ='Portfolio--2024-2025'!H59 -> 4370753.5 | K55: 1520659.89 | L55: 0.533547349 | M55: 0 | N55: ='Portfolio--2024-2025'!I59 -> 0 | O55: 0 | Q55: 422602.7 | R55: ='Portfolio--2024-2025'!J59 -> 652820.4 | S55: 230217.7 | T55: 0.5447615455 | U55: 3272696.31 | V55: 5023573.9 | W55: 1750877.59 | X55: 0.5349954362
B56: Events | E56: 0 | F56: ='Portfolio--2024-2025'!G60 -> 0 | G56: 0 | I56: 1025314.9 | J56: ='Portfolio--2024-2025'!H60 -> 1059424.8 | K56: 34109.9 | L56: 0.03326773072 | M56: 0 | N56: ='Portfolio--2024-2025'!I60 -> 0 | O56: 0 | Q56: 212218.6 | R56: ='Portfolio--2024-2025'!J60 -> 230333.2 | S56: 18114.6 | T56: 0.08535821083 | U56: 1237533.5 | V56: 1289758 | W56: 52224.5 | X56: 0.04220047376
B57: Subtotal, Portfolio Support | E57: 0 | F57: ='Portfolio--2024-2025'!G61 -> 0 | G57: 0 | I57: 23353779.27 | J57: ='Portfolio--2024-2025'!H61 -> 27452952.02 | K57: =J57-I57 -> 4099172.754 | L57: =(J57-I57)/I57 -> 0.1755250278 | M57: 0 | N57: ='Portfolio--2024-2025'!I61 -> 0 | O57: 0 | Q57: 4365494.065 | R57: ='Portfolio--2024-2025'!J61 -> 5816538.24 | S57: 1451044.175 | T57: 0.3323894508 | U57: 27719273.33 | V57: =J57+R57 -> 33269490.26 | W57: 5550216.929 | X57: 0.2002295249
B59: Energy Efficiency Research & Compliance
B60: Conservation Supply Curves | E60: 0 | F60: ='Portfolio--2024-2025'!G64 -> 0 | G60: =F60-E60 -> 0 | H60: =(F60-E60)/E60 ->  | I60: 880884.7 | J60: ='Portfolio--2024-2025'!H64 -> 1160742.6 | K60: =J60-I60 -> 279857.9 | L60: =(J60-I60)/I60 -> 0.3177009432 | M60: 0 | N60: ='Portfolio--2024-2025'!I64 -> 0 | O60: =N60-M60 -> 0 | P60: =(N60-M60)/M60 ->  | Q60: 131627.3 | R60: ='Portfolio--2024-2025'!J64 -> 164648.4 | S60: =R60-Q60 -> 33021.1 | T60: =(R60-Q60)/Q60 -> 0.250868171 | U60: 1012512 | V60: =J60+R60 -> 1325391 | W60: =V60-U60 -> 312879 | X60: =(V60-U60)/U60 -> 0.3090126339
B61: Strategic Planning | E61: 0 | F61: ='Portfolio--2024-2025'!G65 -> 0 | G61: 0 | I61: 1015855.5 | J61: ='Portfolio--2024-2025'!H65 -> 1319970.7 | K61: 304115.2 | L61: 0.2993685618 | M61: 0 | N61: ='Portfolio--2024-2025'!I65 -> 0 | O61: 0 | Q61: 151794.5 | R61: ='Portfolio--2024-2025'!J65 -> 220997.2 | S61: 69202.7 | T61: 0.4558972822 | U61: 1167650 | V61: =J61+R61 -> 1540967.9 | W61: 373317.9 | X61: 0.3197172954
B62: Market Research | E62: 0 | F62: ='Portfolio--2024-2025'!G66 -> 0 | G62: 0 | I62: 407866.44 | J62: ='Portfolio--2024-2025'!H66 -> 341050 | K62: -66816.44 | L62: -0.1638194111 | M62: 0 | N62: ='Portfolio--2024-2025'!I66 -> 0 | O62: 0 | Q62: 60945.56 | R62: ='Portfolio--2024-2025'!J66 -> 68210 | S62: 7264.44 | T62: 0.1191955575 | U62: 468812 | V62: 409260 | W62: -59552 | X62: -0.1270274652
B63: Program Evaluation | E63: 0 | F63: ='Portfolio--2024-2025'!G67 -> 0 | G63: 0 | I63: 3277005.4 | J63: ='Portfolio--2024-2025'!H67 -> 4128485.6 | K63: 851480.2 | L63: 0.259834848 | M63: 0 | N63: ='Portfolio--2024-2025'!I67 -> 0 | O63: 0 | Q63: 713878.6 | R63: ='Portfolio--2024-2025'!J67 -> 618154.2 | S63: -95724.4 | T63: -0.1340905863 | U63: 3990884 | V63: 4746639.8 | W63: 755755.8 | X63: 0.1893705254
B64: Biennial Electric Conservation Acquisition Review | E64: 0 | F64: ='Portfolio--2024-2025'!G68 -> 0 | G64: 0 | I64: 300000 | J64: ='Portfolio--2024-2025'!H68 -> 286000 | K64: -14000 | L64: -0.04666666667 | M64: 0 | N64: ='Portfolio--2024-2025'!I68 -> 0 | O64: 0 | Q64: 0 | R64: ='Portfolio--2024-2025'!J68 -> 14000 | S64: 14000 | U64: 300000 | V64: 300000 | W64: 0 | X64: 0
B65: Energy Efficient Technology Evaluation | E65: 0 | F65: ='Portfolio--2024-2025'!G69 -> 0 | G65: =F65-E65 -> 0 | H65: =(F65-E65)/E65 ->  | I65: 0 | J65: ='Portfolio--2024-2025'!H69 -> 150000 | K65: =J65-I65 -> 150000 | L65: =(J65-I65)/I65 ->  | M65: 0 | N65: ='Portfolio--2024-2025'!I69 -> 0 | O65: =N65-M65 -> 0 | P65: =(N65-M65)/M65 ->  | Q65: 0 | R65: ='Portfolio--2024-2025'!J69 -> 0 | S65: =R65-Q65 -> 0 | T65: =(R65-Q65)/Q65 ->  | U65: 0 | V65: =J65+R65 -> 150000 | W65: =V65-U65 -> 150000 | X65: =(V65-U65)/U65 -> 
B66: Subtotal, Research & Compliance | E66: 0 | F66: ='Portfolio--2024-2025'!G70 -> 0 | G66: 0 | I66: 5881612.04 | J66: ='Portfolio--2024-2025'!H70 -> 7386248.9 | K66: 1504636.86 | L66: 0.2558204876 | M66: 0 | N66: ='Portfolio--2024-2025'!I70 -> 0 | O66: 0 | Q66: 1058245.96 | R66: ='Portfolio--2024-2025'!J70 -> 1086009.8 | S66: 27763.84 | T66: 0.02623571556 | U66: 6939858 | V66: 8472258.7 | W66: 1532400.7 | X66: 0.2208115353
I67: 0 | J67: ='Portfolio--2024-2025'!H71 -> 0 | M67: 0 | N67: ='Portfolio--2024-2025'!I71 -> 0 | Q67: 0 | R67: ='Portfolio--2024-2025'!J71 -> 0 | U67: 0 | V67: 0
B68: Total Savings, Efficiency Programs Included in CE Calculations | E68: 537698.2401 | F68: ='Portfolio--2024-2025'!G72 -> 408064.9563 | G68: =F68-E68 -> -129633.2837 | H68: =(F68-E68)/E68 -> -0.241089284 | I68: 234863870.1 | J68: ='Portfolio--2024-2025'!H72 -> 226875539.2 | K68: =J68-I68 -> -7988330.932 | L68: =(J68-I68)/I68 -> -0.03401260027 | M68: 9890520.168 | N68: ='Portfolio--2024-2025'!I72 -> 7039189.109 | O68: =N68-M68 -> -2851331.059 | P68: =(N68-M68)/M68 -> -0.2882892923 | Q68: 48263530.94 | R68: ='Portfolio--2024-2025'!J72 -> 57870217.33 | S68: =R68-Q68 -> 9606686.387 | T68: =(R68-Q68)/Q68 -> 0.1990464891 | U68: 283127401.1 | V68: =J68+R68 -> 284745756.5 | W68: =U68-V68 -> -1618355.455 | X68: =(V68-U68)/U68 -> 0.005715997281
Q69: 0 | R69: ='Portfolio--2024-2025'!J73 -> 0 | U69: 0 | V69: 0
B70: Other Customer Programs | Q70: 0 | R70: ='Portfolio--2024-2025'!J74 -> 0 | U70: 0 | V70: 0
A71: E150 | B71: Net Metering | E71: 0 | F71: ='Portfolio--2024-2025'!G75 -> 0 | G71: =F71-E71 -> 0 | H71: =(F71-E71)/E71 ->  | I71: 4601937 | J71: ='Portfolio--2024-2025'!H75 -> 8440235 | K71: =J71-I71 -> 3838298 | L71: =(J71-I71)/I71 -> 0.8340613963 | M71: 0 | N71: ='Portfolio--2024-2025'!I75 -> 0 | O71: =N71-M71 -> 0 | P71: =(N71-M71)/M71 ->  | Q71: 0 | R71: ='Portfolio--2024-2025'!J75 -> 0 | S71: =R71-Q71 -> 0 | T71: =(R71-Q71)/Q71 ->  | U71: 4601937 | V71: =J71+R71 -> 8440235 | W71: =V71-U71 -> 3838298 | X71: =(V71-U71)/U71 -> 0.8340613963
A72: 249 | B72: Demand Response Pilots | E72: 0 | F72: ='Portfolio--2024-2025'!G76 -> 0 | G72: =F72-E72 -> 0 | H72: =(F72-E72)/E72 ->  | I72: 640000 | J72: ='Portfolio--2024-2025'!H76 -> 740000 | K72: =J72-I72 -> 100000 | L72: =(J72-I72)/I72 -> 0.15625 | M72: 0 | N72: ='Portfolio--2024-2025'!I76 -> 0 | O72: =N72-M72 -> 0 | P72: =(N72-M72)/M72 ->  | Q72: 260000 | R72: ='Portfolio--2024-2025'!J76 -> 360000 | S72: =R72-Q72 -> 100000 | T72: =(R72-Q72)/Q72 -> 0.3846153846 | U72: 900000 | V72: 1100000 | W72: =V72-U72 -> 200000 | X72: =(V72-U72)/U72 -> 0.2222222222
B73: Demand Response Admin | E73: 0 | F73: ='Portfolio--2024-2025'!G77 -> 0 | G73: =F73-E73 -> 0 | H73: =(F73-E73)/E73 ->  | I73: 0 | J73: ='Portfolio--2024-2025'!H77 -> 10231690 | K73: =J73-I73 -> 10231690 | L73: =(J73-I73)/I73 ->  | M73: 0
B74: Subtotal, Other Customer Programs | E74: 0 | F74: ='Portfolio--2024-2025'!G78 -> 0 | G74: =F74-E74 -> 0 | H74: =(F74-E74)/E74 ->  | I74: 5241937 | J74: ='Portfolio--2024-2025'!H78 -> 19411925 | K74: =J74-I74 -> 14169988 | L74: =(J74-I74)/I74 -> 2.703196929 | M74: 0 | N74: ='Portfolio--2024-2025'!I78 -> 0 | O74: =N74-M74 -> 0 | P74: =(N74-M74)/M74 ->  | Q74: 260000 | R74: ='Portfolio--2024-2025'!J78 -> 360000 | S74: =R74-Q74 -> 100000 | T74: =(R74-Q74)/Q74 -> 0.3846153846 | U74: 5501937 | V74: =J74+R74 -> 19771925 | W74: =V74-U74 -> 14269988 | X74: =(V74-U74)/U74 -> 2.593629843
B78: GRAND TOTAL All Programs | E78: 537698.2401 | F78: ='Portfolio--2024-2025'!G82 -> 408064.9563 | G78: =F78-E78 -> -129633.2837 | H78: =(F78-E78)/E78 -> -0.241089284 | I78: 240105807.1 | J78: ='Portfolio--2024-2025'!H82 -> 246287464.2 | K78: =J78-I78 -> 6181657.068 | L78: =(J78-I78)/I78 -> 0.02574555419 | M78: 9890520.168 | N78: ='Portfolio--2024-2025'!I82 -> 7039189.109 | O78: =N78-M78 -> -2851331.059 | P78: =(N78-M78)/M78 -> -0.2882892923 | Q78: =Q68+Q74 -> 48523530.94 | R78: ='Portfolio--2024-2025'!J82 -> 58230217.33 | S78: =R78-Q78 -> 9706686.387 | T78: =(R78-Q78)/Q78 -> 0.200040809 | U78: 288629338.1 | V78: =J78+R78 -> 304517681.5 | W78: =V78-U78 -> 15888343.45 | X78: =(V78-U78)/U78 -> 0.05504756918
B79: and Portfolio Budgets | E79: 61.3 | F79: ='Portfolio--2024-2025'!G83 -> 46.58275757 | G79: =F79-E79 -> -14.71724243 | H79: =(F79-E79)/E79 -> -0.2400855208

Sheet Compare 22-23Fcst+Act to 24-25
A1: Schedule | B1: Program Name | D1: MWh Savings | H1: Electric Expenditure | L1: Therm Savings | P1: Natural Gas Expenditure | T1: Total Expenditure
D2: 2022-2023 Actual + Fcst | E2: 2024-2025 BCP | F2: Difference (24/25 - 22/23 Fcst) | G2: % Change | H2: 2022-2023 Actual + Fcst | I2: 2024-2025 BCP | J2: Difference (24/25 - 22/23 Act+Fcst) | K2: % Change | L2: 2022-2023 Actual + Fcst | M2: 2024-2025 BCP | N2: Difference (24/25 - 22/23 fcst) | O2: % Change | P2: 2022-2023 Actual + Fcst | Q2: 2024-2025 BCP | R2: Difference (24/25 - 22/23 Act+Fcst) | S2: % Change | T2: 2022-2023 Actual + Fcst | U2: 2024-2025 BCP | V2: Difference (24/25 - 22/23 Act+Fcst) | W2: % Change
B3: Residential Energy Management
A4: 201 | B4: Low Income Weatherization | D4: 2755 | E4: ='Portfolio--2024-2025'!G7 -> 4307.5114 | F4: =E4-D4 -> 1552.5114 | G4: =(E4-D4)/D4 -> 0.5635250091 | H4: 11873535 | I4: ='Portfolio--2024-2025'!H7 -> 21532137.6 | J4: =I4-H4 -> 9658602.6 | K4: =(I4-H4)/H4 -> 0.8134563632 | L4: 52930 | M4: ='Portfolio--2024-2025'!I7 -> 43836 | N4: =M4-L4 -> -9094 | O4: =(M4-L4)/L4 -> -0.1718118269 | P4: 3096769 | Q4: ='Portfolio--2024-2025'!J7 -> 3170372.7 | R4: =Q4-P4 -> 73603.7 | S4: =(Q4-P4)/P4 -> 0.02376790132 | T4: =P4+H4 -> 14970304 | U4: =I4+Q4 -> 24702510.3 | V4: =U4-T4 -> 9732206.3 | W4: =(U4-T4)/T4 -> 0.6501007795
A5: 214 | B5: Single Family Existing Subtotal | D5: 137861 | E5: ='Portfolio--2024-2025'!G8 -> 133749.4848 | F5: =E5-D5 -> -4111.515169 | G5: =(E5-D5)/D5 -> -0.02982362792 | H5: 36748685 | I5: ='Portfolio--2024-2025'!H8 -> 45131576.98 | J5: =I5-H5 -> 8382891.98 | K5: =(I5-H5)/H5 -> 0.2281140667 | L5: 4858721 | M5: ='Portfolio--2024-2025'!I8 -> 4413376.889 | N5: =M5-L5 -> -445344.1114 | O5: =(M5-L5)/L5 -> -0.09165871253 | P5: 20625612 | Q5: ='Portfolio--2024-2025'!J8 -> 28074535.18 | R5: =Q5-P5 -> 7448923.18 | S5: =(Q5-P5)/P5 -> 0.3611491955 | T5: 57374297 | U5: 73206112.16 | V5: =U5-T5 -> 15831815.16 | W5: =(U5-T5)/T5 -> 0.2759391572
C6: Residential lighting | D6: 1703 | E6: ='Portfolio--2024-2025'!G9 -> 140.173 | F6: -1562.827 | G6: -0.9176905461 | H6: 2003493 | I6: ='Portfolio--2024-2025'!H9 -> 166272.3 | J6: -1837220.7 | K6: -0.9170087941 | M6: ='Portfolio--2024-2025'!I9 -> 0 | N6: 0 | P6: 0 | Q6: ='Portfolio--2024-2025'!J9 -> 0 | R6: 0 | T6: 2003493 | U6: 166272.3 | V6: -1837220.7 | W6: -0.9170087941
C7: Space heat | D7: 16185 | E7: ='Portfolio--2024-2025'!G10 -> 17215.26805 | F7: 1030.268046 | G7: 0.06365573346 | H7: 8875019 | I7: ='Portfolio--2024-2025'!H10 -> 13182525.9 | J7: 4307506.9 | K7: 0.4853518511 | L7: 1097578 | M7: ='Portfolio--2024-2025'!I10 -> 420207.4 | N7: -677370.6 | O7: -0.6171503073 | P7: 7753187 | Q7: ='Portfolio--2024-2025'!J10 -> 3210655.2 | R7: -4542531.8 | S7: -0.5858922015 | T7: 16628206 | U7: 16393181.1 | V7: -235024.9 | W7: -0.01413411044
C8: Water heat | D8: 1621 | E8: ='Portfolio--2024-2025'!G11 -> 1434.501086 | F8: -186.4989142 | G8: -0.1150517669 | H8: 1543240 | I8: ='Portfolio--2024-2025'!H11 -> 1686057 | J8: 142817 | K8: 0.09254360955 | L8: 117244 | M8: ='Portfolio--2024-2025'!I11 -> 122462.2 | N8: 5218.2 | O8: 0.0445071816 | P8: 771064 | Q8: ='Portfolio--2024-2025'!J11 -> 1329189.6 | R8: 558125.6 | S8: 0.7238382287 | T8: 2314304 | U8: 3015246.6 | V8: 700942.6 | W8: 0.302874039
C9: Home Energy Assessment | E9: ='Portfolio--2024-2025'!G12 -> 0 | F9: 0 | I9: ='Portfolio--2024-2025'!H12 -> 0 | J9: 0 | M9: ='Portfolio--2024-2025'!I12 -> 0 | N9: 0 | Q9: ='Portfolio--2024-2025'!J12 -> 0 | R9: 0 | T9: 0 | U9: 0 | V9: 0
C10: Home Appliances | D10: 1277 | E10: ='Portfolio--2024-2025'!G13 -> 1377.1534 | F10: 100.1534 | G10: 0.07842866092 | H10: 1434951 | I10: ='Portfolio--2024-2025'!H13 -> 1761911 | J10: 326960 | K10: 0.2278544703 | L10: 9922 | M10: ='Portfolio--2024-2025'!I13 -> 9672 | N10: -250 | O10: -0.02519653296 | Q10: ='Portfolio--2024-2025'!J13 -> 0 | R10: 0 | T10: 1434951 | U10: 1761911 | V10: 326960 | W10: 0.2278544703
C11: Smart Thermostats | D11: 2740 | E11: ='Portfolio--2024-2025'!G14 -> 1828.000435 | F11: -911.999565 | G11: -0.3328465566 | H11: 2118909 | I11: ='Portfolio--2024-2025'!H14 -> 1817199.53 | J11: -301709.47 | K11: -0.1423890644 | L11: 621016 | M11: ='Portfolio--2024-2025'!I14 -> 553597.8 | N11: -67418.2 | O11: -0.1085611321 | P11: 3580452 | Q11: ='Portfolio--2024-2025'!J14 -> 4356049.8 | R11: 775597.8 | S11: 0.2166200804 | T11: 5699361 | U11: 6173249.33 | V11: 473888.33 | W11: 0.0831476248
C12: Weatherization | D12: 2698 | E12: ='Portfolio--2024-2025'!G15 -> 3342.753865 | F12: 644.7538646 | G12: 0.238974746 | H12: 2570538 | I12: ='Portfolio--2024-2025'!H15 -> 7137287.2 | J12: 4566749.2 | K12: 1.776573309 | L12: 516039 | M12: ='Portfolio--2024-2025'!I15 -> 669746.2686 | N12: 153707.2686 | O12: 0.2978597908 | P12: 5432398 | Q12: ='Portfolio--2024-2025'!J15 -> 14256488.4 | R12: 8824090.4 | S12: 1.624345344 | T12: 8002936 | U12: 21393775.6 | V12: 13390839.6 | W12: 1.673240871
C13: Home Energy Reports | D13: 79740 | E13: ='Portfolio--2024-2025'!G16 -> 79608 | F13: -132 | G13: -0.001655379985 | H13: 3564593 | I13: ='Portfolio--2024-2025'!H16 -> 4686953.4 | J13: 1122360.4 | K13: 0.3148635482 | L13: 2496906 | M13: ='Portfolio--2024-2025'!I16 -> 2489560.22 | N13: -7345.78 | O13: -0.002941952961 | P13: 2942145 | Q13: ='Portfolio--2024-2025'!J16 -> 3871661.18 | R13: 929516.18 | S13: 0.315931465 | T13: 6506738 | U13: 8558614.58 | V13: 2051876.58 | W13: 0.315346427
C14: Midstream HVAC and Water Heat | D14: 31895 | E14: ='Portfolio--2024-2025'!G17 -> 28513.235 | F14: -3381.765 | G14: -0.1060280608 | H14: 14476420 | I14: ='Portfolio--2024-2025'!H17 -> 14652102.65 | J14: 175682.65 | K14: 0.01213578012 | M14: ='Portfolio--2024-2025'!I17 -> 148131 | N14: 148131 | Q14: ='Portfolio--2024-2025'!J17 -> 1050491 | R14: 1050491 | T14: 14476420 | U14: 15702593.65 | V14: 1226173.65 | W14: 0.08470144207
A15: 215 | B15: Single Family New Construction | D15: 84 | E15: ='Portfolio--2024-2025'!G19 -> 1002.256 | F15: 918.256 | G15: 10.93161905 | H15: 245188 | I15: ='Portfolio--2024-2025'!H19 -> 2225041.4 | J15: 1979853.4 | K15: 8.074838083 | L15: 7530 | M15: ='Portfolio--2024-2025'!I19 -> 1094.8 | N15: -6435.2 | O15: -0.8546082337 | P15: 88944 | Q15: ='Portfolio--2024-2025'!J19 -> 29600 | R15: -59344 | S15: -0.6672063321 | T15: 334132 | U15: 2254641.4 | V15: 1920509.4 | W15: 5.747756575
B16: Manufactured Home New Construction | D16: 338 | H16: 413515 | J16: -413515 | K16: -1 | N16: 0 | P16: 50404 | R16: -50404 | S16: -1 | T16: 463919 | V16: -463919 | W16: -1
A17: 214 & 217 | B17: Moderate Income Residences | E17: ='Portfolio--2024-2025'!G20 -> 0 | F17: 0 | G17: 0 | H17: 158190 | I17: ='Portfolio--2024-2025'!H20 -> 175991.2 | J17: 17801.2 | K17: 0.1125305013 | M17: ='Portfolio--2024-2025'!I20 -> 0 | N17: 0 | P17: 145336 | Q17: ='Portfolio--2024-2025'!J20 -> 153100 | R17: 7764 | S17: 0.05342103815 | T17: 303526 | U17: =I17+Q17 -> 329091.2 | V17: 25565.2 | W17: 0.08422738085
A18: 217 | B18: Multifamily Retrofit | D18: 12346 | E18: ='Portfolio--2024-2025'!G21 -> 11026.1144 | F18: -1319.8856 | G18: -0.106907954 | H18: 13581163 | I18: ='Portfolio--2024-2025'!H21 -> 13256298.96 | J18: -324864.04 | K18: -0.02392019299 | L18: 29996 | M18: ='Portfolio--2024-2025'!I21 -> 30050.32 | N18: 54.32 | O18: 0.001810908121 | P18: 691819 | Q18: ='Portfolio--2024-2025'!J21 -> 569784.46 | R18: -122034.54 | S18: -0.1763966298 | T18: 14272982 | U18: =I18+Q18 -> 13826083.42 | V18: -446898.58 | W18: -0.03131080667
A19: 218 | B19: Multifamily New Construction | D19: 6506 | E19: ='Portfolio--2024-2025'!G22 -> 8015 | F19: 1509 | G19: 0.2319397479 | H19: 3638950 | I19: ='Portfolio--2024-2025'!H22 -> 5150281.6 | J19: 1511331.6 | K19: 0.4153207931 | L19: 20897 | M19: ='Portfolio--2024-2025'!I22 -> 7200 | N19: -13697 | O19: -0.6554529358 | P19: 288614 | Q19: ='Portfolio--2024-2025'!J22 -> 72289 | R19: -216325 | S19: =(Q19-P19)/P19 -> -0.7495305148 | T19: 3927564 | U19: =I19+Q19 -> 5222570.6 | V19: 1295006.6 | W19: 0.3297225965
B20: Subtotal, Residential Programs | D20: =SUM(D6:D19)+D4 -> 159888 | E20: ='Portfolio--2024-2025'!G23 -> 158100.3666 | F20: -1787.633369 | G20: -0.01118053493 | H20: =SUM(H6:H19)+H4 -> 66497704 | I20: ='Portfolio--2024-2025'!H23 -> 87471327.74 | J20: 20973623.74 | K20: 0.3154037279 | L20: =SUM(L7:L19)+L4 -> 4970058 | M20: ='Portfolio--2024-2025'!I23 -> 4495558.009 | N20: =M20-L20 -> -474499.9914 | O20: -0.09547172113 | P20: =SUM(P6:P19)+P4 -> 24841132 | Q20: ='Portfolio--2024-2025'!J23 -> 32069681.34 | R20: 7228549.34 | S20: 0.2909911408 | T20: 91338836 | U20: =I20+Q20 -> 119541009.1 | V20: 28202173.08 | W20: 0.3087643144
B22: Business Energy Management
A23: 250 | B23: Commercial / Industrial Retrofit | D23: 116275 | E23: ='Portfolio--2024-2025'!G26 -> 86600 | F23: =E23-D23 -> -29675 | G23: =(E23-D23)/D23 -> -0.2552139325 | H23: 43172374 | I23: ='Portfolio--2024-2025'!H26 -> 43331980.1 | J23: =I23-H23 -> 159606.1 | K23: =(I23-H23)/H23 -> 0.003696949813 | L23: 1300058 | M23: ='Portfolio--2024-2025'!I26 -> 782000 | N23: =M23-L23 -> -518058 | O23: -0.3984883751 | P23: 8037429 | Q23: ='Portfolio--2024-2025'!J26 -> 5629956 | R23: =Q23-P23 -> -2407473 | S23: =(Q23-P23)/P23 -> -0.2995327237 | T23: =P23+H23 -> 51209803 | U23: =I23+Q23 -> 48961936.1 | V23: -2247866.9 | W23: -0.04389524599
A24: 251 | B24: Commercial/Industrial New Construction | D24: 28634 | E24: ='Portfolio--2024-2025'!G27 -> 6000 | F24: =E24-D24 -> -22634 | G24: =(E24-D24)/D24 -> -0.790458895 | H24: 9338044 | I24: ='Portfolio--2024-2025'!H27 -> 3926419.8 | J24: -5411624.2 | K24: -0.5795243843 | L24: 94492 | M24: ='Portfolio--2024-2025'!I27 -> 40000 | N24: =M24-L24 -> -54492 | O24: -0.5766837404 | P24: 758717 | Q24: ='Portfolio--2024-2025'!J27 -> 520989.1 | R24: -237727.9 | S24: -0.3133288169 | T24: 10096761 | U24: 4447408.9 | V24: -5649352.1 | W24: -0.5595212267
A25: 253 | B25: Commercial Strategic Energy Management | D25: 34674 | E25: ='Portfolio--2024-2025'!G28 -> 29489 | F25: -5185 | G25: -0.1495356751 | H25: 4612621 | I25: ='Portfolio--2024-2025'!H28 -> 5662250.6 | J25: 1049629.6 | K25: 0.2275560034 | L25: 594970 | M25: ='Portfolio--2024-2025'!I28 -> 766004 | N25: 171034 | O25: 0.287466595 | P25: 1650361 | Q25: ='Portfolio--2024-2025'!J28 -> 1950342.4 | R25: 299981.4 | S25: 0.1817671406 | T25: 6262982 | U25: 7612593 | V25: 1349611 | W25: 0.2154901611
A26: E258 | B26: Large Power User - Self Directed Program - Subtotal | D26: 17485 | E26: ='Portfolio--2024-2025'!G29 -> 11964.901 | F26: =E26-D26 -> -5520.099 | G26: -0.3157048327 | H26: 8681750 | I26: ='Portfolio--2024-2025'!H29 -> 8726972.1 | J26: 45222.1 | K26: 0.00520886918 | M26: ='Portfolio--2024-2025'!I29 -> 0 | N26: 0 | Q26: ='Portfolio--2024-2025'!J29 -> 0 | R26: 0 | T26: 8681750 | U26: 8726972.1 | V26: 45222.1 | W26: 0.00520886918
A27: E258 | C27: 449 Customers | D27: 12513 | E27: ='Portfolio--2024-2025'!G30 -> 8000 | F27: -4513 | G27: -0.3606649085 | H27: 5270720 | I27: ='Portfolio--2024-2025'!H30 -> 5733360.5 | J27: 462640.5 | K27: 0.08777557905 | M27: ='Portfolio--2024-2025'!I30 -> 0 | N27: 0 | Q27: ='Portfolio--2024-2025'!J30 -> 0 | R27: 0 | T27: 5270720 | U27: 5733360.5 | V27: 462640.5 | W27: 0.08777557905
A28: E258 | C28: Non-449 Customers | D28: 4971 | E28: ='Portfolio--2024-2025'!G31 -> 3964.901 | F28: -1006.099 | G28: -0.2023936834 | H28: 3411030 | I28: ='Portfolio--2024-2025'!H31 -> 2993611.6 | J28: =I28-H28 -> -417418.4 | K28: -0.1223731248 | M28: ='Portfolio--2024-2025'!I31 -> 0 | N28: 0 | Q28: ='Portfolio--2024-2025'!J31 -> 0 | R28: 0 | T28: 3411030 | U28: 2993611.6 | V28: -417418.4 | W28: -0.1223731248
A29: 262 | B29: Commercial Rebates | D29: 82355 | E29: ='Portfolio--2024-2025'!G32 -> 62456.2667 | F29: -19898.7333 | G29: =(E29-D29)/D29 -> -0.2416214352 | H29: 29068397 | I29: ='Portfolio--2024-2025'!H32 -> 32024095.53 | J29: 2955698.53 | K29: 0.101680823 | L29: 1773200 | M29: ='Portfolio--2024-2025'!I32 -> 955627.1 | N29: -817572.9 | O29: -0.4610720167 | P29: 8268482 | Q29: ='Portfolio--2024-2025'!J32 -> 7052326.45 | R29: -1216155.55 | S29: =(Q29-P29)/P29 -> -0.1470832917 | T29: 37336879 | U29: 39076421.98 | V29: 1739542.98 | W29: 0.0465904764
B30: Subtotal, Business Programs | D30: =SUM(D23:D26)+(D29) -> 279423 | E30: ='Portfolio--2024-2025'!G33 -> 196510.1677 | F30: =E30-D30 -> -82912.8323 | G30: =(E30-D30)/D30 -> -0.2967287313 | H30: =SUM(H23:H26)+H29 -> 94873186 | I30: ='Portfolio--2024-2025'!H33 -> 93671718.13 | J30: -1201467.87 | K30: -0.0126639351 | L30: =SUM(L23:L29) -> 3762720 | M30: ='Portfolio--2024-2025'!I33 -> 2543631.1 | N30: -1219088.9 | O30: -0.3239913945 | P30: =SUM(P23:P29) -> 18714989 | Q30: ='Portfolio--2024-2025'!J33 -> 15153613.95 | R30: -3561375.05 | S30: -0.1902953323 | T30: 113588175 | U30: 108825332.1 | V30: -4762842.92 | W30: -0.04193079887
Q31: ='Portfolio--2024-2025'!J34 -> 0 | U31: 0
B32: Pilots With Uncertain Savings | Q32: ='Portfolio--2024-2025'!J35 -> 0
A33: 249 | B33: Residential | D33: 714 | E33: ='Portfolio--2024-2025'!G36 -> 0 | F33: =E33-D33 -> -714 | G33: =(E33-D33)/D33 -> -1 | H33: 1721224 | I33: ='Portfolio--2024-2025'!H36 -> 10920.4 | J33: =I33-H33 -> -1710303.6 | K33: =(I33-H33)/H33 -> -0.9936554452 | M33: ='Portfolio--2024-2025'!I36 -> 0 | P33: 164742 | Q33: ='Portfolio--2024-2025'!J36 -> 0 | R33: =Q33-P33 -> -164742 | S33: =(Q33-P33)/P33 -> -1 | T33: =P33+H33 -> 1885966 | U33: =I33+Q33 -> 10920.4 | V33: -1875045.6 | W33: -0.9942096517
A34: 249 | B34: Commercial Pilot | D34: 470 | E34: ='Portfolio--2024-2025'!G37 -> 0 | F34: =E34-D34 -> -470 | G34: =(E34-D34)/D34 -> -1 | H34: 2467 | I34: ='Portfolio--2024-2025'!H37 -> 0 | J34: -2467 | K34: -1 | M34: ='Portfolio--2024-2025'!I37 -> 0 | P34: 152 | Q34: ='Portfolio--2024-2025'!J37 -> 0 | R34: -152 | S34: -1 | T34: =P34+H34 -> 2619 | U34: =I34+Q34 -> 0 | V34: -2619 | W34: -1
B35: Subtotal, Pilots | D35: =SUM(D33:D34) -> 1184 | E35: ='Portfolio--2024-2025'!G38 -> 0 | F35: =E35-D35 -> -1184 | G35: =(E35-D35)/D35 -> -1 | H35: =SUM(H33:H34) -> 1723691 | I35: ='Portfolio--2024-2025'!H38 -> 10920.4 | J35: -1712770.6 | K35: -0.9936645257 | M35: ='Portfolio--2024-2025'!I38 -> 0 | P35: =SUM(P33:P34) -> 164894 | Q35: ='Portfolio--2024-2025'!J38 -> 0 | R35: -164894 | S35: -1 | T35: =P35+H35 -> 1888585 | U35: =I35+Q35 -> 10920.4 | V35: -1877664.6 | W35: -0.9942176815
B37: Regional Efficiency Programs
A38: E254 | B38: NW Energy Efficiency Alliance (NEEA) | D38: 28939 | E38: ='Portfolio--2024-2025'!G41 -> 35698.422 | F38: =E38-D38 -> 6759.422 | G38: =(E38-D38)/D38 -> 0.2335748298 | H38: 8428019 | I38: ='Portfolio--2024-2025'!H41 -> 9715288 | J38: =I38-H38 -> 1287269 | K38: =(I38-H38)/H38 -> 0.1527368412 | M38: ='Portfolio--2024-2025'!I41 -> 0 | Q38: ='Portfolio--2024-2025'!J41 -> 0 | R38: =Q38-P38 -> 0 | T38: =P38+H38 -> 8428019 | U38: =I38+Q38 -> 9715288 | V38: 1287269 | W38: 0.1527368412
B39: NEEA Natural Gas Market Transformation | E39: ='Portfolio--2024-2025'!G42 -> 0 | F39: =E39-D39 -> 0 | I39: ='Portfolio--2024-2025'!H42 -> 0 | J39: 0 | M39: ='Portfolio--2024-2025'!I42 -> 0 | P39: 2690351 | Q39: ='Portfolio--2024-2025'!J42 -> 3180472 | R39: 490121 | S39: =(Q39-P39)/P39 -> 0.1821773441 | T39: =P39+H39 -> 2690351 | U39: =I39+Q39 -> 3180472 | V39: 490121 | W39: 0.1821773441
B40: Targeted DSM | E40: ='Portfolio--2024-2025'!G43 -> 0 | F40: =E40-D40 -> 0 | H40: 854367 | I40: ='Portfolio--2024-2025'!H43 -> 1167084 | J40: 312717 | K40: 0.3660218618 | M40: ='Portfolio--2024-2025'!I43 -> 0 | P40: 371360 | Q40: ='Portfolio--2024-2025'!J43 -> 563902 | R40: 192542 | S40: 0.5184780267 | T40: =P40+H40 -> 1225727 | U40: =I40+Q40 -> 1730986 | V40: 505259 | W40: 0.4122116915
A41: E292 | B41: Generation, Transmission and Distribution | D41: 4481 | E41: ='Portfolio--2024-2025'!G44 -> 17756 | F41: =E41-D41 -> 13275 | G41: =(E41-D41)/D41 -> 2.962508369 | I41: ='Portfolio--2024-2025'!H44 -> 0 | J41: 0 | M41: ='Portfolio--2024-2025'!I44 -> 0 | Q41: ='Portfolio--2024-2025'!J44 -> 0 | R41: 0 | T41: =P41+H41 -> 0 | U41: =I41+Q41 -> 0
B42: Subtotal, Regional Programs | D42: =SUM(D38:D41) -> 33420 | E42: ='Portfolio--2024-2025'!G45 -> 53454.422 | F42: =E42-D42 -> 20034.422 | G42: =(E42-D42)/D42 -> 0.5994740275 | H42: =SUM(H38:H41) -> 9282386 | I42: ='Portfolio--2024-2025'!H45 -> 10882372 | J42: 1599986 | K42: 0.1723679666 | M42: ='Portfolio--2024-2025'!I45 -> 0 | P42: =SUM(P39:P41) -> 3061711 | Q42: ='Portfolio--2024-2025'!J45 -> 3744374 | R42: 682663 | S42: 0.2229678111 | T42: =P42+H42 -> 12344097 | U42: =I42+Q42 -> 14626746 | V42: 2282649 | W42: 0.184918265
B44: Energy Efficiency Portfolio Support
B45: Data and Systems Services | E45: ='Portfolio--2024-2025'!G48 -> 0 | F45: =E45-D45 -> 0 | H45: 2050153 | I45: ='Portfolio--2024-2025'!H48 -> 2195253.6 | J45: =I45-H45 -> 145100.6 | K45: =(I45-H45)/H45 -> 0.07077549822 | M45: ='Portfolio--2024-2025'!I48 -> 0 | P45: 308066 | Q45: ='Portfolio--2024-2025'!J48 -> 349144.9 | R45: =Q45-P45 -> 41078.9 | S45: =(Q45-P45)/P45 -> 0.1333444781 | T45: =P45+H45 -> 2358219 | U45: =I45+Q45 -> 2544398.5 | V45: 186179.5 | W45: 0.07894919853
B46: Rebates Processing | E46: ='Portfolio--2024-2025'!G49 -> 0 | F46: 0 | H46: 1877086 | I46: ='Portfolio--2024-2025'!H49 -> 2300747 | J46: 423661 | K46: 0.225701433 | M46: ='Portfolio--2024-2025'!I49 -> 0 | P46: 146067 | Q46: ='Portfolio--2024-2025'!J49 -> 316433 | R46: 170366 | S46: 1.166355166 | T46: 2023153 | U46: 2617180 | V46: 594027 | W46: 0.2936144721
B47: Verification Team | E47: ='Portfolio--2024-2025'!G50 -> 0 | F47: 0 | H47: 1195933 | I47: ='Portfolio--2024-2025'!H50 -> 2285133.3 | J47: 1089200.3 | K47: 0.9107536125 | M47: ='Portfolio--2024-2025'!I50 -> 0 | P47: 128545 | Q47: ='Portfolio--2024-2025'!J50 -> 319536.7 | R47: 190991.7 | S47: 1.485796414 | T47: 1324478 | U47: 2604670 | V47: 1280192 | W47: 0.966563431
B48: Programs Support | E48: ='Portfolio--2024-2025'!G51 -> 0 | F48: 0 | H48: 1449306 | I48: ='Portfolio--2024-2025'!H51 -> 2582821.2 | J48: 1133515.2 | K48: 0.7821089542 | M48: ='Portfolio--2024-2025'!I51 -> 0 | P48: 216728 | Q48: ='Portfolio--2024-2025'!J51 -> 385938.8 | R48: 169210.8 | S48: 0.7807519102 | T48: 1666034 | U48: 2968760 | V48: 1302726 | W48: 0.7819324215
B49: Trade Ally Memberships | E49: ='Portfolio--2024-2025'!G52 -> 0 | F49: 0 | H49: 341666 | I49: ='Portfolio--2024-2025'!H52 -> 348000 | J49: 6334 | K49: 0.01853857276 | M49: ='Portfolio--2024-2025'!I52 -> 0 | P49: 45452 | Q49: ='Portfolio--2024-2025'!J52 -> 52000 | R49: 6548 | S49: 0.1440640676 | T49: 387118 | U49: 400000 | V49: 12882 | W49: 0.03327667533
B50: Trade Ally Network | E50: ='Portfolio--2024-2025'!G53 -> 0 | F50: 0 | H50: -112628 | I50: ='Portfolio--2024-2025'!H53 -> -21220 | J50: 91408 | K50: -0.811592144 | M50: ='Portfolio--2024-2025'!I53 -> 0 | P50: -81037 | Q50: ='Portfolio--2024-2025'!J53 -> -1760 | R50: 79277 | S50: -0.9782815257 | T50: -193665 | U50: -22980 | V50: 170685 | W50: -0.8813414918
B51: Automated Benchmarking System | E51: ='Portfolio--2024-2025'!G54 -> 0 | F51: 0 | H51: 3736586 | I51: ='Portfolio--2024-2025'!H54 -> 3044692 | J51: -691894 | K51: -0.1851674229 | M51: ='Portfolio--2024-2025'!I54 -> 0 | P51: 1127172 | Q51: ='Portfolio--2024-2025'!J54 -> 1268092 | R51: 140920 | S51: 0.1250208486 | T51: 4863758 | U51: 4312784 | V51: -550974 | W51: -0.1132815407
B52: Energy Advisors | E52: ='Portfolio--2024-2025'!G55 -> 0 | F52: 0 | H52: 2457666 | I52: ='Portfolio--2024-2025'!H55 -> 3192601.6 | J52: 734935.6 | K52: 0.2990380304 | M52: ='Portfolio--2024-2025'!I55 -> 0 | P52: 359667 | Q52: ='Portfolio--2024-2025'!J55 -> 508781.2 | R52: 149114.2 | S52: 0.4145896065 | T52: 2817333 | U52: 3701382.8 | V52: 884049.8 | W52: 0.3137896017
B53: Equity Support | H53: 0 | I53: ='Portfolio--2024-2025'!H56 -> 87270 | J53: =I53-H53 -> 87270 | Q53: ='Portfolio--2024-2025'!J56 -> 87270 | R53: 87270 | T53: 0 | U53: 174540 | V53: 174540
B54: Energy Efficient Communities | E54: ='Portfolio--2024-2025'!G57 -> 0 | F54: 0 | H54: 2095849 | I54: ='Portfolio--2024-2025'!H57 -> 2626817 | J54: 530968 | K54: 0.2533426788 | M54: ='Portfolio--2024-2025'!I57 -> 0 | P54: 318085 | Q54: ='Portfolio--2024-2025'!J57 -> 395049.5 | R54: 76964.5 | S54: 0.2419620542 | T54: 2413934 | U54: 3021866.5 | V54: 607932.5 | W54: 0.2518430496
B55: Customer Digital Services | E55: ='Portfolio--2024-2025'!G58 -> 0 | F55: 0 | H55: 3068132 | I55: ='Portfolio--2024-2025'!H58 -> 3380658.02 | J55: 312526.02 | K55: 0.1018619864 | M55: ='Portfolio--2024-2025'!I58 -> 0 | P55: 936445 | Q55: ='Portfolio--2024-2025'!J58 -> 1252898.54 | R55: 316453.54 | S55: 0.3379307274 | T55: 4004577 | U55: 4633556.56 | V55: 628979.56 | W55: 0.1570651682
B56: Market Integration/Program Marketing Labor | E56: ='Portfolio--2024-2025'!G59 -> 0 | F56: 0 | H56: 2772764 | I56: ='Portfolio--2024-2025'!H59 -> 4370753.5 | J56: 1597989.5 | K56: 0.5763164481 | M56: ='Portfolio--2024-2025'!I59 -> 0 | P56: 395151 | Q56: ='Portfolio--2024-2025'!J59 -> 652820.4 | R56: 257669.4 | S56: 0.6520783194 | T56: 3167915 | U56: 5023573.9 | V56: 1855658.9 | W56: 0.585766632
B57: Events | E57: ='Portfolio--2024-2025'!G60 -> 0 | F57: 0 | H57: 1605421 | I57: ='Portfolio--2024-2025'!H60 -> 1059424.8 | J57: -545996.2 | K57: -0.3400953395 | M57: ='Portfolio--2024-2025'!I60 -> 0 | P57: 331640 | Q57: ='Portfolio--2024-2025'!J60 -> 230333.2 | R57: -101306.8 | S57: -0.3054721988 | T57: 1937061 | U57: 1289758 | V57: -647303 | W57: -0.3341675869
B58: Subtotal, Portfolio Support | E58: ='Portfolio--2024-2025'!G61 -> 0 | F58: 0 | H58: =SUM(H45:H57) -> 22537934 | I58: ='Portfolio--2024-2025'!H61 -> 27452952.02 | J58: 4915018.02 | K58: 0.2180775762 | M58: ='Portfolio--2024-2025'!I61 -> 0 | P58: =SUM(P45:P57) -> 4231981 | Q58: ='Portfolio--2024-2025'!J61 -> 5816538.24 | R58: 1584557.24 | S58: 0.3744244693 | T58: 26769915 | U58: 33269490.26 | V58: 6499575.26 | W58: 0.2427940193
B60: Energy Efficiency Research & Compliance
B61: Conservation Supply Curves | E61: ='Portfolio--2024-2025'!G64 -> 0 | F61: =E61-D61 -> 0 | H61: 1006837 | I61: ='Portfolio--2024-2025'!H64 -> 1160742.6 | J61: =I61-H61 -> 153905.6 | K61: =(I61-H61)/H61 -> 0.1528604928 | M61: ='Portfolio--2024-2025'!I64 -> 0 | P61: 147315 | Q61: ='Portfolio--2024-2025'!J64 -> 164648.4 | R61: =Q61-P61 -> 17333.4 | S61: =(Q61-P61)/P61 -> 0.1176621525 | T61: =P61+H61 -> 1154152 | U61: =I61+Q61 -> 1325391 | V61: 171239 | W61: 0.148367806
B62: Strategic Planning | E62: ='Portfolio--2024-2025'!G65 -> 0 | F62: 0 | H62: 1012411 | I62: ='Portfolio--2024-2025'!H65 -> 1319970.7 | J62: 307559.7 | K62: 0.3037893701 | M62: ='Portfolio--2024-2025'!I65 -> 0 | P62: 154062 | Q62: ='Portfolio--2024-2025'!J65 -> 220997.2 | R62: 66935.2 | S62: 0.4344692397 | T62: 1166473 | U62: 1540967.9 | V62: 374494.9 | W62: 0.3210489227
B63: Market Research | E63: ='Portfolio--2024-2025'!G66 -> 0 | F63: 0 | H63: 364882 | I63: ='Portfolio--2024-2025'!H66 -> 341050 | J63: -23832 | K63: -0.06531426598 | M63: ='Portfolio--2024-2025'!I66 -> 0 | P63: 56225 | Q63: ='Portfolio--2024-2025'!J66 -> 68210 | R63: 11985 | S63: 0.2131614051 | T63: 421107 | U63: 409260 | V63: -11847 | W63: -0.02813299233
B64: Program Evaluation | E64: ='Portfolio--2024-2025'!G67 -> 0 | F64: 0 | H64: 3245955 | I64: ='Portfolio--2024-2025'!H67 -> 4128485.6 | J64: 882530.6 | K64: 0.2718862708 | M64: ='Portfolio--2024-2025'!I67 -> 0 | P64: 654422 | Q64: ='Portfolio--2024-2025'!J67 -> 618154.2 | R64: -36267.8 | S64: -0.05541959164 | T64: 3900377 | U64: 4746639.8 | V64: 846262.8 | W64: 0.2169694878
B65: Biennial Electric Conservation Acquisition Review | E65: ='Portfolio--2024-2025'!G68 -> 0 | F65: 0 | H65: 169306 | I65: ='Portfolio--2024-2025'!H68 -> 286000 | J65: 116694 | K65: 0.689249052 | M65: ='Portfolio--2024-2025'!I68 -> 0 | Q65: ='Portfolio--2024-2025'!J68 -> 14000 | R65: 14000 | T65: 169306 | U65: 300000 | V65: 130694 | W65: 0.771939565
A66: 261 | B66: Energy Efficient Technology Evaluation | E66: ='Portfolio--2024-2025'!G69 -> 0 | F66: =E66-D66 -> 0 | I66: ='Portfolio--2024-2025'!H69 -> 150000 | J66: 150000 | M66: ='Portfolio--2024-2025'!I69 -> 0 | Q66: ='Portfolio--2024-2025'!J69 -> 0 | R66: 0 | T66: 0 | U66: 150000
B67: Subtotal, Research & Compliance | E67: ='Portfolio--2024-2025'!G70 -> 0 | F67: 0 | H67: =SUM(H61:H66) -> 5799391 | I67: ='Portfolio--2024-2025'!H70 -> 7386248.9 | J67: 1586857.9 | K67: 0.2736249203 | M67: ='Portfolio--2024-2025'!I70 -> 0 | P67: =SUM(P61:P66) -> 1012024 | Q67: ='Portfolio--2024-2025'!J70 -> 1086009.8 | R67: 73985.8 | S67: 0.07310676427 | T67: 6811415 | U67: 8472258.7 | V67: 1660843.7 | W67: 0.2438324049
I68: ='Portfolio--2024-2025'!H71 -> 0 | M68: ='Portfolio--2024-2025'!I71 -> 0 | Q68: ='Portfolio--2024-2025'!J71 -> 0 | U68: 0
B69: Total Savings, Efficiency Programs Included in CE Calculations | D69: =D42+D35+D30+D20 -> 473915 | E69: ='Portfolio--2024-2025'!G72 -> 408064.9563 | F69: =E69-D69 -> -65850.04367 | G69: =(E69-D69)/D69 -> -0.1389490598 | H69: =H20+H30+H35+H42+H58+H67 -> 200714292 | I69: ='Portfolio--2024-2025'!H72 -> 226875539.2 | J69: =J20+J30+J35+J42+J58+J67 -> 26161247.19 | K69: =(I69-H69)/H69 -> 0.1303407292 | L69: =L20+L30 -> 8732778 | M69: ='Portfolio--2024-2025'!I72 -> 7039189.109 | N69: =M69-L69 -> -1693588.891 | O69: =(M69-L69)/L69 -> -0.193934724 | P69: =P20+P30+P35+P42+P58+P67 -> 52026731 | Q69: ='Portfolio--2024-2025'!J72 -> 57870217.33 | R69: =Q69-P69 -> 5843486.33 | S69: =(Q69-P69)/P69 -> 0.1123169997 | T69: =P69+H69 -> 252741023 | U69: 284745756.5 | V69: =U69-T69 -> 32004733.52 | W69: =(U69-T69)/T69 -> 0.1266305451
T70: 0 | U70: 0
B71: Other Customer Programs | T71: 0 | U71: 0
A72: E150 | B72: Net Metering | E72: ='Portfolio--2024-2025'!G75 -> 0 | F72: =E72-D72 -> 0 | H72: 7818196 | I72: ='Portfolio--2024-2025'!H75 -> 8440235 | J72: =I72-H72 -> 622039 | K72: =(I72-H72)/H72 -> 0.07956298358 | M72: ='Portfolio--2024-2025'!I75 -> 0 | Q72: ='Portfolio--2024-2025'!J75 -> 0 | R72: =Q72-P72 -> 0 | T72: 7818196 | U72: 8440235 | V72: 622039 | W72: 0.07956298358
A73: 249 | B73: Demand Response Pilots | E73: ='Portfolio--2024-2025'!G76 -> 0 | F73: =E73-D73 -> 0 | H73: 210068 | I73: ='Portfolio--2024-2025'!H76 -> 740000 | J73: 529932 | K73: 2.52266885 | M73: ='Portfolio--2024-2025'!I76 -> 0 | P73: 38000 | Q73: ='Portfolio--2024-2025'!J76 -> 360000 | R73: 322000 | S73: =(Q73-P73)/P73 -> 8.473684211 | T73: 248068 | U73: 1100000 | V73: 851932 | W73: 3.434268023
B74: Demand Response Admin | E74: ='Portfolio--2024-2025'!G77 -> 0 | F74: =E74-D74 -> 0 | H74: 727862 | I74: ='Portfolio--2024-2025'!H77 -> 10231690 | J74: 9503828 | K74: 13.05718392 | R74: 0 | T74: 727862 | V74: -727862 | W74: -1
B75: Subtotal, Other Customer Programs | E75: ='Portfolio--2024-2025'!G78 -> 0 | F75: =E75-D75 -> 0 | H75: =SUM(H72:H74) -> 8756126 | I75: ='Portfolio--2024-2025'!H78 -> 19411925 | J75: 10655799 | K75: 1.216953593 | M75: ='Portfolio--2024-2025'!I78 -> 0 | P75: =SUM(P72:P74) -> 38000 | Q75: ='Portfolio--2024-2025'!J78 -> 360000 | R75: 322000 | S75: 8.473684211 | T75: 8794126 | U75: =I75+Q75 -> 19771925 | V75: 10977799 | W75: 1.248310406
B79: GRAND TOTAL All Programs | D79: =D69 -> 473915 | E79: ='Portfolio--2024-2025'!G82 -> 408064.9563 | F79: =E79-D79 -> -65850.04367 | G79: =(E79-D79)/D79 -> -0.1389490598 | H79: =H69+H75 -> 209470418 | I79: ='Portfolio--2024-2025'!H82 -> 246287464.2 | J79: =J69+J75 -> 36817046.19 | K79: =(I79-H79)/H79 -> 0.1757625088 | L79: =L69 -> 8732778 | M79: ='Portfolio--2024-2025'!I82 -> 7039189.109 | N79: =M79-L79 -> -1693588.891 | O79: =(M79-L79)/L79 -> -0.193934724 | P79: =P69+P75 -> 52064731 | Q79: ='Portfolio--2024-2025'!J82 -> 58230217.33 | R79: =Q79-P79 -> 6165486.33 | S79: =(Q79-P79)/P79 -> 0.1184196329 | T79: =P79+H79 -> 261535149 | U79: =I79+Q79 -> 304517681.5 | V79: 42982532.52 | W79: 0.1643470588
B80: and Portfolio Budgets | E80: ='Portfolio--2024-2025'!G83 -> 46.58275757 | F80: =E80-D80 -> 46.58275757

Sheet Portfolio--2024-2025
G1: 2024-2025 Two-Year
F2: PSE Conservation Rider Savings Goals and Budgets
D3: =NOW() -> 2023-11-01T15:35:45.450
C4: Schedule Nos. (Unless otherwise noted, applies to both electric and gas) | D4: Program Name | G4: MWh Savings | H4: Electric Rider Budget | I4: Therm Savings | J4: Gas Rider Budget | K4: Total Rider Budget
D5: (All indented program or activity names are color-coded and comprise the totals of the above program or activity grouping.)
D6: Residential Energy Management
C7: 201 | D7: Low Income Weatherization | G7: ='Portfolio--2024 Specific'!G7+'Portfolio--2025 Specific'!G7 -> 4307.5114 | H7: ='Portfolio--2024 Specific'!H7+'Portfolio--2025 Specific'!H7 -> 21532137.6 | I7: ='Portfolio--2024 Specific'!I7+'Portfolio--2025 Specific'!I7 -> 43836 | J7: ='Portfolio--2024 Specific'!J7+'Portfolio--2025 Specific'!J7 -> 3170372.7 | K7: =H7+J7 -> 24702510.3
C8: 214 | D8: Single Family Existing Subtotal | G8: =SUM(G9:G18) -> 133749.4848 | H8: =SUM(H9:H18) -> 45131576.98 | I8: =SUM(I9:I17) -> 4413376.889 | J8: =SUM(J9:J17) -> 28074535.18 | K8: =H8+J8 -> 73206112.16
E9: Residential lighting | G9: ='Portfolio--2024 Specific'!G9+'Portfolio--2025 Specific'!G9 -> 140.173 | H9: ='Portfolio--2024 Specific'!H9+'Portfolio--2025 Specific'!H9 -> 166272.3 | I9: ='Portfolio--2024 Specific'!I9+'Portfolio--2025 Specific'!I9 -> 0 | J9: ='Portfolio--2024 Specific'!J9+'Portfolio--2025 Specific'!J9 -> 0 | K9: =H9+J9 -> 166272.3
E10: Space heat | G10: ='Portfolio--2024 Specific'!G10+'Portfolio--2025 Specific'!G10 -> 17215.26805 | H10: ='Portfolio--2024 Specific'!H10+'Portfolio--2025 Specific'!H10 -> 13182525.9 | I10: ='Portfolio--2024 Specific'!I10+'Portfolio--2025 Specific'!I10 -> 420207.4 | J10: ='Portfolio--2024 Specific'!J10+'Portfolio--2025 Specific'!J10 -> 3210655.2 | K10: =H10+J10 -> 16393181.1
E11: Water heat | G11: ='Portfolio--2024 Specific'!G11+'Portfolio--2025 Specific'!G11 -> 1434.501086 | H11: ='Portfolio--2024 Specific'!H11+'Portfolio--2025 Specific'!H11 -> 1686057 | I11: ='Portfolio--2024 Specific'!I11+'Portfolio--2025 Specific'!I11 -> 122462.2 | J11: ='Portfolio--2024 Specific'!J11+'Portfolio--2025 Specific'!J11 -> 1329189.6 | K11: 3015246.6
E12: Home Energy Assessment | G12: ='Portfolio--2024 Specific'!G12+'Portfolio--2025 Specific'!G12 -> 0 | H12: ='Portfolio--2024 Specific'!H12+'Portfolio--2025 Specific'!H12 -> 0 | I12: ='Portfolio--2024 Specific'!I12+'Portfolio--2025 Specific'!I12 -> 0 | J12: ='Portfolio--2024 Specific'!J12+'Portfolio--2025 Specific'!J12 -> 0 | K12: 0
E13: Home Appliances | G13: ='Portfolio--2024 Specific'!G13+'Portfolio--2025 Specific'!G13 -> 1377.1534 | H13: ='Portfolio--2024 Specific'!H13+'Portfolio--2025 Specific'!H13 -> 1761911 | I13: ='Portfolio--2024 Specific'!I13+'Portfolio--2025 Specific'!I13 -> 9672 | J13: ='Portfolio--2024 Specific'!J13+'Portfolio--2025 Specific'!J13 -> 0 | K13: 1761911
E14: Smart Thermostats | G14: ='Portfolio--2024 Specific'!G14+'Portfolio--2025 Specific'!G14 -> 1828.000435 | H14: ='Portfolio--2024 Specific'!H14+'Portfolio--2025 Specific'!H14 -> 1817199.53 | I14: ='Portfolio--2024 Specific'!I14+'Portfolio--2025 Specific'!I14 -> 553597.8 | J14: ='Portfolio--2024 Specific'!J14+'Portfolio--2025 Specific'!J14 -> 4356049.8 | K14: 6173249.33
E15: Weatherization | G15: ='Portfolio--2024 Specific'!G15+'Portfolio--2025 Specific'!G15 -> 3342.753865 | H15: ='Portfolio--2024 Specific'!H15+'Portfolio--2025 Specific'!H15 -> 7137287.2 | I15: ='Portfolio--2024 Specific'!I15+'Portfolio--2025 Specific'!I15 -> 669746.2686 | J15: ='Portfolio--2024 Specific'!J15+'Portfolio--2025 Specific'!J15 -> 14256488.4 | K15: 21393775.6
E16: Home Energy Reports | G16: ='Portfolio--2024 Specific'!G16+'Portfolio--2025 Specific'!G16 -> 79608 | H16: ='Portfolio--2024 Specific'!H16+'Portfolio--2025 Specific'!H16 -> 4686953.4 | I16: ='Portfolio--2024 Specific'!I16+'Portfolio--2025 Specific'!I16 -> 2489560.22 | J16: ='Portfolio--2024 Specific'!J16+'Portfolio--2025 Specific'!J16 -> 3871661.18 | K16: 8558614.58
E17: Midstream HVAC and Water Heat | G17: ='Portfolio--2024 Specific'!G17+'Portfolio--2025 Specific'!G17 -> 28513.235 | H17: ='Portfolio--2024 Specific'!H17+'Portfolio--2025 Specific'!H17 -> 14652102.65 | I17: ='Portfolio--2024 Specific'!I17+'Portfolio--2025 Specific'!I17 -> 148131 | J17: ='Portfolio--2024 Specific'!J17+'Portfolio--2025 Specific'!J17 -> 1050491 | K17: 15702593.65
E18: SF Electric Vehicle Chargers | G18: ='Portfolio--2024 Specific'!G18+'Portfolio--2025 Specific'!G18 -> 290.4 | H18: ='Portfolio--2024 Specific'!H18+'Portfolio--2025 Specific'!H18 -> 41268 | K18: =H18+J18 -> 41268
C19: 215 | D19: Single Family New Construction | G19: ='Portfolio--2024 Specific'!G19+'Portfolio--2025 Specific'!G19 -> 1002.256 | H19: ='Portfolio--2024 Specific'!H19+'Portfolio--2025 Specific'!H19 -> 2225041.4 | I19: ='Portfolio--2024 Specific'!I19+'Portfolio--2025 Specific'!I19 -> 1094.8 | J19: ='Portfolio--2024 Specific'!J19+'Portfolio--2025 Specific'!J19 -> 29600 | K19: 2254641.4
C20: 214 & 217 | D20: Moderate Income Residences | G20: ='Portfolio--2024 Specific'!G20+'Portfolio--2025 Specific'!G20 -> 0 | H20: ='Portfolio--2024 Specific'!H20+'Portfolio--2025 Specific'!H20 -> 175991.2 | I20: ='Portfolio--2024 Specific'!I20+'Portfolio--2025 Specific'!I20 -> 0 | J20: ='Portfolio--2024 Specific'!J20+'Portfolio--2025 Specific'!J20 -> 153100 | K20: 329091.2
C21: 217 | D21: Multifamily Retrofit | G21: ='Portfolio--2024 Specific'!G21+'Portfolio--2025 Specific'!G21 -> 11026.1144 | H21: ='Portfolio--2024 Specific'!H21+'Portfolio--2025 Specific'!H21 -> 13256298.96 | I21: ='Portfolio--2024 Specific'!I21+'Portfolio--2025 Specific'!I21 -> 30050.32 | J21: ='Portfolio--2024 Specific'!J21+'Portfolio--2025 Specific'!J21 -> 569784.46 | K21: 13826083.42
C22: 218 | D22: Multifamily New Construction | G22: ='Portfolio--2024 Specific'!G22+'Portfolio--2025 Specific'!G22 -> 8015 | H22: ='Portfolio--2024 Specific'!H22+'Portfolio--2025 Specific'!H22 -> 5150281.6 | I22: ='Portfolio--2024 Specific'!I22+'Portfolio--2025 Specific'!I22 -> 7200 | J22: ='Portfolio--2024 Specific'!J22+'Portfolio--2025 Specific'!J22 -> 72289 | K22: 5222570.6
D23: Total, Residential Programs | G23: =G7+G8+SUM(G19:G22) -> 158100.3666 | H23: =H7+H8+SUM(H19:H22) -> 87471327.74 | I23: =I7+I8+SUM(I19:I22) -> 4495558.009 | J23: =J7+J8+SUM(J19:J22) -> 32069681.34 | K23: 119541009.1
D25: Business Energy Management
C26: 250 | D26: Commercial / Industrial Retrofit | G26: ='Portfolio--2024 Specific'!G26+'Portfolio--2025 Specific'!G26 -> 86600 | H26: ='Portfolio--2024 Specific'!H26+'Portfolio--2025 Specific'!H26 -> 43331980.1 | I26: ='Portfolio--2024 Specific'!I26+'Portfolio--2025 Specific'!I26 -> 782000 | J26: ='Portfolio--2024 Specific'!J26+'Portfolio--2025 Specific'!J26 -> 5629956 | K26: =H26+J26 -> 48961936.1
C27: 251 | D27: Commercial/Industrial New Construction | G27: ='Portfolio--2024 Specific'!G27+'Portfolio--2025 Specific'!G27 -> 6000 | H27: ='Portfolio--2024 Specific'!H27+'Portfolio--2025 Specific'!H27 -> 3926419.8 | I27: ='Portfolio--2024 Specific'!I27+'Portfolio--2025 Specific'!I27 -> 40000 | J27: ='Portfolio--2024 Specific'!J27+'Portfolio--2025 Specific'!J27 -> 520989.1 | K27: 4447408.9
C28: 253 | D28: Commercial Strategic Energy Management | G28: ='Portfolio--2024 Specific'!G28+'Portfolio--2025 Specific'!G28 -> 29489 | H28: ='Portfolio--2024 Specific'!H28+'Portfolio--2025 Specific'!H28 -> 5662250.6 | I28: ='Portfolio--2024 Specific'!I28+'Portfolio--2025 Specific'!I28 -> 766004 | J28: ='Portfolio--2024 Specific'!J28+'Portfolio--2025 Specific'!J28 -> 1950342.4 | K28: 7612593
C29: E258 | D29: Large Power User - Self Directed Program - Subtotal | G29: =G30+G31 -> 11964.901 | H29: =H30+H31 -> 8726972.1 | K29: 8726972.1
C30: E258 | E30: 449 Customers | G30: ='Portfolio--2024 Specific'!G30+'Portfolio--2025 Specific'!G30 -> 8000 | H30: ='Portfolio--2024 Specific'!H30+'Portfolio--2025 Specific'!H30 -> 5733360.5 | K30: 5733360.5
C31: E258 | E31: Non-449 Customers | G31: ='Portfolio--2024 Specific'!G31+'Portfolio--2025 Specific'!G31 -> 3964.901 | H31: ='Portfolio--2024 Specific'!H31+'Portfolio--2025 Specific'!H31 -> 2993611.6 | K31: 2993611.6
C32: 262 | D32: Commercial Rebates | G32: ='Portfolio--2024 Specific'!G32+'Portfolio--2025 Specific'!G32 -> 62456.2667 | H32: ='Portfolio--2024 Specific'!H32+'Portfolio--2025 Specific'!H32 -> 32024095.53 | I32: ='Portfolio--2024 Specific'!I32+'Portfolio--2025 Specific'!I32 -> 955627.1 | J32: ='Portfolio--2024 Specific'!J32+'Portfolio--2025 Specific'!J32 -> 7052326.45 | K32: 39076421.98
D33: Subtotal, Business Programs | G33: =SUM(G26:G29)+SUM(G32:G32) -> 196510.1677 | H33: =SUM(H26:H29)+SUM(H32:H32) -> 93671718.13 | I33: =SUM(I26:I32) -> 2543631.1 | J33: =SUM(J26:J32) -> 15153613.95 | K33: 108825332.1
D35: Pilots With Uncertain Savings
C36: 249 | D36: Residential | G36: ='Portfolio--2024 Specific'!G36+'Portfolio--2025 Specific'!G36 -> 0 | H36: ='Portfolio--2024 Specific'!H36+'Portfolio--2025 Specific'!H36 -> 10920.4 | I36: ='Portfolio--2024 Specific'!I36+'Portfolio--2025 Specific'!I36 -> 0 | J36: ='Portfolio--2024 Specific'!J36+'Portfolio--2025 Specific'!J36 -> 0 | K36: =H36+J36 -> 10920.4
C37: 249 | D37: Commercial | G37: ='Portfolio--2024 Specific'!G37+'Portfolio--2025 Specific'!G37 -> 0 | H37: ='Portfolio--2024 Specific'!H37+'Portfolio--2025 Specific'!H37 -> 0 | I37: ='Portfolio--2024 Specific'!I37+'Portfolio--2025 Specific'!I37 -> 0 | J37: ='Portfolio--2024 Specific'!J37+'Portfolio--2025 Specific'!J37 -> 0 | K37: =H37+J37 -> 0
D38: Subtotal, Pilots | G38: =SUM(G36:G37) -> 0 | H38: =SUM(H36:H37) -> 10920.4 | I38: =SUM(I36:I37) -> 0 | J38: =SUM(J36:J37) -> 0 | K38: =H38+J38 -> 10920.4
D40: Regional Efficiency Programs
C41: E254 | D41: NW Energy Efficiency Alliance (NEEA) | G41: ='Portfolio--2024 Specific'!G41+'Portfolio--2025 Specific'!G41 -> 35698.422 | H41: ='Portfolio--2024 Specific'!H41+'Portfolio--2025 Specific'!H41 -> 9715288 | K41: =H41+J41 -> 9715288
D42: NEEA Natural Gas Market Transformation | I42: ='Portfolio--2024 Specific'!I42+'Portfolio--2025 Specific'!I42 -> 0 | J42: ='Portfolio--2024 Specific'!J42+'Portfolio--2025 Specific'!J42 -> 3180472 | K42: 3180472
C43: 219 | D43: Targeted DSM Pilot | G43: ='Portfolio--2024 Specific'!G43+'Portfolio--2025 Specific'!G43 -> 0 | H43: ='Portfolio--2024 Specific'!H43+'Portfolio--2025 Specific'!H43 -> 1167084 | I43: ='Portfolio--2024 Specific'!I43+'Portfolio--2025 Specific'!I43 -> 0 | J43: ='Portfolio--2024 Specific'!J43+'Portfolio--2025 Specific'!J43 -> 563902 | K43: =H43+J43 -> 1730986
C44: E292 | D44: Generation, Transmission and Distribution | G44: ='Portfolio--2024 Specific'!G44+'Portfolio--2025 Specific'!G44 -> 17756 | H44: ='Portfolio--2024 Specific'!H44+'Portfolio--2025 Specific'!H44 -> 0 | K44: 0
D45: Subtotal, Regional Programs | G45: =SUM(G41:G44) -> 53454.422 | H45: =SUM(H41:H44) -> 10882372 | I45: =SUM(I41:I44) -> 0 | J45: =SUM(J41:J44) -> 3744374 | K45: 14626746
K46: 0
D47: Energy Efficiency Portfolio Support
D48: Data and Systems Services | H48: ='Portfolio--2024 Specific'!H48+'Portfolio--2025 Specific'!H48 -> 2195253.6 | J48: ='Portfolio--2024 Specific'!J48+'Portfolio--2025 Specific'!J48 -> 349144.9 | K48: =H48+J48 -> 2544398.5
D49: Rebates Processing | H49: ='Portfolio--2024 Specific'!H49+'Portfolio--2025 Specific'!H49 -> 2300747 | J49: ='Portfolio--2024 Specific'!J49+'Portfolio--2025 Specific'!J49 -> 316433 | K49: 2617180
D50: Verification Team | H50: ='Portfolio--2024 Specific'!H50+'Portfolio--2025 Specific'!H50 -> 2285133.3 | J50: ='Portfolio--2024 Specific'!J50+'Portfolio--2025 Specific'!J50 -> 319536.7 | K50: 2604670
D51: Programs Support | H51: ='Portfolio--2024 Specific'!H51+'Portfolio--2025 Specific'!H51 -> 2582821.2 | J51: ='Portfolio--2024 Specific'!J51+'Portfolio--2025 Specific'!J51 -> 385938.8 | K51: 2968760
D52: Trade Ally Memberships | H52: ='Portfolio--2024 Specific'!H52+'Portfolio--2025 Specific'!H52 -> 348000 | J52: ='Portfolio--2024 Specific'!J52+'Portfolio--2025 Specific'!J52 -> 52000 | K52: 400000
D53: Trade Ally Network (revenue + cost) | H53: ='Portfolio--2024 Specific'!H53+'Portfolio--2025 Specific'!H53 -> -21220 | J53: ='Portfolio--2024 Specific'!J53+'Portfolio--2025 Specific'!J53 -> -1760 | K53: -22980
D54: Automated Benchmarking System | H54: ='Portfolio--2024 Specific'!H54+'Portfolio--2025 Specific'!H54 -> 3044692 | J54: ='Portfolio--2024 Specific'!J54+'Portfolio--2025 Specific'!J54 -> 1268092 | K54: 4312784
D55: Energy Advisors | H55: ='Portfolio--2024 Specific'!H55+'Portfolio--2025 Specific'!H55 -> 3192601.6 | J55: ='Portfolio--2024 Specific'!J55+'Portfolio--2025 Specific'!J55 -> 508781.2 | K55: 3701382.8
D56: Equity Support | H56: ='Portfolio--2024 Specific'!H56+'Portfolio--2025 Specific'!H56 -> 87270 | J56: ='Portfolio--2024 Specific'!J56+'Portfolio--2025 Specific'!J56 -> 87270 | K56: =H56+J56 -> 174540
D57: Energy Efficient Communities | H57: ='Portfolio--2024 Specific'!H57+'Portfolio--2025 Specific'!H57 -> 2626817 | J57: ='Portfolio--2024 Specific'!J57+'Portfolio--2025 Specific'!J57 -> 395049.5 | K57: 3021866.5
D58: Customer Digital Services | H58: ='Portfolio--2024 Specific'!H58+'Portfolio--2025 Specific'!H58 -> 3380658.02 | J58: ='Portfolio--2024 Specific'!J58+'Portfolio--2025 Specific'!J58 -> 1252898.54 | K58: =H58+J58 -> 4633556.56
D59: Market Integration | H59: ='Portfolio--2024 Specific'!H59+'Portfolio--2025 Specific'!H59 -> 4370753.5 | J59: ='Portfolio--2024 Specific'!J59+'Portfolio--2025 Specific'!J59 -> 652820.4 | K59: 5023573.9
D60: Events | H60: ='Portfolio--2024 Specific'!H60+'Portfolio--2025 Specific'!H60 -> 1059424.8 | J60: ='Portfolio--2024 Specific'!J60+'Portfolio--2025 Specific'!J60 -> 230333.2 | K60: 1289758
D61: Subtotal, Portfolio Support | H61: =SUM(H48:H60) -> 27452952.02 | J61: =SUM(J48:J60) -> 5816538.24 | K61: =H61+J61 -> 33269490.26
D63: Energy Efficiency Research & Compliance
D64: Conservation Supply Curves | H64: ='Portfolio--2024 Specific'!H64+'Portfolio--2025 Specific'!H64 -> 1160742.6 | J64: ='Portfolio--2024 Specific'!J64+'Portfolio--2025 Specific'!J64 -> 164648.4 | K64: =H64+J64 -> 1325391
D65: Strategic Planning | H65: ='Portfolio--2024 Specific'!H65+'Portfolio--2025 Specific'!H65 -> 1319970.7 | J65: ='Portfolio--2024 Specific'!J65+'Portfolio--2025 Specific'!J65 -> 220997.2 | K65: 1540967.9
D66: Market Research | H66: ='Portfolio--2024 Specific'!H66+'Portfolio--2025 Specific'!H66 -> 341050 | J66: ='Portfolio--2024 Specific'!J66+'Portfolio--2025 Specific'!J66 -> 68210 | K66: 409260
D67: Program Evaluation | H67: ='Portfolio--2024 Specific'!H67+'Portfolio--2025 Specific'!H67 -> 4128485.6 | J67: ='Portfolio--2024 Specific'!J67+'Portfolio--2025 Specific'!J67 -> 618154.2 | K67: 4746639.8
D68: Biennial Conservation Acquisition Review | H68: ='Portfolio--2024 Specific'!H68+'Portfolio--2025 Specific'!H68 -> 286000 | J68: ='Portfolio--2024 Specific'!J68+'Portfolio--2025 Specific'!J68 -> 14000 | K68: 300000
D69: Energy Efficient Technology Evaluation | H69: ='Portfolio--2024 Specific'!H69+'Portfolio--2025 Specific'!H69 -> 150000 | J69: ='Portfolio--2024 Specific'!J69+'Portfolio--2025 Specific'!J69 -> 0 | K69: =H69+J69 -> 150000
D70: Subtotal, Research & Compliance | H70: =SUM(H64:H69) -> 7386248.9 | J70: =SUM(J64:J69) -> 1086009.8 | K70: 8472258.7
C72: Total Savings, Efficiency Programs Included in CE Calculations | G72: =G23+G33+G38+G45 -> 408064.9563 | H72: =H23+H33+H38+H45+H61+H70 -> 226875539.2 | I72: =I23+I33+I38+I45 -> 7039189.109 | J72: =J23+J33+J38+J45+J61+J70 -> 57870217.33 | K72: =H72+J72 -> 284745756.5
D74: Other Customer Programs
C75: E150 | D75: Net Metering | H75: ='Portfolio--2024 Specific'!H75+'Portfolio--2025 Specific'!H75 -> 8440235 | K75: =H75+J75 -> 8440235
C76: 249A | D76: Demand Response Pilot | H76: ='Portfolio--2024 Specific'!H76+'Portfolio--2025 Specific'!H76 -> 740000 | J76: ='Portfolio--2024 Specific'!J76+'Portfolio--2025 Specific'!J76 -> 360000 | K76: =H76+J76 -> 1100000
C77: 272, 271 | D77: Demand Response Administration | H77: ='Portfolio--2024 Specific'!H77+'Portfolio--2025 Specific'!H77 -> 10231690 | K77: =H77+J77 -> 10231690
D78: Subtotal, Other Energy Efficiency Programs | H78: =SUM(H75:H77) -> 19411925 | J78: =SUM(J75:J76) -> 360000 | K78: =H78+J78 -> 19771925
D82: TOTAL UTILITY CONSERVATION PORTFOLIO | G82: =G72 -> 408064.9563 | H82: =H72+H78 -> 246287464.2 | I82: =I72 -> 7039189.109 | J82: =J72+J78 -> 58230217.33 | K82: =H82+J82 -> 304517681.5
D83: Savings and Budgets | G83: =G82/8760 -> 46.58275757
D85: EIA Target | G85: ='Building the 2-yr elec target'!I13 -> 304400 | I85: Electric Only | J85: CPA Guidance
G86: =G85/8760 -> 34.74885845
D88: EIA and Natural Gas Penalty Threshold | G88: ='Building the 2-yr elec target'!I16 -> 268701.578 | I88: ='Building the 2-yr gas target'!G18 -> 6090000 | J88: EIA Target - NEEA
G89: =G88/8760 -> 30.67369612
D91: Two-Year Decoupling Threshold | G91: ='Building the 2-yr elec target'!I17 -> 15220 | H91: 5% of IRP Total Biennial Potential of | I91: ='Building the 2-yr gas target'!G19 -> 304500 | J91: 5% of CPA Guidance
G92: =G91/8760 -> 1.737442922 | H92: =G85 -> 304400
E95: Blue cells = use for 10% "info-only" calculation: | H95: =(H38+H61)/H72 -> 0.1210525935 | J95: =(J38+J61)/J72 -> 0.1005100466
F96: Add up all blue cells and divide by "Total, Efficiency Programs Included in CE Calculations" line.
F97: HER program costs excluded from "info-only" calculation because savings will be measured.
E99: Purple cells = use to indicate a reasonable amt. spent on EM&V (condition (6)(c)): | H99: =(H48+H50+SUM(H67:H68))/(H23+H33) -> 0.04910413457 | J99: =(J48+J50+SUM(J67:J68))/(J23+J33) -> 0.0275464851
E100: EM&V Budget (WAC 480-109-120(1)(b)(vi)(B)) | H100: =(H48+H50+SUM(H67:H68)) -> 8894872.5 | J100: =(J48+J50+SUM(J67:J68)) -> 1300835.8
F101: (Line bl) Add up the sum of [Data & Systems Services + Program Evaluation + BECAR + Verification] purple cells and divide by the [Residential + Business] purple cells.
F102: (Line bn) Add up the sum of [Data & Systems Services + Program Evaluation + BECAR + Verification] purple cells

Sheet Portfolio--2024 Specific
G1: BCP 2024
F2: PSE Conservation Rider Savings Goals and Budgets
D3: =NOW() -> 2023-11-01T15:35:45.450
C4: Schedule Nos. (Unless otherwise noted, applies to both electric and gas) | D4: Program Name | G4: MWh Savings | H4: Electric Rider Budget | I4: Therm Savings | J4: Gas Rider Budget | K4: Total Rider Budget
D5: (All indented program or activity names are color-coded and comprise the totals of the above program or activity grouping.)
D6: Residential Energy Management
C7: 201 | D7: Low Income Weatherization | G7: ='2024 Sector View Electric'!S8/1000 -> 2153.7557 | H7: ='2024 Sector View Electric'!R8 -> 10761229.5 | I7: ='2024 Sector View Gas'!S8 -> 21918 | J7: ='2024 Sector View Gas'!R8 -> 1584340.85 | K7: =H7+J7 -> 12345570.35
C8: 214 | D8: Single Family Existing Subtotal | G8: =SUM(G9:G18) -> 66624.01017 | H8: =SUM(H9:H18) -> 22524649.68 | I8: =SUM(I9:I17) -> 2219642.544 | J8: =SUM(J9:J17) -> 13965385.99 | K8: =SUM(K9:K17) -> 36469705.67
E9: Residential lighting | G9: ='2024 Sector View Electric'!S15/1000 -> 140.173 | H9: ='2024 Sector View Electric'!R15 -> 166272.3 | K9: =H9+J9 -> 166272.3
E10: Space heat | G10: ='2024 Sector View Electric'!S12/1000 -> 8586.907046 | H10: ='2024 Sector View Electric'!R12 -> 6563899.5 | I10: ='2024 Sector View Gas'!S11 -> 210684.6 | J10: ='2024 Sector View Gas'!R11 -> 1567939.2 | K10: 8131838.7
E11: Water heat | G11: ='2024 Sector View Electric'!S10/1000 -> 712.0770558 | H11: ='2024 Sector View Electric'!R10 -> 837014.7 | I11: ='2024 Sector View Gas'!S9 -> 61231.1 | J11: ='2024 Sector View Gas'!R9 -> 662890.5 | K11: 1499905.2
E12: Home Energy Assessment | G12: ='2024 Sector View Electric'!S9/1000 -> 0 | H12: ='2024 Sector View Electric'!R9 -> 0 | K12: 0
E13: Home Appliances | G13: ='2024 Sector View Electric'!S14/1000 -> 688.5767 | H13: ='2024 Sector View Electric'!R14 -> 879359.5 | I13: ='2024 Sector View Gas'!S13 -> 4836 | J13: ='2024 Sector View Gas'!R13 -> 0 | K13: 879359.5
E14: Smart Thermostats | G14: ='2024 Sector View Electric'!S17/1000 -> 966.804435 | H14: ='2024 Sector View Electric'!R17 -> 999110.53 | I14: ='2024 Sector View Gas'!S14 -> 291510.6 | J14: ='2024 Sector View Gas'!R14 -> 2172016.2 | K14: 3171126.73
E15: Weatherization | G15: ='2024 Sector View Electric'!S11/1000 -> 1671.376932 | H15: ='2024 Sector View Electric'!R11 -> 3564609.9 | I15: ='2024 Sector View Gas'!S10 -> 334873.1343 | J15: ='2024 Sector View Gas'!R10 -> 7117960.5 | K15: 10682570.4
E16: Home Energy Reports | G16: ='2024 Sector View Electric'!S16/1000 -> 39804 | H16: ='2024 Sector View Electric'!R16 -> 2341880.7 | I16: ='2024 Sector View Gas'!S15 -> 1244780.11 | J16: ='2024 Sector View Gas'!R15 -> 1934234.59 | K16: 4276115.29
E17: Midstream HVAC and Water Heat | G17: ='2024 Sector View Electric'!S13/1000 -> 13908.895 | H17: ='2024 Sector View Electric'!R13 -> 7152172.55 | I17: ='2024 Sector View Gas'!S12 -> 71727 | J17: ='2024 Sector View Gas'!R12 -> 510345 | K17: 7662517.55
E18: SF Electric Vehicle Chargers | G18: ='2024 Sector View Electric'!S18/1000 -> 145.2 | H18: ='2024 Sector View Electric'!R18 -> 20330 | K18: 20330
C19: 215 | D19: Single Family New Construction | G19: ='2024 Sector View Electric'!S19/1000+'2024 Sector View Electric'!S20/1000 -> 501.128 | H19: ='2024 Sector View Electric'!R19+'2024 Sector View Electric'!R20 -> 1111052 | I19: ='2024 Sector View Gas'!S16+'2024 Sector View Gas'!S17 -> 547.4 | J19: =+'2024 Sector View Gas'!R16+'2024 Sector View Gas'!R17 -> 14800 | K19: 1125852
C20: 214 & 217 | D20: Moderate Income Residences | G20: ='2024 Sector View Electric'!S21 -> 0 | H20: ='2024 Sector View Electric'!R21 -> 101487.5 | I20: ='2024 Sector View Gas'!S18 -> 0 | J20: ='2024 Sector View Gas'!R18 -> 75866 | K20: 177353.5
C21: 217 | D21: Multifamily Retrofit | G21: ='2024 Sector View Electric'!S22/1000 -> 5421.1572 | H21: ='2024 Sector View Electric'!R22 -> 6579586.78 | I21: ='2024 Sector View Gas'!S19 -> 14676.16 | J21: ='2024 Sector View Gas'!R19 -> 279950.28 | K21: 6859537.06
C22: 218 | D22: Multifamily New Construction | G22: ='2024 Sector View Electric'!S23/1000 -> 4015 | H22: ='2024 Sector View Electric'!R23 -> 2543662 | I22: ='2024 Sector View Gas'!S20 -> 4000 | J22: ='2024 Sector View Gas'!R20 -> 38789 | K22: 2582451
D23: Total, Residential Programs | G23: =G7+G8+SUM(G19:G22) -> 78715.05107 | H23: =H7+H8+SUM(H19:H22) -> 43621667.46 | I23: =I7+I8+SUM(I19:I22) -> 2260784.104 | J23: =J7+J8+SUM(J19:J22) -> 15959132.12 | K23: =K7+K8+SUM(K19:K22) -> 59560469.58
D25: Business Energy Management
C26: 250 | D26: Commercial / Industrial Retrofit | G26: =('2024 Sector View Electric'!S28/1000) -> 44100 | H26: ='2024 Sector View Electric'!R28 -> 21655553.5 | I26: ='2024 Sector View Gas'!S26 -> 393000 | J26: ='2024 Sector View Gas'!R26 -> 2796140.4 | K26: =H26+J26 -> 24451693.9
C27: 251 | D27: Commercial/Industrial New Construction | G27: ='2024 Sector View Electric'!S35/1000 -> 3000 | H27: ='2024 Sector View Electric'!R35 -> 1950567 | I27: ='2024 Sector View Gas'!S30 -> 20000 | J27: ='2024 Sector View Gas'!R30 -> 256995.3 | K27: =H27+J27 -> 2207562.3
C28: 253 | D28: Commercial Strategic Energy Management | G28: ='2024 Sector View Electric'!S36/1000 -> 14744.5 | H28: ='2024 Sector View Electric'!R36 -> 2801954.9 | I28: ='2024 Sector View Gas'!S31 -> 382502 | J28: ='2024 Sector View Gas'!R31 -> 961255.5 | K28: =H28+J28 -> 3763210.4
C29: E258 | D29: Large Power User - Self Directed Program Subtotal | G29: =G30+G31 -> 2991.225 | H29: =H30+H31 -> 2434623.4 | K29: =H29+J29 -> 2434623.4
C30: E258 | E30: 449 Customers | G30: ='2024 Sector View Electric'!S40/1000 -> 2000 | H30: ='2024 Sector View Electric'!R40 -> 1338177.5 | K30: 1338177.5
C31: E258 | E31: Non-449 Customers | G31: ='2024 Sector View Electric'!S41/1000 -> 991.225 | H31: ='2024 Sector View Electric'!R41 -> 1096445.9 | K31: 1096445.9
C32: 262 | D32: Commercial Rebates | G32: ='2024 Sector View Electric'!S42/1000 -> 31300.73835 | H32: ='2024 Sector View Electric'!R42 -> 16038384.19 | I32: ='2024 Sector View Gas'!S34 -> 522698.55 | J32: ='2024 Sector View Gas'!R34 -> 3810211.1 | K32: 19848595.29
D33: Subtotal, Business Programs | G33: =SUM(G26:G29)+SUM(G32:G32) -> 96136.46335 | H33: =SUM(H26:H29)+SUM(H32:H32) -> 44881082.99 | I33: =SUM(I26:I32) -> 1318200.55 | J33: =SUM(J26:J32) -> 7824602.3 | K33: =H33+J33 -> 52705685.29
D35: Pilots With Uncertain Savings
C36: 249 | D36: Residential | G36: ='2024 Sector View Electric'!S54/1000 -> 0 | H36: ='2024 Sector View Electric'!R54 -> 10920.4 | I36: ='2024 Sector View Gas'!S46 -> 0 | J36: ='2024 Sector View Gas'!R46 -> 0 | K36: =H36+J36 -> 10920.4
C37: 249 | D37: Commercial | G37: ='2024 Sector View Electric'!S56/1000 -> 0 | H37: ='2024 Sector View Electric'!R56 -> 0 | I37: ='2024 Sector View Gas'!S49 -> 0 | J37: ='2024 Sector View Gas'!R49 -> 0 | K37: =H37+J37 -> 0
D38: Subtotal, Pilots | G38: =SUM(G36:G37) -> 0 | H38: =SUM(H36:H37) -> 10920.4 | I38: =SUM(I36:I37) -> 0 | J38: =SUM(J36:J37) -> 0 | K38: =H38+J38 -> 10920.4
D40: Regional Efficiency Programs
C41: E254 | D41: NW Energy Efficiency Alliance (NEEA) | G41: ='2024 Sector View Electric'!S63/1000 -> 16721.673 | H41: ='2024 Sector View Electric'!R63 -> 4916640 | K41: =H41+J41 -> 4916640
D42: NEEA Natural Gas Market Transformation | I42: ='2024 Sector View Gas'!S57 -> 0 | J42: ='2024 Sector View Gas'!R57 -> 1590236 | K42: =H42+J42 -> 1590236
C43: 219 | D43: Targeted DSM Pilot | G43: ='2024 Sector View Electric'!S64/1000 -> 0 | H43: ='2024 Sector View Electric'!R64 -> 568966.8 | I43: ='2024 Sector View Gas'!S56 -> 0 | J43: ='2024 Sector View Gas'!R56 -> 286552.8 | K43: =H43+J43 -> 855519.6
C44: E292 | D44: Generation, Transmission and Distribution | G44: ='2024 Sector View Electric'!S65/1000 -> 8878 | H44: ='2024 Sector View Electric'!R65 -> 0 | K44: =H44+J44 -> 0
D45: Subtotal, Regional Programs | G45: =SUM(G41:G44) -> 25599.673 | H45: =SUM(H41:H44) -> 5485606.8 | I45: =SUM(I41:I44) -> 0 | J45: =SUM(J41:J44) -> 1876788.8 | K45: =H45+J45 -> 7362395.6
D47: Energy Efficiency Portfolio Support
D48: Data and Systems Services | H48: ='2024 Sector View Electric'!R71 -> 1085559.9 | J48: ='2024 Sector View Gas'!R63 -> 172584.1 | K48: =H48+J48 -> 1258144
D49: Rebates Processing | H49: ='2024 Sector View Electric'!R72 -> 1136385.7 | J49: ='2024 Sector View Gas'!R64 -> 156149.3 | K49: 1292535
D50: Verification Team | H50: ='2024 Sector View Electric'!R73 -> 1127835 | J50: ='2024 Sector View Gas'!R65 -> 157590 | K50: 1285425
D51: Programs Support | H51: ='2024 Sector View Electric'!R74 -> 1272897 | J51: ='2024 Sector View Gas'!R66 -> 190203 | K51: 1463100
D52: Trade Ally Memberships | H52: ='2024 Sector View Electric'!R75 -> 174000 | J52: ='2024 Sector View Gas'!R67 -> 26000 | K52: 200000
D53: Trade Ally Network (revenue + cost) | H53: ='2024 Sector View Electric'!R76 -> -19490 | J53: ='2024 Sector View Gas'!R68 -> 510 | K53: -18980
D54: Automated Benchmarking System | H54: ='2024 Sector View Electric'!R77 -> 644227.5 | J54: ='2024 Sector View Gas'!R69 -> 507227.5 | K54: 1151455
D55: Energy Advisors | H55: ='2024 Sector View Electric'!R78 -> 1592662.9 | J55: ='2024 Sector View Gas'!R70 -> 253111.5 | K55: 1845774.4
D56: Equity Support | H56: ='2024 Sector View Electric'!R79 -> 43635 | J56: ='2024 Sector View Gas'!R71 -> 43635 | K56: =H56+J56 -> 87270
D57: Energy Efficient Communities | H57: ='2024 Sector View Electric'!R80 -> 1295482 | J57: ='2024 Sector View Gas'!R72 -> 194793.5 | K57: 1490275.5
D58: Customer Digital Services | H58: ='2024 Sector View Electric'!R81 -> 1747923.31 | J58: ='2024 Sector View Gas'!R73 -> 684288.67 | K58: =H58+J58 -> 2432211.98
D59: Market Integration | H59: ='2024 Sector View Electric'!R86 -> 2167840.7 | J59: ='2024 Sector View Gas'!R78 -> 323792 | K59: 2491632.7
D60: Events | H60: ='2024 Sector View Electric'!R87 -> 521924.3 | J60: ='2024 Sector View Gas'!R79 -> 113473.7 | K60: 635398
D61: Subtotal, Portfolio Support | H61: =SUM(H48:H60) -> 12790883.31 | J61: =SUM(J48:J60) -> 2823358.27 | K61: =H61+J61 -> 15614241.58
D63: Energy Efficiency Research & Compliance
D64: Conservation Supply Curves | H64: ='2024 Sector View Electric'!R93 -> 281780 | J64: ='2024 Sector View Gas'!R85 -> 37429 | K64: =H64+J64 -> 319209
D65: Strategic Planning | H65: ='2024 Sector View Electric'!R94 -> 650309.6 | J65: ='2024 Sector View Gas'!R86 -> 108877.9 | K65: 759187.5
D66: Market Research | H66: ='2024 Sector View Electric'!R95 -> 167960 | J66: ='2024 Sector View Gas'!R87 -> 33592 | K66: 201552
D67: Program Evaluation | H67: ='2024 Sector View Electric'!R96 -> 2058160.9 | J67: ='2024 Sector View Gas'!R88 -> 308163.2 | K67: 2366324.1
D68: Biennial Conservation Acquisition Review | H68: ='2024 Sector View Electric'!R97 -> 143000 | J68: ='2024 Sector View Gas'!R89 -> 7000 | K68: 150000
D69: Energy Efficient Technology Evaluation | H69: ='2024 Sector View Electric'!R98 -> 75000 | J69: ='2024 Sector View Gas'!R90 -> 0 | K69: =H69+J69 -> 75000
D70: Subtotal, Research & Compliance | H70: =SUM(H64:H69) -> 3376210.5 | J70: =SUM(J64:J69) -> 495062.1 | K70: =H70+J70 -> 3871272.6
C72: Total Savings, Efficiency Programs Included in CE Calculations | G72: =G23+G33+G38+G45 -> 200451.1874 | H72: =H23+H33+H38+H45+H61+H70 -> 110166371.5 | I72: =I23+I33+I38+I45 -> 3578984.654 | J72: =J23+J33+J38+J45+J61+J70 -> 28978943.59 | K72: =H72+J72 -> 139145315.1
D74: Other Customer Programs
C75: E150 | D75: Net Metering | H75: ='2024 Sector View Electric'!R104 -> 4094275 | K75: =H75+J75 -> 4094275
C76: 249A | D76: Demand Response Pilot | H76: ='2024 Sector View Electric'!R105 -> 320000 | J76: ='2024 Sector View Gas'!R96 -> 180000 | K76: =H76+J76 -> 500000
C77: 272, 271 | D77: Demand Response Administration | H77: ='2024 Sector View Electric'!R106 -> 4930745 | K77: =H77+J77 -> 4930745
D78: Subtotal, Other Energy Efficiency Programs | H78: =SUM(H75:H77) -> 9345020 | J78: =SUM(J75:J76) -> 180000 | K78: =H78+J78 -> 9525020
D82: TOTAL UTILITY CONSERVATION PORTFOLIO | G82: =G72 -> 200451.1874 | H82: =H72+H78 -> 119511391.5 | I82: =I72 -> 3578984.654 | J82: =J72+J78 -> 29158943.59 | K82: =H82+J82 -> 148670335.1
D83: Savings and Budgets | G83: =G82/8760 -> 22.88255564
E85: Blue cells = use for 10% "info-only" calculation: | H85: =(H38+H61)/H72 -> 0.1162042785 | J85: =(J38+J61)/J72 -> 0.09742792249
F86: Add up all blue cells and divide by "Total, Efficiency Programs Included in CE Calculations" line.
F87: HER program costs excluded from "info-only" calculation because savings will be measured.
E89: Purple cells = use to indicate a reasonable amt. spent on EM&V (condition (6)(c)): | H89: =(H48+H50+SUM(H67:H68))/(H23+H33) -> 0.04988043623 | J89: =(J48+J50+SUM(J67:J68))/(J23+J33) -> 0.02713355643
E90: EM&V Budget (WAC 480-109-120(1)(b)(vi)(B)) | H90: =(H48+H50+SUM(H67:H68)) -> 4414555.8 | J90: =(J48+J50+SUM(J67:J68)) -> 645337.3
F91: (Line bh) Add up the sum of [Data & Systems Services + Program Evaluation + BECAR + Verification] purple cells and divide by the [Residential + Business] purple cells.
F92: (Line bi) Add up the sum of [Data & Systems Services + Program Evaluation + BECAR + Verification] purple cells

Sheet Portfolio--2025 Specific
G1: BCP 2025
F2: PSE Conservation Rider Savings Goals and Budgets
D3: =NOW() -> 2023-11-01T15:35:45.450
C4: Schedule Nos. (Unless otherwise noted, applies to both electric and gas) | D4: Program Name | G4: MWh Savings | H4: Electric Rider Budget | I4: Therm Savings | J4: Gas Rider Budget | K4: Total Rider Budget
D5: (All indented program or activity names are color-coded and comprise the totals of the above program or activity grouping.)
D6: Residential Energy Management
C7: 201 | D7: Low Income Weatherization | G7: ='2025 Sector View Elect'!S8/1000 -> 2153.7557 | H7: ='2025 Sector View Elect'!R8 -> 10770908.1 | I7: ='2025 Sector View Gas'!S8 -> 21918 | J7: ='2025 Sector View Gas'!R8 -> 1586031.85 | K7: =H7+J7 -> 12356939.95
C8: 214 | D8: Single Family Existing Subtotal | G8: =SUM(G9:G18) -> 67125.47466 | H8: =SUM(H9:H18) -> 22606927.3 | I8: =SUM(I9:I17) -> 2193734.344 | J8: =SUM(J9:J17) -> 14109149.19 | K8: =H8+J8 -> 36716076.49
E9: Residential lighting | G9: ='2025 Sector View Elect'!S15/1000 -> 0 | H9: ='2025 Sector View Elect'!R15 -> 0 | K9: 0
E10: Space heat | G10: ='2025 Sector View Elect'!S12/1000 -> 8628.361 | H10: ='2025 Sector View Elect'!R12 -> 6618626.4 | I10: ='2025 Sector View Gas'!S11 -> 209522.8 | J10: ='2025 Sector View Gas'!R11 -> 1642716 | K10: 8261342.4
E11: Water heat | G11: ='2025 Sector View Elect'!S10/1000 -> 722.42403 | H11: ='2025 Sector View Elect'!R10 -> 849042.3 | I11: ='2025 Sector View Gas'!S9 -> 61231.1 | J11: ='2025 Sector View Gas'!R9 -> 666299.1 | K11: 1515341.4
E12: Home Energy Assessment | G12: ='2025 Sector View Elect'!S9/1000 -> 0 | H12: ='2025 Sector View Elect'!R9 -> 0 | K12: =H12+J12 -> 0
E13: Home Appliances | G13: ='2025 Sector View Elect'!S14/1000 -> 688.5767 | H13: ='2025 Sector View Elect'!R14 -> 882551.5 | I13: ='2025 Sector View Gas'!S13 -> 4836 | J13: ='2025 Sector View Gas'!R13 -> 0 | K13: 882551.5
E14: Smart Thermostats | G14: ='2025 Sector View Elect'!S17/1000 -> 861.196 | H14: ='2025 Sector View Elect'!R17 -> 818089 | I14: ='2025 Sector View Gas'!S14 -> 262087.2 | J14: ='2025 Sector View Gas'!R14 -> 2184033.6 | K14: 3002122.6
E15: Weatherization | G15: ='2025 Sector View Elect'!S11/1000 -> 1671.376932 | H15: ='2025 Sector View Elect'!R11 -> 3572677.3 | I15: ='2025 Sector View Gas'!S10 -> 334873.1343 | J15: ='2025 Sector View Gas'!R10 -> 7138527.9 | K15: 10711205.2
E16: Home Energy Reports | G16: ='2025 Sector View Elect'!S16/1000 -> 39804 | H16: ='2025 Sector View Elect'!R16 -> 2345072.7 | I16: ='2025 Sector View Gas'!S15 -> 1244780.11 | J16: ='2025 Sector View Gas'!R15 -> 1937426.59 | K16: 4282499.29
E17: Midstream HVAC and Water Heat | G17: ='2025 Sector View Elect'!S13/1000 -> 14604.34 | H17: ='2025 Sector View Elect'!R13 -> 7499930.1 | I17: ='2025 Sector View Gas'!S12 -> 76404 | J17: ='2025 Sector View Gas'!R12 -> 540146 | K17: 8040076.1
E18: SF Electric Vehicle Chargers | G18: ='2025 Sector View Elect'!S18/1000 -> 145.2 | H18: ='2025 Sector View Elect'!R18 -> 20938 | K18: 20938
C19: 215 | D19: Single Family New Construction | G19: ='2025 Sector View Elect'!S19/1000+'2025 Sector View Elect'!S20/1000 -> 501.128 | H19: ='2025 Sector View Elect'!R19+'2025 Sector View Elect'!R20 -> 1113989.4 | I19: =+'2025 Sector View Gas'!S16+'2025 Sector View Gas'!S17 -> 547.4 | J19: ='2025 Sector View Gas'!R16+'2025 Sector View Gas'!R17 -> 14800 | K19: 1128789.4
C20: 214 & 217 | D20: Moderate Income Residences | G20: ='2025 Sector View Elect'!S21 -> 0 | H20: ='2025 Sector View Elect'!R21 -> 74503.7 | I20: ='2025 Sector View Gas'!S18 -> 0 | J20: ='2025 Sector View Gas'!R18 -> 77234 | K20: 151737.7
C21: 217 | D21: Multifamily Retrofit | G21: =('2025 Sector View Elect'!S22/1000) -> 5604.9572 | H21: ='2025 Sector View Elect'!R22 -> 6676712.18 | I21: ='2025 Sector View Gas'!S19 -> 15374.16 | J21: ='2025 Sector View Gas'!R19 -> 289834.18 | K21: 6966546.36
C22: 218 | D22: Multifamily New Construction | G22: ='2025 Sector View Elect'!S23/1000 -> 4000 | H22: ='2025 Sector View Elect'!R23 -> 2606619.6 | I22: ='2025 Sector View Gas'!S20 -> 3200 | J22: ='2025 Sector View Gas'!R20 -> 33500 | K22: 2640119.6
D23: Total, Residential Programs | G23: =G7+G8+SUM(G19:G22) -> 79385.31556 | H23: =H7+H8+SUM(H19:H22) -> 43849660.28 | I23: =I7+I8+SUM(I19:I22) -> 2234773.904 | J23: =J7+J8+SUM(J19:J22) -> 16110549.22 | K23: =H23+J23 -> 59960209.5
D25: Business Energy Management
C26: 250 | D26: Commercial / Industrial Retrofit | G26: =('2025 Sector View Elect'!S28/1000) -> 42500 | H26: ='2025 Sector View Elect'!R28 -> 21676426.6 | I26: ='2025 Sector View Gas'!S26 -> 389000 | J26: ='2025 Sector View Gas'!R26 -> 2833815.6 | K26: =H26+J26 -> 24510242.2
C27: 251 | D27: Commercial/Industrial New Construction | G27: ='2025 Sector View Elect'!S35/1000 -> 3000 | H27: ='2025 Sector View Elect'!R35 -> 1975852.8 | I27: ='2025 Sector View Gas'!S30 -> 20000 | J27: ='2025 Sector View Gas'!R30 -> 263993.8 | K27: 2239846.6
C28: 253 | D28: Commercial Strategic Energy Management | G28: ='2025 Sector View Elect'!S36/1000 -> 14744.5 | H28: ='2025 Sector View Elect'!R36 -> 2860295.7 | I28: ='2025 Sector View Gas'!S31 -> 383502 | J28: ='2025 Sector View Gas'!R31 -> 989086.9 | K28: 3849382.6
C29: E258 | D29: Large Power User - Self Directed Program Subtotal | G29: =G30+G31 -> 8973.676 | H29: =H30+H31 -> 6292348.7 | K29: 6292348.7
C30: E258 | E30: 449 Customers | G30: ='2025 Sector View Elect'!S40/1000 -> 6000 | H30: ='2025 Sector View Elect'!R40 -> 4395183 | K30: 4395183
C31: E258 | E31: Non-449 Customers | G31: ='2025 Sector View Elect'!S41/1000 -> 2973.676 | H31: ='2025 Sector View Elect'!R41 -> 1897165.7 | K31: 1897165.7
C32: 262 | D32: Commercial Rebates | G32: ='2025 Sector View Elect'!S42/1000 -> 31155.52835 | H32: ='2025 Sector View Elect'!R42 -> 15985711.34 | I32: ='2025 Sector View Gas'!S34 -> 432928.55 | J32: ='2025 Sector View Gas'!R34 -> 3242115.35 | K32: 19227826.69
D33: Subtotal, Business Programs | G33: =SUM(G26:G29)+SUM(G32:G32) -> 100373.7044 | H33: =SUM(H26:H29)+SUM(H32:H32) -> 48790635.14 | I33: =SUM(I26:I32) -> 1225430.55 | J33: =SUM(J26:J32) -> 7329011.65 | K33: 56119646.79
D35: Pilots With Uncertain Savings
C36: 249 | D36: Residential | G36: ='2025 Sector View Elect'!S54/1000 -> 0 | H36: ='2025 Sector View Elect'!R54 -> 0 | I36: ='2025 Sector View Gas'!S46 -> 0 | J36: ='2025 Sector View Gas'!R46 -> 0 | K36: =H36+J36 -> 0
C37: 249 | D37: Commercial | G37: ='2025 Sector View Elect'!S56/1000 -> 0 | H37: ='2025 Sector View Elect'!R56 -> 0 | I37: ='2025 Sector View Gas'!S49 -> 0 | J37: ='2025 Sector View Gas'!R49 -> 0 | K37: =H37+J37 -> 0
D38: Subtotal, Pilots | G38: =SUM(G36:G37) -> 0 | H38: =SUM(H36:H37) -> 0 | I38: =SUM(I36:I37) -> 0 | J38: =SUM(J36:J37) -> 0 | K38: =H38+J38 -> 0
D40: Regional Efficiency Programs
C41: E254 | D41: NW Energy Efficiency Alliance (NEEA) | G41: ='2025 Sector View Elect'!S63/1000 -> 18976.749 | H41: ='2025 Sector View Elect'!R63 -> 4798648 | K41: =H41+J41 -> 4798648
D42: NEEA Natural Gas Market Transformation | I42: ='2025 Sector View Gas'!S57 -> 0 | J42: ='2025 Sector View Gas'!R57 -> 1590236 | K42: =H42+J42 -> 1590236
C43: 219 | D43: Targeted DSM Pilot | G43: ='2025 Sector View Elect'!S64/1000 -> 0 | H43: ='2025 Sector View Elect'!R64 -> 598117.2 | I43: ='2025 Sector View Gas'!S56 -> 0 | J43: ='2025 Sector View Gas'!R56 -> 277349.2 | K43: =H43+J43 -> 875466.4
C44: E292 | D44: Generation, Transmission and Distribution | G44: ='2025 Sector View Elect'!S65/1000 -> 8878 | H44: ='2025 Sector View Elect'!R65 -> 0 | K44: =H44+J44 -> 0
D45: Subtotal, Regional Programs | G45: =SUM(G41:G44) -> 27854.749 | H45: =SUM(H41:H44) -> 5396765.2 | I45: =SUM(I41:I44) -> 0 | J45: =SUM(J41:J44) -> 1867585.2 | K45: =H45+J45 -> 7264350.4
D47: Energy Efficiency Portfolio Support
D48: Data and Systems Services | H48: ='2025 Sector View Elect'!R71 -> 1109693.7 | J48: ='2025 Sector View Gas'!R63 -> 176560.8 | K48: =H48+J48 -> 1286254.5
D49: Rebates Processing | H49: ='2025 Sector View Elect'!R72 -> 1164361.3 | J49: ='2025 Sector View Gas'!R64 -> 160283.7 | K49: 1324645
D50: Verification Team | H50: ='2025 Sector View Elect'!R73 -> 1157298.3 | J50: ='2025 Sector View Gas'!R65 -> 161946.7 | K50: 1319245
D51: Programs Support | H51: ='2025 Sector View Elect'!R74 -> 1309924.2 | J51: ='2025 Sector View Gas'!R66 -> 195735.8 | K51: 1505660
D52: Trade Ally Memberships | H52: ='2025 Sector View Elect'!R75 -> 174000 | J52: ='2025 Sector View Gas'!R67 -> 26000 | K52: 200000
D53: Trade Ally Network (revenue + cost) | H53: ='2025 Sector View Elect'!R76 -> -1730 | J53: ='2025 Sector View Gas'!R68 -> -2270 | K53: -4000
D54: Automated Benchmarking System | H54: ='2025 Sector View Elect'!R77 -> 2400464.5 | J54: ='2025 Sector View Gas'!R69 -> 760864.5 | K54: 3161329
D55: Energy Advisors | H55: ='2025 Sector View Elect'!R78 -> 1599938.7 | J55: ='2025 Sector View Gas'!R70 -> 255669.7 | K55: 1855608.4
D56: Equity Support | H56: ='2025 Sector View Elect'!R79 -> 43635 | J56: ='2025 Sector View Gas'!R71 -> 43635 | K56: =H56+J56 -> 87270
D57: Energy Efficient Communities | H57: ='2025 Sector View Elect'!R80 -> 1331335 | J57: ='2025 Sector View Gas'!R72 -> 200256 | K57: 1531591
D58: Customer Digital Services | H58: ='2025 Sector View Elect'!R81 -> 1632734.71 | J58: ='2025 Sector View Gas'!R73 -> 568609.87 | K58: =H58+J58 -> 2201344.58
D59: Market Integration | H59: ='2025 Sector View Elect'!R86 -> 2202912.8 | J59: ='2025 Sector View Gas'!R78 -> 329028.4 | K59: 2531941.2
D60: Events | H60: ='2025 Sector View Elect'!R87 -> 537500.5 | J60: ='2025 Sector View Gas'!R79 -> 116859.5 | K60: 654360
D61: Subtotal, Portfolio Support | H61: =SUM(H48:H60) -> 14662068.71 | J61: =SUM(J48:J60) -> 2993179.97 | K61: =H61+J61 -> 17655248.68
D63: Energy Efficiency Research & Compliance
D64: Conservation Supply Curves | H64: ='2025 Sector View Elect'!R93 -> 878962.6 | J64: ='2025 Sector View Gas'!R85 -> 127219.4 | K64: =H64+J64 -> 1006182
D65: Strategic Planning | H65: ='2025 Sector View Elect'!R94 -> 669661.1 | J65: ='2025 Sector View Gas'!R86 -> 112119.3 | K65: 781780.4
D66: Market Research | H66: ='2025 Sector View Elect'!R95 -> 173090 | J66: ='2025 Sector View Gas'!R87 -> 34618 | K66: 207708
D67: Program Evaluation | H67: ='2025 Sector View Elect'!R96 -> 2070324.7 | J67: ='2025 Sector View Gas'!R88 -> 309991 | K67: 2380315.7
D68: Biennial Conservation Acquisition Review | H68: ='2025 Sector View Elect'!R97 -> 143000 | J68: ='2025 Sector View Gas'!R89 -> 7000 | K68: 150000
D69: Energy Efficient Technology Evaluation | H69: ='2025 Sector View Elect'!R98 -> 75000 | J69: ='2025 Sector View Gas'!R90 -> 0 | K69: =H69+J69 -> 75000
D70: Subtotal, Research & Compliance | H70: =SUM(H64:H69) -> 4010038.4 | J70: =SUM(J64:J69) -> 590947.7 | K70: =H70+J70 -> 4600986.1
C72: Total Savings, Efficiency Programs Included in CE Calculations | G72: =G23+G33+G38+G45 -> 207613.7689 | H72: =H23+H33+H38+H45+H61+H70 -> 116709167.7 | I72: =I23+I33+I38+I45 -> 3460204.454 | J72: =J23+J33+J38+J45+J61+J70 -> 28891273.74 | K72: =H72+J72 -> 145600441.5
D74: Other Customer Programs
C75: E150 | D75: Net Metering | H75: ='2025 Sector View Elect'!R104 -> 4345960 | K75: =H75+J75 -> 4345960
C76: 249A | D76: Demand Response Pilot | H76: ='2025 Sector View Elect'!R105 -> 420000 | J76: ='2025 Sector View Gas'!R96 -> 180000 | K76: =H76+J76 -> 600000
C77: 272, 271 | D77: Demand Response Administration | H77: ='2025 Sector View Elect'!R106 -> 5300945 | K77: =H77+J77 -> 5300945
D78: Subtotal, Other Energy Efficiency Programs | H78: =SUM(H75:H77) -> 10066905 | J78: =SUM(J75:J76) -> 180000 | K78: =H78+J78 -> 10246905
D82: TOTAL UTILITY CONSERVATION PORTFOLIO | G82: =G72 -> 207613.7689 | H82: =H72+H78 -> 126776072.7 | I82: =I72 -> 3460204.454 | J82: =J72+J78 -> 29071273.74 | K82: =H82+J82 -> 155847346.5
D83: Savings and Budgets | G83: =G82/8760 -> 23.70020193
E85: Blue cells = use for 10% "info-only" calculation: | H85: =(H38+H61)/H72 -> 0.1256291086 | J85: =(J38+J61)/J72 -> 0.1036015233
F86: Add up all blue cells and divide by "Total, Efficiency Programs Included in CE Calculations" line.
F87: HER program costs excluded from "info-only" calculation because savings will be measured.
E89: Purple cells = use to indicate a reasonable amt. spent on EM&V (condition (6)(c)): | H89: =(H48+H50+SUM(H67:H68))/(H23+H33) -> 0.04836250446 | J89: =(J48+J50+SUM(J67:J68))/(J23+J33) -> 0.02796547698
E90: EM&V Budget (WAC 480-109-120(1)(b)(vi)(B)) | H90: =(H48+H50+SUM(H67:H68)) -> 4480316.7 | J90: =(J48+J50+SUM(J67:J68)) -> 655498.5
F91: (Line bh) Add up the sum of [Data & Systems Services + Program Evaluation + BECAR + Verification] purple cells and divide by the [Residential + Business] purple cells.
F92: (Line bi) Add up the sum of [Data & Systems Services + Program Evaluation + BECAR + Verification] purple cells

Sheet 2-year Sector View Electric
C2: Energy Efficiency 2024-2025 Budgets and Aggregate Program Savings
C3: Two-Year Sector View
C4: Electric Programs | I4: Please see category descriptions at the bottom of the sector table.
I5: Budget Category
B6: Workbook Name | C6: Schedule | D6: Comment | E6: Description (Blue, indented text indicates a sub-total value) | H6: Order Number (Click on the order# below to link to the detail page) | I6: Program Labor | J6: Overhead | K6: Marketing | L6: Employee/Office Expense | M6: Outside Services | N6: Materials | O6: Miscellaneous | P6: DBtC | Q6: Revenue | R6: Total Budget | S6: Total Savings kWh | U6: Comments
C7: Residential Energy Management
B8: LIW Detail_REM E201_Elec | C8: E201 | E8: Low Income Weatherization | H8: 18230611 | I8: =SUM(I9:I17) -> 1414402 | J8: =SUM(J9:J17) -> 1272961.8 | K8: ='2024 Sector View Electric'!K8+'2025 Sector View Elect'!K8 -> 194400 | L8: ='2024 Sector View Electric'!L8+'2025 Sector View Elect'!L8 -> 4000 | M8: ='2024 Sector View Electric'!M8+'2025 Sector View Elect'!M8 -> 45000 | N8: ='2024 Sector View Electric'!N8+'2025 Sector View Elect'!N8 -> 2700 | O8: ='2024 Sector View Electric'!O8+'2025 Sector View Elect'!O8 -> 0 | P8: ='2024 Sector View Electric'!P8+'2025 Sector View Elect'!P8 -> 20627885.2 | Q8: ='2024 Sector View Electric'!Q8+'2025 Sector View Elect'!Q8 -> 0 | R8: ='2024 Sector View Electric'!R8+'2025 Sector View Elect'!R8 -> 21532137.6 | S8: ='2024 Sector View Electric'!S8+'2025 Sector View Elect'!S8 -> 4307511.4
B9: HomePrint Detail_REM_E214 Elec | C9: E214 | E9: Home Energy Assessments | H9: 18230625 | I9: ='2024 Sector View Electric'!I9+'2025 Sector View Elect'!I9 -> 0 | J9: ='2024 Sector View Electric'!J9+'2025 Sector View Elect'!J9 -> 0 | K9: ='2024 Sector View Electric'!K9+'2025 Sector View Elect'!K9 -> 0 | L9: ='2024 Sector View Electric'!L9+'2025 Sector View Elect'!L9 -> 0 | M9: ='2024 Sector View Electric'!M9+'2025 Sector View Elect'!M9 -> 0 | N9: ='2024 Sector View Electric'!N9+'2025 Sector View Elect'!N9 -> 0 | O9: ='2024 Sector View Electric'!O9+'2025 Sector View Elect'!O9 -> 0 | P9: ='2024 Sector View Electric'!P9+'2025 Sector View Elect'!P9 -> 0 | Q9: ='2024 Sector View Electric'!Q9+'2025 Sector View Elect'!Q9 -> 0 | R9: ='2024 Sector View Electric'!R9+'2025 Sector View Elect'!R9 -> 0 | S9: ='2024 Sector View Electric'!S9+'2025 Sector View Elect'!S9 -> 0
B10: WaterHea_Detail_REM_E214 Elec | C10: E214 | E10: SF Existing Water Heat | H10: 18230626 | I10: ='2024 Sector View Electric'!I10+'2025 Sector View Elect'!I10 -> 266900 | J10: ='2024 Sector View Electric'!J10+'2025 Sector View Elect'!J10 -> 240210 | K10: ='2024 Sector View Electric'!K10+'2025 Sector View Elect'!K10 -> 308000 | L10: ='2024 Sector View Electric'!L10+'2025 Sector View Elect'!L10 -> 2000 | M10: ='2024 Sector View Electric'!M10+'2025 Sector View Elect'!M10 -> 260000 | N10: ='2024 Sector View Electric'!N10+'2025 Sector View Elect'!N10 -> 0 | O10: ='2024 Sector View Electric'!O10+'2025 Sector View Elect'!O10 -> 0 | P10: ='2024 Sector View Electric'!P10+'2025 Sector View Elect'!P10 -> 608947 | Q10: ='2024 Sector View Electric'!Q10+'2025 Sector View Elect'!Q10 -> 0 | R10: ='2024 Sector View Electric'!R10+'2025 Sector View Elect'!R10 -> 1686057 | S10: ='2024 Sector View Electric'!S10+'2025 Sector View Elect'!S10 -> 1434501.086
B11: Wx_Detail_REM E214 Elec | C11: E214 | E11: SF Existing Weatherization | H11: 18230627 | I11: ='2024 Sector View Electric'!I11+'2025 Sector View Elect'!I11 -> 288432 | J11: ='2024 Sector View Electric'!J11+'2025 Sector View Elect'!J11 -> 259588.8 | K11: ='2024 Sector View Electric'!K11+'2025 Sector View Elect'!K11 -> 225000 | L11: ='2024 Sector View Electric'!L11+'2025 Sector View Elect'!L11 -> 2400 | M11: ='2024 Sector View Electric'!M11+'2025 Sector View Elect'!M11 -> 130000 | N11: ='2024 Sector View Electric'!N11+'2025 Sector View Elect'!N11 -> 101000 | O11: ='2024 Sector View Electric'!O11+'2025 Sector View Elect'!O11 -> 0 | P11: ='2024 Sector View Electric'!P11+'2025 Sector View Elect'!P11 -> 6130866.4 | Q11: ='2024 Sector View Electric'!Q11+'2025 Sector View Elect'!Q11 -> 0 | R11: ='2024 Sector View Electric'!R11+'2025 Sector View Elect'!R11 -> 7137287.2 | S11: ='2024 Sector View Electric'!S11+'2025 Sector View Elect'!S11 -> 3342753.865
B12: SpcHeat Detail_REM_E214 Elec | C12: E214 | E12: SF Existing Space Heat | H12: 18230628 | I12: ='2024 Sector View Electric'!I12+'2025 Sector View Elect'!I12 -> 232388 | J12: ='2024 Sector View Electric'!J12+'2025 Sector View Elect'!J12 -> 209149.2 | K12: ='2024 Sector View Electric'!K12+'2025 Sector View Elect'!K12 -> 540000 | L12: ='2024 Sector View Electric'!L12+'2025 Sector View Elect'!L12 -> 2400 | M12: ='2024 Sector View Electric'!M12+'2025 Sector View Elect'!M12 -> 80000 | N12: ='2024 Sector View Electric'!N12+'2025 Sector View Elect'!N12 -> 4000 | O12: ='2024 Sector View Electric'!O12+'2025 Sector View Elect'!O12 -> 0 | P12: ='2024 Sector View Electric'!P12+'2025 Sector View Elect'!P12 -> 12114588.7 | Q12: ='2024 Sector View Electric'!Q12+'2025 Sector View Elect'!Q12 -> 0 | R12: ='2024 Sector View Electric'!R12+'2025 Sector View Elect'!R12 -> 13182525.9 | S12: ='2024 Sector View Electric'!S12+'2025 Sector View Elect'!S12 -> 17215268.05
C13: E214 | E13: Residential Midstream HVAC and Water Heat | H13: 18230162 | I13: ='2024 Sector View Electric'!I13+'2025 Sector View Elect'!I13 -> 255049 | J13: ='2024 Sector View Electric'!J13+'2025 Sector View Elect'!J13 -> 229544.1 | K13: ='2024 Sector View Electric'!K13+'2025 Sector View Elect'!K13 -> 0 | L13: ='2024 Sector View Electric'!L13+'2025 Sector View Elect'!L13 -> 3000 | M13: ='2024 Sector View Electric'!M13+'2025 Sector View Elect'!M13 -> 5589599.55 | N13: ='2024 Sector View Electric'!N13+'2025 Sector View Elect'!N13 -> 1000 | O13: ='2024 Sector View Electric'!O13+'2025 Sector View Elect'!O13 -> 0 | P13: ='2024 Sector View Electric'!P13+'2025 Sector View Elect'!P13 -> 8573910 | Q13: ='2024 Sector View Electric'!Q13+'2025 Sector View Elect'!Q13 -> 0 | R13: ='2024 Sector View Electric'!R13+'2025 Sector View Elect'!R13 -> 14652102.65 | S13: ='2024 Sector View Electric'!S13+'2025 Sector View Elect'!S13 -> 28513235
B14: HmAppplc_Detail_REM_E214 Elec | C14: E214 | E14: Home Appliances | H14: 18230434 | I14: ='2024 Sector View Electric'!I14+'2025 Sector View Elect'!I14 -> 114690 | J14: ='2024 Sector View Electric'!J14+'2025 Sector View Elect'!J14 -> 103221 | K14: ='2024 Sector View Electric'!K14+'2025 Sector View Elect'!K14 -> 144000 | L14: ='2024 Sector View Electric'!L14+'2025 Sector View Elect'!L14 -> 2000 | M14: ='2024 Sector View Electric'!M14+'2025 Sector View Elect'!M14 -> 510000 | N14: ='2024 Sector View Electric'!N14+'2025 Sector View Elect'!N14 -> 0 | O14: ='2024 Sector View Electric'!O14+'2025 Sector View Elect'!O14 -> 0 | P14: ='2024 Sector View Electric'!P14+'2025 Sector View Elect'!P14 -> 888000 | Q14: ='2024 Sector View Electric'!Q14+'2025 Sector View Elect'!Q14 -> 0 | R14: ='2024 Sector View Electric'!R14+'2025 Sector View Elect'!R14 -> 1761911 | S14: ='2024 Sector View Electric'!S14+'2025 Sector View Elect'!S14 -> 1377153.4
B15: Lighting Detail_REM_E214 Elec | C15: E214 | E15: Energy Efficient Lighting Services | H15: 18230440 | I15: ='2024 Sector View Electric'!I15+'2025 Sector View Elect'!I15 -> 12047 | J15: ='2024 Sector View Electric'!J15+'2025 Sector View Elect'!J15 -> 10842.3 | K15: ='2024 Sector View Electric'!K15+'2025 Sector View Elect'!K15 -> 0 | L15: ='2024 Sector View Electric'!L15+'2025 Sector View Elect'!L15 -> 0 | M15: ='2024 Sector View Electric'!M15+'2025 Sector View Elect'!M15 -> 9500 | N15: ='2024 Sector View Electric'!N15+'2025 Sector View Elect'!N15 -> 0 | O15: ='2024 Sector View Electric'!O15+'2025 Sector View Elect'!O15 -> 0 | P15: ='2024 Sector View Electric'!P15+'2025 Sector View Elect'!P15 -> 133883 | Q15: ='2024 Sector View Electric'!Q15+'2025 Sector View Elect'!Q15 -> 0 | R15: ='2024 Sector View Electric'!R15+'2025 Sector View Elect'!R15 -> 166272.3 | S15: ='2024 Sector View Electric'!S15+'2025 Sector View Elect'!S15 -> 140173
B16: HER Detail_REM_E214 elec. | C16: E214 | E16: Home Energy Reports | H16: 18230461 | I16: ='2024 Sector View Electric'!I16+'2025 Sector View Elect'!I16 -> 113310 | J16: ='2024 Sector View Electric'!J16+'2025 Sector View Elect'!J16 -> 101979 | K16: ='2024 Sector View Electric'!K16+'2025 Sector View Elect'!K16 -> 0 | L16: ='2024 Sector View Electric'!L16+'2025 Sector View Elect'!L16 -> 2900 | M16: ='2024 Sector View Electric'!M16+'2025 Sector View Elect'!M16 -> 2239740.4 | N16: ='2024 Sector View Electric'!N16+'2025 Sector View Elect'!N16 -> 0 | O16: ='2024 Sector View Electric'!O16+'2025 Sector View Elect'!O16 -> 0 | P16: ='2024 Sector View Electric'!P16+'2025 Sector View Elect'!P16 -> 2229024 | Q16: ='2024 Sector View Electric'!Q16+'2025 Sector View Elect'!Q16 -> 0 | R16: ='2024 Sector View Electric'!R16+'2025 Sector View Elect'!R16 -> 4686953.4 | S16: ='2024 Sector View Electric'!S16+'2025 Sector View Elect'!S16 -> 79608000
B17: Web Tstat Detail_REM E214 Elec | C17: E214 | E17: Smart Thermostats | H17: 18230023 | I17: ='2024 Sector View Electric'!I17+'2025 Sector View Elect'!I17 -> 131586 | J17: ='2024 Sector View Electric'!J17+'2025 Sector View Elect'!J17 -> 118427.4 | K17: ='2024 Sector View Electric'!K17+'2025 Sector View Elect'!K17 -> 66000 | L17: ='2024 Sector View Electric'!L17+'2025 Sector View Elect'!L17 -> 200 | M17: ='2024 Sector View Electric'!M17+'2025 Sector View Elect'!M17 -> 211081.4 | N17: ='2024 Sector View Electric'!N17+'2025 Sector View Elect'!N17 -> 2000 | O17: ='2024 Sector View Electric'!O17+'2025 Sector View Elect'!O17 -> 0 | P17: ='2024 Sector View Electric'!P17+'2025 Sector View Elect'!P17 -> 1287904.73 | Q17: ='2024 Sector View Electric'!Q17+'2025 Sector View Elect'!Q17 -> 0 | R17: ='2024 Sector View Electric'!R17+'2025 Sector View Elect'!R17 -> 1817199.53 | S17: ='2024 Sector View Electric'!S17+'2025 Sector View Elect'!S17 -> 1828000.435
C18: E214 | E18: Electric Vehicle Chargers | H18: 18230016 | I18: ='2024 Sector View Electric'!I18+'2025 Sector View Elect'!I18 -> 21720 | J18: ='2024 Sector View Electric'!J18+'2025 Sector View Elect'!J18 -> 19548 | K18: ='2024 Sector View Electric'!K18+'2025 Sector View Elect'!K18 -> 0 | L18: ='2024 Sector View Electric'!L18+'2025 Sector View Elect'!L18 -> 0 | M18: ='2024 Sector View Electric'!M18+'2025 Sector View Elect'!M18 -> 0 | N18: ='2024 Sector View Electric'!N18+'2025 Sector View Elect'!N18 -> 0 | O18: ='2024 Sector View Electric'!O18+'2025 Sector View Elect'!O18 -> 0 | P18: ='2024 Sector View Electric'!P18+'2025 Sector View Elect'!P18 -> 0 | Q18: ='2024 Sector View Electric'!Q18+'2025 Sector View Elect'!Q18 -> 0 | R18: ='2024 Sector View Electric'!R18+'2025 Sector View Elect'!R18 -> 41268 | S18: ='2024 Sector View Electric'!S18+'2025 Sector View Elect'!S18 -> 290400
B19: SFNC Detail_REM E215 Elec | C19: E215 | E19: Single Family New Construction | H19: 18230405 | I19: ='2024 Sector View Electric'!I19+'2025 Sector View Elect'!I19 -> 74560 | J19: ='2024 Sector View Electric'!J19+'2025 Sector View Elect'!J19 -> 67104 | K19: ='2024 Sector View Electric'!K19+'2025 Sector View Elect'!K19 -> 60000 | L19: ='2024 Sector View Electric'!L19+'2025 Sector View Elect'!L19 -> 0 | M19: ='2024 Sector View Electric'!M19+'2025 Sector View Elect'!M19 -> 840000 | N19: ='2024 Sector View Electric'!N19+'2025 Sector View Elect'!N19 -> 0 | O19: ='2024 Sector View Electric'!O19+'2025 Sector View Elect'!O19 -> 0 | P19: ='2024 Sector View Electric'!P19+'2025 Sector View Elect'!P19 -> 525000 | Q19: ='2024 Sector View Electric'!Q19+'2025 Sector View Elect'!Q19 -> 0 | R19: ='2024 Sector View Electric'!R19+'2025 Sector View Elect'!R19 -> 1566664 | S19: ='2024 Sector View Electric'!S19+'2025 Sector View Elect'!S19 -> 630000
B20: MfgHmNew Detail_REM E215 Elec | C20: E215 | E20: Manufactured Home New Construction | H20: 18230071 | I20: ='2024 Sector View Electric'!I20+'2025 Sector View Elect'!I20 -> 31146 | J20: ='2024 Sector View Electric'!J20+'2025 Sector View Elect'!J20 -> 28031.4 | K20: ='2024 Sector View Electric'!K20+'2025 Sector View Elect'!K20 -> 12000 | L20: ='2024 Sector View Electric'!L20+'2025 Sector View Elect'!L20 -> 0 | M20: ='2024 Sector View Electric'!M20+'2025 Sector View Elect'!M20 -> 120000 | N20: ='2024 Sector View Electric'!N20+'2025 Sector View Elect'!N20 -> 0 | O20: ='2024 Sector View Electric'!O20+'2025 Sector View Elect'!O20 -> 0 | P20: ='2024 Sector View Electric'!P20+'2025 Sector View Elect'!P20 -> 467200 | Q20: ='2024 Sector View Electric'!Q20+'2025 Sector View Elect'!Q20 -> 0 | R20: ='2024 Sector View Electric'!R20+'2025 Sector View Elect'!R20 -> 658377.4 | S20: ='2024 Sector View Electric'!S20+'2025 Sector View Elect'!S20 -> 372256
B21: Efficiency Boost E217 Elec | C21: E214 & 217 | E21: Efficiency Boost | H21: 18230751 | I21: ='2024 Sector View Electric'!I21+'2025 Sector View Elect'!I21 -> 61048 | J21: ='2024 Sector View Electric'!J21+'2025 Sector View Elect'!J21 -> 54943.2 | K21: ='2024 Sector View Electric'!K21+'2025 Sector View Elect'!K21 -> 60000 | L21: ='2024 Sector View Electric'!L21+'2025 Sector View Elect'!L21 -> 0 | M21: ='2024 Sector View Electric'!M21+'2025 Sector View Elect'!M21 -> 0 | N21: ='2024 Sector View Electric'!N21+'2025 Sector View Elect'!N21 -> 0 | O21: ='2024 Sector View Electric'!O21+'2025 Sector View Elect'!O21 -> 0 | P21: ='2024 Sector View Electric'!P21+'2025 Sector View Elect'!P21 -> 0 | Q21: ='2024 Sector View Electric'!Q21+'2025 Sector View Elect'!Q21 -> 0 | R21: ='2024 Sector View Electric'!R21+'2025 Sector View Elect'!R21 -> 175991.2 | S21: ='2024 Sector View Electric'!S21+'2025 Sector View Elect'!S21 -> 0
B22: MF Retr Detail_REM E217 Elec | C22: E217 | E22: Multifamily Retrofit | H22: 18230407 | I22: ='2024 Sector View Electric'!I22+'2025 Sector View Elect'!I22 -> 258294 | J22: ='2024 Sector View Electric'!J22+'2025 Sector View Elect'!J22 -> 232464.6 | K22: ='2024 Sector View Electric'!K22+'2025 Sector View Elect'!K22 -> 66000 | L22: ='2024 Sector View Electric'!L22+'2025 Sector View Elect'!L22 -> 5000 | M22: ='2024 Sector View Electric'!M22+'2025 Sector View Elect'!M22 -> 1784766.86 | N22: ='2024 Sector View Electric'!N22+'2025 Sector View Elect'!N22 -> 0 | O22: ='2024 Sector View Electric'!O22+'2025 Sector View Elect'!O22 -> 0 | P22: ='2024 Sector View Electric'!P22+'2025 Sector View Elect'!P22 -> 10909773.5 | Q22: ='2024 Sector View Electric'!Q22+'2025 Sector View Elect'!Q22 -> 0 | R22: ='2024 Sector View Electric'!R22+'2025 Sector View Elect'!R22 -> 13256298.96 | S22: ='2024 Sector View Electric'!S22+'2025 Sector View Elect'!S22 -> 11026114.4
B23: MFNC Detail_REM E218 Elec | C23: E218 | E23: Multi-Family New Construction | H23: 18230486 | I23: ='2024 Sector View Electric'!I23+'2025 Sector View Elect'!I23 -> 215774 | J23: ='2024 Sector View Electric'!J23+'2025 Sector View Elect'!J23 -> 194196.6 | K23: ='2024 Sector View Electric'!K23+'2025 Sector View Elect'!K23 -> 40000 | L23: ='2024 Sector View Electric'!L23+'2025 Sector View Elect'!L23 -> 0 | M23: ='2024 Sector View Electric'!M23+'2025 Sector View Elect'!M23 -> 1021111 | N23: ='2024 Sector View Electric'!N23+'2025 Sector View Elect'!N23 -> 0 | O23: ='2024 Sector View Electric'!O23+'2025 Sector View Elect'!O23 -> 0 | P23: ='2024 Sector View Electric'!P23+'2025 Sector View Elect'!P23 -> 3679200 | Q23: ='2024 Sector View Electric'!Q23+'2025 Sector View Elect'!Q23 -> 0 | R23: ='2024 Sector View Electric'!R23+'2025 Sector View Elect'!R23 -> 5150281.6 | S23: ='2024 Sector View Electric'!S23+'2025 Sector View Elect'!S23 -> 8015000
G24: Total, Residential Energy Management | I24: =SUM(I8:I23) -> 3491346 | J24: =SUM(J8:J23) -> 3142211.4 | K24: 1715400 | L24: 23900 | M24: 12840799.21 | N24: 110700 | O24: 0 | P24: 68176182.53 | Q24: 0 | R24: 87471327.74 | S24: 158100366.6
P25: =P24/R24 -> 0.7794117717
H26: 2022-2023 Figures | I26: 2247975 | J26: 1755668.475 | K26: 1772400 | L26: 39100 | M26: 14711442.12 | N26: 18100 | O26: 6000 | P26: 56164872.11 | Q26: 75000 | R26: 76790557.7 | S26: 145746312.6
C27: Business Energy Managment
E28: Commercial/Industrial Retrofit | I28: =SUM(I29:I34) -> 5114437 | J28: =SUM(J29:J34) -> 4614993.3 | K28: 214000 | L28: 182000 | M28: 4100549.8 | N28: 47000 | O28: 174000 | P28: 28885000 | Q28: 0 | R28: =SUM(R29:R34) -> 43331980.1 | S28: =SUM(S29:S34) -> 86600000
B29: CI Retr Detail_BEM E250 Elec | C29: E250 | E29: Retrofit Custom Grants | H29: 18230711 | I29: ='2024 Sector View Electric'!I29+'2025 Sector View Elect'!I29 -> 1875132 | J29: ='2024 Sector View Electric'!J29+'2025 Sector View Elect'!J29 -> 1687618.8 | K29: ='2024 Sector View Electric'!K29+'2025 Sector View Elect'!K29 -> 40000 | L29: ='2024 Sector View Electric'!L29+'2025 Sector View Elect'!L29 -> 50000 | M29: ='2024 Sector View Electric'!M29+'2025 Sector View Elect'!M29 -> 490000 | N29: ='2024 Sector View Electric'!N29+'2025 Sector View Elect'!N29 -> 7000 | O29: ='2024 Sector View Electric'!O29+'2025 Sector View Elect'!O29 -> 162000 | P29: ='2024 Sector View Electric'!P29+'2025 Sector View Elect'!P29 -> 6800000 | Q29: ='2024 Sector View Electric'!Q29+'2025 Sector View Elect'!Q29 -> 0 | R29: ='2024 Sector View Electric'!R29+'2025 Sector View Elect'!R29 -> 11111750.8 | S29: ='2024 Sector View Electric'!S29+'2025 Sector View Elect'!S29 -> 16000000
B30: BusLgtGrants_BEM E250 Elect | C30: E250 | E30: Custom Lighting Grants | H30: 18230724 | I30: ='2024 Sector View Electric'!I30+'2025 Sector View Elect'!I30 -> 1681000 | J30: ='2024 Sector View Electric'!J30+'2025 Sector View Elect'!J30 -> 1512900 | K30: ='2024 Sector View Electric'!K30+'2025 Sector View Elect'!K30 -> 50000 | L30: ='2024 Sector View Electric'!L30+'2025 Sector View Elect'!L30 -> 68000 | M30: ='2024 Sector View Electric'!M30+'2025 Sector View Elect'!M30 -> 285000 | N30: ='2024 Sector View Electric'!N30+'2025 Sector View Elect'!N30 -> 40000 | O30: ='2024 Sector View Electric'!O30+'2025 Sector View Elect'!O30 -> 0 | P30: ='2024 Sector View Electric'!P30+'2025 Sector View Elect'!P30 -> 11970000 | Q30: ='2024 Sector View Electric'!Q30+'2025 Sector View Elect'!Q30 -> 0 | R30: ='2024 Sector View Electric'!R30+'2025 Sector View Elect'!R30 -> 15606900 | S30: ='2024 Sector View Electric'!S30+'2025 Sector View Elect'!S30 -> 34200000
B31: CI Indust_BEM_E250_Elec | C31: E250 | E31: Industrial Programs | H31: 18231137 | I31: ='2024 Sector View Electric'!I31+'2025 Sector View Elect'!I31 -> 1224084 | J31: ='2024 Sector View Electric'!J31+'2025 Sector View Elect'!J31 -> 1101675.6 | K31: ='2024 Sector View Electric'!K31+'2025 Sector View Elect'!K31 -> 60000 | L31: ='2024 Sector View Electric'!L31+'2025 Sector View Elect'!L31 -> 48000 | M31: ='2024 Sector View Electric'!M31+'2025 Sector View Elect'!M31 -> 220000 | N31: ='2024 Sector View Electric'!N31+'2025 Sector View Elect'!N31 -> 0 | O31: ='2024 Sector View Electric'!O31+'2025 Sector View Elect'!O31 -> 0 | P31: ='2024 Sector View Electric'!P31+'2025 Sector View Elect'!P31 -> 4670000 | Q31: ='2024 Sector View Electric'!Q31+'2025 Sector View Elect'!Q31 -> 0 | R31: ='2024 Sector View Electric'!R31+'2025 Sector View Elect'!R31 -> 7323759.6 | S31: ='2024 Sector View Electric'!S31+'2025 Sector View Elect'!S31 -> 16000000
C32: E250 | E32: Clean Buildings Accelerator | H32: 18230013 | I32: ='2024 Sector View Electric'!I32+'2025 Sector View Elect'!I32 -> 217546 | J32: ='2024 Sector View Electric'!J32+'2025 Sector View Elect'!J32 -> 195791.4 | K32: ='2024 Sector View Electric'!K32+'2025 Sector View Elect'!K32 -> 64000 | L32: ='2024 Sector View Electric'!L32+'2025 Sector View Elect'!L32 -> 16000 | M32: ='2024 Sector View Electric'!M32+'2025 Sector View Elect'!M32 -> 640000 | N32: ='2024 Sector View Electric'!N32+'2025 Sector View Elect'!N32 -> 0 | O32: ='2024 Sector View Electric'!O32+'2025 Sector View Elect'!O32 -> 12000 | P32: ='2024 Sector View Electric'!P32+'2025 Sector View Elect'!P32 -> 0 | Q32: ='2024 Sector View Electric'!Q32+'2025 Sector View Elect'!Q32 -> 0 | R32: ='2024 Sector View Electric'!R32+'2025 Sector View Elect'!R32 -> 1145337.4 | S32: ='2024 Sector View Electric'!S32+'2025 Sector View Elect'!S32 -> 2300000
C33: E250 | E33: Telecommunications Efficiency | H33: 18239043 | I33: ='2024 Sector View Electric'!I33+'2025 Sector View Elect'!I33 -> 89750 | J33: ='2024 Sector View Electric'!J33+'2025 Sector View Elect'!J33 -> 80775 | K33: ='2024 Sector View Electric'!K33+'2025 Sector View Elect'!K33 -> 0 | L33: ='2024 Sector View Electric'!L33+'2025 Sector View Elect'!L33 -> 0 | M33: ='2024 Sector View Electric'!M33+'2025 Sector View Elect'!M33 -> 665549.8 | N33: ='2024 Sector View Electric'!N33+'2025 Sector View Elect'!N33 -> 0 | O33: ='2024 Sector View Electric'!O33+'2025 Sector View Elect'!O33 -> 0 | P33: ='2024 Sector View Electric'!P33+'2025 Sector View Elect'!P33 -> 5445000 | Q33: ='2024 Sector View Electric'!Q33+'2025 Sector View Elect'!Q33 -> 0 | R33: ='2024 Sector View Electric'!R33+'2025 Sector View Elect'!R33 -> 6281074.8 | S33: ='2024 Sector View Electric'!S33+'2025 Sector View Elect'!S33 -> 12100000
C34: E250 | E34: Virtual Commissioning | H34: 18230015 | I34: ='2024 Sector View Electric'!I34+'2025 Sector View Elect'!I34 -> 26925 | J34: ='2024 Sector View Electric'!J34+'2025 Sector View Elect'!J34 -> 36232.5 | K34: ='2024 Sector View Electric'!K34+'2025 Sector View Elect'!K34 -> 0 | L34: ='2024 Sector View Electric'!L34+'2025 Sector View Elect'!L34 -> 0 | M34: ='2024 Sector View Electric'!M34+'2025 Sector View Elect'!M34 -> 1800000 | N34: ='2024 Sector View Electric'!N34+'2025 Sector View Elect'!N34 -> 0 | O34: ='2024 Sector View Electric'!O34+'2025 Sector View Elect'!O34 -> 0 | P34: ='2024 Sector View Electric'!P34+'2025 Sector View Elect'!P34 -> 0 | Q34: ='2024 Sector View Electric'!Q34+'2025 Sector View Elect'!Q34 -> 0 | R34: ='2024 Sector View Electric'!R34+'2025 Sector View Elect'!R34 -> 1863157.5 | S34: ='2024 Sector View Electric'!S34+'2025 Sector View Elect'!S34 -> 6000000
B35: CI NC Detail_BEM E251 Elec | C35: E251 | E35: Commercial/Industrial New Construction | H35: 18230715 | I35: ='2024 Sector View Electric'!I35+'2025 Sector View Elect'!I35 -> 523142 | J35: ='2024 Sector View Electric'!J35+'2025 Sector View Elect'!J35 -> 470827.8 | K35: ='2024 Sector View Electric'!K35+'2025 Sector View Elect'!K35 -> 21000 | L35: ='2024 Sector View Electric'!L35+'2025 Sector View Elect'!L35 -> 9450 | M35: ='2024 Sector View Electric'!M35+'2025 Sector View Elect'!M35 -> 70000 | N35: ='2024 Sector View Electric'!N35+'2025 Sector View Elect'!N35 -> 10500 | O35: ='2024 Sector View Electric'!O35+'2025 Sector View Elect'!O35 -> 31500 | P35: ='2024 Sector View Electric'!P35+'2025 Sector View Elect'!P35 -> 2790000 | Q35: ='2024 Sector View Electric'!Q35+'2025 Sector View Elect'!Q35 -> 0 | R35: ='2024 Sector View Electric'!R35+'2025 Sector View Elect'!R35 -> 3926419.8 | S35: ='2024 Sector View Electric'!S35+'2025 Sector View Elect'!S35 -> 6000000
E36: Commercial Strategic Energy Management | I36: ='2024 Sector View Electric'!I36+'2025 Sector View Elect'!I36 -> 1663444 | J36: ='2024 Sector View Electric'!J36+'2025 Sector View Elect'!J36 -> 1497099.6 | K36: ='2024 Sector View Electric'!K36+'2025 Sector View Elect'!K36 -> 8400 | L36: ='2024 Sector View Electric'!L36+'2025 Sector View Elect'!L36 -> 39000 | M36: ='2024 Sector View Electric'!M36+'2025 Sector View Elect'!M36 -> 446307 | N36: ='2024 Sector View Electric'!N36+'2025 Sector View Elect'!N36 -> 1000 | O36: ='2024 Sector View Electric'!O36+'2025 Sector View Elect'!O36 -> 27000 | P36: ='2024 Sector View Electric'!P36+'2025 Sector View Elect'!P36 -> 1980000 | Q36: ='2024 Sector View Electric'!Q36+'2025 Sector View Elect'!Q36 -> 0 | R36: ='2024 Sector View Electric'!R36+'2025 Sector View Elect'!R36 -> 5662250.6 | S36: ='2024 Sector View Electric'!S36+'2025 Sector View Elect'!S36 -> 29489000
B37: RCM Detail_BEM E253 Elec | C37: E253 | E37: SEM | H37: 18230723 | I37: ='2024 Sector View Electric'!I37+'2025 Sector View Elect'!I37 -> 1335259 | J37: ='2024 Sector View Electric'!J37+'2025 Sector View Elect'!J37 -> 1201733.1 | K37: ='2024 Sector View Electric'!K37+'2025 Sector View Elect'!K37 -> 7000 | L37: ='2024 Sector View Electric'!L37+'2025 Sector View Elect'!L37 -> 33000 | M37: ='2024 Sector View Electric'!M37+'2025 Sector View Elect'!M37 -> 446307 | N37: ='2024 Sector View Electric'!N37+'2025 Sector View Elect'!N37 -> 1000 | O37: ='2024 Sector View Electric'!O37+'2025 Sector View Elect'!O37 -> 3000 | P37: ='2024 Sector View Electric'!P37+'2025 Sector View Elect'!P37 -> 1280000 | Q37: ='2024 Sector View Electric'!Q37+'2025 Sector View Elect'!Q37 -> 0 | R37: ='2024 Sector View Electric'!R37+'2025 Sector View Elect'!R37 -> 4307299.1 | S37: ='2024 Sector View Electric'!S37+'2025 Sector View Elect'!S37 -> 27489000
C38: E253 | E38: Pay For Performance | H38: 18236102 | I38: ='2024 Sector View Electric'!I38+'2025 Sector View Elect'!I38 -> 328185 | J38: ='2024 Sector View Electric'!J38+'2025 Sector View Elect'!J38 -> 295366.5 | K38: ='2024 Sector View Electric'!K38+'2025 Sector View Elect'!K38 -> 1400 | L38: ='2024 Sector View Electric'!L38+'2025 Sector View Elect'!L38 -> 6000 | M38: ='2024 Sector View Electric'!M38+'2025 Sector View Elect'!M38 -> 0 | N38: ='2024 Sector View Electric'!N38+'2025 Sector View Elect'!N38 -> 0 | O38: ='2024 Sector View Electric'!O38+'2025 Sector View Elect'!O38 -> 24000 | P38: ='2024 Sector View Electric'!P38+'2025 Sector View Elect'!P38 -> 700000 | Q38: ='2024 Sector View Electric'!Q38+'2025 Sector View Elect'!Q38 -> 0 | R38: ='2024 Sector View Electric'!R38+'2025 Sector View Elect'!R38 -> 1354951.5 | S38: ='2024 Sector View Electric'!S38+'2025 Sector View Elect'!S38 -> 2000000
E39: High Voltage, Self-Directed | I39: ='2024 Sector View Electric'!I39+'2025 Sector View Elect'!I39 -> 446699 | J39: ='2024 Sector View Electric'!J39+'2025 Sector View Elect'!J39 -> 402029.1 | K39: ='2024 Sector View Electric'!K39+'2025 Sector View Elect'!K39 -> 0 | L39: ='2024 Sector View Electric'!L39+'2025 Sector View Elect'!L39 -> 0 | M39: ='2024 Sector View Electric'!M39+'2025 Sector View Elect'!M39 -> 0 | N39: ='2024 Sector View Electric'!N39+'2025 Sector View Elect'!N39 -> 0 | O39: ='2024 Sector View Electric'!O39+'2025 Sector View Elect'!O39 -> 0 | P39: ='2024 Sector View Electric'!P39+'2025 Sector View Elect'!P39 -> 7878244 | Q39: ='2024 Sector View Electric'!Q39+'2025 Sector View Elect'!Q39 -> 0 | R39: ='2024 Sector View Electric'!R39+'2025 Sector View Elect'!R39 -> 8726972.1 | S39: ='2024 Sector View Electric'!S39+'2025 Sector View Elect'!S39 -> 11964901
B40: LPSD_Detail_449_Elec | C40: E258 | E40: 449 Customers | H40: 18230720 | I40: ='2024 Sector View Electric'!I40+'2025 Sector View Elect'!I40 -> 256115 | J40: ='2024 Sector View Electric'!J40+'2025 Sector View Elect'!J40 -> 230503.5 | K40: ='2024 Sector View Electric'!K40+'2025 Sector View Elect'!K40 -> 0 | L40: ='2024 Sector View Electric'!L40+'2025 Sector View Elect'!L40 -> 0 | M40: ='2024 Sector View Electric'!M40+'2025 Sector View Elect'!M40 -> 0 | N40: ='2024 Sector View Electric'!N40+'2025 Sector View Elect'!N40 -> 0 | O40: ='2024 Sector View Electric'!O40+'2025 Sector View Elect'!O40 -> 0 | P40: ='2024 Sector View Electric'!P40+'2025 Sector View Elect'!P40 -> 5246742 | Q40: ='2024 Sector View Electric'!Q40+'2025 Sector View Elect'!Q40 -> 0 | R40: ='2024 Sector View Electric'!R40+'2025 Sector View Elect'!R40 -> 5733360.5 | S40: ='2024 Sector View Electric'!S40+'2025 Sector View Elect'!S40 -> 8000000
B41: LPSD_Detail_Non-449 Elec | C41: E258 | E41: Non-449 Customers | H41: 18230721 | I41: ='2024 Sector View Electric'!I41+'2025 Sector View Elect'!I41 -> 190584 | J41: ='2024 Sector View Electric'!J41+'2025 Sector View Elect'!J41 -> 171525.6 | K41: ='2024 Sector View Electric'!K41+'2025 Sector View Elect'!K41 -> 0 | L41: ='2024 Sector View Electric'!L41+'2025 Sector View Elect'!L41 -> 0 | M41: ='2024 Sector View Electric'!M41+'2025 Sector View Elect'!M41 -> 0 | N41: ='2024 Sector View Electric'!N41+'2025 Sector View Elect'!N41 -> 0 | O41: ='2024 Sector View Electric'!O41+'2025 Sector View Elect'!O41 -> 0 | P41: ='2024 Sector View Electric'!P41+'2025 Sector View Elect'!P41 -> 2631502 | Q41: ='2024 Sector View Electric'!Q41+'2025 Sector View Elect'!Q41 -> 0 | R41: ='2024 Sector View Electric'!R41+'2025 Sector View Elect'!R41 -> 2993611.6 | S41: ='2024 Sector View Electric'!S41+'2025 Sector View Elect'!S41 -> 3964901
C42: E262 | E42: Business Rebates | I42: ='2024 Sector View Electric'!I42+'2025 Sector View Elect'!I42 -> 969506 | J42: ='2024 Sector View Electric'!J42+'2025 Sector View Elect'!J42 -> 872555.4 | K42: ='2024 Sector View Electric'!K42+'2025 Sector View Elect'!K42 -> 625040 | L42: ='2024 Sector View Electric'!L42+'2025 Sector View Elect'!L42 -> 37900 | M42: ='2024 Sector View Electric'!M42+'2025 Sector View Elect'!M42 -> 5611808.29 | N42: ='2024 Sector View Electric'!N42+'2025 Sector View Elect'!N42 -> 8200 | O42: ='2024 Sector View Electric'!O42+'2025 Sector View Elect'!O42 -> 4000 | P42: ='2024 Sector View Electric'!P42+'2025 Sector View Elect'!P42 -> 23895085.84 | Q42: ='2024 Sector View Electric'!Q42+'2025 Sector View Elect'!Q42 -> 0 | R42: ='2024 Sector View Electric'!R42+'2025 Sector View Elect'!R42 -> 32024095.53 | S42: ='2024 Sector View Electric'!S42+'2025 Sector View Elect'!S42 -> 62456266.7
B43: Comm Lgt Mkdn_E262 Elect | C43: E262 | E43: Lighting to Go--also referred to as Business Lighting Markdowns | H43: 18230714 | I43: ='2024 Sector View Electric'!I43+'2025 Sector View Elect'!I43 -> 222727 | J43: ='2024 Sector View Electric'!J43+'2025 Sector View Elect'!J43 -> 200454.3 | K43: ='2024 Sector View Electric'!K43+'2025 Sector View Elect'!K43 -> 42000 | L43: ='2024 Sector View Electric'!L43+'2025 Sector View Elect'!L43 -> 16000 | M43: ='2024 Sector View Electric'!M43+'2025 Sector View Elect'!M43 -> 1933173.54 | N43: ='2024 Sector View Electric'!N43+'2025 Sector View Elect'!N43 -> 2000 | O43: ='2024 Sector View Electric'!O43+'2025 Sector View Elect'!O43 -> 2000 | P43: ='2024 Sector View Electric'!P43+'2025 Sector View Elect'!P43 -> 4063470.84 | Q43: ='2024 Sector View Electric'!Q43+'2025 Sector View Elect'!Q43 -> 0 | R43: ='2024 Sector View Electric'!R43+'2025 Sector View Elect'!R43 -> 6481825.68 | S43: ='2024 Sector View Electric'!S43+'2025 Sector View Elect'!S43 -> 27000000
B44: Comm Kit-Laund_E262 Elect | C44: E262 | E44: Commercial Foodservice | H44: 18230716 | I44: ='2024 Sector View Electric'!I44+'2025 Sector View Elect'!I44 -> 13032 | J44: ='2024 Sector View Electric'!J44+'2025 Sector View Elect'!J44 -> 11728.8 | K44: ='2024 Sector View Electric'!K44+'2025 Sector View Elect'!K44 -> 34240 | L44: ='2024 Sector View Electric'!L44+'2025 Sector View Elect'!L44 -> 1900 | M44: ='2024 Sector View Electric'!M44+'2025 Sector View Elect'!M44 -> 687928.75 | N44: ='2024 Sector View Electric'!N44+'2025 Sector View Elect'!N44 -> 200 | O44: ='2024 Sector View Electric'!O44+'2025 Sector View Elect'!O44 -> 0 | P44: ='2024 Sector View Electric'!P44+'2025 Sector View Elect'!P44 -> 1115119 | Q44: ='2024 Sector View Electric'!Q44+'2025 Sector View Elect'!Q44 -> 0 | R44: ='2024 Sector View Electric'!R44+'2025 Sector View Elect'!R44 -> 1864148.55 | S44: ='2024 Sector View Electric'!S44+'2025 Sector View Elect'!S44 -> 2303750
B45: Comm HVAC_E262 Elect | C45: E262 | E45: Commercial HVAC Rebates | H45: 18230718 | I45: ='2024 Sector View Electric'!I45+'2025 Sector View Elect'!I45 -> 174608 | J45: ='2024 Sector View Electric'!J45+'2025 Sector View Elect'!J45 -> 157147.2 | K45: ='2024 Sector View Electric'!K45+'2025 Sector View Elect'!K45 -> 119400 | L45: ='2024 Sector View Electric'!L45+'2025 Sector View Elect'!L45 -> 2000 | M45: ='2024 Sector View Electric'!M45+'2025 Sector View Elect'!M45 -> 30000 | N45: ='2024 Sector View Electric'!N45+'2025 Sector View Elect'!N45 -> 2000 | O45: ='2024 Sector View Electric'!O45+'2025 Sector View Elect'!O45 -> 0 | P45: ='2024 Sector View Electric'!P45+'2025 Sector View Elect'!P45 -> 876800 | Q45: ='2024 Sector View Electric'!Q45+'2025 Sector View Elect'!Q45 -> 0 | R45: ='2024 Sector View Electric'!R45+'2025 Sector View Elect'!R45 -> 1361955.2 | S45: ='2024 Sector View Electric'!S45+'2025 Sector View Elect'!S45 -> 1904066.7
C46: E262 | E46: Commercial Midstream HVAC and Water Heat | H46: 18230524 | I46: ='2024 Sector View Electric'!I46+'2025 Sector View Elect'!I46 -> 123890 | J46: ='2024 Sector View Electric'!J46+'2025 Sector View Elect'!J46 -> 111501 | K46: ='2024 Sector View Electric'!K46+'2025 Sector View Elect'!K46 -> 0 | L46: ='2024 Sector View Electric'!L46+'2025 Sector View Elect'!L46 -> 3000 | M46: ='2024 Sector View Electric'!M46+'2025 Sector View Elect'!M46 -> 248706 | N46: ='2024 Sector View Electric'!N46+'2025 Sector View Elect'!N46 -> 1000 | O46: ='2024 Sector View Electric'!O46+'2025 Sector View Elect'!O46 -> 0 | P46: ='2024 Sector View Electric'!P46+'2025 Sector View Elect'!P46 -> 799500 | Q46: ='2024 Sector View Electric'!Q46+'2025 Sector View Elect'!Q46 -> 0 | R46: ='2024 Sector View Electric'!R46+'2025 Sector View Elect'!R46 -> 1287597 | S46: ='2024 Sector View Electric'!S46+'2025 Sector View Elect'!S46 -> 1248450
B47: Sm Bus DI_E262 Elect | C47: E262 | E47: Small Business Direct Install | H47: 18231134 | I47: ='2024 Sector View Electric'!I47+'2025 Sector View Elect'!I47 -> 240847 | J47: ='2024 Sector View Electric'!J47+'2025 Sector View Elect'!J47 -> 216762.3 | K47: ='2024 Sector View Electric'!K47+'2025 Sector View Elect'!K47 -> 259000 | L47: ='2024 Sector View Electric'!L47+'2025 Sector View Elect'!L47 -> 12000 | M47: ='2024 Sector View Electric'!M47+'2025 Sector View Elect'!M47 -> 2712000 | N47: ='2024 Sector View Electric'!N47+'2025 Sector View Elect'!N47 -> 2000 | O47: ='2024 Sector View Electric'!O47+'2025 Sector View Elect'!O47 -> 2000 | P47: ='2024 Sector View Electric'!P47+'2025 Sector View Elect'!P47 -> 12219776 | Q47: ='2024 Sector View Electric'!Q47+'2025 Sector View Elect'!Q47 -> 0 | R47: ='2024 Sector View Electric'!R47+'2025 Sector View Elect'!R47 -> 15664385.3 | S47: ='2024 Sector View Electric'!S47+'2025 Sector View Elect'!S47 -> 26000000
B48: New BusRebt prgm_E262 Elec | C48: E262 | E48: Commercial General Rebates | H48: 1823nnnn | I48: ='2024 Sector View Electric'!I48+'2025 Sector View Elect'!I48 -> 0 | J48: ='2024 Sector View Electric'!J48+'2025 Sector View Elect'!J48 -> 0 | K48: ='2024 Sector View Electric'!K48+'2025 Sector View Elect'!K48 -> 0 | L48: ='2024 Sector View Electric'!L48+'2025 Sector View Elect'!L48 -> 0 | M48: ='2024 Sector View Electric'!M48+'2025 Sector View Elect'!M48 -> 0 | N48: ='2024 Sector View Electric'!N48+'2025 Sector View Elect'!N48 -> 0 | O48: ='2024 Sector View Electric'!O48+'2025 Sector View Elect'!O48 -> 0 | P48: ='2024 Sector View Electric'!P48+'2025 Sector View Elect'!P48 -> 0 | Q48: ='2024 Sector View Electric'!Q48+'2025 Sector View Elect'!Q48 -> 0 | R48: ='2024 Sector View Electric'!R48+'2025 Sector View Elect'!R48 -> 0 | S48: ='2024 Sector View Electric'!S48+'2025 Sector View Elect'!S48 -> 0
C49: E262 | E49: Lodging Rebates | H49: 18230014 | I49: ='2024 Sector View Electric'!I49+'2025 Sector View Elect'!I49 -> 194402 | J49: ='2024 Sector View Electric'!J49+'2025 Sector View Elect'!J49 -> 174961.8 | K49: ='2024 Sector View Electric'!K49+'2025 Sector View Elect'!K49 -> 170400 | L49: ='2024 Sector View Electric'!L49+'2025 Sector View Elect'!L49 -> 3000 | M49: ='2024 Sector View Electric'!M49+'2025 Sector View Elect'!M49 -> 0 | N49: ='2024 Sector View Electric'!N49+'2025 Sector View Elect'!N49 -> 1000 | O49: ='2024 Sector View Electric'!O49+'2025 Sector View Elect'!O49 -> 0 | P49: ='2024 Sector View Electric'!P49+'2025 Sector View Elect'!P49 -> 4820420 | Q49: ='2024 Sector View Electric'!Q49+'2025 Sector View Elect'!Q49 -> 0 | R49: ='2024 Sector View Electric'!R49+'2025 Sector View Elect'!R49 -> 5364183.8 | S49: ='2024 Sector View Electric'!S49+'2025 Sector View Elect'!S49 -> 4000000
G50: Total, Business Energy Management | I50: =I28+I35+I36+I39+I42 -> 8717228 | J50: 7857505.2 | K50: 868440 | L50: 268350 | M50: 10228665.09 | N50: 66700 | O50: 236500 | P50: 65428329.84 | Q50: 0 | R50: =R28+R35+R36+R39+R42 -> 93671718.13 | S50: =S28+S35+S36+S39+S97+S42 -> 196510167.7
P51: =P50/R50 -> 0.6984854249
H52: 2022-2023 Figures | I52: 8460312 | J52: 6915361.489 | K52: 603100 | L52: 148900 | M52: 9424882.85 | N52: 28400 | O52: 11000 | P52: 90637235.15 | Q52: 0 | R52: 116229191.5 | S52: 346844527.5
C53: Pilots With Uncertain Savings
B54: REM Pilots E249 Elec | C54: E249 | E54: Residential Pilots | I54: ='2024 Sector View Electric'!I54+'2025 Sector View Elect'!I54 -> 3116 | J54: ='2024 Sector View Electric'!J54+'2025 Sector View Elect'!J54 -> 2804.4 | K54: ='2024 Sector View Electric'!K54+'2025 Sector View Elect'!K54 -> 0 | L54: ='2024 Sector View Electric'!L54+'2025 Sector View Elect'!L54 -> 0 | M54: ='2024 Sector View Electric'!M54+'2025 Sector View Elect'!M54 -> 5000 | N54: ='2024 Sector View Electric'!N54+'2025 Sector View Elect'!N54 -> 0 | O54: ='2024 Sector View Electric'!O54+'2025 Sector View Elect'!O54 -> 0 | P54: ='2024 Sector View Electric'!P54+'2025 Sector View Elect'!P54 -> 0 | Q54: ='2024 Sector View Electric'!Q54+'2025 Sector View Elect'!Q54 -> 0 | R54: ='2024 Sector View Electric'!R54+'2025 Sector View Elect'!R54 -> 10920.4 | S54: ='2024 Sector View Electric'!S54+'2025 Sector View Elect'!S54 -> 0
C55: E249 | E55: Single Family AMI Engagement | H55: 18230749 | I55: ='2024 Sector View Electric'!I55+'2025 Sector View Elect'!I55 -> 3116 | J55: ='2024 Sector View Electric'!J55+'2025 Sector View Elect'!J55 -> 2804.4 | K55: ='2024 Sector View Electric'!K55+'2025 Sector View Elect'!K55 -> 0 | L55: ='2024 Sector View Electric'!L55+'2025 Sector View Elect'!L55 -> 0 | M55: ='2024 Sector View Electric'!M55+'2025 Sector View Elect'!M55 -> 5000 | N55: ='2024 Sector View Electric'!N55+'2025 Sector View Elect'!N55 -> 0 | O55: ='2024 Sector View Electric'!O55+'2025 Sector View Elect'!O55 -> 0 | P55: ='2024 Sector View Electric'!P55+'2025 Sector View Elect'!P55 -> 0 | Q55: ='2024 Sector View Electric'!Q55+'2025 Sector View Elect'!Q55 -> 0 | R55: ='2024 Sector View Electric'!R55+'2025 Sector View Elect'!R55 -> 10920.4 | S55: ='2024 Sector View Electric'!S55+'2025 Sector View Elect'!S55 -> 0
B56: BEM Pilots E249 Elec | C56: E249 | E56: Commercial Pilots | I56: ='2024 Sector View Electric'!I56+'2025 Sector View Elect'!I56 -> 0 | J56: ='2024 Sector View Electric'!J56+'2025 Sector View Elect'!J56 -> 0 | K56: ='2024 Sector View Electric'!K56+'2025 Sector View Elect'!K56 -> 0 | L56: ='2024 Sector View Electric'!L56+'2025 Sector View Elect'!L56 -> 0 | M56: ='2024 Sector View Electric'!M56+'2025 Sector View Elect'!M56 -> 0 | N56: ='2024 Sector View Electric'!N56+'2025 Sector View Elect'!N56 -> 0 | O56: ='2024 Sector View Electric'!O56+'2025 Sector View Elect'!O56 -> 0 | P56: ='2024 Sector View Electric'!P56+'2025 Sector View Elect'!P56 -> 0 | Q56: ='2024 Sector View Electric'!Q56+'2025 Sector View Elect'!Q56 -> 0 | R56: ='2024 Sector View Electric'!R56+'2025 Sector View Elect'!R56 -> 0 | S56: ='2024 Sector View Electric'!S56+'2025 Sector View Elect'!S56 -> 0
G57: Total, Pilots | I57: =I54+I56 -> 3116 | J57: 2804.4 | K57: 0 | L57: 0 | M57: 5000 | N57: 0 | O57: 0 | P57: 0 | Q57: 0 | R57: 10920.4 | S57: 0
P58: =P57/R57 -> 0
H59: 2022-2023 Figures | I59: 234999.65 | J59: 183534.7266 | K59: 110000 | L59: 2000 | M59: 1095000 | N59: 0 | O59: 15000 | P59: 52500 | Q59: 0 | R59: 1693034.377 | S59: 4725000
C61: Regional Efficiency Programs
B62: NEEA Detail_E254 elec | C62: E254 | E62: Northwest Energy Efficiency Alliance | H62: 18230421 | I62: ='2024 Sector View Electric'!I63+'2025 Sector View Elect'!I63 -> 0 | J62: ='2024 Sector View Electric'!J63+'2025 Sector View Elect'!J63 -> 0 | K62: ='2024 Sector View Electric'!K63+'2025 Sector View Elect'!K63 -> 0 | L62: ='2024 Sector View Electric'!L63+'2025 Sector View Elect'!L63 -> 0 | M62: ='2024 Sector View Electric'!M63+'2025 Sector View Elect'!M63 -> 9715288 | N62: ='2024 Sector View Electric'!N63+'2025 Sector View Elect'!N63 -> 0 | O62: ='2024 Sector View Electric'!O63+'2025 Sector View Elect'!O63 -> 0 | P62: ='2024 Sector View Electric'!P63+'2025 Sector View Elect'!P63 -> 0 | Q62: ='2024 Sector View Electric'!Q63+'2025 Sector View Elect'!Q63 -> 0 | R62: ='2024 Sector View Electric'!R63+'2025 Sector View Elect'!R63 -> 9715288 | S62: ='2024 Sector View Electric'!S63+'2025 Sector View Elect'!S63 -> 35698422
B63: TDSM_Regnl_elec_e219 | C63: E219 | E63: Targeted DSM | H63: 18230134 | I63: ='2024 Sector View Electric'!I64+'2025 Sector View Elect'!I64 -> 328360 | J63: ='2024 Sector View Electric'!J64+'2025 Sector View Elect'!J64 -> 295524 | K63: ='2024 Sector View Electric'!K64+'2025 Sector View Elect'!K64 -> 20000 | L63: ='2024 Sector View Electric'!L64+'2025 Sector View Elect'!L64 -> 3200 | M63: ='2024 Sector View Electric'!M64+'2025 Sector View Elect'!M64 -> 400000 | N63: ='2024 Sector View Electric'!N64+'2025 Sector View Elect'!N64 -> 0 | O63: ='2024 Sector View Electric'!O64+'2025 Sector View Elect'!O64 -> 0 | P63: ='2024 Sector View Electric'!P64+'2025 Sector View Elect'!P64 -> 120000 | Q63: ='2024 Sector View Electric'!Q64+'2025 Sector View Elect'!Q64 -> 0 | R63: ='2024 Sector View Electric'!R64+'2025 Sector View Elect'!R64 -> 1167084 | S63: ='2024 Sector View Electric'!S64+'2025 Sector View Elect'!S64 -> 0
B64: T&D Detail_Reg E292 elec | C64: E292 | E64: Transmission & Distribution | H64: 18230713 | I64: ='2024 Sector View Electric'!I65+'2025 Sector View Elect'!I65 -> 0 | J64: ='2024 Sector View Electric'!J65+'2025 Sector View Elect'!J65 -> 0 | K64: ='2024 Sector View Electric'!K65+'2025 Sector View Elect'!K65 -> 0 | L64: ='2024 Sector View Electric'!L65+'2025 Sector View Elect'!L65 -> 0 | M64: ='2024 Sector View Electric'!M65+'2025 Sector View Elect'!M65 -> 0 | N64: ='2024 Sector View Electric'!N65+'2025 Sector View Elect'!N65 -> 0 | O64: ='2024 Sector View Electric'!O65+'2025 Sector View Elect'!O65 -> 0 | P64: ='2024 Sector View Electric'!P65+'2025 Sector View Elect'!P65 -> 0 | Q64: ='2024 Sector View Electric'!Q65+'2025 Sector View Elect'!Q65 -> 0 | R64: ='2024 Sector View Electric'!R65+'2025 Sector View Elect'!R65 -> 0 | S64: ='2024 Sector View Electric'!S65+'2025 Sector View Elect'!S65 -> 17756000
G65: Total, Regional Efficiency Programs | I65: =SUM(I62:I64) -> 328360 | J65: =SUM(J62:J64) -> 295524 | K65: 20000 | L65: 3200 | M65: 10115288 | N65: 0 | O65: 0 | P65: 120000 | Q65: 0 | R65: =SUM(R62:R64) -> 10882372 | S65: 53454422
P66: =P65/R65 -> 0.01102700771
H67: 2022-2023 Figures | I67: 502250 | J67: 392257.25 | K67: 20000 | L67: 2800 | M67: 9893388 | N67: 0 | O67: 0 | P67: 105000 | Q67: 0 | R67: 10915695.25 | S67: 40382400
C69: Energy Efficiency Portfolio Support
B70: Data & Systm Svcs_Elect | E70: Data and Systems Services | H70: 18230745 | I70: ='2024 Sector View Electric'!I71+'2025 Sector View Elect'!I71 -> 862344 | J70: ='2024 Sector View Electric'!J71+'2025 Sector View Elect'!J71 -> 776109.6 | K70: ='2024 Sector View Electric'!K71+'2025 Sector View Elect'!K71 -> 0 | L70: ='2024 Sector View Electric'!L71+'2025 Sector View Elect'!L71 -> 17400 | M70: ='2024 Sector View Electric'!M71+'2025 Sector View Elect'!M71 -> 539400 | N70: ='2024 Sector View Electric'!N71+'2025 Sector View Elect'!N71 -> 0 | O70: ='2024 Sector View Electric'!O71+'2025 Sector View Elect'!O71 -> 0 | P70: ='2024 Sector View Electric'!P71+'2025 Sector View Elect'!P71 -> 0 | Q70: ='2024 Sector View Electric'!Q71+'2025 Sector View Elect'!Q71 -> 0 | R70: ='2024 Sector View Electric'!R71+'2025 Sector View Elect'!R71 -> 2195253.6
B71: Rebt Procg Detail_Elect | E71: Rebates Processing | H71: 18230507 | I71: ='2024 Sector View Electric'!I72+'2025 Sector View Elect'!I72 -> 995130 | J71: ='2024 Sector View Electric'!J72+'2025 Sector View Elect'!J72 -> 895617 | K71: ='2024 Sector View Electric'!K72+'2025 Sector View Elect'!K72 -> 0 | L71: ='2024 Sector View Electric'!L72+'2025 Sector View Elect'!L72 -> 40000 | M71: ='2024 Sector View Electric'!M72+'2025 Sector View Elect'!M72 -> 360000 | N71: ='2024 Sector View Electric'!N72+'2025 Sector View Elect'!N72 -> 10000 | O71: ='2024 Sector View Electric'!O72+'2025 Sector View Elect'!O72 -> 0 | P71: ='2024 Sector View Electric'!P72+'2025 Sector View Elect'!P72 -> 0 | Q71: ='2024 Sector View Electric'!Q72+'2025 Sector View Elect'!Q72 -> 0 | R71: ='2024 Sector View Electric'!R72+'2025 Sector View Elect'!R72 -> 2300747
B72: VTeam Detail_R&C_Elec | E72: Verification Team | H72: 18230418 | I72: ='2024 Sector View Electric'!I73+'2025 Sector View Elect'!I73 -> 1044807 | J72: ='2024 Sector View Electric'!J73+'2025 Sector View Elect'!J73 -> 940326.3 | K72: ='2024 Sector View Electric'!K73+'2025 Sector View Elect'!K73 -> 0 | L72: ='2024 Sector View Electric'!L73+'2025 Sector View Elect'!L73 -> 40000 | M72: ='2024 Sector View Electric'!M73+'2025 Sector View Elect'!M73 -> 240000 | N72: ='2024 Sector View Electric'!N73+'2025 Sector View Elect'!N73 -> 20000 | O72: ='2024 Sector View Electric'!O73+'2025 Sector View Elect'!O73 -> 0 | P72: ='2024 Sector View Electric'!P73+'2025 Sector View Elect'!P73 -> 0 | Q72: ='2024 Sector View Electric'!Q73+'2025 Sector View Elect'!Q73 -> 0 | R72: ='2024 Sector View Electric'!R73+'2025 Sector View Elect'!R73 -> 2285133.3
B73: ProgDev Detail_R&C_ Elec | E73: Programs Support | H73: 18230810 | I73: ='2024 Sector View Electric'!I74+'2025 Sector View Elect'!I74 -> 1322748 | J73: ='2024 Sector View Electric'!J74+'2025 Sector View Elect'!J74 -> 1190473.2 | K73: ='2024 Sector View Electric'!K74+'2025 Sector View Elect'!K74 -> 0 | L73: ='2024 Sector View Electric'!L74+'2025 Sector View Elect'!L74 -> 69600 | M73: ='2024 Sector View Electric'!M74+'2025 Sector View Elect'!M74 -> 0 | N73: ='2024 Sector View Electric'!N74+'2025 Sector View Elect'!N74 -> 0 | O73: ='2024 Sector View Electric'!O74+'2025 Sector View Elect'!O74 -> 0 | P73: ='2024 Sector View Electric'!P74+'2025 Sector View Elect'!P74 -> 0 | Q73: ='2024 Sector View Electric'!Q74+'2025 Sector View Elect'!Q74 -> 0 | R73: ='2024 Sector View Electric'!R74+'2025 Sector View Elect'!R74 -> 2582821.2
B74: TradeAlly Detail_PS_ Elec | E74: Trade Ally Memberships | H74: 18230730 | I74: ='2024 Sector View Electric'!I75+'2025 Sector View Elect'!I75 -> 0 | J74: ='2024 Sector View Electric'!J75+'2025 Sector View Elect'!J75 -> 0 | K74: ='2024 Sector View Electric'!K75+'2025 Sector View Elect'!K75 -> 0 | L74: ='2024 Sector View Electric'!L75+'2025 Sector View Elect'!L75 -> 0 | M74: ='2024 Sector View Electric'!M75+'2025 Sector View Elect'!M75 -> 348000 | N74: ='2024 Sector View Electric'!N75+'2025 Sector View Elect'!N75 -> 0 | O74: ='2024 Sector View Electric'!O75+'2025 Sector View Elect'!O75 -> 0 | P74: ='2024 Sector View Electric'!P75+'2025 Sector View Elect'!P75 -> 0 | Q74: ='2024 Sector View Electric'!Q75+'2025 Sector View Elect'!Q75 -> 0 | R74: ='2024 Sector View Electric'!R75+'2025 Sector View Elect'!R75 -> 348000
B75: CAN_Elect | E75: Trade Ally Network (revenue + cost) | H75: 18230746 | I75: ='2024 Sector View Electric'!I76+'2025 Sector View Elect'!I76 -> 336200 | J75: ='2024 Sector View Electric'!J76+'2025 Sector View Elect'!J76 -> 302580 | K75: ='2024 Sector View Electric'!K76+'2025 Sector View Elect'!K76 -> 40000 | L75: ='2024 Sector View Electric'!L76+'2025 Sector View Elect'!L76 -> 10000 | M75: ='2024 Sector View Electric'!M76+'2025 Sector View Elect'!M76 -> 120000 | N75: ='2024 Sector View Electric'!N76+'2025 Sector View Elect'!N76 -> 4000 | O75: ='2024 Sector View Electric'!O76+'2025 Sector View Elect'!O76 -> 1000 | P75: ='2024 Sector View Electric'!P76+'2025 Sector View Elect'!P76 -> 0 | Q75: ='2024 Sector View Electric'!Q76+'2025 Sector View Elect'!Q76 -> -835000 | R75: ='2024 Sector View Electric'!R76+'2025 Sector View Elect'!R76 -> -21220
B76: ABS Detail_PSWE_Elec | E76: Automated Benchmarking System | H76: 18230411 | I76: ='2024 Sector View Electric'!I77+'2025 Sector View Elect'!I77 -> 481680 | J76: ='2024 Sector View Electric'!J77+'2025 Sector View Elect'!J77 -> 433512 | K76: ='2024 Sector View Electric'!K77+'2025 Sector View Elect'!K77 -> 0 | L76: ='2024 Sector View Electric'!L77+'2025 Sector View Elect'!L77 -> 0 | M76: ='2024 Sector View Electric'!M77+'2025 Sector View Elect'!M77 -> 2129500 | N76: ='2024 Sector View Electric'!N77+'2025 Sector View Elect'!N77 -> 0 | O76: ='2024 Sector View Electric'!O77+'2025 Sector View Elect'!O77 -> 0 | P76: ='2024 Sector View Electric'!P77+'2025 Sector View Elect'!P77 -> 0 | Q76: ='2024 Sector View Electric'!Q77+'2025 Sector View Elect'!Q77 -> 0 | R76: ='2024 Sector View Electric'!R77+'2025 Sector View Elect'!R77 -> 3044692
B77: Engy Adv Detail_PSCE Elec | E77: Energy Advisors | H77: 18230610 | I77: ='2024 Sector View Electric'!I78+'2025 Sector View Elect'!I78 -> 1659264 | J77: ='2024 Sector View Electric'!J78+'2025 Sector View Elect'!J78 -> 1493337.6 | K77: ='2024 Sector View Electric'!K78+'2025 Sector View Elect'!K78 -> 0 | L77: ='2024 Sector View Electric'!L78+'2025 Sector View Elect'!L78 -> 40000 | M77: ='2024 Sector View Electric'!M78+'2025 Sector View Elect'!M78 -> 0 | N77: ='2024 Sector View Electric'!N78+'2025 Sector View Elect'!N78 -> 0 | O77: ='2024 Sector View Electric'!O78+'2025 Sector View Elect'!O78 -> 0 | P77: ='2024 Sector View Electric'!P78+'2025 Sector View Elect'!P78 -> 0 | Q77: ='2024 Sector View Electric'!Q78+'2025 Sector View Elect'!Q78 -> 0 | R77: ='2024 Sector View Electric'!R78+'2025 Sector View Elect'!R78 -> 3192601.6
E78: Equity Support | H78: 18239999 | I78: ='Equity Support Elec'!D7 -> 0 | J78: ='Equity Support Elec'!E7 -> 0 | K78: ='Equity Support Elec'!F7 -> 0 | L78: ='Equity Support Elec'!G7 -> 0 | M78: ='Equity Support Elec'!H7 -> 79240 | N78: ='Equity Support Elec'!I7 -> 8030 | O78: ='Equity Support Elec'!J7 -> 0 | P78: ='Equity Support Elec'!K7 -> 0 | Q78: ='Equity Support Elec'!L7 -> 0 | R78: ='Equity Support Elec'!M7 -> 87270
B79: EEC Detail_PS_Elec | E79: Energy Efficient Communities | H79: 18230811 | I79: ='2024 Sector View Electric'!I80+'2025 Sector View Elect'!I80 -> 1280430 | J79: ='2024 Sector View Electric'!J80+'2025 Sector View Elect'!J80 -> 1152387 | K79: ='2024 Sector View Electric'!K80+'2025 Sector View Elect'!K80 -> 34000 | L79: ='2024 Sector View Electric'!L80+'2025 Sector View Elect'!L80 -> 68000 | M79: ='2024 Sector View Electric'!M80+'2025 Sector View Elect'!M80 -> 40000 | N79: ='2024 Sector View Electric'!N80+'2025 Sector View Elect'!N80 -> 52000 | O79: ='2024 Sector View Electric'!O80+'2025 Sector View Elect'!O80 -> 0 | P79: ='2024 Sector View Electric'!P80+'2025 Sector View Elect'!P80 -> 0 | Q79: ='2024 Sector View Electric'!Q80+'2025 Sector View Elect'!Q80 -> 0 | R79: ='2024 Sector View Electric'!R80+'2025 Sector View Elect'!R80 -> 2626817
B80: CustOnline Detail_PSWE_Elec | D80: New Name | E80: Customer Digital Services | I80: =SUM(I81:I84) -> 294512 | J80: =SUM(J81:J84) -> 265060.8 | K80: 275000 | L80: 5500 | M80: 2540585.22 | N80: 0 | O80: 0 | P80: 0 | Q80: 0 | R80: =SUM(R81:R84) -> 3380658.02
F81: Digital Experience | H81: 18230400 | I81: ='2024 Sector View Electric'!I82+'2025 Sector View Elect'!I82 -> 0 | J81: ='2024 Sector View Electric'!J82+'2025 Sector View Elect'!J82 -> 0 | K81: ='2024 Sector View Electric'!K82+'2025 Sector View Elect'!K82 -> 0 | L81: ='2024 Sector View Electric'!L82+'2025 Sector View Elect'!L82 -> 0 | M81: ='2024 Sector View Electric'!M82+'2025 Sector View Elect'!M82 -> 0 | N81: ='2024 Sector View Electric'!N82+'2025 Sector View Elect'!N82 -> 0 | O81: ='2024 Sector View Electric'!O82+'2025 Sector View Elect'!O82 -> 0 | P81: ='2024 Sector View Electric'!P82+'2025 Sector View Elect'!P82 -> 0 | Q81: ='2024 Sector View Electric'!Q82+'2025 Sector View Elect'!Q82 -> 0 | R81: ='2024 Sector View Electric'!R82+'2025 Sector View Elect'!R82 -> 0
F82: Customer Digital Experience | H82: 18230408 | I82: ='2024 Sector View Electric'!I83+'2025 Sector View Elect'!I83 -> 32580 | J82: ='2024 Sector View Electric'!J83+'2025 Sector View Elect'!J83 -> 29322 | K82: ='2024 Sector View Electric'!K83+'2025 Sector View Elect'!K83 -> 0 | L82: ='2024 Sector View Electric'!L83+'2025 Sector View Elect'!L83 -> 0 | M82: ='2024 Sector View Electric'!M83+'2025 Sector View Elect'!M83 -> 969100.1 | N82: ='2024 Sector View Electric'!N83+'2025 Sector View Elect'!N83 -> 0 | O82: ='2024 Sector View Electric'!O83+'2025 Sector View Elect'!O83 -> 0 | P82: ='2024 Sector View Electric'!P83+'2025 Sector View Elect'!P83 -> 0 | Q82: ='2024 Sector View Electric'!Q83+'2025 Sector View Elect'!Q83 -> 0 | R82: ='2024 Sector View Electric'!R83+'2025 Sector View Elect'!R83 -> 1031002.1
B83: CustAwarTools_elec | F83: Customer Awareness Tools | H83: 18230508 | I83: ='2024 Sector View Electric'!I84+'2025 Sector View Elect'!I84 -> 80730 | J83: ='2024 Sector View Electric'!J84+'2025 Sector View Elect'!J84 -> 72657 | K83: ='2024 Sector View Electric'!K84+'2025 Sector View Elect'!K84 -> 0 | L83: ='2024 Sector View Electric'!L84+'2025 Sector View Elect'!L84 -> 500 | M83: ='2024 Sector View Electric'!M84+'2025 Sector View Elect'!M84 -> 1494485.12 | N83: ='2024 Sector View Electric'!N84+'2025 Sector View Elect'!N84 -> 0 | O83: ='2024 Sector View Electric'!O84+'2025 Sector View Elect'!O84 -> 0 | P83: ='2024 Sector View Electric'!P84+'2025 Sector View Elect'!P84 -> 0 | Q83: ='2024 Sector View Electric'!Q84+'2025 Sector View Elect'!Q84 -> 0 | R83: ='2024 Sector View Electric'!R84+'2025 Sector View Elect'!R84 -> 1648372.12
B84: ShopPSE_elec | F84: PSE Marketplace | H84: 18230509 | I84: ='2024 Sector View Electric'!I85+'2025 Sector View Elect'!I85 -> 181202 | J84: ='2024 Sector View Electric'!J85+'2025 Sector View Elect'!J85 -> 163081.8 | K84: ='2024 Sector View Electric'!K85+'2025 Sector View Elect'!K85 -> 275000 | L84: ='2024 Sector View Electric'!L85+'2025 Sector View Elect'!L85 -> 5000 | M84: ='2024 Sector View Electric'!M85+'2025 Sector View Elect'!M85 -> 77000 | N84: ='2024 Sector View Electric'!N85+'2025 Sector View Elect'!N85 -> 0 | O84: ='2024 Sector View Electric'!O85+'2025 Sector View Elect'!O85 -> 0 | P84: ='2024 Sector View Electric'!P85+'2025 Sector View Elect'!P85 -> 0 | Q84: ='2024 Sector View Electric'!Q85+'2025 Sector View Elect'!Q85 -> 0 | R84: ='2024 Sector View Electric'!R85+'2025 Sector View Elect'!R85 -> 701283.8
B85: Mkt Intgn Detail_PSWE_Elec | E85: Market Integration | H85: 18230466 | I85: ='2024 Sector View Electric'!I86+'2025 Sector View Elect'!I86 -> 1254565 | J85: ='2024 Sector View Electric'!J86+'2025 Sector View Elect'!J86 -> 1129108.5 | K85: ='2024 Sector View Electric'!K86+'2025 Sector View Elect'!K86 -> 1914000 | L85: ='2024 Sector View Electric'!L86+'2025 Sector View Elect'!L86 -> 0 | M85: ='2024 Sector View Electric'!M86+'2025 Sector View Elect'!M86 -> 73080 | N85: ='2024 Sector View Electric'!N86+'2025 Sector View Elect'!N86 -> 0 | O85: ='2024 Sector View Electric'!O86+'2025 Sector View Elect'!O86 -> 0 | P85: ='2024 Sector View Electric'!P86+'2025 Sector View Elect'!P86 -> 0 | Q85: ='2024 Sector View Electric'!Q86+'2025 Sector View Elect'!Q86 -> 0 | R85: ='2024 Sector View Electric'!R86+'2025 Sector View Elect'!R86 -> 4370753.5
B86: Events Detail_PSCE Elec | E86: Events | H86: 1823xxxx | I86: ='2024 Sector View Electric'!I87+'2025 Sector View Elect'!I87 -> 557592 | J86: ='2024 Sector View Electric'!J87+'2025 Sector View Elect'!J87 -> 501832.8 | K86: ='2024 Sector View Electric'!K87+'2025 Sector View Elect'!K87 -> 0 | L86: ='2024 Sector View Electric'!L87+'2025 Sector View Elect'!L87 -> 0 | M86: ='2024 Sector View Electric'!M87+'2025 Sector View Elect'!M87 -> 0 | N86: ='2024 Sector View Electric'!N87+'2025 Sector View Elect'!N87 -> 0 | O86: ='2024 Sector View Electric'!O87+'2025 Sector View Elect'!O87 -> 0 | P86: ='2024 Sector View Electric'!P87+'2025 Sector View Elect'!P87 -> 0 | Q86: ='2024 Sector View Electric'!Q87+'2025 Sector View Elect'!Q87 -> 0 | R86: ='2024 Sector View Electric'!R87+'2025 Sector View Elect'!R87 -> 1059424.8
G87: Total, Portfolio Support | I87: =SUM(I70:I80)+SUM(I85:I86) -> 10089272 | J87: =SUM(J70:J80)+SUM(J85:J86) -> 9080344.8 | K87: 2263000 | L87: 290500 | M87: 6469805.22 | N87: 94030 | O87: 1000 | P87: 0 | Q87: -835000 | R87: 27452952.02
H89: 2022-2023 Figures | I89: 8515968.139 | J89: 6650971.117 | K89: 2291592.01 | L89: 260610 | M89: 6044984 | N89: 80752 | O89: 2700 | P89: 0 | Q89: -493798 | R89: 23353779.27
C91: Research & Compliance
B92: SuppCrv Detail_R&C_Elec | E92: Conservation Supply Curves | H92: 18230809 | I92: ='2024 Sector View Electric'!I93+'2025 Sector View Elect'!I93 -> 221054 | J92: ='2024 Sector View Electric'!J93+'2025 Sector View Elect'!J93 -> 198948.6 | K92: ='2024 Sector View Electric'!K93+'2025 Sector View Elect'!K93 -> 0 | L92: ='2024 Sector View Electric'!L93+'2025 Sector View Elect'!L93 -> 1740 | M92: ='2024 Sector View Electric'!M93+'2025 Sector View Elect'!M93 -> 739000 | N92: ='2024 Sector View Electric'!N93+'2025 Sector View Elect'!N93 -> 0 | O92: ='2024 Sector View Electric'!O93+'2025 Sector View Elect'!O93 -> 0 | P92: ='2024 Sector View Electric'!P93+'2025 Sector View Elect'!P93 -> 0 | Q92: ='2024 Sector View Electric'!Q93+'2025 Sector View Elect'!Q93 -> 0 | R92: ='2024 Sector View Electric'!R93+'2025 Sector View Elect'!R93 -> 1160742.6
B93: Strat Plan Detail_R&C_Elec | E93: Strategic Planning | H93: 18230469 | I93: ='2024 Sector View Electric'!I94+'2025 Sector View Elect'!I94 -> 687853 | J93: ='2024 Sector View Electric'!J94+'2025 Sector View Elect'!J94 -> 619067.7 | K93: ='2024 Sector View Electric'!K94+'2025 Sector View Elect'!K94 -> 0 | L93: ='2024 Sector View Electric'!L94+'2025 Sector View Elect'!L94 -> 13050 | M93: ='2024 Sector View Electric'!M94+'2025 Sector View Elect'!M94 -> 0 | N93: ='2024 Sector View Electric'!N94+'2025 Sector View Elect'!N94 -> 0 | O93: ='2024 Sector View Electric'!O94+'2025 Sector View Elect'!O94 -> 0 | P93: ='2024 Sector View Electric'!P94+'2025 Sector View Elect'!P94 -> 0 | Q93: ='2024 Sector View Electric'!Q94+'2025 Sector View Elect'!Q94 -> 0 | R93: ='2024 Sector View Electric'!R94+'2025 Sector View Elect'!R94 -> 1319970.7
B94: Mktg Resch Detail_PS_ Elec | E94: Market Research | H94: 18230413 | I94: ='2024 Sector View Electric'!I95+'2025 Sector View Elect'!I95 -> 179500 | J94: ='2024 Sector View Electric'!J95+'2025 Sector View Elect'!J95 -> 161550 | K94: ='2024 Sector View Electric'!K95+'2025 Sector View Elect'!K95 -> 0 | L94: ='2024 Sector View Electric'!L95+'2025 Sector View Elect'!L95 -> 0 | M94: ='2024 Sector View Electric'!M95+'2025 Sector View Elect'!M95 -> 0 | N94: ='2024 Sector View Electric'!N95+'2025 Sector View Elect'!N95 -> 0 | O94: ='2024 Sector View Electric'!O95+'2025 Sector View Elect'!O95 -> 0 | P94: ='2024 Sector View Electric'!P95+'2025 Sector View Elect'!P95 -> 0 | Q94: ='2024 Sector View Electric'!Q95+'2025 Sector View Elect'!Q95 -> 0 | R94: ='2024 Sector View Electric'!R95+'2025 Sector View Elect'!R95 -> 341050
B95: Eval Detail_R&C_Elec | E95: Program Evaluation | H95: 18230802 | I95: ='2024 Sector View Electric'!I96+'2025 Sector View Elect'!I96 -> 428124 | J95: ='2024 Sector View Electric'!J96+'2025 Sector View Elect'!J96 -> 385311.6 | K95: ='2024 Sector View Electric'!K96+'2025 Sector View Elect'!K96 -> 0 | L95: ='2024 Sector View Electric'!L96+'2025 Sector View Elect'!L96 -> 13050 | M95: ='2024 Sector View Electric'!M96+'2025 Sector View Elect'!M96 -> 3302000 | N95: ='2024 Sector View Electric'!N96+'2025 Sector View Elect'!N96 -> 0 | O95: ='2024 Sector View Electric'!O96+'2025 Sector View Elect'!O96 -> 0 | P95: ='2024 Sector View Electric'!P96+'2025 Sector View Elect'!P96 -> 0 | Q95: ='2024 Sector View Electric'!Q96+'2025 Sector View Elect'!Q96 -> 0 | R95: ='2024 Sector View Electric'!R96+'2025 Sector View Elect'!R96 -> 4128485.6
B96: BECAR Detail_R&C Elec | E96: Biennial Consv. Aquisitn. Review | H96: 18230559 | I96: ='2024 Sector View Electric'!I97+'2025 Sector View Elect'!I97 -> 0 | J96: ='2024 Sector View Electric'!J97+'2025 Sector View Elect'!J97 -> 0 | K96: ='2024 Sector View Electric'!K97+'2025 Sector View Elect'!K97 -> 0 | L96: ='2024 Sector View Electric'!L97+'2025 Sector View Elect'!L97 -> 0 | M96: ='2024 Sector View Electric'!M97+'2025 Sector View Elect'!M97 -> 286000 | N96: ='2024 Sector View Electric'!N97+'2025 Sector View Elect'!N97 -> 0 | O96: ='2024 Sector View Electric'!O97+'2025 Sector View Elect'!O97 -> 0 | P96: ='2024 Sector View Electric'!P97+'2025 Sector View Elect'!P97 -> 0 | Q96: ='2024 Sector View Electric'!Q97+'2025 Sector View Elect'!Q97 -> 0 | R96: ='2024 Sector View Electric'!R97+'2025 Sector View Elect'!R97 -> 286000
C97: E261 | E97: Technology Evaluation | H97: 18230511 | I97: ='2024 Sector View Electric'!I98+'2025 Sector View Elect'!I98 -> 0 | J97: ='2024 Sector View Electric'!J98+'2025 Sector View Elect'!J98 -> 0 | K97: ='2024 Sector View Electric'!K98+'2025 Sector View Elect'!K98 -> 0 | L97: ='2024 Sector View Electric'!L98+'2025 Sector View Elect'!L98 -> 0 | M97: ='2024 Sector View Electric'!M98+'2025 Sector View Elect'!M98 -> 150000 | N97: ='2024 Sector View Electric'!N98+'2025 Sector View Elect'!N98 -> 0 | O97: ='2024 Sector View Electric'!O98+'2025 Sector View Elect'!O98 -> 0 | P97: ='2024 Sector View Electric'!P98+'2025 Sector View Elect'!P98 -> 0 | Q97: ='2024 Sector View Electric'!Q98+'2025 Sector View Elect'!Q98 -> 0 | R97: ='2024 Sector View Electric'!R98+'2025 Sector View Elect'!R98 -> 150000
G98: Total, Research & Compliance | I98: =SUM(I92:I97) -> 1516531 | J98: =SUM(J92:J97) -> 1364877.9 | K98: 0 | L98: 27840 | M98: 4477000 | N98: 0 | O98: 0 | P98: 0 | Q98: 0 | R98: =SUM(R92:R97) -> 7386248.9
H100: 2022-2023 Figures | I100: 1332840 | J100: 1040948.04 | K100: 0 | L100: 18270 | M100: 3034554 | N100: 0 | O100: 455000 | P100: 0 | Q100: 0 | R100: 5881612.04
C102: Other Customer Programs
B103: Net Mtr Details_Oth Elec E150 | C103: E150 | E103: Net Metering | H103: 18230128 | I103: ='2024 Sector View Electric'!I104+'2025 Sector View Elect'!I104 -> 1425650 | J103: ='2024 Sector View Electric'!J104+'2025 Sector View Elect'!J104 -> 1283085 | K103: ='2024 Sector View Electric'!K104+'2025 Sector View Elect'!K104 -> 40000 | L103: ='2024 Sector View Electric'!L104+'2025 Sector View Elect'!L104 -> 20000 | M103: ='2024 Sector View Electric'!M104+'2025 Sector View Elect'!M104 -> 471500 | N103: ='2024 Sector View Electric'!N104+'2025 Sector View Elect'!N104 -> 0 | O103: ='2024 Sector View Electric'!O104+'2025 Sector View Elect'!O104 -> 5200000 | P103: ='2024 Sector View Electric'!P104+'2025 Sector View Elect'!P104 -> 0 | Q103: ='2024 Sector View Electric'!Q104+'2025 Sector View Elect'!Q104 -> 0 | R103: ='2024 Sector View Electric'!R104+'2025 Sector View Elect'!R104 -> 8440235
B104: DemndResp_Detail_E249_Elec | C104: 249A | E104: Demand Response Pilot | H104: 18230566 | I104: ='2024 Sector View Electric'!I105+'2025 Sector View Elect'!I105 -> 0 | J104: ='2024 Sector View Electric'!J105+'2025 Sector View Elect'!J105 -> 0 | K104: ='2024 Sector View Electric'!K105+'2025 Sector View Elect'!K105 -> 0 | L104: ='2024 Sector View Electric'!L105+'2025 Sector View Elect'!L105 -> 0 | M104: ='2024 Sector View Electric'!M105+'2025 Sector View Elect'!M105 -> 740000 | N104: ='2024 Sector View Electric'!N105+'2025 Sector View Elect'!N105 -> 0 | O104: ='2024 Sector View Electric'!O105+'2025 Sector View Elect'!O105 -> 0 | P104: ='2024 Sector View Electric'!P105+'2025 Sector View Elect'!P105 -> 0 | Q104: ='2024 Sector View Electric'!Q105+'2025 Sector View Elect'!Q105 -> 0 | R104: ='2024 Sector View Electric'!R105+'2025 Sector View Elect'!R105 -> 740000
C105: 271, 272 | E105: Demand Response Administration | H105: 18230753 | I105: ='2024 Sector View Electric'!I106+'2025 Sector View Elect'!I106 -> 1225100 | J105: ='2024 Sector View Electric'!J106+'2025 Sector View Elect'!J106 -> 1102590 | K105: ='2024 Sector View Electric'!K106+'2025 Sector View Elect'!K106 -> 3000000 | L105: ='2024 Sector View Electric'!L106+'2025 Sector View Elect'!L106 -> 141000 | M105: ='2024 Sector View Electric'!M106+'2025 Sector View Elect'!M106 -> 683000 | N105: ='2024 Sector View Electric'!N106+'2025 Sector View Elect'!N106 -> 40000 | O105: ='2024 Sector View Electric'!O106+'2025 Sector View Elect'!O106 -> 4040000 | P105: ='2024 Sector View Electric'!P106+'2025 Sector View Elect'!P106 -> 0 | Q105: ='2024 Sector View Electric'!Q106+'2025 Sector View Elect'!Q106 -> 0 | R105: ='2024 Sector View Electric'!R106+'2025 Sector View Elect'!R106 -> 10231690
G106: Total, Other Energy Efficiency Programs | I106: =SUM(I103:I105) -> 2650750 | J106: 2385675 | K106: 3040000 | L106: 161000 | M106: 1894500 | N106: 40000 | O106: 9240000 | P106: 0 | Q106: 0 | R106: =SUM(R103:R105) -> 19411925
H108: 2022-2023 Figures | I108: 877000 | J108: 684937 | K108: 0 | L108: 20000 | M108: 860000 | N108: 0 | O108: 2800000 | P108: 0 | Q108: 0 | R108: 5241937
G110: GRAND TOTAL, ELECTRIC PROGRAMS | I110: =I106+I98+I65+I57+I50+I24 -> 16707331 | J110: 15048597.9 | K110: 5643840 | L110: 484290 | M110: 39561252.3 | N110: 217400 | O110: 9476500 | P110: 133724512.4 | Q110: =Q106+Q87+Q98+Q65+Q57+Q50+Q24 -> -835000 | R110: =R106+R98+R87+R65+R57+R50+R24 -> 246287464.2 | S110: =S106+S98+S65+S57+S50+S24 -> 408064956.3
P111: =P110/R110 -> 0.5429610996
H112: 2022-2023 Figures | I112: 22171344.79 | J112: 17623678.1 | K112: 4797092.01 | L112: 491680 | M112: 45064250.97 | N112: 127252 | O112: 3289700 | P112: 146959607.3 | Q112: -418798 | R112: 240105807.1 | S112: 537698240
S113: =S110/1000/8760 -> 46.58275757
G114: Budget Category Includes | H114: This is the main level of tracking expenditures and expenses in EES. Per FERC rules, all conservation order numbers start with a "1823nnnn", where "n" is some number. Cost elements apply to all order numbers (for instance, all conservation programs that | I114: Energy Efficiency program staff labor. Average FTE cost including management assessments. This Budget Category group includes assessments from Major Accounts management, Resource Planning, Corporate Communications management, IT specialists and some building maintenance allocations. | J114: Overhead--costs associated with primarily employee labor; benefits, for instance. For 2017, includes micro-overhead. | K114: Service and materials associated with the cost of printing program brochures, marketing pieces, advertising, banners, etc. Also includes marketing conducted by vendors and contractors. | L114: Costs associated with EE staff attending events, employee training, conferences, business meals, business parking, ferry & bridge tolls, mileage incurred on employee automobiles, office supplies, phones, subscriptions, software/hardware, etc. | M114: Contractors and vendors, such as PECI, Ecos, CostCo, EFI, etc. Legal expenses, technical services (CMS design, PSE.com web portals, etc.). These costs do NOT include brochure development, marketing pieces, (which are classified under MARKETING). These costs do NOT include incentives paid to customers by contractors. | N114: Primarily tools, trade show equipment, etc. | O114: This category should seldomly be used, and only expenses that cannot be classified under one of the above categories. | P114: All costs associated with rebates, grants, remuneration, value-added services that have a direct bearing on a customer's perceived value of PSE offerings. | Q114: Any amount that PSE is paid by a customer, partner, municipality or outside entity.

Sheet 2024 Sector View Electric
C2: Energy Efficiency 2024 Budgets and Aggregate Program Savings
C3: Sector View
C4: Electric Programs | I4: Please see category descriptions at the bottom of the sector table.
I5: Budget Category
B6: Workbook Name | C6: Schedule | D6: Comment | E6: Description (Blue, indented text indicates a sub-total value) | H6: Order Number (Click on the order# below to link to the detail page) | I6: Labor | J6: Overhead | K6: Marketing | L6: Employee/Office Expense | M6: Outside Services | N6: Materials | O6: Miscellaneous | P6: DBtC | Q6: Revenue | R6: Total Budget | S6: Total Savings kWh | U6: Comments
C7: Residential Energy Management
B8: LIW Detail_REM E201_Elec | C8: E201 | E8: Low Income Weatherization | H8: 18230611 | I8: =SUM(I9:I17) -> 710619 | J8: =SUM(J9:J17) -> 639557.1 | K8: =' LowIncWx Detail_REM E201_Elec'!F5 -> 97200 | L8: =' LowIncWx Detail_REM E201_Elec'!G5 -> 2000 | M8: =' LowIncWx Detail_REM E201_Elec'!H5 -> 22500 | N8: =' LowIncWx Detail_REM E201_Elec'!I5 -> 1350 | O8: =' LowIncWx Detail_REM E201_Elec'!J5 -> 0 | P8: =' LowIncWx Detail_REM E201_Elec'!K5 -> 10313942.6 | Q8: =' LowIncWx Detail_REM E201_Elec'!L5 -> 0 | R8: =' LowIncWx Detail_REM E201_Elec'!M5 -> 10761229.5 | S8: =' LowIncWx Detail_REM E201_Elec'!N5 -> 2153755.7
B9: HomePrint Detail_REM_E214 Elec | C9: E214 | E9: Home Energy Assessments | H9: 18230625 | I9: ='HmEnrgAsmt Detail_REM_E214 Elec'!D5 -> 0 | J9: ='HmEnrgAsmt Detail_REM_E214 Elec'!E5 -> 0 | K9: ='HmEnrgAsmt Detail_REM_E214 Elec'!F5 -> 0 | L9: ='HmEnrgAsmt Detail_REM_E214 Elec'!G5 -> 0 | M9: ='HmEnrgAsmt Detail_REM_E214 Elec'!H5 -> 0 | N9: ='HmEnrgAsmt Detail_REM_E214 Elec'!I5 -> 0 | O9: ='HmEnrgAsmt Detail_REM_E214 Elec'!J5 -> 0 | P9: ='HmEnrgAsmt Detail_REM_E214 Elec'!K5 -> 0 | Q9: ='HmEnrgAsmt Detail_REM_E214 Elec'!L5 -> 0 | R9: ='HmEnrgAsmt Detail_REM_E214 Elec'!M5 -> 0 | S9: ='HmEnrgAsmt Detail_REM_E214 Elec'!N5 -> 0
B10: WaterHea_Detail_REM_E214 Elec | C10: E214 | E10: SF Existing Water Heat | H10: 18230626 | I10: ='WaterHea_Detail_REM_E214 Elec'!D5 -> 131483 | J10: ='WaterHea_Detail_REM_E214 Elec'!E5 -> 118334.7 | K10: ='WaterHea_Detail_REM_E214 Elec'!F5 -> 154000 | L10: ='WaterHea_Detail_REM_E214 Elec'!G5 -> 1000 | M10: ='WaterHea_Detail_REM_E214 Elec'!H5 -> 130000 | N10: ='WaterHea_Detail_REM_E214 Elec'!I5 -> 0 | O10: ='WaterHea_Detail_REM_E214 Elec'!J5 -> 0 | P10: ='WaterHea_Detail_REM_E214 Elec'!K5 -> 302197 | Q10: ='WaterHea_Detail_REM_E214 Elec'!L5 -> 0 | R10: ='WaterHea_Detail_REM_E214 Elec'!M5 -> 837014.7 | S10: ='WaterHea_Detail_REM_E214 Elec'!N5 -> 712077.0558
B11: Wx_Detail_REM E214 Elec | C11: E214 | E11: SF Existing Weatherization | H11: 18230627 | I11: ='Wx_Detail_REM E214 Elec'!D5 -> 142093 | J11: ='Wx_Detail_REM E214 Elec'!E5 -> 127883.7 | K11: ='Wx_Detail_REM E214 Elec'!F5 -> 112500 | L11: ='Wx_Detail_REM E214 Elec'!G5 -> 1200 | M11: ='Wx_Detail_REM E214 Elec'!H5 -> 65000 | N11: ='Wx_Detail_REM E214 Elec'!I5 -> 50500 | O11: ='Wx_Detail_REM E214 Elec'!J5 -> 0 | P11: ='Wx_Detail_REM E214 Elec'!K5 -> 3065433.2 | Q11: ='Wx_Detail_REM E214 Elec'!L5 -> 0 | R11: ='Wx_Detail_REM E214 Elec'!M5 -> 3564609.9 | S11: ='Wx_Detail_REM E214 Elec'!N5 -> 1671376.932
B12: SpcHeat Detail_REM_E214 Elec | C12: E214 | E12: SF Existing Space Heat | H12: 18230628 | I12: ='SpcHeat Detail_REM_E214 Elec'!D5 -> 114482 | J12: ='SpcHeat Detail_REM_E214 Elec'!E5 -> 103033.8 | K12: ='SpcHeat Detail_REM_E214 Elec'!F5 -> 270000 | L12: ='SpcHeat Detail_REM_E214 Elec'!G5 -> 1200 | M12: ='SpcHeat Detail_REM_E214 Elec'!H5 -> 40000 | N12: ='SpcHeat Detail_REM_E214 Elec'!I5 -> 2000 | O12: ='SpcHeat Detail_REM_E214 Elec'!J5 -> 0 | P12: ='SpcHeat Detail_REM_E214 Elec'!K5 -> 6033183.7 | Q12: ='SpcHeat Detail_REM_E214 Elec'!L5 -> 0 | R12: ='SpcHeat Detail_REM_E214 Elec'!M5 -> 6563899.5 | S12: ='SpcHeat Detail_REM_E214 Elec'!N5 -> 8586907.046
C13: E214 | E13: Residential Midstream HVAC and Water Heat | H13: 18230162 | I13: ='HVAC&WH Mdsrm_E214_Elec'!D5 -> 125634 | J13: ='HVAC&WH Mdsrm_E214_Elec'!E5 -> 113070.6 | K13: ='HVAC&WH Mdsrm_E214_Elec'!F5 -> 0 | L13: ='HVAC&WH Mdsrm_E214_Elec'!G5 -> 1500 | M13: ='HVAC&WH Mdsrm_E214_Elec'!H5 -> 2729072.95 | N13: ='HVAC&WH Mdsrm_E214_Elec'!I5 -> 500 | O13: ='HVAC&WH Mdsrm_E214_Elec'!J5 -> 0 | P13: ='HVAC&WH Mdsrm_E214_Elec'!K5 -> 4182395 | Q13: ='HVAC&WH Mdsrm_E214_Elec'!L5 -> 0 | R13: ='HVAC&WH Mdsrm_E214_Elec'!M5 -> 7152172.55 | S13: ='HVAC&WH Mdsrm_E214_Elec'!N5 -> 13908895
B14: HmAppplc_Detail_REM_E214 Elec | C14: E214 | E14: Home Appliances | H14: 18230434 | I14: ='HmAppplc_Detail_REM_E214 Elec'!D5 -> 56505 | J14: ='HmAppplc_Detail_REM_E214 Elec'!E5 -> 50854.5 | K14: ='HmAppplc_Detail_REM_E214 Elec'!F5 -> 72000 | L14: ='HmAppplc_Detail_REM_E214 Elec'!G5 -> 1000 | M14: ='HmAppplc_Detail_REM_E214 Elec'!H5 -> 255000 | N14: ='HmAppplc_Detail_REM_E214 Elec'!I5 -> 0 | O14: ='HmAppplc_Detail_REM_E214 Elec'!J5 -> 0 | P14: ='HmAppplc_Detail_REM_E214 Elec'!K5 -> 444000 | Q14: ='HmAppplc_Detail_REM_E214 Elec'!L5 -> 0 | R14: ='HmAppplc_Detail_REM_E214 Elec'!M5 -> 879359.5 | S14: ='HmAppplc_Detail_REM_E214 Elec'!N5 -> 688576.7
B15: Lighting Detail_REM_E214 Elec | C15: E214 | E15: Energy Efficient Lighting Services | H15: 18230440 | I15: ='Lighting Detail_REM_E214 Elec'!D5 -> 12047 | J15: ='Lighting Detail_REM_E214 Elec'!E5 -> 10842.3 | K15: ='Lighting Detail_REM_E214 Elec'!F5 -> 0 | L15: ='Lighting Detail_REM_E214 Elec'!G5 -> 0 | M15: ='Lighting Detail_REM_E214 Elec'!H5 -> 9500 | N15: ='Lighting Detail_REM_E214 Elec'!I5 -> 0 | O15: ='Lighting Detail_REM_E214 Elec'!J5 -> 0 | P15: ='Lighting Detail_REM_E214 Elec'!K5 -> 133883 | Q15: ='Lighting Detail_REM_E214 Elec'!L5 -> 0 | R15: ='Lighting Detail_REM_E214 Elec'!M5 -> 166272.3 | S15: ='Lighting Detail_REM_E214 Elec'!N5 -> 140173
B16: HER Detail_REM_E214 elec. | C16: E214 | E16: Home Energy Reports | H16: 18230461 | I16: ='HER Detail_REM_E214 elec.'!D5 -> 55815 | J16: ='HER Detail_REM_E214 elec.'!E5 -> 50233.5 | K16: ='HER Detail_REM_E214 elec.'!F5 -> 0 | L16: ='HER Detail_REM_E214 elec.'!G5 -> 1450 | M16: ='HER Detail_REM_E214 elec.'!H5 -> 1119870.2 | N16: ='HER Detail_REM_E214 elec.'!I5 -> 0 | O16: ='HER Detail_REM_E214 elec.'!J5 -> 0 | P16: ='HER Detail_REM_E214 elec.'!K5 -> 1114512 | Q16: ='HER Detail_REM_E214 elec.'!L5 -> 0 | R16: ='HER Detail_REM_E214 elec.'!M5 -> 2341880.7 | S16: ='HER Detail_REM_E214 elec.'!N5 -> 39804000
B17: Web Tstat Detail_REM E214 Elec | C17: E214 | E17: Smart Thermostats | H17: 18230023 | I17: ='Web Tstat Detail_REM E214 Elec'!D5 -> 72560 | J17: ='Web Tstat Detail_REM E214 Elec'!E5 -> 65304 | K17: ='Web Tstat Detail_REM E214 Elec'!F5 -> 44000 | L17: ='Web Tstat Detail_REM E214 Elec'!G5 -> 100 | M17: ='Web Tstat Detail_REM E214 Elec'!H5 -> 137661.8 | N17: ='Web Tstat Detail_REM E214 Elec'!I5 -> 1000 | O17: ='Web Tstat Detail_REM E214 Elec'!J5 -> 0 | P17: ='Web Tstat Detail_REM E214 Elec'!K5 -> 678484.73 | Q17: ='Web Tstat Detail_REM E214 Elec'!L5 -> 0 | R17: ='Web Tstat Detail_REM E214 Elec'!M5 -> 999110.53 | S17: ='Web Tstat Detail_REM E214 Elec'!N5 -> 966804.435
C18: E214 | E18: Electric Vehicle Chargers | H18: 18230016 | I18: ='EV Charg_REM_E214 elec'!D5 -> 10700 | J18: ='EV Charg_REM_E214 elec'!E5 -> 9630 | K18: ='EV Charg_REM_E214 elec'!F5 -> 0 | L18: ='EV Charg_REM_E214 elec'!G5 -> 0 | M18: ='EV Charg_REM_E214 elec'!H5 -> 0 | N18: ='EV Charg_REM_E214 elec'!I5 -> 0 | O18: ='EV Charg_REM_E214 elec'!J5 -> 0 | P18: ='EV Charg_REM_E214 elec'!K5 -> 0 | Q18: ='EV Charg_REM_E214 elec'!L5 -> 0 | R18: ='EV Charg_REM_E214 elec'!M5 -> 20330 | S18: ='EV Charg_REM_E214 elec'!N5 -> 145200
B19: SFNC Detail_REM E215 Elec | C19: E215 | E19: Single Family New Construction | H19: 18230405 | I19: ='SFNC Detail_REM E215 Elec'!D5 -> 36735 | J19: ='SFNC Detail_REM E215 Elec'!E5 -> 33061.5 | K19: ='SFNC Detail_REM E215 Elec'!F5 -> 30000 | L19: ='SFNC Detail_REM E215 Elec'!G5 -> 0 | M19: ='SFNC Detail_REM E215 Elec'!H5 -> 420000 | N19: ='SFNC Detail_REM E215 Elec'!I5 -> 0 | O19: ='SFNC Detail_REM E215 Elec'!J5 -> 0 | P19: ='SFNC Detail_REM E215 Elec'!K5 -> 262500 | Q19: ='SFNC Detail_REM E215 Elec'!L5 -> 0 | R19: ='SFNC Detail_REM E215 Elec'!M5 -> 782296.5 | S19: ='SFNC Detail_REM E215 Elec'!N5 -> 315000
B20: MfgHmNew Detail_REM E215 Elec | C20: E215 | E20: Manufactured Home New Construction | H20: 18230071 | I20: ='NCMfgHome Detail_REM E215 Elec'!D5 -> 15345 | J20: ='NCMfgHome Detail_REM E215 Elec'!E5 -> 13810.5 | K20: ='NCMfgHome Detail_REM E215 Elec'!F5 -> 6000 | L20: ='NCMfgHome Detail_REM E215 Elec'!G5 -> 0 | M20: ='NCMfgHome Detail_REM E215 Elec'!H5 -> 60000 | N20: ='NCMfgHome Detail_REM E215 Elec'!I5 -> 0 | O20: ='NCMfgHome Detail_REM E215 Elec'!J5 -> 0 | P20: ='NCMfgHome Detail_REM E215 Elec'!K5 -> 233600 | Q20: ='NCMfgHome Detail_REM E215 Elec'!L5 -> 0 | R20: ='NCMfgHome Detail_REM E215 Elec'!M5 -> 328755.5 | S20: ='NCMfgHome Detail_REM E215 Elec'!N5 -> 186128
B21: Efficiency Boost E217 Elec | C21: E214 & 217 | E21: Efficiency Boost | H21: 18230751 | I21: ='Efficiency Boost_E217 Elec'!D5 -> 37625 | J21: ='Efficiency Boost_E217 Elec'!E5 -> 33862.5 | K21: ='Efficiency Boost_E217 Elec'!F5 -> 30000 | L21: ='Efficiency Boost_E217 Elec'!G5 -> 0 | M21: ='Efficiency Boost_E217 Elec'!H5 -> 0 | N21: ='Efficiency Boost_E217 Elec'!I5 -> 0 | O21: ='Efficiency Boost_E217 Elec'!J5 -> 0 | P21: ='Efficiency Boost_E217 Elec'!K5 -> 0 | Q21: ='Efficiency Boost_E217 Elec'!L5 -> 0 | R21: ='Efficiency Boost_E217 Elec'!M5 -> 101487.5 | S21: ='Efficiency Boost_E217 Elec'!N5 -> 0
B22: MF Retr Detail_REM E217 Elec | C22: E217 | E22: Multifamily Retrofit | H22: 18230407 | I22: ='MF Retr Detail_REM E217 Elec'!D5 -> 135174 | J22: ='MF Retr Detail_REM E217 Elec'!E5 -> 121656.6 | K22: ='MF Retr Detail_REM E217 Elec'!F5 -> 60000 | L22: ='MF Retr Detail_REM E217 Elec'!G5 -> 2500 | M22: ='MF Retr Detail_REM E217 Elec'!H5 -> 886869.43 | N22: ='MF Retr Detail_REM E217 Elec'!I5 -> 0 | O22: ='MF Retr Detail_REM E217 Elec'!J5 -> 0 | P22: ='MF Retr Detail_REM E217 Elec'!K5 -> 5373386.75 | Q22: ='MF Retr Detail_REM E217 Elec'!L5 -> 0 | R22: ='MF Retr Detail_REM E217 Elec'!M5 -> 6579586.78 | S22: ='MF Retr Detail_REM E217 Elec'!N5 -> 5421157.2
B23: MFNC Detail_REM E218 Elec | C23: E218 | E23: Multi-Family New Construction | H23: 18230486 | I23: ='MFNC Detail_REM E218 Elec'!D5 -> 106290 | J23: ='MFNC Detail_REM E218 Elec'!E5 -> 95661 | K23: ='MFNC Detail_REM E218 Elec'!F5 -> 20000 | L23: ='MFNC Detail_REM E218 Elec'!G5 -> 0 | M23: ='MFNC Detail_REM E218 Elec'!H5 -> 511511 | N23: ='MFNC Detail_REM E218 Elec'!I5 -> 0 | O23: ='MFNC Detail_REM E218 Elec'!J5 -> 0 | P23: ='MFNC Detail_REM E218 Elec'!K5 -> 1810200 | Q23: ='MFNC Detail_REM E218 Elec'!L5 -> 0 | R23: ='MFNC Detail_REM E218 Elec'!M5 -> 2543662 | S23: ='MFNC Detail_REM E218 Elec'!N5 -> 4015000
G24: Total, Residential Energy Management | I24: =SUM(I8:I23) -> 1763107 | J24: 1586796.3 | K24: 895700 | L24: 11950 | M24: 6386985.38 | N24: 55350 | O24: 0 | P24: 33947717.98 | Q24: 0 | R24: 43621667.46 | S24: 78715051.07
C27: Business Energy Managment
E28: Commercial/Industrial Retrofit | I28: =SUM(I29:I34) -> 2519094 | J28: 2273184.6 | K28: 107000 | L28: 91000 | M28: 2087774.9 | N28: 23500 | O28: 59000 | P28: 14495000 | Q28: 0 | R28: =SUM(R29:R34) -> 21655553.5 | S28: =SUM(S29:S34) -> 44100000
B29: CI Retr Detail_BEM E250 Elec | C29: E250 | E29: Retrofit Custom Grants | H29: 18230711 | I29: ='CI Retr Detail_BEM E250 Elec'!D5 -> 923569 | J29: ='CI Retr Detail_BEM E250 Elec'!E5 -> 831212.1 | K29: ='CI Retr Detail_BEM E250 Elec'!F5 -> 20000 | L29: ='CI Retr Detail_BEM E250 Elec'!G5 -> 25000 | M29: ='CI Retr Detail_BEM E250 Elec'!H5 -> 245000 | N29: ='CI Retr Detail_BEM E250 Elec'!I5 -> 3500 | O29: ='CI Retr Detail_BEM E250 Elec'!J5 -> 55000 | P29: ='CI Retr Detail_BEM E250 Elec'!K5 -> 3400000 | Q29: ='CI Retr Detail_BEM E250 Elec'!L5 -> 0 | R29: ='CI Retr Detail_BEM E250 Elec'!M5 -> 5503281.1 | S29: ='CI Retr Detail_BEM E250 Elec'!N5 -> 8000000
B30: BusLgtGrants_BEM E250 Elect | C30: E250 | E30: Custom Lighting Grants | H30: 18230724 | I30: ='BusLgtGrants_BEM E250 Elect'!D5 -> 828020 | J30: ='BusLgtGrants_BEM E250 Elect'!E5 -> 745218 | K30: ='BusLgtGrants_BEM E250 Elect'!F5 -> 25000 | L30: ='BusLgtGrants_BEM E250 Elect'!G5 -> 34000 | M30: ='BusLgtGrants_BEM E250 Elect'!H5 -> 180000 | N30: ='BusLgtGrants_BEM E250 Elect'!I5 -> 20000 | O30: ='BusLgtGrants_BEM E250 Elect'!J5 -> 0 | P30: ='BusLgtGrants_BEM E250 Elect'!K5 -> 6510000 | Q30: ='BusLgtGrants_BEM E250 Elect'!L5 -> 0 | R30: ='BusLgtGrants_BEM E250 Elect'!M5 -> 8342238 | S30: ='BusLgtGrants_BEM E250 Elect'!N5 -> 18600000
B31: CI Indust_BEM_E250_Elec | C31: E250 | E31: Industrial Programs | H31: 18231137 | I31: ='CI Indust_BEM_E250_Elec'!D5 -> 602885 | J31: ='CI Indust_BEM_E250_Elec'!E5 -> 542596.5 | K31: ='CI Indust_BEM_E250_Elec'!F5 -> 30000 | L31: ='CI Indust_BEM_E250_Elec'!G5 -> 24000 | M31: ='CI Indust_BEM_E250_Elec'!H5 -> 110000 | N31: ='CI Indust_BEM_E250_Elec'!I5 -> 0 | O31: ='CI Indust_BEM_E250_Elec'!J5 -> 0 | P31: ='CI Indust_BEM_E250_Elec'!K5 -> 2335000 | Q31: ='CI Indust_BEM_E250_Elec'!L5 -> 0 | R31: ='CI Indust_BEM_E250_Elec'!M5 -> 3644481.5 | S31: ='CI Indust_BEM_E250_Elec'!N5 -> 8500000
C32: E250 | E32: Clean Buildings Accelerator | H32: 18230013 | I32: ='Cln Build Accel_E250_Elec'!D5 -> 107160 | J32: ='Cln Build Accel_E250_Elec'!E5 -> 96444 | K32: ='Cln Build Accel_E250_Elec'!F5 -> 32000 | L32: ='Cln Build Accel_E250_Elec'!G5 -> 8000 | M32: ='Cln Build Accel_E250_Elec'!H5 -> 320000 | N32: ='Cln Build Accel_E250_Elec'!I5 -> 0 | O32: ='Cln Build Accel_E250_Elec'!J5 -> 4000 | P32: ='Cln Build Accel_E250_Elec'!K5 -> 0 | Q32: ='Cln Build Accel_E250_Elec'!L5 -> 0 | R32: ='Cln Build Accel_E250_Elec'!M5 -> 567604 | S32: ='Cln Build Accel_E250_Elec'!N5 -> 1000000
C33: E250 | E33: Telecommunications Efficiency | H33: 18239043 | I33: ='Telecom Effic_E250_Elec'!D5 -> 44200 | J33: ='Telecom Effic_E250_Elec'!E5 -> 39780 | K33: ='Telecom Effic_E250_Elec'!F5 -> 0 | L33: ='Telecom Effic_E250_Elec'!G5 -> 0 | M33: ='Telecom Effic_E250_Elec'!H5 -> 332774.9 | N33: ='Telecom Effic_E250_Elec'!I5 -> 0 | O33: ='Telecom Effic_E250_Elec'!J5 -> 0 | P33: ='Telecom Effic_E250_Elec'!K5 -> 2250000 | Q33: ='Telecom Effic_E250_Elec'!L5 -> 0 | R33: ='Telecom Effic_E250_Elec'!M5 -> 2666754.9 | S33: ='Telecom Effic_E250_Elec'!N5 -> 5000000
C34: E250 | E34: Virtual Commissioning | H34: 18230015 | I34: ='Virt Commiss_E250_Elec'!D5 -> 13260 | J34: ='Virt Commiss_E250_Elec'!E5 -> 17934 | K34: ='Virt Commiss_E250_Elec'!F5 -> 0 | L34: ='Virt Commiss_E250_Elec'!G5 -> 0 | M34: ='Virt Commiss_E250_Elec'!H5 -> 900000 | N34: ='Virt Commiss_E250_Elec'!I5 -> 0 | O34: ='Virt Commiss_E250_Elec'!J5 -> 0 | P34: ='Virt Commiss_E250_Elec'!K5 -> 0 | Q34: ='Virt Commiss_E250_Elec'!L5 -> 0 | R34: ='Virt Commiss_E250_Elec'!M5 -> 931194 | S34: ='Virt Commiss_E250_Elec'!N5 -> 3000000
B35: CI NC Detail_BEM E251 Elec | C35: E251 | E35: Commercial/Industrial New Construction | H35: 18230715 | I35: ='CI NC Detail_BEM E251 Elec'!D5 -> 257680 | J35: ='CI NC Detail_BEM E251 Elec'!E5 -> 231912 | K35: ='CI NC Detail_BEM E251 Elec'!F5 -> 10500 | L35: ='CI NC Detail_BEM E251 Elec'!G5 -> 4725 | M35: ='CI NC Detail_BEM E251 Elec'!H5 -> 35000 | N35: ='CI NC Detail_BEM E251 Elec'!I5 -> 5250 | O35: ='CI NC Detail_BEM E251 Elec'!J5 -> 10500 | P35: ='CI NC Detail_BEM E251 Elec'!K5 -> 1395000 | Q35: ='CI NC Detail_BEM E251 Elec'!L5 -> 0 | R35: ='CI NC Detail_BEM E251 Elec'!M5 -> 1950567 | S35: ='CI NC Detail_BEM E251 Elec'!N5 -> 3000000
E36: Commercial Strategic Energy Management | I36: =SUM(I37:I38) -> 819321 | J36: 737388.9 | K36: 4200 | L36: 19500 | M36: 221545 | N36: 500 | O36: 9500 | P36: 990000 | Q36: 0 | R36: =SUM(R37:R38) -> 2801954.9 | S36: 14744500
B37: RCM Detail_BEM E253 Elec | C37: E253 | E37: SEM | H37: 18230723 | I37: ='RCM Detail_BEM E253 Elec'!D5 -> 657671 | J37: ='RCM Detail_BEM E253 Elec'!E5 -> 591903.9 | K37: ='RCM Detail_BEM E253 Elec'!F5 -> 3500 | L37: ='RCM Detail_BEM E253 Elec'!G5 -> 16500 | M37: ='RCM Detail_BEM E253 Elec'!H5 -> 221545 | N37: ='RCM Detail_BEM E253 Elec'!I5 -> 500 | O37: ='RCM Detail_BEM E253 Elec'!J5 -> 1500 | P37: ='RCM Detail_BEM E253 Elec'!K5 -> 640000 | Q37: ='RCM Detail_BEM E253 Elec'!L5 -> 0 | R37: ='RCM Detail_BEM E253 Elec'!M5 -> 2133119.9 | S37: ='RCM Detail_BEM E253 Elec'!N5 -> 13744500
C38: E253 | E38: Pay For Performance | H38: 18236102 | I38: ='Pay For Perf_E253_Elec'!D5 -> 161650 | J38: ='Pay For Perf_E253_Elec'!E5 -> 145485 | K38: ='Pay For Perf_E253_Elec'!F5 -> 700 | L38: ='Pay For Perf_E253_Elec'!G5 -> 3000 | M38: ='Pay For Perf_E253_Elec'!H5 -> 0 | N38: ='Pay For Perf_E253_Elec'!I5 -> 0 | O38: ='Pay For Perf_E253_Elec'!J5 -> 8000 | P38: ='Pay For Perf_E253_Elec'!K5 -> 350000 | Q38: ='Pay For Perf_E253_Elec'!L5 -> 0 | R38: ='Pay For Perf_E253_Elec'!M5 -> 668835 | S38: ='Pay For Perf_E253_Elec'!N5 -> 1000000
E39: High Voltage, Self-Directed | I39: =SUM(I40:I41) -> 224946 | J39: =SUM(J40:J41) -> 202451.4 | K39: 0 | L39: 0 | M39: 0 | N39: 0 | O39: 0 | P39: 2007226 | Q39: 0 | R39: =SUM(R40:R41) -> 2434623.4 | S39: =SUM(S40:S41) -> 2991225
B40: LPSD_Detail_449_Elec | C40: E258 | E40: 449 Customers | H40: 18230720 | I40: =LPSD_Detail_449_Elec!D5 -> 128385 | J40: =LPSD_Detail_449_Elec!E5 -> 115546.5 | K40: =LPSD_Detail_449_Elec!F5 -> 0 | L40: =LPSD_Detail_449_Elec!G5 -> 0 | M40: =LPSD_Detail_449_Elec!H5 -> 0 | N40: =LPSD_Detail_449_Elec!I5 -> 0 | O40: =LPSD_Detail_449_Elec!J5 -> 0 | P40: =LPSD_Detail_449_Elec!K5 -> 1094246 | Q40: =LPSD_Detail_449_Elec!L5 -> 0 | R40: =LPSD_Detail_449_Elec!M5 -> 1338177.5 | S40: =LPSD_Detail_449_Elec!N5 -> 2000000
B41: LPSD_Detail_Non-449 Elec | C41: E258 | E41: Non-449 Customers | H41: 18230721 | I41: ='LPSD_Detail_Non-449 Elec'!D5 -> 96561 | J41: ='LPSD_Detail_Non-449 Elec'!E5 -> 86904.9 | K41: ='LPSD_Detail_Non-449 Elec'!F5 -> 0 | L41: ='LPSD_Detail_Non-449 Elec'!G5 -> 0 | M41: ='LPSD_Detail_Non-449 Elec'!H5 -> 0 | N41: ='LPSD_Detail_Non-449 Elec'!I5 -> 0 | O41: ='LPSD_Detail_Non-449 Elec'!J5 -> 0 | P41: ='LPSD_Detail_Non-449 Elec'!K5 -> 912980 | Q41: ='LPSD_Detail_Non-449 Elec'!L5 -> 0 | R41: ='LPSD_Detail_Non-449 Elec'!M5 -> 1096445.9 | S41: ='LPSD_Detail_Non-449 Elec'!N5 -> 991225
C42: E262 | E42: Business Rebates | I42: =SUM(I43:I49) -> 477620 | J42: =SUM(J43:J49) -> 429858 | K42: 308020 | L42: 18950 | M42: 2891178.77 | N42: 4100 | O42: 2000 | P42: 11906657.42 | Q42: 0 | R42: =SUM(R43:R49) -> 16038384.19 | S42: =SUM(S43:S49) -> 31300738.35
B43: Comm Lgt Mkdn_E262 Elect | C43: E262 | E43: Lighting to Go--also referred to as Business Lighting Markdowns | H43: 18230714 | I43: ='Comm Lgt Mkdn_E262 Elect'!D5 -> 109725 | J43: ='Comm Lgt Mkdn_E262 Elect'!E5 -> 98752.5 | K43: ='Comm Lgt Mkdn_E262 Elect'!F5 -> 21000 | L43: ='Comm Lgt Mkdn_E262 Elect'!G5 -> 8000 | M43: ='Comm Lgt Mkdn_E262 Elect'!H5 -> 966586.77 | N43: ='Comm Lgt Mkdn_E262 Elect'!I5 -> 1000 | O43: ='Comm Lgt Mkdn_E262 Elect'!J5 -> 1000 | P43: ='Comm Lgt Mkdn_E262 Elect'!K5 -> 2031735.42 | Q43: ='Comm Lgt Mkdn_E262 Elect'!L5 -> 0 | R43: ='Comm Lgt Mkdn_E262 Elect'!M5 -> 3237799.69 | S43: ='Comm Lgt Mkdn_E262 Elect'!N5 -> 13500000
B44: Comm Kit-Laund_E262 Elect | C44: E262 | E44: Commercial Foodservice | H44: 18230716 | I44: ='Comm Kit-Laund_E262 Elect'!D5 -> 6420 | J44: ='Comm Kit-Laund_E262 Elect'!E5 -> 5778 | K44: ='Comm Kit-Laund_E262 Elect'!F5 -> 17120 | L44: ='Comm Kit-Laund_E262 Elect'!G5 -> 950 | M44: ='Comm Kit-Laund_E262 Elect'!H5 -> 417272 | N44: ='Comm Kit-Laund_E262 Elect'!I5 -> 100 | O44: ='Comm Kit-Laund_E262 Elect'!J5 -> 0 | P44: ='Comm Kit-Laund_E262 Elect'!K5 -> 584924 | Q44: ='Comm Kit-Laund_E262 Elect'!L5 -> 0 | R44: ='Comm Kit-Laund_E262 Elect'!M5 -> 1032564 | S44: ='Comm Kit-Laund_E262 Elect'!N5 -> 1430935
B45: Comm HVAC_E262 Elect | C45: E262 | E45: Commercial HVAC Rebates | H45: 18230718 | I45: ='Comm HVAC_E262 Elect'!D5 -> 86025 | J45: ='Comm HVAC_E262 Elect'!E5 -> 77422.5 | K45: ='Comm HVAC_E262 Elect'!F5 -> 55200 | L45: ='Comm HVAC_E262 Elect'!G5 -> 1000 | M45: ='Comm HVAC_E262 Elect'!H5 -> 30000 | N45: ='Comm HVAC_E262 Elect'!I5 -> 1000 | O45: ='Comm HVAC_E262 Elect'!J5 -> 0 | P45: ='Comm HVAC_E262 Elect'!K5 -> 379900 | Q45: ='Comm HVAC_E262 Elect'!L5 -> 0 | R45: ='Comm HVAC_E262 Elect'!M5 -> 630547.5 | S45: ='Comm HVAC_E262 Elect'!N5 -> 760803.35
C46: E262 | E46: Commercial Midstream HVAC and Water Heat | H46: 18230524 | I46: ='Comm Midstream_E262 Elect'!D5 -> 61027 | J46: ='Comm Midstream_E262 Elect'!E5 -> 54924.3 | K46: ='Comm Midstream_E262 Elect'!F5 -> 0 | L46: ='Comm Midstream_E262 Elect'!G5 -> 1500 | M46: ='Comm Midstream_E262 Elect'!H5 -> 121320 | N46: ='Comm Midstream_E262 Elect'!I5 -> 500 | O46: ='Comm Midstream_E262 Elect'!J5 -> 0 | P46: ='Comm Midstream_E262 Elect'!K5 -> 390000 | Q46: ='Comm Midstream_E262 Elect'!L5 -> 0 | R46: ='Comm Midstream_E262 Elect'!M5 -> 629271.3 | S46: ='Comm Midstream_E262 Elect'!N5 -> 609000
B47: Sm Bus DI_E262 Elect | C47: E262 | E47: Small Business Direct Install | H47: 18231134 | I47: ='Sm Bus DI_E262 Elect'!D5 -> 118653 | J47: ='Sm Bus DI_E262 Elect'!E5 -> 106787.7 | K47: ='Sm Bus DI_E262 Elect'!F5 -> 129500 | L47: ='Sm Bus DI_E262 Elect'!G5 -> 6000 | M47: ='Sm Bus DI_E262 Elect'!H5 -> 1356000 | N47: ='Sm Bus DI_E262 Elect'!I5 -> 1000 | O47: ='Sm Bus DI_E262 Elect'!J5 -> 1000 | P47: ='Sm Bus DI_E262 Elect'!K5 -> 6109888 | Q47: ='Sm Bus DI_E262 Elect'!L5 -> 0 | R47: ='Sm Bus DI_E262 Elect'!M5 -> 7828828.7 | S47: ='Sm Bus DI_E262 Elect'!N5 -> 13000000
B48: New BusRebt prgm_E262 Elec | C48: E262 | E48: Commercial General Rebates | H48: 1823nnnn | I48: ='Comm Genl Rbats_E262 Elec'!D5 -> 0 | J48: ='Comm Genl Rbats_E262 Elec'!E5 -> 0 | K48: ='Comm Genl Rbats_E262 Elec'!F5 -> 0 | L48: ='Comm Genl Rbats_E262 Elec'!G5 -> 0 | M48: ='Comm Genl Rbats_E262 Elec'!H5 -> 0 | N48: ='Comm Genl Rbats_E262 Elec'!I5 -> 0 | O48: ='Comm Genl Rbats_E262 Elec'!J5 -> 0 | P48: ='Comm Genl Rbats_E262 Elec'!K5 -> 0 | Q48: ='Comm Genl Rbats_E262 Elec'!L5 -> 0 | R48: ='Comm Genl Rbats_E262 Elec'!M5 -> 0 | S48: ='Comm Genl Rbats_E262 Elec'!N5 -> 0
C49: E262 | E49: Lodging Rebates | H49: 18230014 | I49: ='Lodging Rbats_E262 Elec'!D5 -> 95770 | J49: ='Lodging Rbats_E262 Elec'!E5 -> 86193 | K49: ='Lodging Rbats_E262 Elec'!F5 -> 85200 | L49: ='Lodging Rbats_E262 Elec'!G5 -> 1500 | M49: ='Lodging Rbats_E262 Elec'!H5 -> 0 | N49: ='Lodging Rbats_E262 Elec'!I5 -> 500 | O49: ='Lodging Rbats_E262 Elec'!J5 -> 0 | P49: ='Lodging Rbats_E262 Elec'!K5 -> 2410210 | Q49: ='Lodging Rbats_E262 Elec'!L5 -> 0 | R49: ='Lodging Rbats_E262 Elec'!M5 -> 2679373 | S49: ='Lodging Rbats_E262 Elec'!N5 -> 2000000
G50: Total, Business Energy Management | I50: =SUM(I29:I36)+I39+I42 -> 4298661 | J50: 3874794.9 | K50: 429720 | L50: 134175 | M50: 5235498.67 | N50: 33350 | O50: 81000 | P50: 30793883.42 | Q50: 0 | R50: =SUM(R29:R36)+R39+R42 -> 44881082.99 | S50: =SUM(S29:S36)+S39+S98+S42 -> 96136463.35
C53: Pilots With Uncertain Savings
B54: REM Pilots E249 Elec | C54: E249 | E54: Residential Pilots | I54: =SUM(I55:I55) -> 3116 | J54: 2804.4 | K54: 0 | L54: 0 | M54: 5000 | N54: 0 | O54: 0 | P54: 0 | Q54: 0 | R54: 10920.4 | S54: 0
C55: E249 | E55: Single Family AMI Engagement | H55: 18230749 | I55: ='SF AMI Engmt Pilot_Elec'!D5 -> 3116 | J55: ='SF AMI Engmt Pilot_Elec'!E5 -> 2804.4 | K55: ='SF AMI Engmt Pilot_Elec'!F5 -> 0 | L55: ='SF AMI Engmt Pilot_Elec'!G5 -> 0 | M55: ='SF AMI Engmt Pilot_Elec'!H5 -> 5000 | N55: ='SF AMI Engmt Pilot_Elec'!I5 -> 0 | O55: ='SF AMI Engmt Pilot_Elec'!J5 -> 0 | P55: ='SF AMI Engmt Pilot_Elec'!K5 -> 0 | Q55: ='SF AMI Engmt Pilot_Elec'!L5 -> 0 | R55: ='SF AMI Engmt Pilot_Elec'!M5 -> 10920.4 | S55: ='SF AMI Engmt Pilot_Elec'!N5 -> 0
B56: BEM Pilots E249 Elec | C56: E249 | E56: Commercial Pilots | I56: =SUM(I57) -> 0 | J56: 0 | K56: 0 | L56: 0 | M56: 0 | N56: 0 | O56: 0 | P56: 0 | Q56: 0 | R56: 0 | S56: 0
C57: E249 | I57: ='SMB AMI Engmt Pilot_Elec'!E5 -> 0 | J57: ='SMB AMI Engmt Pilot_Elec'!F5 -> 0 | K57: ='SMB AMI Engmt Pilot_Elec'!G5 -> 0 | L57: ='SMB AMI Engmt Pilot_Elec'!H5 -> 0 | M57: ='SMB AMI Engmt Pilot_Elec'!I5 -> 0 | N57: ='SMB AMI Engmt Pilot_Elec'!J5 -> 0 | O57: ='SMB AMI Engmt Pilot_Elec'!K5 -> 0 | P57: ='SMB AMI Engmt Pilot_Elec'!L5 -> 0 | Q57: ='SMB AMI Engmt Pilot_Elec'!M5 -> 0 | R57: ='SMB AMI Engmt Pilot_Elec'!N5 -> 0 | S57: ='SMB AMI Engmt Pilot_Elec'!O5 -> 0
G58: Total, Pilots | I58: =SUM(I54)+I56 -> 3116 | J58: 2804.4 | K58: 0 | L58: 0 | M58: 5000 | N58: 0 | O58: 0 | P58: 0 | Q58: 0 | R58: 10920.4 | S58: 0
C62: Regional Efficiency Programs
B63: NEEA Detail_E254 elec | C63: E254 | E63: Northwest Energy Efficiency Alliance | H63: 18230421 | I63: ='NEEA Detail_E254 elec'!D5 -> 0 | J63: ='NEEA Detail_E254 elec'!E5 -> 0 | K63: ='NEEA Detail_E254 elec'!F5 -> 0 | L63: ='NEEA Detail_E254 elec'!G5 -> 0 | M63: ='NEEA Detail_E254 elec'!H5 -> 4916640 | N63: ='NEEA Detail_E254 elec'!I5 -> 0 | O63: ='NEEA Detail_E254 elec'!J5 -> 0 | P63: ='NEEA Detail_E254 elec'!K5 -> 0 | Q63: ='NEEA Detail_E254 elec'!L5 -> 0 | R63: ='NEEA Detail_E254 elec'!M5 -> 4916640 | S63: ='NEEA Detail_E254 elec'!N5 -> 16721673
B64: TDSM_Regnl_elec_e219 | C64: E219 | E64: Targeted DSM | H64: 18230134 | I64: ='TDSM_Regnl_E219 Elec'!D5 -> 161772 | J64: ='TDSM_Regnl_E219 Elec'!E5 -> 145594.8 | K64: ='TDSM_Regnl_E219 Elec'!F5 -> 10000 | L64: ='TDSM_Regnl_E219 Elec'!G5 -> 1600 | M64: ='TDSM_Regnl_E219 Elec'!H5 -> 200000 | N64: ='TDSM_Regnl_E219 Elec'!I5 -> 0 | O64: ='TDSM_Regnl_E219 Elec'!J5 -> 0 | P64: ='TDSM_Regnl_E219 Elec'!K5 -> 50000 | Q64: ='TDSM_Regnl_E219 Elec'!L5 -> 0 | R64: ='TDSM_Regnl_E219 Elec'!M5 -> 568966.8 | S64: ='TDSM_Regnl_E219 Elec'!N5 -> 0
B65: T&D Detail_Reg E292 elec | C65: E292 | E65: Transmission & Distribution | H65: 18230713 | I65: ='T&D Detail_Reg E292 elec'!C5 -> 0 | J65: ='T&D Detail_Reg E292 elec'!D5 -> 0 | K65: ='T&D Detail_Reg E292 elec'!E5 -> 0 | L65: ='T&D Detail_Reg E292 elec'!F5 -> 0 | M65: ='T&D Detail_Reg E292 elec'!G5 -> 0 | N65: ='T&D Detail_Reg E292 elec'!H5 -> 0 | O65: ='T&D Detail_Reg E292 elec'!I5 -> 0 | P65: ='T&D Detail_Reg E292 elec'!J5 -> 0 | Q65: ='T&D Detail_Reg E292 elec'!K5 -> 0 | R65: ='T&D Detail_Reg E292 elec'!L5 -> 0 | S65: ='T&D Detail_Reg E292 elec'!M5 -> 8878000
G66: Total, Regional Efficiency Programs | I66: =SUM(I63:I65) -> 161772 | J66: 145594.8 | K66: 10000 | L66: 1600 | M66: 5116640 | N66: 0 | O66: 0 | P66: 50000 | Q66: 0 | R66: =SUM(R63:R65) -> 5485606.8 | S66: =SUM(S63:S65) -> 25599673
C70: Energy Efficiency Portfolio Support
B71: Data & Systm Svcs_Elect | E71: Data and Systems Services | H71: 18230745 | I71: ='Data & Systm Svcs_Elect'!D5 -> 424821 | J71: ='Data & Systm Svcs_Elect'!E5 -> 382338.9 | K71: ='Data & Systm Svcs_Elect'!F5 -> 0 | L71: ='Data & Systm Svcs_Elect'!G5 -> 8700 | M71: ='Data & Systm Svcs_Elect'!H5 -> 269700 | N71: ='Data & Systm Svcs_Elect'!I5 -> 0 | O71: ='Data & Systm Svcs_Elect'!J5 -> 0 | P71: ='Data & Systm Svcs_Elect'!K5 -> 0 | Q71: ='Data & Systm Svcs_Elect'!L5 -> 0 | R71: ='Data & Systm Svcs_Elect'!M5 -> 1085559.9
B72: Rebt Procg Detail_Elect | E72: Rebates Processing | H72: 18230507 | I72: ='Rebt Procg Detail_Elect'!D5 -> 490203 | J72: ='Rebt Procg Detail_Elect'!E5 -> 441182.7 | K72: ='Rebt Procg Detail_Elect'!F5 -> 0 | L72: ='Rebt Procg Detail_Elect'!G5 -> 20000 | M72: ='Rebt Procg Detail_Elect'!H5 -> 180000 | N72: ='Rebt Procg Detail_Elect'!I5 -> 5000 | O72: ='Rebt Procg Detail_Elect'!J5 -> 0 | P72: ='Rebt Procg Detail_Elect'!K5 -> 0 | Q72: ='Rebt Procg Detail_Elect'!L5 -> 0 | R72: ='Rebt Procg Detail_Elect'!M5 -> 1136385.7
B73: VTeam Detail_R&C_Elec | E73: Verification Team | H73: 18230418 | I73: ='Verifctn Team Detail Elec'!D5 -> 514650 | J73: ='Verifctn Team Detail Elec'!E5 -> 463185 | K73: ='Verifctn Team Detail Elec'!F5 -> 0 | L73: ='Verifctn Team Detail Elec'!G5 -> 20000 | M73: ='Verifctn Team Detail Elec'!H5 -> 120000 | N73: ='Verifctn Team Detail Elec'!I5 -> 10000 | O73: ='Verifctn Team Detail Elec'!J5 -> 0 | P73: ='Verifctn Team Detail Elec'!K5 -> 0 | Q73: ='Verifctn Team Detail Elec'!L5 -> 0 | R73: ='Verifctn Team Detail Elec'!M5 -> 1127835
B74: ProgDev Detail_R&C_ Elec | E74: Programs Support | H74: 18230810 | I74: ='Progs Supp Detail_PS_ Elec'!D5 -> 651630 | J74: ='Progs Supp Detail_PS_ Elec'!E5 -> 586467 | K74: ='Progs Supp Detail_PS_ Elec'!F5 -> 0 | L74: ='Progs Supp Detail_PS_ Elec'!G5 -> 34800 | M74: ='Progs Supp Detail_PS_ Elec'!H5 -> 0 | N74: ='Progs Supp Detail_PS_ Elec'!I5 -> 0 | O74: ='Progs Supp Detail_PS_ Elec'!J5 -> 0 | P74: ='Progs Supp Detail_PS_ Elec'!K5 -> 0 | Q74: ='Progs Supp Detail_PS_ Elec'!L5 -> 0 | R74: ='Progs Supp Detail_PS_ Elec'!M5 -> 1272897
B75: TradeAlly Detail_PS_ Elec | E75: Trade Ally Memberships | H75: 18230730 | I75: ='TradeAlly Detail_PS_ Elec'!D5 -> 0 | J75: ='TradeAlly Detail_PS_ Elec'!E5 -> 0 | K75: ='TradeAlly Detail_PS_ Elec'!F5 -> 0 | L75: ='TradeAlly Detail_PS_ Elec'!G5 -> 0 | M75: ='TradeAlly Detail_PS_ Elec'!H5 -> 174000 | N75: ='TradeAlly Detail_PS_ Elec'!I5 -> 0 | O75: ='TradeAlly Detail_PS_ Elec'!J5 -> 0 | P75: ='TradeAlly Detail_PS_ Elec'!K5 -> 0 | Q75: ='TradeAlly Detail_PS_ Elec'!L5 -> 0 | R75: ='TradeAlly Detail_PS_ Elec'!M5 -> 174000
B76: CAN_Elect | E76: Trade Ally Network (revenue + cost) | H76: 18230746 | I76: =REP_Elect!D5 -> 127900 | J76: =REP_Elect!E5 -> 115110 | K76: =REP_Elect!F5 -> 20000 | L76: =REP_Elect!G5 -> 5000 | M76: =REP_Elect!H5 -> 60000 | N76: =REP_Elect!I5 -> 2000 | O76: =REP_Elect!J5 -> 500 | P76: =REP_Elect!K5 -> 0 | Q76: =REP_Elect!L5 -> -350000 | R76: =REP_Elect!M5 -> -19490
B77: ABS Detail_PSWE_Elec | E77: Automated Benchmarking System | H77: 18230411 | I77: ='ABS Detail_PSWE_Elec'!D5 -> 237225 | J77: ='ABS Detail_PSWE_Elec'!E5 -> 213502.5 | K77: ='ABS Detail_PSWE_Elec'!F5 -> 0 | L77: ='ABS Detail_PSWE_Elec'!G5 -> 0 | M77: ='ABS Detail_PSWE_Elec'!H5 -> 193500 | N77: ='ABS Detail_PSWE_Elec'!I5 -> 0 | O77: ='ABS Detail_PSWE_Elec'!J5 -> 0 | P77: ='ABS Detail_PSWE_Elec'!K5 -> 0 | Q77: ='ABS Detail_PSWE_Elec'!L5 -> 0 | R77: ='ABS Detail_PSWE_Elec'!M5 -> 644227.5
B78: Engy Adv Detail_PSCE Elec | E78: Energy Advisors | H78: 18230610 | I78: ='Engy Adv Detail_PSCE Elec'!D5 -> 817191 | J78: ='Engy Adv Detail_PSCE Elec'!E5 -> 735471.9 | K78: ='Engy Adv Detail_PSCE Elec'!F5 -> 0 | L78: ='Engy Adv Detail_PSCE Elec'!G5 -> 40000 | M78: ='Engy Adv Detail_PSCE Elec'!H5 -> 0 | N78: ='Engy Adv Detail_PSCE Elec'!I5 -> 0 | O78: ='Engy Adv Detail_PSCE Elec'!J5 -> 0 | P78: ='Engy Adv Detail_PSCE Elec'!K5 -> 0 | Q78: ='Engy Adv Detail_PSCE Elec'!L5 -> 0 | R78: ='Engy Adv Detail_PSCE Elec'!M5 -> 1592662.9
E79: Equity Support | H79: 18239999 | I79: ='Equity Support Elec'!D5 -> 0 | J79: ='Equity Support Elec'!E5 -> 0 | K79: ='Equity Support Elec'!F5 -> 0 | L79: ='Equity Support Elec'!G5 -> 0 | M79: ='Equity Support Elec'!H5 -> 39620 | N79: ='Equity Support Elec'!I5 -> 4015 | O79: ='Equity Support Elec'!J5 -> 0 | P79: ='Equity Support Elec'!K5 -> 0 | Q79: ='Equity Support Elec'!L5 -> 0 | R79: ='Equity Support Elec'!M5 -> 43635
B80: EEC Detail_PS_Elec | E80: Energy Efficient Communities | H80: 18230811 | I80: ='EEC Detail_PS_Elec'!D5 -> 630780 | J80: ='EEC Detail_PS_Elec'!E5 -> 567702 | K80: ='EEC Detail_PS_Elec'!F5 -> 17000 | L80: ='EEC Detail_PS_Elec'!G5 -> 34000 | M80: ='EEC Detail_PS_Elec'!H5 -> 20000 | N80: ='EEC Detail_PS_Elec'!I5 -> 26000 | O80: ='EEC Detail_PS_Elec'!J5 -> 0 | P80: ='EEC Detail_PS_Elec'!K5 -> 0 | Q80: ='EEC Detail_PS_Elec'!L5 -> 0 | R80: ='EEC Detail_PS_Elec'!M5 -> 1295482
B81: CustOnline Detail_PSWE_Elec | D81: New Name | E81: Customer Digital Services | I81: =SUM(I82:I85) -> 166253 | J81: =SUM(J82:J85) -> 149627.7 | K81: 137500 | L81: 2750 | M81: 1291792.61 | N81: 0 | O81: 0 | P81: 0 | Q81: 0 | R81: 1747923.31
F82: Digital Experience | H82: 18230400 | I82: ='Dig Exprnc_Elec'!D5 -> 0 | J82: ='Dig Exprnc_Elec'!E5 -> 0 | K82: ='Dig Exprnc_Elec'!F5 -> 0 | L82: ='Dig Exprnc_Elec'!G5 -> 0 | M82: ='Dig Exprnc_Elec'!H5 -> 0 | N82: ='Dig Exprnc_Elec'!I5 -> 0 | O82: ='Dig Exprnc_Elec'!J5 -> 0 | P82: ='Dig Exprnc_Elec'!K5 -> 0 | Q82: ='Dig Exprnc_Elec'!L5 -> 0 | R82: ='Dig Exprnc_Elec'!M5 -> 0
F83: Customer Digital Experience | H83: 18230408 | I83: ='Customer Dig Exprnc_Elec'!D5 -> 16050 | J83: ='Customer Dig Exprnc_Elec'!E5 -> 14445 | K83: ='Customer Dig Exprnc_Elec'!F5 -> 0 | L83: ='Customer Dig Exprnc_Elec'!G5 -> 0 | M83: ='Customer Dig Exprnc_Elec'!H5 -> 484550.05 | N83: ='Customer Dig Exprnc_Elec'!I5 -> 0 | O83: ='Customer Dig Exprnc_Elec'!J5 -> 0 | P83: ='Customer Dig Exprnc_Elec'!K5 -> 0 | Q83: ='Customer Dig Exprnc_Elec'!L5 -> 0 | R83: ='Customer Dig Exprnc_Elec'!M5 -> 515045.05
B84: CustAwarTools_elec | F84: Customer Awareness Tools | H84: 18230508 | I84: =CustAwarTools_Elect!D5 -> 39765 | J84: =CustAwarTools_Elect!E5 -> 35788.5 | K84: =CustAwarTools_Elect!F5 -> 0 | L84: =CustAwarTools_Elect!G5 -> 250 | M84: =CustAwarTools_Elect!H5 -> 747242.56 | N84: =CustAwarTools_Elect!I5 -> 0 | O84: =CustAwarTools_Elect!J5 -> 0 | P84: =CustAwarTools_Elect!K5 -> 0 | Q84: =CustAwarTools_Elect!L5 -> 0 | R84: =CustAwarTools_Elect!M5 -> 823046.06
B85: ShopPSE_elec | F85: PSE Marketplace | H85: 18230509 | I85: ='PSE Mktplce_elect'!D5 -> 110438 | J85: ='PSE Mktplce_elect'!E5 -> 99394.2 | K85: ='PSE Mktplce_elect'!F5 -> 137500 | L85: ='PSE Mktplce_elect'!G5 -> 2500 | M85: ='PSE Mktplce_elect'!H5 -> 60000 | N85: ='PSE Mktplce_elect'!I5 -> 0 | O85: ='PSE Mktplce_elect'!J5 -> 0 | P85: ='PSE Mktplce_elect'!K5 -> 0 | Q85: ='PSE Mktplce_elect'!L5 -> 0 | R85: ='PSE Mktplce_elect'!M5 -> 409832.2
B86: Mkt Intgn Detail_PSWE_Elec | E86: Market Integration | H86: 18230466 | I86: ='Mkt Intgn Detail_PSWE_Elec'!D5 -> 618053 | J86: ='Mkt Intgn Detail_PSWE_Elec'!E5 -> 556247.7 | K86: ='Mkt Intgn Detail_PSWE_Elec'!F5 -> 957000 | L86: ='Mkt Intgn Detail_PSWE_Elec'!G5 -> 0 | M86: ='Mkt Intgn Detail_PSWE_Elec'!H5 -> 36540 | N86: ='Mkt Intgn Detail_PSWE_Elec'!I5 -> 0 | O86: ='Mkt Intgn Detail_PSWE_Elec'!J5 -> 0 | P86: ='Mkt Intgn Detail_PSWE_Elec'!K5 -> 0 | Q86: ='Mkt Intgn Detail_PSWE_Elec'!L5 -> 0 | R86: ='Mkt Intgn Detail_PSWE_Elec'!M5 -> 2167840.7
B87: Events Detail_PSCE Elec | E87: Events | H87: 18230602 | I87: ='Events Detail_PSCE Elec'!D5 -> 274697 | J87: ='Events Detail_PSCE Elec'!E5 -> 247227.3 | K87: ='Events Detail_PSCE Elec'!F5 -> 0 | L87: ='Events Detail_PSCE Elec'!G5 -> 0 | M87: ='Events Detail_PSCE Elec'!H5 -> 0 | N87: ='Events Detail_PSCE Elec'!I5 -> 0 | O87: ='Events Detail_PSCE Elec'!J5 -> 0 | P87: ='Events Detail_PSCE Elec'!K5 -> 0 | Q87: ='Events Detail_PSCE Elec'!L5 -> 0 | R87: ='Events Detail_PSCE Elec'!M5 -> 521924.3
G88: Total, Portfolio Support | I88: =SUM(I71:I81)+SUM(I86:I87) -> 4953403 | J88: =SUM(J71:J81)+SUM(J86:J87) -> 4458062.7 | K88: =SUM(K71:K81)+SUM(K86:K87) -> 1131500 | L88: =SUM(L71:L81)+SUM(L86:L87) -> 165250 | M88: =SUM(M71:M81)+SUM(M86:M87) -> 2385152.61 | N88: 47015 | O88: 500 | P88: =SUM(P71:P81)+SUM(P86:P87) -> 0 | Q88: -350000 | R88: =SUM(R71:R81) -> 10101118.31
C92: Research & Compliance
B93: SuppCrv Detail_R&C_Elec | E93: Conservation Supply Curves | H93: 18230809 | I93: ='SuppCrv Detail_R&C_Elec'!D5 -> 108900 | J93: ='SuppCrv Detail_R&C_Elec'!E5 -> 98010 | K93: ='SuppCrv Detail_R&C_Elec'!F5 -> 0 | L93: ='SuppCrv Detail_R&C_Elec'!G5 -> 870 | M93: ='SuppCrv Detail_R&C_Elec'!H5 -> 74000 | N93: ='SuppCrv Detail_R&C_Elec'!I5 -> 0 | O93: ='SuppCrv Detail_R&C_Elec'!J5 -> 0 | P93: ='SuppCrv Detail_R&C_Elec'!K5 -> 0 | Q93: ='SuppCrv Detail_R&C_Elec'!L5 -> 0 | R93: ='SuppCrv Detail_R&C_Elec'!M5 -> 281780
B94: Strat Plan Detail_R&C_Elec | E94: Strategic Planning | H94: 18230469 | I94: ='Strat Plan Detail_R&C_Elec'!D5 -> 338834 | J94: ='Strat Plan Detail_R&C_Elec'!E5 -> 304950.6 | K94: ='Strat Plan Detail_R&C_Elec'!F5 -> 0 | L94: ='Strat Plan Detail_R&C_Elec'!G5 -> 6525 | M94: ='Strat Plan Detail_R&C_Elec'!H5 -> 0 | N94: ='Strat Plan Detail_R&C_Elec'!I5 -> 0 | O94: ='Strat Plan Detail_R&C_Elec'!J5 -> 0 | P94: ='Strat Plan Detail_R&C_Elec'!K5 -> 0 | Q94: ='Strat Plan Detail_R&C_Elec'!L5 -> 0 | R94: ='Strat Plan Detail_R&C_Elec'!M5 -> 650309.6
B95: Mktg Resch Detail_PS_ Elec | E95: Market Research | H95: 18230413 | I95: ='Mktg Resch Detail_PS_ Elec'!D5 -> 88400 | J95: ='Mktg Resch Detail_PS_ Elec'!E5 -> 79560 | K95: ='Mktg Resch Detail_PS_ Elec'!F5 -> 0 | L95: ='Mktg Resch Detail_PS_ Elec'!G5 -> 0 | M95: ='Mktg Resch Detail_PS_ Elec'!H5 -> 0 | N95: ='Mktg Resch Detail_PS_ Elec'!I5 -> 0 | O95: ='Mktg Resch Detail_PS_ Elec'!J5 -> 0 | P95: ='Mktg Resch Detail_PS_ Elec'!K5 -> 0 | Q95: ='Mktg Resch Detail_PS_ Elec'!L5 -> 0 | R95: ='Mktg Resch Detail_PS_ Elec'!M5 -> 167960
B96: Eval Detail_R&C_Elec | E96: Program Evaluation | H96: 18230802 | I96: ='Eval Detail_R&C_Elec'!D5 -> 210861 | J96: ='Eval Detail_R&C_Elec'!E5 -> 189774.9 | K96: ='Eval Detail_R&C_Elec'!F5 -> 0 | L96: ='Eval Detail_R&C_Elec'!G5 -> 6525 | M96: ='Eval Detail_R&C_Elec'!H5 -> 1651000 | N96: ='Eval Detail_R&C_Elec'!I5 -> 0 | O96: ='Eval Detail_R&C_Elec'!J5 -> 0 | P96: ='Eval Detail_R&C_Elec'!K5 -> 0 | Q96: ='Eval Detail_R&C_Elec'!L5 -> 0 | R96: ='Eval Detail_R&C_Elec'!M5 -> 2058160.9
B97: BECAR Detail_R&C Elec | E97: Biennial Consv. Aquisitn. Review | H97: 18230559 | I97: ='BCAR Detail_R&C Elec'!D5 -> 0 | J97: ='BCAR Detail_R&C Elec'!E5 -> 0 | K97: ='BCAR Detail_R&C Elec'!F5 -> 0 | L97: ='BCAR Detail_R&C Elec'!G5 -> 0 | M97: ='BCAR Detail_R&C Elec'!H5 -> 143000 | N97: ='BCAR Detail_R&C Elec'!I5 -> 0 | O97: ='BCAR Detail_R&C Elec'!J5 -> 0 | P97: ='BCAR Detail_R&C Elec'!K5 -> 0 | Q97: ='BCAR Detail_R&C Elec'!L5 -> 0 | R97: ='BCAR Detail_R&C Elec'!M5 -> 143000
E98: Technology Evaluation | H98: 18230511 | I98: ='TechEval Detail Elec'!D5 -> 0 | J98: ='TechEval Detail Elec'!E5 -> 0 | K98: ='TechEval Detail Elec'!F5 -> 0 | L98: ='TechEval Detail Elec'!G5 -> 0 | M98: ='TechEval Detail Elec'!H5 -> 75000 | N98: ='TechEval Detail Elec'!I5 -> 0 | O98: ='TechEval Detail Elec'!J5 -> 0 | P98: ='TechEval Detail Elec'!K5 -> 0 | Q98: ='TechEval Detail Elec'!L5 -> 0 | R98: ='TechEval Detail Elec'!M5 -> 75000
G99: Total, Research & Compliance | I99: =SUM(I93:I98) -> 746995 | J99: =SUM(J93:J98) -> 672295.5 | K99: 0 | L99: 13920 | M99: 1943000 | N99: 0 | O99: 0 | P99: 0 | Q99: 0 | R99: =SUM(R93:R98) -> 3376210.5
C103: Other Customer Programs
B104: Net Mtr Details_Oth Elec E150 | C104: E150 | E104: Net Metering | H104: 18230128 | I104: ='Net Mtr Details_Oth Elec E150'!D5 -> 702250 | J104: ='Net Mtr Details_Oth Elec E150'!E5 -> 632025 | K104: ='Net Mtr Details_Oth Elec E150'!F5 -> 20000 | L104: ='Net Mtr Details_Oth Elec E150'!G5 -> 10000 | M104: ='Net Mtr Details_Oth Elec E150'!H5 -> 230000 | N104: ='Net Mtr Details_Oth Elec E150'!I5 -> 0 | O104: ='Net Mtr Details_Oth Elec E150'!J5 -> 2500000 | P104: ='Net Mtr Details_Oth Elec E150'!K5 -> 0 | Q104: ='Net Mtr Details_Oth Elec E150'!L5 -> 0 | R104: ='Net Mtr Details_Oth Elec E150'!M5 -> 4094275
B105: DemndResp_Detail_E249_Elec | C105: 249A | E105: Demand Response Pilot | H105: 18230566 | I105: =DmndResp_Detail_249A_Elec!D5 -> 0 | J105: =DmndResp_Detail_249A_Elec!E5 -> 0 | K105: =DmndResp_Detail_249A_Elec!F5 -> 0 | L105: =DmndResp_Detail_249A_Elec!G5 -> 0 | M105: =DmndResp_Detail_249A_Elec!H5 -> 320000 | N105: =DmndResp_Detail_249A_Elec!I5 -> 0 | O105: =DmndResp_Detail_249A_Elec!J5 -> 0 | P105: =DmndResp_Detail_249A_Elec!K5 -> 0 | Q105: =DmndResp_Detail_249A_Elec!L5 -> 0 | R105: =DmndResp_Detail_249A_Elec!M5 -> 320000
C106: 272, 271 | E106: Demand Response Administration | H106: 18230753 | I106: =DmndResp_Admi_E271_Elec!D5 -> 603550 | J106: =DmndResp_Admi_E271_Elec!E5 -> 543195 | K106: =DmndResp_Admi_E271_Elec!F5 -> 1500000 | L106: =DmndResp_Admi_E271_Elec!G5 -> 61000 | M106: =DmndResp_Admi_E271_Elec!H5 -> 333000 | N106: =DmndResp_Admi_E271_Elec!I5 -> 20000 | O106: =DmndResp_Admi_E271_Elec!J5 -> 1870000 | P106: =DmndResp_Admi_E271_Elec!K5 -> 0 | Q106: =DmndResp_Admi_E271_Elec!L5 -> 0 | R106: =DmndResp_Admi_E271_Elec!M5 -> 4930745
G107: Total, Other Energy Efficiency Programs | I107: =SUM(I104:I106) -> 1305800 | J107: =SUM(J104:J106) -> 1175220 | K107: 1520000 | L107: 71000 | M107: 883000 | N107: 20000 | O107: 4370000 | P107: 0 | Q107: 0 | R107: =SUM(R104:R106) -> 9345020
G111: GRAND TOTAL, ELECTRIC PROGRAMS | I111: =I107+I99+I66+I58+I50+I24 -> 8279451 | J111: 7457505.9 | K111: 2855420 | L111: 232645 | M111: 19570124.05 | N111: 108700 | O111: 4451000 | P111: 64791601.4 | Q111: 0 | R111: =R107+R99+R88+R66+R58+R50+R24 -> 116821626.5 | S111: =S107+S99+S66+S58+S50+S24 -> 200451187.4
S114: =S111/1000/8760 -> 22.88255564
G115: Budget Category Includes | H115: This is the main level of tracking expenditures and expenses in EES. Per FERC rules, all conservation order numbers start with a "1823nnnn", where "n" is some number. Cost elements apply to all order numbers (for instance, all conservation programs that | I115: Energy Efficiency program staff labor. Average FTE cost including management assessments. This Budget Category group includes assessments from Major Accounts management, Resource Planning, Corporate Communications management, IT specialists and some building maintenance allocations. | J115: Overhead--costs associated with primarily employee labor; benefits, for instance. For 2017, includes micro-overhead. | K115: Service and materials associated with the cost of printing program brochures, marketing pieces, advertising, banners, etc. Also includes marketing conducted by vendors and contractors. | L115: Costs associated with EE staff attending events, employee training, conferences, business meals, business parking, ferry & bridge tolls, mileage incurred on employee automobiles, office supplies, phones, subscriptions, software/hardware, etc. | M115: Contractors and vendors, such as PECI, Ecos, CostCo, EFI, etc. Legal expenses, technical services (CMS design, PSE.com web portals, etc.). These costs do NOT include brochure development, marketing pieces, (which are classified under MARKETING). These costs do NOT include incentives paid to customers by contractors. | N115: Primarily tools, trade show equipment, etc. | O115: This category should seldomly be used, and only expenses that cannot be classified under one of the above categories. | P115: All costs associated with rebates, grants, remuneration, value-added services that have a direct bearing on a customer's perceived value of PSE offerings. | Q115: Any amount that PSE is paid by a customer, partner, municipality or outside entity.

Sheet 2025 Sector View Elect
C2: Energy Efficiency 2025 Budgets and Aggregate Program Savings
C3: Sector View | I3: Please see category descriptions at the bottom of the sector table.
C4: Electric Programs
I5: Budget Category
B6: Workbook Name | C6: Schedule | D6: Comment | E6: Description (Blue, indented text indicates a sub-total value) | H6: Order Number (Click on the order# below to link to the detail page) | I6: Labor | J6: Overhead | K6: Marketing | L6: Employee/Office Expense | M6: Outside Services | N6: Materials | O6: Miscellaneous | P6: DBtC | Q6: Revenue | R6: Total Budget | S6: Total Savings kWh | U6: Comments
C7: Residential Energy Management
B8: LIW Detail_REM E201_Elec | C8: E201 | E8: Low Income Weatherization | H8: 18230611 | I8: =SUM(I9:I17) -> 703783 | J8: =SUM(J9:J17) -> 633404.7 | K8: =' LowIncWx Detail_REM E201_Elec'!F6 -> 97200 | L8: =' LowIncWx Detail_REM E201_Elec'!G6 -> 2000 | M8: =' LowIncWx Detail_REM E201_Elec'!H6 -> 22500 | N8: =' LowIncWx Detail_REM E201_Elec'!I6 -> 1350 | O8: =' LowIncWx Detail_REM E201_Elec'!J6 -> 0 | P8: =' LowIncWx Detail_REM E201_Elec'!K6 -> 10313942.6 | Q8: =' LowIncWx Detail_REM E201_Elec'!L6 -> 0 | R8: =' LowIncWx Detail_REM E201_Elec'!M6 -> 10770908.1 | S8: =' LowIncWx Detail_REM E201_Elec'!N6 -> 2153755.7
B9: HomePrint Detail_REM_E214 Elec | C9: E214 | E9: Home Energy Assessments | H9: 18230625 | I9: ='HmEnrgAsmt Detail_REM_E214 Elec'!D6 -> 0 | J9: ='HmEnrgAsmt Detail_REM_E214 Elec'!E6 -> 0 | K9: ='HmEnrgAsmt Detail_REM_E214 Elec'!F6 -> 0 | L9: ='HmEnrgAsmt Detail_REM_E214 Elec'!G6 -> 0 | M9: ='HmEnrgAsmt Detail_REM_E214 Elec'!H6 -> 0 | N9: ='HmEnrgAsmt Detail_REM_E214 Elec'!I6 -> 0 | O9: ='HmEnrgAsmt Detail_REM_E214 Elec'!J6 -> 0 | P9: ='HmEnrgAsmt Detail_REM_E214 Elec'!K6 -> 0 | Q9: ='HmEnrgAsmt Detail_REM_E214 Elec'!L6 -> 0 | R9: ='HmEnrgAsmt Detail_REM_E214 Elec'!M6 -> 0 | S9: ='HmEnrgAsmt Detail_REM_E214 Elec'!N6 -> 0
B10: WaterHea_Detail_REM_E214 Elec | C10: E214 | E10: SF Existing Water Heat | H10: 18230626 | I10: ='WaterHea_Detail_REM_E214 Elec'!D6 -> 135417 | J10: ='WaterHea_Detail_REM_E214 Elec'!E6 -> 121875.3 | K10: ='WaterHea_Detail_REM_E214 Elec'!F6 -> 154000 | L10: ='WaterHea_Detail_REM_E214 Elec'!G6 -> 1000 | M10: ='WaterHea_Detail_REM_E214 Elec'!H6 -> 130000 | N10: ='WaterHea_Detail_REM_E214 Elec'!I6 -> 0 | O10: ='WaterHea_Detail_REM_E214 Elec'!J6 -> 0 | P10: ='WaterHea_Detail_REM_E214 Elec'!K6 -> 306750 | Q10: ='WaterHea_Detail_REM_E214 Elec'!L6 -> 0 | R10: ='WaterHea_Detail_REM_E214 Elec'!M6 -> 849042.3 | S10: ='WaterHea_Detail_REM_E214 Elec'!N6 -> 722424.03
B11: Wx_Detail_REM E214 Elec | C11: E214 | E11: SF Existing Weatherization | H11: 18230627 | I11: ='Wx_Detail_REM E214 Elec'!D6 -> 146339 | J11: ='Wx_Detail_REM E214 Elec'!E6 -> 131705.1 | K11: ='Wx_Detail_REM E214 Elec'!F6 -> 112500 | L11: ='Wx_Detail_REM E214 Elec'!G6 -> 1200 | M11: ='Wx_Detail_REM E214 Elec'!H6 -> 65000 | N11: ='Wx_Detail_REM E214 Elec'!I6 -> 50500 | O11: ='Wx_Detail_REM E214 Elec'!J6 -> 0 | P11: ='Wx_Detail_REM E214 Elec'!K6 -> 3065433.2 | Q11: ='Wx_Detail_REM E214 Elec'!L6 -> 0 | R11: ='Wx_Detail_REM E214 Elec'!M6 -> 3572677.3 | S11: ='Wx_Detail_REM E214 Elec'!N6 -> 1671376.932
B12: SpcHeat Detail_REM_E214 Elec | C12: E214 | E12: SF Existing Space Heat | H12: 18230628 | I12: ='SpcHeat Detail_REM_E214 Elec'!D6 -> 117906 | J12: ='SpcHeat Detail_REM_E214 Elec'!E6 -> 106115.4 | K12: ='SpcHeat Detail_REM_E214 Elec'!F6 -> 270000 | L12: ='SpcHeat Detail_REM_E214 Elec'!G6 -> 1200 | M12: ='SpcHeat Detail_REM_E214 Elec'!H6 -> 40000 | N12: ='SpcHeat Detail_REM_E214 Elec'!I6 -> 2000 | O12: ='SpcHeat Detail_REM_E214 Elec'!J6 -> 0 | P12: ='SpcHeat Detail_REM_E214 Elec'!K6 -> 6081405 | Q12: ='SpcHeat Detail_REM_E214 Elec'!L6 -> 0 | R12: ='SpcHeat Detail_REM_E214 Elec'!M6 -> 6618626.4 | S12: ='SpcHeat Detail_REM_E214 Elec'!N6 -> 8628361
C13: E214 | E13: Residential Midstream HVAC and Water Heat | H13: 18230162 | I13: ='HVAC&WH Mdsrm_E214_Elec'!D6 -> 129415 | J13: ='HVAC&WH Mdsrm_E214_Elec'!E6 -> 116473.5 | K13: ='HVAC&WH Mdsrm_E214_Elec'!F6 -> 0 | L13: ='HVAC&WH Mdsrm_E214_Elec'!G6 -> 1500 | M13: ='HVAC&WH Mdsrm_E214_Elec'!H6 -> 2860526.6 | N13: ='HVAC&WH Mdsrm_E214_Elec'!I6 -> 500 | O13: ='HVAC&WH Mdsrm_E214_Elec'!J6 -> 0 | P13: ='HVAC&WH Mdsrm_E214_Elec'!K6 -> 4391515 | Q13: ='HVAC&WH Mdsrm_E214_Elec'!L6 -> 0 | R13: ='HVAC&WH Mdsrm_E214_Elec'!M6 -> 7499930.1 | S13: ='HVAC&WH Mdsrm_E214_Elec'!N6 -> 14604340
B14: HmAppplc_Detail_REM_E214 Elec | C14: E214 | E14: Home Appliances | H14: 18230434 | I14: ='HmAppplc_Detail_REM_E214 Elec'!D6 -> 58185 | J14: ='HmAppplc_Detail_REM_E214 Elec'!E6 -> 52366.5 | K14: ='HmAppplc_Detail_REM_E214 Elec'!F6 -> 72000 | L14: ='HmAppplc_Detail_REM_E214 Elec'!G6 -> 1000 | M14: ='HmAppplc_Detail_REM_E214 Elec'!H6 -> 255000 | N14: ='HmAppplc_Detail_REM_E214 Elec'!I6 -> 0 | O14: ='HmAppplc_Detail_REM_E214 Elec'!J6 -> 0 | P14: ='HmAppplc_Detail_REM_E214 Elec'!K6 -> 444000 | Q14: ='HmAppplc_Detail_REM_E214 Elec'!L6 -> 0 | R14: ='HmAppplc_Detail_REM_E214 Elec'!M6 -> 882551.5 | S14: ='HmAppplc_Detail_REM_E214 Elec'!N6 -> 688576.7
B15: Lighting Detail_REM_E214 Elec | C15: E214 | E15: Energy Efficient Lighting Services | H15: 18230440 | I15: ='Lighting Detail_REM_E214 Elec'!D6 -> 0 | J15: ='Lighting Detail_REM_E214 Elec'!E6 -> 0 | K15: ='Lighting Detail_REM_E214 Elec'!F6 -> 0 | L15: ='Lighting Detail_REM_E214 Elec'!G6 -> 0 | M15: ='Lighting Detail_REM_E214 Elec'!H6 -> 0 | N15: ='Lighting Detail_REM_E214 Elec'!I6 -> 0 | O15: ='Lighting Detail_REM_E214 Elec'!J6 -> 0 | P15: ='Lighting Detail_REM_E214 Elec'!K6 -> 0 | Q15: ='Lighting Detail_REM_E214 Elec'!L6 -> 0 | R15: ='Lighting Detail_REM_E214 Elec'!M6 -> 0 | S15: ='Lighting Detail_REM_E214 Elec'!N6 -> 0
B16: HER Detail_REM_E214 elec. | C16: E214 | E16: Home Energy Reports | H16: 18230461 | I16: ='HER Detail_REM_E214 elec.'!D6 -> 57495 | J16: ='HER Detail_REM_E214 elec.'!E6 -> 51745.5 | K16: ='HER Detail_REM_E214 elec.'!F6 -> 0 | L16: ='HER Detail_REM_E214 elec.'!G6 -> 1450 | M16: ='HER Detail_REM_E214 elec.'!H6 -> 1119870.2 | N16: ='HER Detail_REM_E214 elec.'!I6 -> 0 | O16: ='HER Detail_REM_E214 elec.'!J6 -> 0 | P16: ='HER Detail_REM_E214 elec.'!K6 -> 1114512 | Q16: ='HER Detail_REM_E214 elec.'!L6 -> 0 | R16: ='HER Detail_REM_E214 elec.'!M6 -> 2345072.7 | S16: ='HER Detail_REM_E214 elec.'!N6 -> 39804000
B17: Web Tstat Detail_REM E214 Elec | C17: E214 | E17: Smart Thermostats | H17: 18230023 | I17: ='Web Tstat Detail_REM E214 Elec'!D6 -> 59026 | J17: ='Web Tstat Detail_REM E214 Elec'!E6 -> 53123.4 | K17: ='Web Tstat Detail_REM E214 Elec'!F6 -> 22000 | L17: ='Web Tstat Detail_REM E214 Elec'!G6 -> 100 | M17: ='Web Tstat Detail_REM E214 Elec'!H6 -> 73419.6 | N17: ='Web Tstat Detail_REM E214 Elec'!I6 -> 1000 | O17: ='Web Tstat Detail_REM E214 Elec'!J6 -> 0 | P17: ='Web Tstat Detail_REM E214 Elec'!K6 -> 609420 | Q17: ='Web Tstat Detail_REM E214 Elec'!L6 -> 0 | R17: ='Web Tstat Detail_REM E214 Elec'!M6 -> 818089 | S17: ='Web Tstat Detail_REM E214 Elec'!N6 -> 861196
C18: E214 | E18: Electric Vehicle Chargers | H18: 18230016 | I18: ='EV Charg_REM_E214 elec'!D6 -> 11020 | J18: ='EV Charg_REM_E214 elec'!E6 -> 9918 | K18: ='EV Charg_REM_E214 elec'!F6 -> 0 | L18: ='EV Charg_REM_E214 elec'!G6 -> 0 | M18: ='EV Charg_REM_E214 elec'!H6 -> 0 | N18: ='EV Charg_REM_E214 elec'!I6 -> 0 | O18: ='EV Charg_REM_E214 elec'!J6 -> 0 | P18: ='EV Charg_REM_E214 elec'!K6 -> 0 | Q18: ='EV Charg_REM_E214 elec'!L6 -> 0 | R18: ='EV Charg_REM_E214 elec'!M6 -> 20938 | S18: ='EV Charg_REM_E214 elec'!N6 -> 145200
B19: SFNC Detail_REM E215 Elec | C19: E215 | E19: Single Family New Construction | H19: 18230405 | I19: ='SFNC Detail_REM E215 Elec'!D6 -> 37825 | J19: ='SFNC Detail_REM E215 Elec'!E6 -> 34042.5 | K19: ='SFNC Detail_REM E215 Elec'!F6 -> 30000 | L19: ='SFNC Detail_REM E215 Elec'!G6 -> 0 | M19: ='SFNC Detail_REM E215 Elec'!H6 -> 420000 | N19: ='SFNC Detail_REM E215 Elec'!I6 -> 0 | O19: ='SFNC Detail_REM E215 Elec'!J6 -> 0 | P19: ='SFNC Detail_REM E215 Elec'!K6 -> 262500 | Q19: ='SFNC Detail_REM E215 Elec'!L6 -> 0 | R19: ='SFNC Detail_REM E215 Elec'!M6 -> 784367.5 | S19: ='SFNC Detail_REM E215 Elec'!N6 -> 315000
B20: MfgHmNew Detail_REM E215 Elec | C20: E215 | E20: Manufactured Home New Construction | H20: 18230071 | I20: ='NCMfgHome Detail_REM E215 Elec'!D6 -> 15801 | J20: ='NCMfgHome Detail_REM E215 Elec'!E6 -> 14220.9 | K20: ='NCMfgHome Detail_REM E215 Elec'!F6 -> 6000 | L20: ='NCMfgHome Detail_REM E215 Elec'!G6 -> 0 | M20: ='NCMfgHome Detail_REM E215 Elec'!H6 -> 60000 | N20: ='NCMfgHome Detail_REM E215 Elec'!I6 -> 0 | O20: ='NCMfgHome Detail_REM E215 Elec'!J6 -> 0 | P20: ='NCMfgHome Detail_REM E215 Elec'!K6 -> 233600 | Q20: ='NCMfgHome Detail_REM E215 Elec'!L6 -> 0 | R20: ='NCMfgHome Detail_REM E215 Elec'!M6 -> 329621.9 | S20: ='NCMfgHome Detail_REM E215 Elec'!N6 -> 186128
B21: Efficiency Boost E217 Elec | C21: E214 & 217 | E21: Efficiency Boost | H21: 18230751 | I21: ='Efficiency Boost_E217 Elec'!D6 -> 23423 | J21: ='Efficiency Boost_E217 Elec'!E6 -> 21080.7 | K21: ='Efficiency Boost_E217 Elec'!F6 -> 30000 | L21: ='Efficiency Boost_E217 Elec'!G6 -> 0 | M21: ='Efficiency Boost_E217 Elec'!H6 -> 0 | N21: ='Efficiency Boost_E217 Elec'!I6 -> 0 | O21: ='Efficiency Boost_E217 Elec'!J6 -> 0 | P21: ='Efficiency Boost_E217 Elec'!K6 -> 0 | Q21: ='Efficiency Boost_E217 Elec'!L6 -> 0 | R21: ='Efficiency Boost_E217 Elec'!M6 -> 74503.7 | S21: ='Efficiency Boost_E217 Elec'!N6 -> 0
B22: MF Retr Detail_REM E217 Elec | C22: E217 | E22: Multifamily Retrofit | H22: 18230407 | I22: ='MF Retr Detail_REM E217 Elec'!D6 -> 123120 | J22: ='MF Retr Detail_REM E217 Elec'!E6 -> 110808 | K22: ='MF Retr Detail_REM E217 Elec'!F6 -> 6000 | L22: ='MF Retr Detail_REM E217 Elec'!G6 -> 2500 | M22: ='MF Retr Detail_REM E217 Elec'!H6 -> 897897.43 | N22: ='MF Retr Detail_REM E217 Elec'!I6 -> 0 | O22: ='MF Retr Detail_REM E217 Elec'!J6 -> 0 | P22: ='MF Retr Detail_REM E217 Elec'!K6 -> 5536386.75 | Q22: ='MF Retr Detail_REM E217 Elec'!L6 -> 0 | R22: ='MF Retr Detail_REM E217 Elec'!M6 -> 6676712.18 | S22: ='MF Retr Detail_REM E217 Elec'!N6 -> 5604957.2
B23: MFNC Detail_REM E218 Elec | C23: E218 | E23: Multi-Family New Construction | H23: 18230486 | I23: ='MFNC Detail_REM E218 Elec'!D6 -> 109484 | J23: ='MFNC Detail_REM E218 Elec'!E6 -> 98535.6 | K23: ='MFNC Detail_REM E218 Elec'!F6 -> 20000 | L23: ='MFNC Detail_REM E218 Elec'!G6 -> 0 | M23: ='MFNC Detail_REM E218 Elec'!H6 -> 509600 | N23: ='MFNC Detail_REM E218 Elec'!I6 -> 0 | O23: ='MFNC Detail_REM E218 Elec'!J6 -> 0 | P23: ='MFNC Detail_REM E218 Elec'!K6 -> 1869000 | Q23: ='MFNC Detail_REM E218 Elec'!L6 -> 0 | R23: ='MFNC Detail_REM E218 Elec'!M6 -> 2606619.6 | S23: ='MFNC Detail_REM E218 Elec'!N6 -> 4000000
G24: Total, Residential Energy Management | I24: =SUM(I8:I23) -> 1728239 | J24: 1555415.1 | K24: 819700 | L24: 11950 | M24: 6453813.83 | N24: 55350 | O24: 0 | P24: 34228464.55 | Q24: 0 | R24: 43849660.28 | S24: 79385315.56
C27: Business Energy Managment
E28: Commercial/Industrial Retrofit | I28: =SUM(I29:I34) -> 2595343 | J28: 2341808.7 | K28: 107000 | L28: 91000 | M28: 2012774.9 | N28: 23500 | O28: 115000 | P28: 14390000 | Q28: 0 | R28: =SUM(R29:R34) -> 21676426.6 | S28: =SUM(S29:S34) -> 42500000
B29: CI Retr Detail_BEM E250 Elec | C29: E250 | E29: Retrofit Custom Grants | H29: 18230711 | I29: ='CI Retr Detail_BEM E250 Elec'!D6 -> 951563 | J29: ='CI Retr Detail_BEM E250 Elec'!E6 -> 856406.7 | K29: ='CI Retr Detail_BEM E250 Elec'!F6 -> 20000 | L29: ='CI Retr Detail_BEM E250 Elec'!G6 -> 25000 | M29: ='CI Retr Detail_BEM E250 Elec'!H6 -> 245000 | N29: ='CI Retr Detail_BEM E250 Elec'!I6 -> 3500 | O29: ='CI Retr Detail_BEM E250 Elec'!J6 -> 107000 | P29: ='CI Retr Detail_BEM E250 Elec'!K6 -> 3400000 | Q29: ='CI Retr Detail_BEM E250 Elec'!L6 -> 0 | R29: ='CI Retr Detail_BEM E250 Elec'!M6 -> 5608469.7 | S29: ='CI Retr Detail_BEM E250 Elec'!N6 -> 8000000
B30: BusLgtGrants_BEM E250 Elect | C30: E250 | E30: Custom Lighting Grants | H30: 18230724 | I30: ='BusLgtGrants_BEM E250 Elect'!D6 -> 852980 | J30: ='BusLgtGrants_BEM E250 Elect'!E6 -> 767682 | K30: ='BusLgtGrants_BEM E250 Elect'!F6 -> 25000 | L30: ='BusLgtGrants_BEM E250 Elect'!G6 -> 34000 | M30: ='BusLgtGrants_BEM E250 Elect'!H6 -> 105000 | N30: ='BusLgtGrants_BEM E250 Elect'!I6 -> 20000 | O30: ='BusLgtGrants_BEM E250 Elect'!J6 -> 0 | P30: ='BusLgtGrants_BEM E250 Elect'!K6 -> 5460000 | Q30: ='BusLgtGrants_BEM E250 Elect'!L6 -> 0 | R30: ='BusLgtGrants_BEM E250 Elect'!M6 -> 7264662 | S30: ='BusLgtGrants_BEM E250 Elect'!N6 -> 15600000
B31: CI Indust_BEM_E250_Elec | C31: E250 | E31: Industrial Programs | H31: 18231137 | I31: ='CI Indust_BEM_E250_Elec'!D6 -> 621199 | J31: ='CI Indust_BEM_E250_Elec'!E6 -> 559079.1 | K31: ='CI Indust_BEM_E250_Elec'!F6 -> 30000 | L31: ='CI Indust_BEM_E250_Elec'!G6 -> 24000 | M31: ='CI Indust_BEM_E250_Elec'!H6 -> 110000 | N31: ='CI Indust_BEM_E250_Elec'!I6 -> 0 | O31: ='CI Indust_BEM_E250_Elec'!J6 -> 0 | P31: ='CI Indust_BEM_E250_Elec'!K6 -> 2335000 | Q31: ='CI Indust_BEM_E250_Elec'!L6 -> 0 | R31: ='CI Indust_BEM_E250_Elec'!M6 -> 3679278.1 | S31: ='CI Indust_BEM_E250_Elec'!N6 -> 7500000
C32: E250 | E32: Clean Buildings Accelerator | H32: 18230013 | I32: ='Cln Build Accel_E250_Elec'!D6 -> 110386 | J32: ='Cln Build Accel_E250_Elec'!E6 -> 99347.4 | K32: ='Cln Build Accel_E250_Elec'!F6 -> 32000 | L32: ='Cln Build Accel_E250_Elec'!G6 -> 8000 | M32: ='Cln Build Accel_E250_Elec'!H6 -> 320000 | N32: ='Cln Build Accel_E250_Elec'!I6 -> 0 | O32: ='Cln Build Accel_E250_Elec'!J6 -> 8000 | P32: ='Cln Build Accel_E250_Elec'!K6 -> 0 | Q32: ='Cln Build Accel_E250_Elec'!L6 -> 0 | R32: ='Cln Build Accel_E250_Elec'!M6 -> 577733.4 | S32: ='Cln Build Accel_E250_Elec'!N6 -> 1300000
C33: E250 | E33: Telecommunications Efficiency | H33: 18239043 | I33: ='Telecom Effic_E250_Elec'!D6 -> 45550 | J33: ='Telecom Effic_E250_Elec'!E6 -> 40995 | K33: ='Telecom Effic_E250_Elec'!F6 -> 0 | L33: ='Telecom Effic_E250_Elec'!G6 -> 0 | M33: ='Telecom Effic_E250_Elec'!H6 -> 332774.9 | N33: ='Telecom Effic_E250_Elec'!I6 -> 0 | O33: ='Telecom Effic_E250_Elec'!J6 -> 0 | P33: ='Telecom Effic_E250_Elec'!K6 -> 3195000 | Q33: ='Telecom Effic_E250_Elec'!L6 -> 0 | R33: ='Telecom Effic_E250_Elec'!M6 -> 3614319.9 | S33: ='Telecom Effic_E250_Elec'!N6 -> 7100000
C34: E250 | E34: Virtual Commissioning | H34: 18230015 | I34: ='Virt Commiss_E250_Elec'!D6 -> 13665 | J34: ='Virt Commiss_E250_Elec'!E6 -> 18298.5 | K34: ='Virt Commiss_E250_Elec'!F6 -> 0 | L34: ='Virt Commiss_E250_Elec'!G6 -> 0 | M34: ='Virt Commiss_E250_Elec'!H6 -> 900000 | N34: ='Virt Commiss_E250_Elec'!I6 -> 0 | O34: ='Virt Commiss_E250_Elec'!J6 -> 0 | P34: ='Virt Commiss_E250_Elec'!K6 -> 0 | Q34: ='Virt Commiss_E250_Elec'!L6 -> 0 | R34: ='Virt Commiss_E250_Elec'!M6 -> 931963.5 | S34: ='Virt Commiss_E250_Elec'!N6 -> 3000000
B35: CI NC Detail_BEM E251 Elec | C35: E251 | E35: Commercial/Industrial New Construction | H35: 18230715 | I35: ='CI NC Detail_BEM E251 Elec'!D6 -> 265462 | J35: ='CI NC Detail_BEM E251 Elec'!E6 -> 238915.8 | K35: ='CI NC Detail_BEM E251 Elec'!F6 -> 10500 | L35: ='CI NC Detail_BEM E251 Elec'!G6 -> 4725 | M35: ='CI NC Detail_BEM E251 Elec'!H6 -> 35000 | N35: ='CI NC Detail_BEM E251 Elec'!I6 -> 5250 | O35: ='CI NC Detail_BEM E251 Elec'!J6 -> 21000 | P35: ='CI NC Detail_BEM E251 Elec'!K6 -> 1395000 | Q35: ='CI NC Detail_BEM E251 Elec'!L6 -> 0 | R35: ='CI NC Detail_BEM E251 Elec'!M6 -> 1975852.8 | S35: ='CI NC Detail_BEM E251 Elec'!N6 -> 3000000
E36: Commercial Strategic Energy Management | I36: =SUM(I37:I38) -> 844123 | J36: =SUM(J37:J38) -> 759710.7 | K36: 4200 | L36: 19500 | M36: 224762 | N36: 500 | O36: 17500 | P36: 990000 | Q36: 0 | R36: 2860295.7 | S36: 14744500
B37: RCM Detail_BEM E253 Elec | C37: E253 | E37: SEM | H37: 18230723 | I37: ='RCM Detail_BEM E253 Elec'!D6 -> 677588 | J37: ='RCM Detail_BEM E253 Elec'!E6 -> 609829.2 | K37: ='RCM Detail_BEM E253 Elec'!F6 -> 3500 | L37: ='RCM Detail_BEM E253 Elec'!G6 -> 16500 | M37: ='RCM Detail_BEM E253 Elec'!H6 -> 224762 | N37: ='RCM Detail_BEM E253 Elec'!I6 -> 500 | O37: ='RCM Detail_BEM E253 Elec'!J6 -> 1500 | P37: ='RCM Detail_BEM E253 Elec'!K6 -> 640000 | Q37: ='RCM Detail_BEM E253 Elec'!L6 -> 0 | R37: ='RCM Detail_BEM E253 Elec'!M6 -> 2174179.2 | S37: ='RCM Detail_BEM E253 Elec'!N6 -> 13744500
C38: E253 | E38: Pay For Performance | H38: 18236102 | I38: ='Pay For Perf_E253_Elec'!D6 -> 166535 | J38: ='Pay For Perf_E253_Elec'!E6 -> 149881.5 | K38: ='Pay For Perf_E253_Elec'!F6 -> 700 | L38: ='Pay For Perf_E253_Elec'!G6 -> 3000 | M38: ='Pay For Perf_E253_Elec'!H6 -> 0 | N38: ='Pay For Perf_E253_Elec'!I6 -> 0 | O38: ='Pay For Perf_E253_Elec'!J6 -> 16000 | P38: ='Pay For Perf_E253_Elec'!K6 -> 350000 | Q38: ='Pay For Perf_E253_Elec'!L6 -> 0 | R38: ='Pay For Perf_E253_Elec'!M6 -> 686116.5 | S38: ='Pay For Perf_E253_Elec'!N6 -> 1000000
E39: High Voltage, Self-Directed | I39: =SUM(I40:I41) -> 221753 | J39: =SUM(J40:J41) -> 199577.7 | K39: 0 | L39: 0 | M39: 0 | N39: 0 | O39: 0 | P39: 5871018 | Q39: =SUM(Q40:Q41) -> 0 | R39: 6292348.7 | S39: =SUM(S40:S41) -> 8973676
B40: LPSD_Detail_449_Elec | C40: E258 | E40: 449 Customers | H40: 18230720 | I40: =LPSD_Detail_449_Elec!D6 -> 127730 | J40: =LPSD_Detail_449_Elec!E6 -> 114957 | K40: =LPSD_Detail_449_Elec!F6 -> 0 | L40: =LPSD_Detail_449_Elec!G6 -> 0 | M40: =LPSD_Detail_449_Elec!H6 -> 0 | N40: =LPSD_Detail_449_Elec!I6 -> 0 | O40: =LPSD_Detail_449_Elec!J6 -> 0 | P40: =LPSD_Detail_449_Elec!K6 -> 4152496 | Q40: =LPSD_Detail_449_Elec!L6 -> 0 | R40: =LPSD_Detail_449_Elec!M6 -> 4395183 | S40: =LPSD_Detail_449_Elec!N6 -> 6000000
B41: LPSD_Detail_Non-449 Elec | C41: E258 | E41: Non-449 Customers | H41: 18230721 | I41: ='LPSD_Detail_Non-449 Elec'!D6 -> 94023 | J41: ='LPSD_Detail_Non-449 Elec'!E6 -> 84620.7 | K41: ='LPSD_Detail_Non-449 Elec'!F6 -> 0 | L41: ='LPSD_Detail_Non-449 Elec'!G6 -> 0 | M41: ='LPSD_Detail_Non-449 Elec'!H6 -> 0 | N41: ='LPSD_Detail_Non-449 Elec'!I6 -> 0 | O41: ='LPSD_Detail_Non-449 Elec'!J6 -> 0 | P41: ='LPSD_Detail_Non-449 Elec'!K6 -> 1718522 | Q41: ='LPSD_Detail_Non-449 Elec'!L6 -> 0 | R41: ='LPSD_Detail_Non-449 Elec'!M6 -> 1897165.7 | S41: ='LPSD_Detail_Non-449 Elec'!N6 -> 2973676
C42: E262 | E42: Business Rebates | I42: =SUM(I43:I49) -> 491886 | J42: =SUM(J43:J49) -> 442697.4 | K42: 317020 | L42: 18950 | M42: 2720629.52 | N42: 4100 | O42: 2000 | P42: 11988428.42 | Q42: 0 | R42: 15985711.34 | S42: =SUM(S43:S49) -> 31155528.35
B43: Comm Lgt Mkdn_E262 Elect | C43: E262 | E43: Lighting to Go--also referred to as Business Lighting Markdowns | H43: 18230714 | I43: ='Comm Lgt Mkdn_E262 Elect'!D6 -> 113002 | J43: ='Comm Lgt Mkdn_E262 Elect'!E6 -> 101701.8 | K43: ='Comm Lgt Mkdn_E262 Elect'!F6 -> 21000 | L43: ='Comm Lgt Mkdn_E262 Elect'!G6 -> 8000 | M43: ='Comm Lgt Mkdn_E262 Elect'!H6 -> 966586.77 | N43: ='Comm Lgt Mkdn_E262 Elect'!I6 -> 1000 | O43: ='Comm Lgt Mkdn_E262 Elect'!J6 -> 1000 | P43: ='Comm Lgt Mkdn_E262 Elect'!K6 -> 2031735.42 | Q43: ='Comm Lgt Mkdn_E262 Elect'!L6 -> 0 | R43: ='Comm Lgt Mkdn_E262 Elect'!M6 -> 3244025.99 | S43: ='Comm Lgt Mkdn_E262 Elect'!N6 -> 13500000
B44: Comm Kit-Laund_E262 Elect | C44: E262 | E44: Commercial Foodservice | H44: 18230716 | I44: ='Comm Kit-Laund_E262 Elect'!D6 -> 6612 | J44: ='Comm Kit-Laund_E262 Elect'!E6 -> 5950.8 | K44: ='Comm Kit-Laund_E262 Elect'!F6 -> 17120 | L44: ='Comm Kit-Laund_E262 Elect'!G6 -> 950 | M44: ='Comm Kit-Laund_E262 Elect'!H6 -> 270656.75 | N44: ='Comm Kit-Laund_E262 Elect'!I6 -> 100 | O44: ='Comm Kit-Laund_E262 Elect'!J6 -> 0 | P44: ='Comm Kit-Laund_E262 Elect'!K6 -> 530195 | Q44: ='Comm Kit-Laund_E262 Elect'!L6 -> 0 | R44: ='Comm Kit-Laund_E262 Elect'!M6 -> 831584.55 | S44: ='Comm Kit-Laund_E262 Elect'!N6 -> 872815
B45: Comm HVAC_E262 Elect | C45: E262 | E45: Commercial HVAC Rebates | H45: 18230718 | I45: ='Comm HVAC_E262 Elect'!D6 -> 88583 | J45: ='Comm HVAC_E262 Elect'!E6 -> 79724.7 | K45: ='Comm HVAC_E262 Elect'!F6 -> 64200 | L45: ='Comm HVAC_E262 Elect'!G6 -> 1000 | M45: ='Comm HVAC_E262 Elect'!H6 -> 0 | N45: ='Comm HVAC_E262 Elect'!I6 -> 1000 | O45: ='Comm HVAC_E262 Elect'!J6 -> 0 | P45: ='Comm HVAC_E262 Elect'!K6 -> 496900 | Q45: ='Comm HVAC_E262 Elect'!L6 -> 0 | R45: ='Comm HVAC_E262 Elect'!M6 -> 731407.7 | S45: ='Comm HVAC_E262 Elect'!N6 -> 1143263.35
C46: E262 | E46: Commercial Midstream HVAC and Water Heat | H46: 18230524 | I46: ='Comm Midstream_E262 Elect'!D6 -> 62863 | J46: ='Comm Midstream_E262 Elect'!E6 -> 56576.7 | K46: ='Comm Midstream_E262 Elect'!F6 -> 0 | L46: ='Comm Midstream_E262 Elect'!G6 -> 1500 | M46: ='Comm Midstream_E262 Elect'!H6 -> 127386 | N46: ='Comm Midstream_E262 Elect'!I6 -> 500 | O46: ='Comm Midstream_E262 Elect'!J6 -> 0 | P46: ='Comm Midstream_E262 Elect'!K6 -> 409500 | Q46: ='Comm Midstream_E262 Elect'!L6 -> 0 | R46: ='Comm Midstream_E262 Elect'!M6 -> 658325.7 | S46: ='Comm Midstream_E262 Elect'!N6 -> 639450
B47: Sm Bus DI_E262 Elect | C47: E262 | E47: Small Business Direct Install | H47: 18231134 | I47: ='Sm Bus DI_E262 Elect'!D6 -> 122194 | J47: ='Sm Bus DI_E262 Elect'!E6 -> 109974.6 | K47: ='Sm Bus DI_E262 Elect'!F6 -> 129500 | L47: ='Sm Bus DI_E262 Elect'!G6 -> 6000 | M47: ='Sm Bus DI_E262 Elect'!H6 -> 1356000 | N47: ='Sm Bus DI_E262 Elect'!I6 -> 1000 | O47: ='Sm Bus DI_E262 Elect'!J6 -> 1000 | P47: ='Sm Bus DI_E262 Elect'!K6 -> 6109888 | Q47: ='Sm Bus DI_E262 Elect'!L6 -> 0 | R47: ='Sm Bus DI_E262 Elect'!M6 -> 7835556.6 | S47: ='Sm Bus DI_E262 Elect'!N6 -> 13000000
B48: Lodging DI_E262 Elec | C48: E262 | E48: Commercial General Rebates | H48: 1823nnnn | I48: ='Comm Genl Rbats_E262 Elec'!D6 -> 0 | J48: ='Comm Genl Rbats_E262 Elec'!E6 -> 0 | K48: ='Comm Genl Rbats_E262 Elec'!F6 -> 0 | L48: ='Comm Genl Rbats_E262 Elec'!G6 -> 0 | M48: ='Comm Genl Rbats_E262 Elec'!H6 -> 0 | N48: ='Comm Genl Rbats_E262 Elec'!I6 -> 0 | O48: ='Comm Genl Rbats_E262 Elec'!J6 -> 0 | P48: ='Comm Genl Rbats_E262 Elec'!K6 -> 0 | Q48: ='Comm Genl Rbats_E262 Elec'!L6 -> 0 | R48: ='Comm Genl Rbats_E262 Elec'!M6 -> 0 | S48: ='Comm Genl Rbats_E262 Elec'!N6 -> 0
C49: E262 | E49: Lodging Rebates | H49: 18230014 | I49: ='Lodging Rbats_E262 Elec'!D6 -> 98632 | J49: ='Lodging Rbats_E262 Elec'!E6 -> 88768.8 | K49: ='Lodging Rbats_E262 Elec'!F6 -> 85200 | L49: ='Lodging Rbats_E262 Elec'!G6 -> 1500 | M49: ='Lodging Rbats_E262 Elec'!H6 -> 0 | N49: ='Lodging Rbats_E262 Elec'!I6 -> 500 | O49: ='Lodging Rbats_E262 Elec'!J6 -> 0 | P49: ='Lodging Rbats_E262 Elec'!K6 -> 2410210 | Q49: ='Lodging Rbats_E262 Elec'!L6 -> 0 | R49: ='Lodging Rbats_E262 Elec'!M6 -> 2684810.8 | S49: ='Lodging Rbats_E262 Elec'!N6 -> 2000000
G50: Total, Business Energy Management | I50: =SUM(I29:I36)+I39+I42 -> 4418567 | J50: 3982710.3 | K50: 438720 | L50: 134175 | M50: 4993166.42 | N50: 33350 | O50: 155500 | P50: 34634446.42 | Q50: 0 | R50: =SUM(R29:R36)+R39+R42 -> 48790635.14 | S50: =SUM(S29:S36)+S39+S98+S42 -> 100373704.3
C53: Pilots With Uncertain Savings
B54: REM Pilots E249 Elec | C54: E249 | E54: Residential Pilots | I54: =SUM(I55:I55) -> 0 | J54: 0 | K54: 0 | L54: 0 | M54: 0 | N54: 0 | O54: 0 | P54: 0 | Q54: 0 | R54: 0 | S54: 0
C55: E249 | E55: Single Family AMI Engagement | H55: 18230749 | I55: ='SF AMI Engmt Pilot_Elec'!D6 -> 0 | J55: ='SF AMI Engmt Pilot_Elec'!E6 -> 0 | K55: ='SF AMI Engmt Pilot_Elec'!F6 -> 0 | L55: ='SF AMI Engmt Pilot_Elec'!G6 -> 0 | M55: ='SF AMI Engmt Pilot_Elec'!H6 -> 0 | N55: ='SF AMI Engmt Pilot_Elec'!I6 -> 0 | O55: ='SF AMI Engmt Pilot_Elec'!J6 -> 0 | P55: ='SF AMI Engmt Pilot_Elec'!K6 -> 0 | Q55: ='SF AMI Engmt Pilot_Elec'!L6 -> 0 | R55: ='SF AMI Engmt Pilot_Elec'!M6 -> 0 | S55: ='SF AMI Engmt Pilot_Elec'!N6 -> 0
B56: BEM Pilots E249 Elec | C56: E249 | E56: Commercial Pilots | I56: =SUM(I57) -> 0 | J56: =SUM(J57) -> 0 | K56: 0 | L56: 0 | M56: 0 | N56: 0 | O56: 0 | P56: 0 | Q56: 0 | R56: 0 | S56: =SUM(S57) -> 0
C57: E249 | I57: ='SMB AMI Engmt Pilot_Elec'!E6 -> 0 | J57: ='SMB AMI Engmt Pilot_Elec'!F6 -> 0 | K57: ='SMB AMI Engmt Pilot_Elec'!G6 -> 0 | L57: ='SMB AMI Engmt Pilot_Elec'!H6 -> 0 | M57: ='SMB AMI Engmt Pilot_Elec'!I6 -> 0 | N57: ='SMB AMI Engmt Pilot_Elec'!J6 -> 0 | O57: ='SMB AMI Engmt Pilot_Elec'!K6 -> 0 | P57: ='SMB AMI Engmt Pilot_Elec'!L6 -> 0 | Q57: ='SMB AMI Engmt Pilot_Elec'!M6 -> 0 | R57: ='SMB AMI Engmt Pilot_Elec'!N6 -> 0 | S57: ='SMB AMI Engmt Pilot_Elec'!O6 -> 0
G58: Total, Pilots | I58: =SUM(I54)+I56 -> 0 | J58: 0 | K58: 0 | L58: 0 | M58: 0 | N58: 0 | O58: 0 | P58: 0 | Q58: 0 | R58: 0 | S58: 0
C62: Regional Efficiency Programs
B63: NEEA Detail_E254 elec | C63: E254 | E63: Northwest Energy Efficiency Alliance | H63: 18230421 | I63: ='NEEA Detail_E254 elec'!D6 -> 0 | J63: ='NEEA Detail_E254 elec'!E6 -> 0 | K63: ='NEEA Detail_E254 elec'!F6 -> 0 | L63: ='NEEA Detail_E254 elec'!G6 -> 0 | M63: ='NEEA Detail_E254 elec'!H6 -> 4798648 | N63: ='NEEA Detail_E254 elec'!I6 -> 0 | O63: ='NEEA Detail_E254 elec'!J6 -> 0 | P63: ='NEEA Detail_E254 elec'!K6 -> 0 | R63: ='NEEA Detail_E254 elec'!M6 -> 4798648 | S63: ='NEEA Detail_E254 elec'!N6 -> 18976749
B64: TDSM_Regnl_elec_e219 | C64: E219 | E64: Targeted DSM | H64: 18230134 | I64: ='TDSM_Regnl_E219 Elec'!D6 -> 166588 | J64: ='TDSM_Regnl_E219 Elec'!E6 -> 149929.2 | K64: ='TDSM_Regnl_E219 Elec'!F6 -> 10000 | L64: ='TDSM_Regnl_E219 Elec'!G6 -> 1600 | M64: ='TDSM_Regnl_E219 Elec'!H6 -> 200000 | N64: ='TDSM_Regnl_E219 Elec'!I6 -> 0 | O64: ='TDSM_Regnl_E219 Elec'!J6 -> 0 | P64: ='TDSM_Regnl_E219 Elec'!K6 -> 70000 | Q64: ='TDSM_Regnl_E219 Elec'!L6 -> 0 | R64: ='TDSM_Regnl_E219 Elec'!M6 -> 598117.2 | S64: ='TDSM_Regnl_E219 Elec'!N6 -> 0
B65: T&D Detail_Reg E292 elec | C65: E292 | E65: Transmission & Distribution | H65: 18230713 | I65: ='T&D Detail_Reg E292 elec'!C6 -> 0 | J65: ='T&D Detail_Reg E292 elec'!D6 -> 0 | K65: ='T&D Detail_Reg E292 elec'!E6 -> 0 | L65: ='T&D Detail_Reg E292 elec'!F6 -> 0 | M65: ='T&D Detail_Reg E292 elec'!G6 -> 0 | N65: ='T&D Detail_Reg E292 elec'!H6 -> 0 | O65: ='T&D Detail_Reg E292 elec'!I6 -> 0 | P65: ='T&D Detail_Reg E292 elec'!J6 -> 0 | R65: ='T&D Detail_Reg E292 elec'!L6 -> 0 | S65: ='T&D Detail_Reg E292 elec'!M6 -> 8878000
G66: Total, Regional Efficiency Programs | I66: =SUM(I63:I65) -> 166588 | J66: 149929.2 | K66: 10000 | L66: 1600 | M66: 4998648 | N66: 0 | O66: 0 | P66: 70000 | Q66: 0 | R66: 5396765.2 | S66: 27854749
C70: Energy Efficiency Portfolio Support
B71: Data & Systm Svcs_Elect | E71: Data and Systems Services | H71: 18230745 | I71: ='Data & Systm Svcs_Elect'!D6 -> 437523 | J71: ='Data & Systm Svcs_Elect'!E6 -> 393770.7 | K71: ='Data & Systm Svcs_Elect'!F6 -> 0 | L71: ='Data & Systm Svcs_Elect'!G6 -> 8700 | M71: ='Data & Systm Svcs_Elect'!H6 -> 269700 | N71: ='Data & Systm Svcs_Elect'!I6 -> 0 | O71: ='Data & Systm Svcs_Elect'!J6 -> 0 | P71: ='Data & Systm Svcs_Elect'!K6 -> 0 | Q71: ='Data & Systm Svcs_Elect'!L6 -> 0 | R71: ='Data & Systm Svcs_Elect'!M6 -> 1109693.7
B72: Rebt Procg Detail_Elect | E72: Rebates Processing | H72: 18230507 | I72: ='Rebt Procg Detail_Elect'!D6 -> 504927 | J72: ='Rebt Procg Detail_Elect'!E6 -> 454434.3 | K72: ='Rebt Procg Detail_Elect'!F6 -> 0 | L72: ='Rebt Procg Detail_Elect'!G6 -> 20000 | M72: ='Rebt Procg Detail_Elect'!H6 -> 180000 | N72: ='Rebt Procg Detail_Elect'!I6 -> 5000 | O72: ='Rebt Procg Detail_Elect'!J6 -> 0 | P72: ='Rebt Procg Detail_Elect'!K6 -> 0 | Q72: ='Rebt Procg Detail_Elect'!L6 -> 0 | R72: ='Rebt Procg Detail_Elect'!M6 -> 1164361.3
B73: VTeam Detail_R&C_Elec | E73: Verification Team | H73: 18230418 | I73: ='Verifctn Team Detail Elec'!D6 -> 530157 | J73: ='Verifctn Team Detail Elec'!E6 -> 477141.3 | K73: ='Verifctn Team Detail Elec'!F6 -> 0 | L73: ='Verifctn Team Detail Elec'!G6 -> 20000 | M73: ='Verifctn Team Detail Elec'!H6 -> 120000 | N73: ='Verifctn Team Detail Elec'!I6 -> 10000 | O73: ='Verifctn Team Detail Elec'!J6 -> 0 | P73: ='Verifctn Team Detail Elec'!K6 -> 0 | Q73: ='Verifctn Team Detail Elec'!L6 -> 0 | R73: ='Verifctn Team Detail Elec'!M6 -> 1157298.3
B74: ProgDev Detail_R&C_ Elec | E74: Programs Support | H74: 18230810 | I74: ='Progs Supp Detail_PS_ Elec'!D6 -> 671118 | J74: ='Progs Supp Detail_PS_ Elec'!E6 -> 604006.2 | K74: ='Progs Supp Detail_PS_ Elec'!F6 -> 0 | L74: ='Progs Supp Detail_PS_ Elec'!G6 -> 34800 | M74: ='Progs Supp Detail_PS_ Elec'!H6 -> 0 | N74: ='Progs Supp Detail_PS_ Elec'!I6 -> 0 | O74: ='Progs Supp Detail_PS_ Elec'!J6 -> 0 | P74: ='Progs Supp Detail_PS_ Elec'!K6 -> 0 | Q74: ='Progs Supp Detail_PS_ Elec'!L6 -> 0 | R74: ='Progs Supp Detail_PS_ Elec'!M6 -> 1309924.2
B75: TradeAlly Detail_PS_ Elec | E75: Trade Ally Memberships | H75: 18230730 | I75: ='TradeAlly Detail_PS_ Elec'!D6 -> 0 | J75: ='TradeAlly Detail_PS_ Elec'!E6 -> 0 | K75: ='TradeAlly Detail_PS_ Elec'!F6 -> 0 | L75: ='TradeAlly Detail_PS_ Elec'!G6 -> 0 | M75: ='TradeAlly Detail_PS_ Elec'!H6 -> 174000 | N75: ='TradeAlly Detail_PS_ Elec'!I6 -> 0 | O75: ='TradeAlly Detail_PS_ Elec'!J6 -> 0 | P75: ='TradeAlly Detail_PS_ Elec'!K6 -> 0 | Q75: ='TradeAlly Detail_PS_ Elec'!L6 -> 0 | R75: ='TradeAlly Detail_PS_ Elec'!M6 -> 174000
B76: CAN_Elect | E76: Trade Ally Network (revenue + cost) | H76: 18230746 | I76: =REP_Elect!D6 -> 208300 | J76: =REP_Elect!E6 -> 187470 | K76: =REP_Elect!F6 -> 20000 | L76: =REP_Elect!G6 -> 5000 | M76: =REP_Elect!H6 -> 60000 | N76: =REP_Elect!I6 -> 2000 | O76: =REP_Elect!J6 -> 500 | P76: =REP_Elect!K6 -> 0 | Q76: =REP_Elect!L6 -> -485000 | R76: =REP_Elect!M6 -> -1730
B77: ABS Detail_PSWE_Elec | E77: Automated Benchmarking System | H77: 18230411 | I77: ='ABS Detail_PSWE_Elec'!D6 -> 244455 | J77: ='ABS Detail_PSWE_Elec'!E6 -> 220009.5 | K77: ='ABS Detail_PSWE_Elec'!F6 -> 0 | L77: ='ABS Detail_PSWE_Elec'!G6 -> 0 | M77: ='ABS Detail_PSWE_Elec'!H6 -> 1936000 | N77: ='ABS Detail_PSWE_Elec'!I6 -> 0 | O77: ='ABS Detail_PSWE_Elec'!J6 -> 0 | P77: ='ABS Detail_PSWE_Elec'!K6 -> 0 | Q77: ='ABS Detail_PSWE_Elec'!L6 -> 0 | R77: ='ABS Detail_PSWE_Elec'!M6 -> 2400464.5
B78: Engy Adv Detail_PSCE Elec | E78: Energy Advisors | H78: 18230610 | I78: ='Engy Adv Detail_PSCE Elec'!D6 -> 842073 | J78: ='Engy Adv Detail_PSCE Elec'!E6 -> 757865.7 | K78: ='Engy Adv Detail_PSCE Elec'!F6 -> 0 | L78: ='Engy Adv Detail_PSCE Elec'!G6 -> 0 | M78: ='Engy Adv Detail_PSCE Elec'!H6 -> 0 | N78: ='Engy Adv Detail_PSCE Elec'!I6 -> 0 | O78: ='Engy Adv Detail_PSCE Elec'!J6 -> 0 | P78: ='Engy Adv Detail_PSCE Elec'!K6 -> 0 | Q78: ='Engy Adv Detail_PSCE Elec'!L6 -> 0 | R78: ='Engy Adv Detail_PSCE Elec'!M6 -> 1599938.7
E79: Equity Support | H79: 18239999 | I79: ='Equity Support Elec'!D6 -> 0 | J79: ='Equity Support Elec'!E6 -> 0 | K79: ='Equity Support Elec'!F6 -> 0 | L79: ='Equity Support Elec'!G6 -> 0 | M79: ='Equity Support Elec'!H6 -> 39620 | N79: ='Equity Support Elec'!I6 -> 4015 | O79: ='Equity Support Elec'!J6 -> 0 | P79: ='Equity Support Elec'!K6 -> 0 | Q79: ='Equity Support Elec'!L6 -> 0 | R79: ='Equity Support Elec'!M6 -> 43635
B80: EEC Detail_PS_Elec | E80: Energy Efficient Communities | H80: 18230811 | I80: ='EEC Detail_PS_Elec'!D6 -> 649650 | J80: ='EEC Detail_PS_Elec'!E6 -> 584685 | K80: ='EEC Detail_PS_Elec'!F6 -> 17000 | L80: ='EEC Detail_PS_Elec'!G6 -> 34000 | M80: ='EEC Detail_PS_Elec'!H6 -> 20000 | N80: ='EEC Detail_PS_Elec'!I6 -> 26000 | O80: ='EEC Detail_PS_Elec'!J6 -> 0 | P80: ='EEC Detail_PS_Elec'!K6 -> 0 | Q80: ='EEC Detail_PS_Elec'!L6 -> 0 | R80: ='EEC Detail_PS_Elec'!M6 -> 1331335
B81: CustOnline Detail_PSWE_Elec | D81: New Name | E81: Customer Digital Services | I81: =SUM(I82:I85) -> 128259 | J81: =SUM(J82:J85) -> 115433.1 | K81: 137500 | L81: 2750 | M81: 1248792.61 | N81: 0 | O81: 0 | P81: 0 | Q81: 0 | R81: 1632734.71
F82: Digital Experience | H82: 18230400 | I82: ='Dig Exprnc_Elec'!D6 -> 0 | J82: ='Dig Exprnc_Elec'!E6 -> 0 | K82: ='Dig Exprnc_Elec'!F6 -> 0 | L82: ='Dig Exprnc_Elec'!G6 -> 0 | M82: ='Dig Exprnc_Elec'!H6 -> 0 | N82: ='Dig Exprnc_Elec'!I6 -> 0 | O82: ='Dig Exprnc_Elec'!J6 -> 0 | P82: ='Dig Exprnc_Elec'!K6 -> 0 | Q82: ='Dig Exprnc_Elec'!L6 -> 0 | R82: ='Dig Exprnc_Elec'!M6 -> 0
F83: Customer Digital Experience | H83: 18230408 | I83: ='Customer Dig Exprnc_Elec'!D6 -> 16530 | J83: ='Customer Dig Exprnc_Elec'!E6 -> 14877 | K83: ='Customer Dig Exprnc_Elec'!F6 -> 0 | L83: ='Customer Dig Exprnc_Elec'!G6 -> 0 | M83: ='Customer Dig Exprnc_Elec'!H6 -> 484550.05 | N83: ='Customer Dig Exprnc_Elec'!I6 -> 0 | O83: ='Customer Dig Exprnc_Elec'!J6 -> 0 | P83: ='Customer Dig Exprnc_Elec'!K6 -> 0 | Q83: ='Customer Dig Exprnc_Elec'!L6 -> 0 | R83: ='Customer Dig Exprnc_Elec'!M6 -> 515957.05
B84: CustAwarTools_elec | F84: Customer Awareness Tools | H84: 18230508 | I84: =CustAwarTools_Elect!D6 -> 40965 | J84: =CustAwarTools_Elect!E6 -> 36868.5 | K84: =CustAwarTools_Elect!F6 -> 0 | L84: =CustAwarTools_Elect!G6 -> 250 | M84: =CustAwarTools_Elect!H6 -> 747242.56 | N84: =CustAwarTools_Elect!I6 -> 0 | O84: =CustAwarTools_Elect!J6 -> 0 | P84: =CustAwarTools_Elect!K6 -> 0 | Q84: =CustAwarTools_Elect!L6 -> 0 | R84: =CustAwarTools_Elect!M6 -> 825326.06
B85: ShopPSE_elec | F85: PSE Marketplace | H85: 18230509 | I85: ='PSE Mktplce_elect'!D6 -> 70764 | J85: ='PSE Mktplce_elect'!E6 -> 63687.6 | K85: ='PSE Mktplce_elect'!F6 -> 137500 | L85: ='PSE Mktplce_elect'!G6 -> 2500 | M85: ='PSE Mktplce_elect'!H6 -> 17000 | N85: ='PSE Mktplce_elect'!I6 -> 0 | O85: ='PSE Mktplce_elect'!J6 -> 0 | P85: ='PSE Mktplce_elect'!K6 -> 0 | Q85: ='PSE Mktplce_elect'!L6 -> 0 | R85: ='PSE Mktplce_elect'!M6 -> 291451.6
B86: Mkt Intgn Detail_PSWE_Elec | E86: Market Integration | H86: 18230466 | I86: ='Mkt Intgn Detail_PSWE_Elec'!D6 -> 636512 | J86: ='Mkt Intgn Detail_PSWE_Elec'!E6 -> 572860.8 | K86: ='Mkt Intgn Detail_PSWE_Elec'!F6 -> 957000 | L86: ='Mkt Intgn Detail_PSWE_Elec'!G6 -> 0 | M86: ='Mkt Intgn Detail_PSWE_Elec'!H6 -> 36540 | N86: ='Mkt Intgn Detail_PSWE_Elec'!I6 -> 0 | O86: ='Mkt Intgn Detail_PSWE_Elec'!J6 -> 0 | P86: ='Mkt Intgn Detail_PSWE_Elec'!K6 -> 0 | Q86: ='Mkt Intgn Detail_PSWE_Elec'!L6 -> 0 | R86: ='Mkt Intgn Detail_PSWE_Elec'!M6 -> 2202912.8
B87: Events Detail_PSCE Elec | E87: Events | H87: 18230602 | I87: ='Events Detail_PSCE Elec'!D6 -> 282895 | J87: ='Events Detail_PSCE Elec'!E6 -> 254605.5 | K87: ='Events Detail_PSCE Elec'!F6 -> 0 | L87: ='Events Detail_PSCE Elec'!G6 -> 0 | M87: ='Events Detail_PSCE Elec'!H6 -> 0 | N87: ='Events Detail_PSCE Elec'!I6 -> 0 | O87: ='Events Detail_PSCE Elec'!J6 -> 0 | P87: ='Events Detail_PSCE Elec'!K6 -> 0 | Q87: ='Events Detail_PSCE Elec'!L6 -> 0 | R87: ='Events Detail_PSCE Elec'!M6 -> 537500.5
G88: Total, Portfolio Support | I88: =SUM(I71:I81)+SUM(I86:I87) -> 5135869 | J88: =SUM(J71:J81)+SUM(J86:J87) -> 4622282.1 | K88: 1131500 | L88: 125250 | M88: 4084652.61 | N88: 47015 | O88: 500 | P88: 0 | Q88: -485000 | R88: 14662068.71
C92: Research & Compliance
B93: SuppCrv Detail_R&C_Elec | E93: Conservation Supply Curves | H93: 18230809 | I93: ='SuppCrv Detail_R&C_Elec'!D6 -> 112154 | J93: ='SuppCrv Detail_R&C_Elec'!E6 -> 100938.6 | K93: ='SuppCrv Detail_R&C_Elec'!F6 -> 0 | L93: ='SuppCrv Detail_R&C_Elec'!G6 -> 870 | M93: ='SuppCrv Detail_R&C_Elec'!H6 -> 665000 | N93: ='SuppCrv Detail_R&C_Elec'!I6 -> 0 | O93: ='SuppCrv Detail_R&C_Elec'!J6 -> 0 | P93: ='SuppCrv Detail_R&C_Elec'!K6 -> 0 | Q93: ='SuppCrv Detail_R&C_Elec'!L6 -> 0 | R93: ='SuppCrv Detail_R&C_Elec'!M6 -> 878962.6
B94: Strat Plan Detail_R&C_Elec | E94: Strategic Planning | H94: 18230469 | I94: ='Strat Plan Detail_R&C_Elec'!D6 -> 349019 | J94: ='Strat Plan Detail_R&C_Elec'!E6 -> 314117.1 | K94: ='Strat Plan Detail_R&C_Elec'!F6 -> 0 | L94: ='Strat Plan Detail_R&C_Elec'!G6 -> 6525 | M94: ='Strat Plan Detail_R&C_Elec'!H6 -> 0 | N94: ='Strat Plan Detail_R&C_Elec'!I6 -> 0 | O94: ='Strat Plan Detail_R&C_Elec'!J6 -> 0 | P94: ='Strat Plan Detail_R&C_Elec'!K6 -> 0 | Q94: ='Strat Plan Detail_R&C_Elec'!L6 -> 0 | R94: ='Strat Plan Detail_R&C_Elec'!M6 -> 669661.1
B95: Mktg Resch Detail_PS_ Elec | E95: Market Research | H95: 18230413 | I95: ='Mktg Resch Detail_PS_ Elec'!D6 -> 91100 | J95: ='Mktg Resch Detail_PS_ Elec'!E6 -> 81990 | K95: ='Mktg Resch Detail_PS_ Elec'!F6 -> 0 | L95: ='Mktg Resch Detail_PS_ Elec'!G6 -> 0 | M95: ='Mktg Resch Detail_PS_ Elec'!H6 -> 0 | N95: ='Mktg Resch Detail_PS_ Elec'!I6 -> 0 | O95: ='Mktg Resch Detail_PS_ Elec'!J6 -> 0 | P95: ='Mktg Resch Detail_PS_ Elec'!K6 -> 0 | Q95: ='Mktg Resch Detail_PS_ Elec'!L6 -> 0 | R95: ='Mktg Resch Detail_PS_ Elec'!M6 -> 173090
B96: Eval Detail_R&C_Elec | E96: Program Evaluation | H96: 18230802 | I96: ='Eval Detail_R&C_Elec'!D6 -> 217263 | J96: ='Eval Detail_R&C_Elec'!E6 -> 195536.7 | K96: ='Eval Detail_R&C_Elec'!F6 -> 0 | L96: ='Eval Detail_R&C_Elec'!G6 -> 6525 | M96: ='Eval Detail_R&C_Elec'!H6 -> 1651000 | N96: ='Eval Detail_R&C_Elec'!I6 -> 0 | O96: ='Eval Detail_R&C_Elec'!J6 -> 0 | P96: ='Eval Detail_R&C_Elec'!K6 -> 0 | Q96: ='Eval Detail_R&C_Elec'!L6 -> 0 | R96: ='Eval Detail_R&C_Elec'!M6 -> 2070324.7
B97: BECAR Detail_R&C Elec | E97: Biennial Consv. Aquisitn. Review | H97: 18230559 | I97: ='BCAR Detail_R&C Elec'!D6 -> 0 | J97: ='BCAR Detail_R&C Elec'!E6 -> 0 | K97: ='BCAR Detail_R&C Elec'!F6 -> 0 | L97: ='BCAR Detail_R&C Elec'!G6 -> 0 | M97: ='BCAR Detail_R&C Elec'!H6 -> 143000 | N97: ='BCAR Detail_R&C Elec'!I6 -> 0 | O97: ='BCAR Detail_R&C Elec'!J6 -> 0 | P97: ='BCAR Detail_R&C Elec'!K6 -> 0 | Q97: ='BCAR Detail_R&C Elec'!L6 -> 0 | R97: ='BCAR Detail_R&C Elec'!M6 -> 143000
B98: TechEval Detail Elec | C98: E261 | E98: Technology Evaluation | H98: 18230511 | I98: ='TechEval Detail Elec'!D6 -> 0 | J98: ='TechEval Detail Elec'!E6 -> 0 | K98: ='TechEval Detail Elec'!F6 -> 0 | L98: ='TechEval Detail Elec'!G6 -> 0 | M98: ='TechEval Detail Elec'!H6 -> 75000 | N98: ='TechEval Detail Elec'!I6 -> 0 | O98: ='TechEval Detail Elec'!J6 -> 0 | P98: ='TechEval Detail Elec'!K6 -> 0 | Q98: ='TechEval Detail Elec'!L6 -> 0 | R98: ='TechEval Detail Elec'!M6 -> 75000
G99: Total, Research & Compliance | I99: =SUM(I93:I98) -> 769536 | J99: =SUM(J93:J98) -> 692582.4 | K99: 0 | L99: 13920 | M99: 2534000 | N99: 0 | O99: 0 | P99: 0 | Q99: 0 | R99: =SUM(R93:R98) -> 4010038.4
C103: Other Customer Programs
B104: Net Mtr Details_Oth Elec E150 | C104: E150 | E104: Net Metering | H104: 18230128 | I104: ='Net Mtr Details_Oth Elec E150'!D6 -> 723400 | J104: ='Net Mtr Details_Oth Elec E150'!E6 -> 651060 | K104: ='Net Mtr Details_Oth Elec E150'!F6 -> 20000 | L104: ='Net Mtr Details_Oth Elec E150'!G6 -> 10000 | M104: ='Net Mtr Details_Oth Elec E150'!H6 -> 241500 | N104: ='Net Mtr Details_Oth Elec E150'!I6 -> 0 | O104: ='Net Mtr Details_Oth Elec E150'!J6 -> 2700000 | P104: ='Net Mtr Details_Oth Elec E150'!K6 -> 0 | Q104: ='Net Mtr Details_Oth Elec E150'!L6 -> 0 | R104: ='Net Mtr Details_Oth Elec E150'!M6 -> 4345960
B105: DemndResp_Detail_E249_Elec | C105: 249A | E105: Demand Response Pilot | H105: 18230566 | I105: =DmndResp_Detail_249A_Elec!D6 -> 0 | J105: =DmndResp_Detail_249A_Elec!E6 -> 0 | K105: =DmndResp_Detail_249A_Elec!F6 -> 0 | L105: =DmndResp_Detail_249A_Elec!G6 -> 0 | M105: =DmndResp_Detail_249A_Elec!H6 -> 420000 | N105: =DmndResp_Detail_249A_Elec!I6 -> 0 | O105: =DmndResp_Detail_249A_Elec!J6 -> 0 | P105: =DmndResp_Detail_249A_Elec!K6 -> 0 | Q105: =DmndResp_Detail_249A_Elec!L6 -> 0 | R105: =DmndResp_Detail_249A_Elec!M6 -> 420000
C106: 272, 271 | E106: Demand Response Administration | H106: 18230753 | I106: =DmndResp_Admi_E271_Elec!D6 -> 621550 | J106: =DmndResp_Admi_E271_Elec!E6 -> 559395 | K106: =DmndResp_Admi_E271_Elec!F6 -> 1500000 | L106: =DmndResp_Admi_E271_Elec!G6 -> 80000 | M106: =DmndResp_Admi_E271_Elec!H6 -> 350000 | N106: =DmndResp_Admi_E271_Elec!I6 -> 20000 | O106: =DmndResp_Admi_E271_Elec!J6 -> 2170000 | P106: =DmndResp_Admi_E271_Elec!K6 -> 0 | Q106: =DmndResp_Admi_E271_Elec!L6 -> 0 | R106: =DmndResp_Admi_E271_Elec!M6 -> 5300945
G107: Total, Other Energy Efficiency Programs | I107: =SUM(I104:I106) -> 1344950 | J107: =SUM(J104:J106) -> 1210455 | K107: 1520000 | L107: 90000 | M107: 1011500 | N107: 20000 | O107: 4870000 | P107: 0 | Q107: 0 | R107: =SUM(R104:R106) -> 10066905
G111: GRAND TOTAL, ELECTRIC PROGRAMS | I111: =I107+I99+I66+I58+I50+I24 -> 8427880 | J111: 7591092 | K111: 2788420 | L111: 251645 | M111: 19991128.25 | N111: 108700 | O111: 5025500 | P111: 68932910.97 | Q111: 0 | R111: =R107+R99+R88+R66+R58+R50+R24 -> 126776072.7 | S111: =S107+S99+S66+S58+S50+S24 -> 207613768.9
S114: =S111/1000/8760 -> 23.70020193
G115: Budget Category Includes | H115: This is the main level of tracking expenditures and expenses in EES. Per FERC rules, all conservation order numbers start with a "1823nnnn", where "n" is some number. Cost elements apply to all order numbers (for instance, all conservation programs that | I115: Energy Efficiency program staff labor. Average FTE cost including management assessments. This Budget Category group includes assessments from Major Accounts management, Resource Planning, Corporate Communications management, IT specialists and some building maintenance allocations. | J115: Overhead--costs associated with primarily employee labor; benefits, for instance. For 2017, includes micro-overhead. | K115: Service and materials associated with the cost of printing program brochures, marketing pieces, advertising, banners, etc. Also includes marketing conducted by vendors and contractors. | L115: Costs associated with EE staff attending events, employee training, conferences, business meals, business parking, ferry & bridge tolls, mileage incurred on employee automobiles, office supplies, phones, subscriptions, software/hardware, etc. | M115: Contractors and vendors, such as PECI, Ecos, CostCo, EFI, etc. Legal expenses, technical services (CMS design, PSE.com web portals, etc.). These costs do NOT include brochure development, marketing pieces, (which are classified under MARKETING). These costs do NOT include incentives paid to customers by contractors. | N115: Primarily tools, trade show equipment, etc. | O115: This category should seldomly be used, and only expenses that cannot be classified under one of the above categories. | P115: All costs associated with rebates, grants, remuneration, value-added services that have a direct bearing on a customer's perceived value of PSE offerings. | Q115: Any amount that PSE is paid by a customer, partner, municipality or outside entity.

Sheet 2-year Sector View Gas
C2: Energy Efficiency 2024-2025 Budgets and Aggregate Program Savings
C3: Two-Year Sector View
C4: Natural Gas Programs | I4: Please see category descriptions at the bottom of the sector table.
I5: Budget Category
B6: Workbook Name | C6: Schedule | D6: Comment | E6: Description (Blue, indented text indicates a sub-total value) | H6: Order Number (Click on the order# below to link to the detail page) | I6: Labor | J6: Overhead | K6: Marketing | L6: Employee/Office Expense | M6: Outside Services | N6: Materials | O6: Miscellaneous | P6: DBtC | Q6: Revenue | R6: Total Budget | S6: Total Savings Therms
C7: Residential Energy Management
B8: LIW Detail_REM G201 Gas | C8: G201 | E8: Low Income Weatherization | H8: 18230661 | I8: =SUM(I9:I18) -> 830007 | J8: =SUM(J9:J18) -> 747006.3 | K8: ='2024 Sector View Gas'!K8+'2025 Sector View Gas'!K8 -> 21600 | L8: ='2024 Sector View Gas'!L8+'2025 Sector View Gas'!L8 -> 1000 | M8: ='2024 Sector View Gas'!M8+'2025 Sector View Gas'!M8 -> 5000 | N8: ='2024 Sector View Gas'!N8+'2025 Sector View Gas'!N8 -> 300 | O8: ='2024 Sector View Gas'!O8+'2025 Sector View Gas'!O8 -> 0 | P8: ='2024 Sector View Gas'!P8+'2025 Sector View Gas'!P8 -> 3027488.5 | Q8: ='2024 Sector View Gas'!Q8+'2025 Sector View Gas'!Q8 -> 0 | R8: ='2024 Sector View Gas'!R8+'2025 Sector View Gas'!R8 -> 3170372.7 | S8: ='2024 Sector View Gas'!S8+'2025 Sector View Gas'!S8 -> 43836
B9: WtrHeat Detail_REM G214 Gas | C9: G214 | E9: SF Existing Water Heat | H9: 18230249 | I9: ='2024 Sector View Gas'!I9+'2025 Sector View Gas'!I9 -> 121784 | J9: ='2024 Sector View Gas'!J9+'2025 Sector View Gas'!J9 -> 109605.6 | K9: ='2024 Sector View Gas'!K9+'2025 Sector View Gas'!K9 -> 178000 | L9: ='2024 Sector View Gas'!L9+'2025 Sector View Gas'!L9 -> 2000 | M9: ='2024 Sector View Gas'!M9+'2025 Sector View Gas'!M9 -> 2000 | N9: ='2024 Sector View Gas'!N9+'2025 Sector View Gas'!N9 -> 0 | O9: ='2024 Sector View Gas'!O9+'2025 Sector View Gas'!O9 -> 3000 | P9: ='2024 Sector View Gas'!P9+'2025 Sector View Gas'!P9 -> 912800 | Q9: ='2024 Sector View Gas'!Q9+'2025 Sector View Gas'!Q9 -> 0 | R9: ='2024 Sector View Gas'!R9+'2025 Sector View Gas'!R9 -> 1329189.6 | S9: ='2024 Sector View Gas'!S9+'2025 Sector View Gas'!S9 -> 122462.2
B10: Wx Detail_REM G214 Gas | C10: G214 | E10: SF Existing Weatherization | H10: 18230637 | I10: ='2024 Sector View Gas'!I10+'2025 Sector View Gas'!I10 -> 288432 | J10: ='2024 Sector View Gas'!J10+'2025 Sector View Gas'!J10 -> 259588.8 | K10: ='2024 Sector View Gas'!K10+'2025 Sector View Gas'!K10 -> 237500 | L10: ='2024 Sector View Gas'!L10+'2025 Sector View Gas'!L10 -> 2400 | M10: ='2024 Sector View Gas'!M10+'2025 Sector View Gas'!M10 -> 220000 | N10: ='2024 Sector View Gas'!N10+'2025 Sector View Gas'!N10 -> 101000 | O10: ='2024 Sector View Gas'!O10+'2025 Sector View Gas'!O10 -> 0 | P10: ='2024 Sector View Gas'!P10+'2025 Sector View Gas'!P10 -> 13147567.6 | Q10: ='2024 Sector View Gas'!Q10+'2025 Sector View Gas'!Q10 -> 0 | R10: ='2024 Sector View Gas'!R10+'2025 Sector View Gas'!R10 -> 14256488.4 | S10: ='2024 Sector View Gas'!S10+'2025 Sector View Gas'!S10 -> 669746.2686
B11: SpHeat Detail_REM G214 Gas | C11: G214 | E11: SF Existing Space Heat | H11: 18230638 | I11: ='2024 Sector View Gas'!I11+'2025 Sector View Gas'!I11 -> 45608 | J11: ='2024 Sector View Gas'!J11+'2025 Sector View Gas'!J11 -> 41047.2 | K11: ='2024 Sector View Gas'!K11+'2025 Sector View Gas'!K11 -> 360000 | L11: ='2024 Sector View Gas'!L11+'2025 Sector View Gas'!L11 -> 2400 | M11: ='2024 Sector View Gas'!M11+'2025 Sector View Gas'!M11 -> 0 | N11: ='2024 Sector View Gas'!N11+'2025 Sector View Gas'!N11 -> 0 | O11: ='2024 Sector View Gas'!O11+'2025 Sector View Gas'!O11 -> 0 | P11: ='2024 Sector View Gas'!P11+'2025 Sector View Gas'!P11 -> 2761600 | Q11: ='2024 Sector View Gas'!Q11+'2025 Sector View Gas'!Q11 -> 0 | R11: ='2024 Sector View Gas'!R11+'2025 Sector View Gas'!R11 -> 3210655.2 | S11: ='2024 Sector View Gas'!S11+'2025 Sector View Gas'!S11 -> 420207.4
C12: G214 | E12: Residential Midstream HVAC and Water Heat | H12: 18230161 | I12: ='2024 Sector View Gas'!I12+'2025 Sector View Gas'!I12 -> 0 | J12: ='2024 Sector View Gas'!J12+'2025 Sector View Gas'!J12 -> 0 | K12: ='2024 Sector View Gas'!K12+'2025 Sector View Gas'!K12 -> 0 | L12: ='2024 Sector View Gas'!L12+'2025 Sector View Gas'!L12 -> 0 | M12: ='2024 Sector View Gas'!M12+'2025 Sector View Gas'!M12 -> 296659 | N12: ='2024 Sector View Gas'!N12+'2025 Sector View Gas'!N12 -> 0 | O12: ='2024 Sector View Gas'!O12+'2025 Sector View Gas'!O12 -> 0 | P12: ='2024 Sector View Gas'!P12+'2025 Sector View Gas'!P12 -> 753832 | Q12: ='2024 Sector View Gas'!Q12+'2025 Sector View Gas'!Q12 -> 0 | R12: ='2024 Sector View Gas'!R12+'2025 Sector View Gas'!R12 -> 1050491 | S12: ='2024 Sector View Gas'!S12+'2025 Sector View Gas'!S12 -> 148131
B13: HmApplSvgs Detail_REM G214 Gas | C13: G214 | E13: Home Appliances | H13: 18230434 | I13: ='2024 Sector View Gas'!I13+'2025 Sector View Gas'!I13 -> 0 | J13: ='2024 Sector View Gas'!J13+'2025 Sector View Gas'!J13 -> 0 | K13: ='2024 Sector View Gas'!K13+'2025 Sector View Gas'!K13 -> 0 | L13: ='2024 Sector View Gas'!L13+'2025 Sector View Gas'!L13 -> 0 | M13: ='2024 Sector View Gas'!M13+'2025 Sector View Gas'!M13 -> 0 | N13: ='2024 Sector View Gas'!N13+'2025 Sector View Gas'!N13 -> 0 | O13: ='2024 Sector View Gas'!O13+'2025 Sector View Gas'!O13 -> 0 | P13: ='2024 Sector View Gas'!P13+'2025 Sector View Gas'!P13 -> 0 | Q13: ='2024 Sector View Gas'!Q13+'2025 Sector View Gas'!Q13 -> 0 | R13: ='2024 Sector View Gas'!R13+'2025 Sector View Gas'!R13 -> 0 | S13: ='2024 Sector View Gas'!S13+'2025 Sector View Gas'!S13 -> 9672
B14: WebTstat Detail_REM G214 Gas | C14: G214 | E14: Smart Thermostats | H14: 18230687 | I14: ='2024 Sector View Gas'!I14+'2025 Sector View Gas'!I14 -> 211873 | J14: ='2024 Sector View Gas'!J14+'2025 Sector View Gas'!J14 -> 190685.7 | K14: ='2024 Sector View Gas'!K14+'2025 Sector View Gas'!K14 -> 200000 | L14: ='2024 Sector View Gas'!L14+'2025 Sector View Gas'!L14 -> 4000 | M14: ='2024 Sector View Gas'!M14+'2025 Sector View Gas'!M14 -> 1183891.1 | N14: ='2024 Sector View Gas'!N14+'2025 Sector View Gas'!N14 -> 0 | O14: ='2024 Sector View Gas'!O14+'2025 Sector View Gas'!O14 -> 0 | P14: ='2024 Sector View Gas'!P14+'2025 Sector View Gas'!P14 -> 2565600 | Q14: ='2024 Sector View Gas'!Q14+'2025 Sector View Gas'!Q14 -> 0 | R14: ='2024 Sector View Gas'!R14+'2025 Sector View Gas'!R14 -> 4356049.8 | S14: ='2024 Sector View Gas'!S14+'2025 Sector View Gas'!S14 -> 553597.8
B15: HER Detail_REM G214 gas | C15: G214 | E15: Home Energy Reports | H15: 18230738 | I15: ='2024 Sector View Gas'!I15+'2025 Sector View Gas'!I15 -> 113310 | J15: ='2024 Sector View Gas'!J15+'2025 Sector View Gas'!J15 -> 101979 | K15: ='2024 Sector View Gas'!K15+'2025 Sector View Gas'!K15 -> 0 | L15: ='2024 Sector View Gas'!L15+'2025 Sector View Gas'!L15 -> 1200 | M15: ='2024 Sector View Gas'!M15+'2025 Sector View Gas'!M15 -> 1834787.6 | N15: ='2024 Sector View Gas'!N15+'2025 Sector View Gas'!N15 -> 0 | O15: ='2024 Sector View Gas'!O15+'2025 Sector View Gas'!O15 -> 0 | P15: ='2024 Sector View Gas'!P15+'2025 Sector View Gas'!P15 -> 1820384.58 | Q15: ='2024 Sector View Gas'!Q15+'2025 Sector View Gas'!Q15 -> 0 | R15: ='2024 Sector View Gas'!R15+'2025 Sector View Gas'!R15 -> 3871661.18 | S15: ='2024 Sector View Gas'!S15+'2025 Sector View Gas'!S15 -> 2489560.22
B16: SFNC Detail_REM G215 Gas | C16: G215 | E16: Single Family New Construction | H16: 18230684 | I16: ='2024 Sector View Gas'!I16+'2025 Sector View Gas'!I16 -> 0 | J16: ='2024 Sector View Gas'!J16+'2025 Sector View Gas'!J16 -> 0 | K16: ='2024 Sector View Gas'!K16+'2025 Sector View Gas'!K16 -> 0 | L16: ='2024 Sector View Gas'!L16+'2025 Sector View Gas'!L16 -> 0 | M16: ='2024 Sector View Gas'!M16+'2025 Sector View Gas'!M16 -> 0 | N16: ='2024 Sector View Gas'!N16+'2025 Sector View Gas'!N16 -> 0 | O16: ='2024 Sector View Gas'!O16+'2025 Sector View Gas'!O16 -> 0 | P16: ='2024 Sector View Gas'!P16+'2025 Sector View Gas'!P16 -> 0 | Q16: ='2024 Sector View Gas'!Q16+'2025 Sector View Gas'!Q16 -> 0 | R16: ='2024 Sector View Gas'!R16+'2025 Sector View Gas'!R16 -> 0 | S16: ='2024 Sector View Gas'!S16+'2025 Sector View Gas'!S16 -> 0
B17: MfgHmNew Detail_REM E215 Elec | C17: E215 | E17: Manufactured Home New Construction | H17: 18230752 | I17: ='2024 Sector View Gas'!I17+'2025 Sector View Gas'!I17 -> 0 | J17: ='2024 Sector View Gas'!J17+'2025 Sector View Gas'!J17 -> 0 | K17: ='2024 Sector View Gas'!K17+'2025 Sector View Gas'!K17 -> 0 | L17: ='2024 Sector View Gas'!L17+'2025 Sector View Gas'!L17 -> 0 | M17: ='2024 Sector View Gas'!M17+'2025 Sector View Gas'!M17 -> 0 | N17: ='2024 Sector View Gas'!N17+'2025 Sector View Gas'!N17 -> 0 | O17: ='2024 Sector View Gas'!O17+'2025 Sector View Gas'!O17 -> 0 | P17: ='2024 Sector View Gas'!P17+'2025 Sector View Gas'!P17 -> 29600 | Q17: ='2024 Sector View Gas'!Q17+'2025 Sector View Gas'!Q17 -> 0 | R17: ='2024 Sector View Gas'!R17+'2025 Sector View Gas'!R17 -> 29600 | S17: ='2024 Sector View Gas'!S17+'2025 Sector View Gas'!S17 -> 1094.8
B18: Efficiency Boost G217 Gas | C18: G214 & 217 | E18: Efficiency Boost | H18: 18230254 | I18: ='2024 Sector View Gas'!I18+'2025 Sector View Gas'!I18 -> 49000 | J18: ='2024 Sector View Gas'!J18+'2025 Sector View Gas'!J18 -> 44100 | K18: ='2024 Sector View Gas'!K18+'2025 Sector View Gas'!K18 -> 60000 | L18: ='2024 Sector View Gas'!L18+'2025 Sector View Gas'!L18 -> 0 | M18: ='2024 Sector View Gas'!M18+'2025 Sector View Gas'!M18 -> 0 | N18: ='2024 Sector View Gas'!N18+'2025 Sector View Gas'!N18 -> 0 | O18: ='2024 Sector View Gas'!O18+'2025 Sector View Gas'!O18 -> 0 | P18: ='2024 Sector View Gas'!P18+'2025 Sector View Gas'!P18 -> 0 | Q18: ='2024 Sector View Gas'!Q18+'2025 Sector View Gas'!Q18 -> 0 | R18: ='2024 Sector View Gas'!R18+'2025 Sector View Gas'!R18 -> 153100 | S18: ='2024 Sector View Gas'!S18+'2025 Sector View Gas'!S18 -> 0
B19: MF Retr Detail_REM G217 Gas | C19: G217 | E19: Multifamily Retrofit | H19: 18230736 | I19: ='2024 Sector View Gas'!I19+'2025 Sector View Gas'!I19 -> 38897 | J19: ='2024 Sector View Gas'!J19+'2025 Sector View Gas'!J19 -> 35007.3 | K19: ='2024 Sector View Gas'!K19+'2025 Sector View Gas'!K19 -> 10000 | L19: ='2024 Sector View Gas'!L19+'2025 Sector View Gas'!L19 -> 2000 | M19: ='2024 Sector View Gas'!M19+'2025 Sector View Gas'!M19 -> 139825.16 | N19: ='2024 Sector View Gas'!N19+'2025 Sector View Gas'!N19 -> 0 | O19: ='2024 Sector View Gas'!O19+'2025 Sector View Gas'!O19 -> 0 | P19: ='2024 Sector View Gas'!P19+'2025 Sector View Gas'!P19 -> 344055 | Q19: ='2024 Sector View Gas'!Q19+'2025 Sector View Gas'!Q19 -> 0 | R19: ='2024 Sector View Gas'!R19+'2025 Sector View Gas'!R19 -> 569784.46 | S19: ='2024 Sector View Gas'!S19+'2025 Sector View Gas'!S19 -> 30050.32
B20: MFNC Detail_REM G218 Gas | C20: G218 | E20: Multi-Family New Construction | H20: 18230673 | I20: ='2024 Sector View Gas'!I20+'2025 Sector View Gas'!I20 -> 0 | J20: ='2024 Sector View Gas'!J20+'2025 Sector View Gas'!J20 -> 0 | K20: ='2024 Sector View Gas'!K20+'2025 Sector View Gas'!K20 -> 0 | L20: ='2024 Sector View Gas'!L20+'2025 Sector View Gas'!L20 -> 0 | M20: ='2024 Sector View Gas'!M20+'2025 Sector View Gas'!M20 -> 20839 | N20: ='2024 Sector View Gas'!N20+'2025 Sector View Gas'!N20 -> 0 | O20: ='2024 Sector View Gas'!O20+'2025 Sector View Gas'!O20 -> 0 | P20: ='2024 Sector View Gas'!P20+'2025 Sector View Gas'!P20 -> 51450 | Q20: ='2024 Sector View Gas'!Q20+'2025 Sector View Gas'!Q20 -> 0 | R20: ='2024 Sector View Gas'!R20+'2025 Sector View Gas'!R20 -> 72289 | S20: ='2024 Sector View Gas'!S20+'2025 Sector View Gas'!S20 -> 7200
G21: Total, Residential Energy Management | I21: =SUM(I8:I20) -> 1698911 | J21: 1529019.9 | K21: 1067100 | L21: 15000 | M21: 3703001.86 | N21: 101300 | O21: 3000 | P21: 25414377.68 | Q21: 0 | R21: 32069681.34 | S21: 4495558.009
P22: =P21/R21 -> 0.7924736579
H23: 2022-2023 Figures | I23: 902300 | J23: 704696.3 | K23: 888800 | L23: 15200 | M23: 2613148.724 | N23: 5300 | O23: 8000 | P23: 20028401.89 | Q23: 0 | R23: 25165846.91 | S23: 5856444.168
C25: Business Energy Management
E26: Commercial/Industrial Retrofit | I26: =SUM(I27:I29) -> 924640 | J26: =SUM(J27:J29) -> 832176 | K26: 26000 | L26: 10000 | M26: 300000 | N26: 3000 | O26: 47000 | P26: =SUM(P27:P29) -> 3487140 | Q26: 0 | R26: =SUM(R27:R29) -> 5629956 | S26: =SUM(S27:S29) -> 782000
B27: CI Retr Detail_BEM G250 Gas | C27: G250 | E27: Retrofit Custom Grants | H27: 18230731 | I27: ='2024 Sector View Gas'!I27+'2025 Sector View Gas'!I27 -> 685040 | J27: ='2024 Sector View Gas'!J27+'2025 Sector View Gas'!J27 -> 616536 | K27: ='2024 Sector View Gas'!K27+'2025 Sector View Gas'!K27 -> 10000 | L27: ='2024 Sector View Gas'!L27+'2025 Sector View Gas'!L27 -> 6000 | M27: ='2024 Sector View Gas'!M27+'2025 Sector View Gas'!M27 -> 140000 | N27: ='2024 Sector View Gas'!N27+'2025 Sector View Gas'!N27 -> 3000 | O27: ='2024 Sector View Gas'!O27+'2025 Sector View Gas'!O27 -> 44000 | P27: ='2024 Sector View Gas'!P27+'2025 Sector View Gas'!P27 -> 3360500 | Q27: ='2024 Sector View Gas'!Q27+'2025 Sector View Gas'!Q27 -> 0 | R27: ='2024 Sector View Gas'!R27+'2025 Sector View Gas'!R27 -> 4865076 | S27: ='2024 Sector View Gas'!S27+'2025 Sector View Gas'!S27 -> 580000
B28: CI Industrial BEM G250_Gas | C28: G250 | E28: Industrial Programs | H28: 18231037 | I28: ='2024 Sector View Gas'!I28+'2025 Sector View Gas'!I28 -> 141766 | J28: ='2024 Sector View Gas'!J28+'2025 Sector View Gas'!J28 -> 127589.4 | K28: ='2024 Sector View Gas'!K28+'2025 Sector View Gas'!K28 -> 0 | L28: ='2024 Sector View Gas'!L28+'2025 Sector View Gas'!L28 -> 0 | M28: ='2024 Sector View Gas'!M28+'2025 Sector View Gas'!M28 -> 0 | N28: ='2024 Sector View Gas'!N28+'2025 Sector View Gas'!N28 -> 0 | O28: ='2024 Sector View Gas'!O28+'2025 Sector View Gas'!O28 -> 0 | P28: ='2024 Sector View Gas'!P28+'2025 Sector View Gas'!P28 -> 126640 | Q28: ='2024 Sector View Gas'!Q28+'2025 Sector View Gas'!Q28 -> 0 | R28: ='2024 Sector View Gas'!R28+'2025 Sector View Gas'!R28 -> 395995.4 | S28: ='2024 Sector View Gas'!S28+'2025 Sector View Gas'!S28 -> 52000
C29: E250 | E29: Clean Buildings Accelerator | H29: 18230220 | I29: ='2024 Sector View Gas'!I29+'2025 Sector View Gas'!I29 -> 97834 | J29: ='2024 Sector View Gas'!J29+'2025 Sector View Gas'!J29 -> 88050.6 | K29: ='2024 Sector View Gas'!K29+'2025 Sector View Gas'!K29 -> 16000 | L29: ='2024 Sector View Gas'!L29+'2025 Sector View Gas'!L29 -> 4000 | M29: ='2024 Sector View Gas'!M29+'2025 Sector View Gas'!M29 -> 160000 | N29: ='2024 Sector View Gas'!N29+'2025 Sector View Gas'!N29 -> 0 | O29: ='2024 Sector View Gas'!O29+'2025 Sector View Gas'!O29 -> 3000 | P29: ='2024 Sector View Gas'!P29+'2025 Sector View Gas'!P29 -> 0 | Q29: ='2024 Sector View Gas'!Q29+'2025 Sector View Gas'!Q29 -> 0 | R29: ='2024 Sector View Gas'!R29+'2025 Sector View Gas'!R29 -> 368884.6 | S29: ='2024 Sector View Gas'!S29+'2025 Sector View Gas'!S29 -> 150000
B30: CI NC Detail_BEM G251 Gas | C30: G251 | E30: Commercial/Industrial New Construction | H30: 18230706 | I30: ='2024 Sector View Gas'!I30+'2025 Sector View Gas'!I30 -> 88389 | J30: ='2024 Sector View Gas'!J30+'2025 Sector View Gas'!J30 -> 79550.1 | K30: ='2024 Sector View Gas'!K30+'2025 Sector View Gas'!K30 -> 9000 | L30: ='2024 Sector View Gas'!L30+'2025 Sector View Gas'!L30 -> 4050 | M30: ='2024 Sector View Gas'!M30+'2025 Sector View Gas'!M30 -> 30000 | N30: ='2024 Sector View Gas'!N30+'2025 Sector View Gas'!N30 -> 4500 | O30: ='2024 Sector View Gas'!O30+'2025 Sector View Gas'!O30 -> 13500 | P30: ='2024 Sector View Gas'!P30+'2025 Sector View Gas'!P30 -> 292000 | Q30: ='2024 Sector View Gas'!Q30+'2025 Sector View Gas'!Q30 -> 0 | R30: ='2024 Sector View Gas'!R30+'2025 Sector View Gas'!R30 -> 520989.1 | S30: ='2024 Sector View Gas'!S30+'2025 Sector View Gas'!S30 -> 40000
E31: Commercial Strategic Energy Management | I31: ='2024 Sector View Gas'!I31+'2025 Sector View Gas'!I31 -> 554016 | J31: ='2024 Sector View Gas'!J31+'2025 Sector View Gas'!J31 -> 498614.4 | K31: ='2024 Sector View Gas'!K31+'2025 Sector View Gas'!K31 -> 3600 | L31: ='2024 Sector View Gas'!L31+'2025 Sector View Gas'!L31 -> 12000 | M31: ='2024 Sector View Gas'!M31+'2025 Sector View Gas'!M31 -> 321580 | N31: ='2024 Sector View Gas'!N31+'2025 Sector View Gas'!N31 -> 500 | O31: ='2024 Sector View Gas'!O31+'2025 Sector View Gas'!O31 -> 7000 | P31: ='2024 Sector View Gas'!P31+'2025 Sector View Gas'!P31 -> 553032 | Q31: ='2024 Sector View Gas'!Q31+'2025 Sector View Gas'!Q31 -> 0 | R31: ='2024 Sector View Gas'!R31+'2025 Sector View Gas'!R31 -> 1950342.4 | S31: ='2024 Sector View Gas'!S31+'2025 Sector View Gas'!S31 -> 766004
B32: RCM Detail_BEM 253 Gas | C32: G253 | E32: SEM | H32: 18230691 | I32: ='2024 Sector View Gas'!I32+'2025 Sector View Gas'!I32 -> 466191 | J32: ='2024 Sector View Gas'!J32+'2025 Sector View Gas'!J32 -> 419571.9 | K32: ='2024 Sector View Gas'!K32+'2025 Sector View Gas'!K32 -> 3000 | L32: ='2024 Sector View Gas'!L32+'2025 Sector View Gas'!L32 -> 12000 | M32: ='2024 Sector View Gas'!M32+'2025 Sector View Gas'!M32 -> 321580 | N32: ='2024 Sector View Gas'!N32+'2025 Sector View Gas'!N32 -> 500 | O32: ='2024 Sector View Gas'!O32+'2025 Sector View Gas'!O32 -> 1000 | P32: ='2024 Sector View Gas'!P32+'2025 Sector View Gas'!P32 -> 345000 | Q32: ='2024 Sector View Gas'!Q32+'2025 Sector View Gas'!Q32 -> 0 | R32: ='2024 Sector View Gas'!R32+'2025 Sector View Gas'!R32 -> 1568842.9 | S32: ='2024 Sector View Gas'!S32+'2025 Sector View Gas'!S32 -> 740000
C33: G253 | E33: Pay For Performance | H33: 18231039 | I33: ='2024 Sector View Gas'!I33+'2025 Sector View Gas'!I33 -> 87825 | J33: ='2024 Sector View Gas'!J33+'2025 Sector View Gas'!J33 -> 79042.5 | K33: ='2024 Sector View Gas'!K33+'2025 Sector View Gas'!K33 -> 600 | L33: ='2024 Sector View Gas'!L33+'2025 Sector View Gas'!L33 -> 0 | M33: ='2024 Sector View Gas'!M33+'2025 Sector View Gas'!M33 -> 0 | N33: ='2024 Sector View Gas'!N33+'2025 Sector View Gas'!N33 -> 0 | O33: ='2024 Sector View Gas'!O33+'2025 Sector View Gas'!O33 -> 6000 | P33: ='2024 Sector View Gas'!P33+'2025 Sector View Gas'!P33 -> 208032 | Q33: ='2024 Sector View Gas'!Q33+'2025 Sector View Gas'!Q33 -> 0 | R33: ='2024 Sector View Gas'!R33+'2025 Sector View Gas'!R33 -> 381499.5 | S33: ='2024 Sector View Gas'!S33+'2025 Sector View Gas'!S33 -> 26004
B34: Rebates Detail_BEM G262 Gas | C34: G262 | E34: Business Rebates | I34: ='2024 Sector View Gas'!I34+'2025 Sector View Gas'!I34 -> 544319 | J34: ='2024 Sector View Gas'!J34+'2025 Sector View Gas'!J34 -> 489887.1 | K34: ='2024 Sector View Gas'!K34+'2025 Sector View Gas'!K34 -> 308160 | L34: ='2024 Sector View Gas'!L34+'2025 Sector View Gas'!L34 -> 17100 | M34: ='2024 Sector View Gas'!M34+'2025 Sector View Gas'!M34 -> 1962916.35 | N34: ='2024 Sector View Gas'!N34+'2025 Sector View Gas'!N34 -> 1800 | O34: ='2024 Sector View Gas'!O34+'2025 Sector View Gas'!O34 -> 15000 | P34: ='2024 Sector View Gas'!P34+'2025 Sector View Gas'!P34 -> 3713144 | Q34: ='2024 Sector View Gas'!Q34+'2025 Sector View Gas'!Q34 -> 0 | R34: ='2024 Sector View Gas'!R34+'2025 Sector View Gas'!R34 -> 7052326.45 | S34: ='2024 Sector View Gas'!S34+'2025 Sector View Gas'!S34 -> 955627.1
B35: Comm Kit-Laund_G262 Gas | C35: G262 | E35: Commercial Foodservice | H35: 18231027 | I35: ='2024 Sector View Gas'!I35+'2025 Sector View Gas'!I35 -> 242078 | J35: ='2024 Sector View Gas'!J35+'2025 Sector View Gas'!J35 -> 217870.2 | K35: ='2024 Sector View Gas'!K35+'2025 Sector View Gas'!K35 -> 308160 | L35: ='2024 Sector View Gas'!L35+'2025 Sector View Gas'!L35 -> 17100 | M35: ='2024 Sector View Gas'!M35+'2025 Sector View Gas'!M35 -> 857647.35 | N35: ='2024 Sector View Gas'!N35+'2025 Sector View Gas'!N35 -> 1800 | O35: ='2024 Sector View Gas'!O35+'2025 Sector View Gas'!O35 -> 0 | P35: ='2024 Sector View Gas'!P35+'2025 Sector View Gas'!P35 -> 1322026 | Q35: ='2024 Sector View Gas'!Q35+'2025 Sector View Gas'!Q35 -> 0 | R35: ='2024 Sector View Gas'!R35+'2025 Sector View Gas'!R35 -> 2966681.55 | S35: ='2024 Sector View Gas'!S35+'2025 Sector View Gas'!S35 -> 324300
B36: Comm HVAC_G262 Gas | C36: G262 | E36: Commercial HVAC Rebates | H36: 18231029 | I36: ='2024 Sector View Gas'!I36+'2025 Sector View Gas'!I36 -> 47192 | J36: ='2024 Sector View Gas'!J36+'2025 Sector View Gas'!J36 -> 42472.8 | K36: ='2024 Sector View Gas'!K36+'2025 Sector View Gas'!K36 -> 0 | L36: ='2024 Sector View Gas'!L36+'2025 Sector View Gas'!L36 -> 0 | M36: ='2024 Sector View Gas'!M36+'2025 Sector View Gas'!M36 -> 0 | N36: ='2024 Sector View Gas'!N36+'2025 Sector View Gas'!N36 -> 0 | O36: ='2024 Sector View Gas'!O36+'2025 Sector View Gas'!O36 -> 0 | P36: ='2024 Sector View Gas'!P36+'2025 Sector View Gas'!P36 -> 154700 | Q36: ='2024 Sector View Gas'!Q36+'2025 Sector View Gas'!Q36 -> 0 | R36: ='2024 Sector View Gas'!R36+'2025 Sector View Gas'!R36 -> 244364.8 | S36: ='2024 Sector View Gas'!S36+'2025 Sector View Gas'!S36 -> 45157.1
C37: G262 | E37: Commercial Midstream HVAC and Water Heat | H37: 18230248 | I37: ='2024 Sector View Gas'!I37+'2025 Sector View Gas'!I37 -> 255049 | J37: ='2024 Sector View Gas'!J37+'2025 Sector View Gas'!J37 -> 229544.1 | K37: ='2024 Sector View Gas'!K37+'2025 Sector View Gas'!K37 -> 0 | L37: ='2024 Sector View Gas'!L37+'2025 Sector View Gas'!L37 -> 0 | M37: ='2024 Sector View Gas'!M37+'2025 Sector View Gas'!M37 -> 1099989 | N37: ='2024 Sector View Gas'!N37+'2025 Sector View Gas'!N37 -> 0 | O37: ='2024 Sector View Gas'!O37+'2025 Sector View Gas'!O37 -> 15000 | P37: ='2024 Sector View Gas'!P37+'2025 Sector View Gas'!P37 -> 1521018 | Q37: ='2024 Sector View Gas'!Q37+'2025 Sector View Gas'!Q37 -> 0 | R37: ='2024 Sector View Gas'!R37+'2025 Sector View Gas'!R37 -> 3120600.1 | S37: ='2024 Sector View Gas'!S37+'2025 Sector View Gas'!S37 -> 527670
B38: Sm Bus DI_G262 Gas | C38: G262 | E38: Small Business Direct Install | H38: 18231022 | I38: ='2024 Sector View Gas'!I38+'2025 Sector View Gas'!I38 -> 0 | J38: ='2024 Sector View Gas'!J38+'2025 Sector View Gas'!J38 -> 0 | K38: ='2024 Sector View Gas'!K38+'2025 Sector View Gas'!K38 -> 0 | L38: ='2024 Sector View Gas'!L38+'2025 Sector View Gas'!L38 -> 0 | M38: ='2024 Sector View Gas'!M38+'2025 Sector View Gas'!M38 -> 5280 | N38: ='2024 Sector View Gas'!N38+'2025 Sector View Gas'!N38 -> 0 | O38: ='2024 Sector View Gas'!O38+'2025 Sector View Gas'!O38 -> 0 | P38: ='2024 Sector View Gas'!P38+'2025 Sector View Gas'!P38 -> 715400 | Q38: ='2024 Sector View Gas'!Q38+'2025 Sector View Gas'!Q38 -> 0 | R38: ='2024 Sector View Gas'!R38+'2025 Sector View Gas'!R38 -> 720680 | S38: ='2024 Sector View Gas'!S38+'2025 Sector View Gas'!S38 -> 58500
C39: G262 | E39: Lodging Rebates | H39: 18230221 | I39: ='2024 Sector View Gas'!I39+'2025 Sector View Gas'!I39 -> 0 | J39: ='2024 Sector View Gas'!J39+'2025 Sector View Gas'!J39 -> 0 | K39: ='2024 Sector View Gas'!K39+'2025 Sector View Gas'!K39 -> 0 | L39: ='2024 Sector View Gas'!L39+'2025 Sector View Gas'!L39 -> 0 | M39: ='2024 Sector View Gas'!M39+'2025 Sector View Gas'!M39 -> 0 | N39: ='2024 Sector View Gas'!N39+'2025 Sector View Gas'!N39 -> 0 | O39: ='2024 Sector View Gas'!O39+'2025 Sector View Gas'!O39 -> 0 | P39: ='2024 Sector View Gas'!P39+'2025 Sector View Gas'!P39 -> 0 | Q39: ='2024 Sector View Gas'!Q39+'2025 Sector View Gas'!Q39 -> 0 | R39: ='2024 Sector View Gas'!R39+'2025 Sector View Gas'!R39 -> 0 | S39: ='2024 Sector View Gas'!S39+'2025 Sector View Gas'!S39 -> 0
B40: New BusRebt Prgm_G262_Gas | C40: G262 | E40: Commercial General Rebates | H40: 1823xxxx | I40: ='2024 Sector View Gas'!I40+'2025 Sector View Gas'!I40 -> 0 | J40: ='2024 Sector View Gas'!J40+'2025 Sector View Gas'!J40 -> 0 | K40: ='2024 Sector View Gas'!K40+'2025 Sector View Gas'!K40 -> 0 | L40: ='2024 Sector View Gas'!L40+'2025 Sector View Gas'!L40 -> 0 | M40: ='2024 Sector View Gas'!M40+'2025 Sector View Gas'!M40 -> 0 | N40: ='2024 Sector View Gas'!N40+'2025 Sector View Gas'!N40 -> 0 | O40: ='2024 Sector View Gas'!O40+'2025 Sector View Gas'!O40 -> 0 | P40: ='2024 Sector View Gas'!P40+'2025 Sector View Gas'!P40 -> 0 | Q40: ='2024 Sector View Gas'!Q40+'2025 Sector View Gas'!Q40 -> 0 | R40: ='2024 Sector View Gas'!R40+'2025 Sector View Gas'!R40 -> 0 | S40: ='2024 Sector View Gas'!S40+'2025 Sector View Gas'!S40 -> 0
G41: Total, Business Energy Management | I41: =SUM(I27:I31)+I34 -> 2111364 | J41: 1900227.6 | K41: 346760 | L41: 43150 | M41: 2614496.35 | N41: 9800 | O41: 82500 | P41: 8045316 | Q41: 0 | R41: =SUM(R27:R31)+R34 -> 15153613.95 | S41: =SUM(S27:S31)+S90+S34 -> 2543631.1
P42: =P41/R41 -> 0.530917313
H43: 2022-2023 Figures | I43: 1582146 | J43: 1235686.026 | K43: 110500 | L43: 31900 | M43: 3559173.88 | N43: 6500 | O43: 1000 | P43: 7398265.75 | Q43: 0 | R43: 13925171.66 | S43: 3968826
C45: Pilots With Uncertain Savings
B46: REM Pilots Detail G249 Gas | C46: E249 | E46: Residential Pilots | I46: ='2024 Sector View Gas'!I46+'2025 Sector View Gas'!I46 -> 0 | J46: ='2024 Sector View Gas'!J46+'2025 Sector View Gas'!J46 -> 0 | K46: ='2024 Sector View Gas'!K46+'2025 Sector View Gas'!K46 -> 0 | L46: ='2024 Sector View Gas'!L46+'2025 Sector View Gas'!L46 -> 0 | M46: ='2024 Sector View Gas'!M46+'2025 Sector View Gas'!M46 -> 0 | N46: ='2024 Sector View Gas'!N46+'2025 Sector View Gas'!N46 -> 0 | O46: ='2024 Sector View Gas'!O46+'2025 Sector View Gas'!O46 -> 0 | P46: ='2024 Sector View Gas'!P46+'2025 Sector View Gas'!P46 -> 0 | Q46: ='2024 Sector View Gas'!Q46+'2025 Sector View Gas'!Q46 -> 0 | R46: ='2024 Sector View Gas'!R46+'2025 Sector View Gas'!R46 -> 0 | S46: ='2024 Sector View Gas'!S46+'2025 Sector View Gas'!S46 -> 0
C47: E249 | E47: Placeholder | H47: 18230255 | I47: ='2024 Sector View Gas'!I47+'2025 Sector View Gas'!I47 -> 0 | J47: ='2024 Sector View Gas'!J47+'2025 Sector View Gas'!J47 -> 0 | K47: ='2024 Sector View Gas'!K47+'2025 Sector View Gas'!K47 -> 0 | L47: ='2024 Sector View Gas'!L47+'2025 Sector View Gas'!L47 -> 0 | M47: ='2024 Sector View Gas'!M47+'2025 Sector View Gas'!M47 -> 0 | N47: ='2024 Sector View Gas'!N47+'2025 Sector View Gas'!N47 -> 0 | O47: ='2024 Sector View Gas'!O47+'2025 Sector View Gas'!O47 -> 0 | P47: ='2024 Sector View Gas'!P47+'2025 Sector View Gas'!P47 -> 0 | Q47: ='2024 Sector View Gas'!Q47+'2025 Sector View Gas'!Q47 -> 0 | R47: ='2024 Sector View Gas'!R47+'2025 Sector View Gas'!R47 -> 0 | S47: ='2024 Sector View Gas'!S47+'2025 Sector View Gas'!S47 -> 0
C48: E249 | E48: Placeholder | H48: 18230256 | I48: ='2024 Sector View Gas'!I48+'2025 Sector View Gas'!I48 -> 0 | J48: ='2024 Sector View Gas'!J48+'2025 Sector View Gas'!J48 -> 0 | K48: ='2024 Sector View Gas'!K48+'2025 Sector View Gas'!K48 -> 0 | L48: ='2024 Sector View Gas'!L48+'2025 Sector View Gas'!L48 -> 0 | M48: ='2024 Sector View Gas'!M48+'2025 Sector View Gas'!M48 -> 0 | N48: ='2024 Sector View Gas'!N48+'2025 Sector View Gas'!N48 -> 0 | O48: ='2024 Sector View Gas'!O48+'2025 Sector View Gas'!O48 -> 0 | P48: ='2024 Sector View Gas'!P48+'2025 Sector View Gas'!P48 -> 0 | Q48: ='2024 Sector View Gas'!Q48+'2025 Sector View Gas'!Q48 -> 0 | R48: ='2024 Sector View Gas'!R48+'2025 Sector View Gas'!R48 -> 0 | S48: ='2024 Sector View Gas'!S48+'2025 Sector View Gas'!S48 -> 0
B49: BEM Pilots Detail G249 Gas | C49: E249 | E49: Commercial Pilots | I49: ='2024 Sector View Gas'!I49+'2025 Sector View Gas'!I49 -> 0 | J49: ='2024 Sector View Gas'!J49+'2025 Sector View Gas'!J49 -> 0 | K49: ='2024 Sector View Gas'!K49+'2025 Sector View Gas'!K49 -> 0 | L49: ='2024 Sector View Gas'!L49+'2025 Sector View Gas'!L49 -> 0 | M49: ='2024 Sector View Gas'!M49+'2025 Sector View Gas'!M49 -> 0 | N49: ='2024 Sector View Gas'!N49+'2025 Sector View Gas'!N49 -> 0 | O49: ='2024 Sector View Gas'!O49+'2025 Sector View Gas'!O49 -> 0 | P49: ='2024 Sector View Gas'!P49+'2025 Sector View Gas'!P49 -> 0 | Q49: ='2024 Sector View Gas'!Q49+'2025 Sector View Gas'!Q49 -> 0 | R49: ='2024 Sector View Gas'!R49+'2025 Sector View Gas'!R49 -> 0 | S49: ='2024 Sector View Gas'!S49+'2025 Sector View Gas'!S49 -> 0
C50: E249 | E50: Placeholder | H50: 18231038 | I50: ='2024 Sector View Gas'!I50+'2025 Sector View Gas'!I50 -> 0 | J50: ='2024 Sector View Gas'!J50+'2025 Sector View Gas'!J50 -> 0 | K50: ='2024 Sector View Gas'!K50+'2025 Sector View Gas'!K50 -> 0 | L50: ='2024 Sector View Gas'!L50+'2025 Sector View Gas'!L50 -> 0 | M50: ='2024 Sector View Gas'!M50+'2025 Sector View Gas'!M50 -> 0 | N50: ='2024 Sector View Gas'!N50+'2025 Sector View Gas'!N50 -> 0 | O50: ='2024 Sector View Gas'!O50+'2025 Sector View Gas'!O50 -> 0 | P50: ='2024 Sector View Gas'!P50+'2025 Sector View Gas'!P50 -> 0 | Q50: ='2024 Sector View Gas'!Q50+'2025 Sector View Gas'!Q50 -> 0 | R50: ='2024 Sector View Gas'!R50+'2025 Sector View Gas'!R50 -> 0 | S50: ='2024 Sector View Gas'!S50+'2025 Sector View Gas'!S50 -> 0
G51: Total, Pilots | I51: =I46+I49 -> 0 | J51: =J46+J49 -> 0 | K51: 0 | L51: 0 | M51: 0 | N51: 0 | O51: 0 | P51: 0 | Q51: 0 | R51: 0 | S51: 0
P52: =P51/R51 -> 
H53: 2022-2023 Figures | I53: 2100 | J53: 1640.1 | K53: 0 | L53: 0 | M53: 0 | N53: 0 | O53: 0 | P53: 0 | Q53: 0 | R53: 3740.1 | S53: 65250
C55: Regional Efficiency Programs
B56: TDSM_Regnl_Gas_g219 | E56: Targeted DSM | H56: 18230218 | I56: ='2024 Sector View Gas'!I56+'2025 Sector View Gas'!I56 -> 181080 | J56: ='2024 Sector View Gas'!J56+'2025 Sector View Gas'!J56 -> 162972 | K56: ='2024 Sector View Gas'!K56+'2025 Sector View Gas'!K56 -> 25000 | L56: ='2024 Sector View Gas'!L56+'2025 Sector View Gas'!L56 -> 1600 | M56: ='2024 Sector View Gas'!M56+'2025 Sector View Gas'!M56 -> 120000 | N56: ='2024 Sector View Gas'!N56+'2025 Sector View Gas'!N56 -> 0 | O56: ='2024 Sector View Gas'!O56+'2025 Sector View Gas'!O56 -> 15000 | P56: ='2024 Sector View Gas'!P56+'2025 Sector View Gas'!P56 -> 58250 | Q56: ='2024 Sector View Gas'!Q56+'2025 Sector View Gas'!Q56 -> 0 | R56: ='2024 Sector View Gas'!R56+'2025 Sector View Gas'!R56 -> 563902 | S56: ='2024 Sector View Gas'!S56+'2025 Sector View Gas'!S56 -> 0
